Workbook

Sheet Calculos (hidden)
A1: Factores utilizados en Meses de No Pago para cálculo del valor cuota
A3: N° de Cuota | B3: Equivalente | C3: Fecha | D3: Mes | E3: Marca Cuota No Pago | F3: Factor (10) | G3: Acumulado
A4: 1 | B4: =IF(E4<>"C",IF(ISERROR(1+B3)=TRUE,1,1+B3),IF(ISNUMBER(B3),B3,1)) -> 1 | C4: =+#REF! ->  | D4: =MONTH(C4) ->  | E4: =IF(ISERROR(MATCH(D4,#REF!,0))=FALSE,"C",IF(ISERROR(MATCH(D4,#REF!,0))=FALSE,"D","")) ->  | F4: =IF(E4="C",0,IF(E4 ="D",ROUND(1/((1+#REF!)^A4),9) * 2,ROUND(1/((1+#REF!)^A4),9))) ->  | G4: =ROUND(F4,9) -> 
A5: =A4+1 -> 2 | B5: =IF(E5<>"C",IF(ISERROR(1+B4)=TRUE,1,1+B4),IF(ISNUMBER(B4),B4,1)) -> 2 | C5: =DATE(YEAR(C4) + 1/12,MONTH(C4)+1,DAY(C4)) ->  | E5: =IF(ISERROR(MATCH(D5,#REF!,0))=FALSE,"C",IF(ISERROR(MATCH(D5,#REF!,0))=FALSE,"D","")) ->  | F5: =IF(E5="C",0,IF(E5 ="D",ROUND(1/((1+#REF!)^A5),9) * 2,ROUND(1/((1+#REF!)^A5),9))) ->  | G5: =G4+ROUND(F5,9) -> 
A6: 3 | B6: 3 | E6: =IF(ISERROR(MATCH(D6,#REF!,0))=FALSE,"C",IF(ISERROR(MATCH(D6,#REF!,0))=FALSE,"D","")) ->  | F6: =IF(E6="C",0,IF(E6 ="D",ROUND(1/((1+#REF!)^A6),9) * 2,ROUND(1/((1+#REF!)^A6),9))) ->  | G6: =G5+ROUND(F6,9) -> 
A7: 4 | B7: 4 | E7: =IF(ISERROR(MATCH(D7,#REF!,0))=FALSE,"C",IF(ISERROR(MATCH(D7,#REF!,0))=FALSE,"D","")) ->  | F7: =IF(E7="C",0,IF(E7 ="D",ROUND(1/((1+#REF!)^A7),9) * 2,ROUND(1/((1+#REF!)^A7),9))) -> 
A8: 5 | B8: 5 | E8: =IF(ISERROR(MATCH(D8,#REF!,0))=FALSE,"C",IF(ISERROR(MATCH(D8,#REF!,0))=FALSE,"D","")) ->  | F8: =IF(E8="C",0,IF(E8 ="D",ROUND(1/((1+#REF!)^A8),9) * 2,ROUND(1/((1+#REF!)^A8),9))) -> 
A9: 6 | B9: 6 | E9: =IF(ISERROR(MATCH(D9,#REF!,0))=FALSE,"C",IF(ISERROR(MATCH(D9,#REF!,0))=FALSE,"D","")) ->  | F9: =IF(E9="C",0,IF(E9 ="D",ROUND(1/((1+#REF!)^A9),9) * 2,ROUND(1/((1+#REF!)^A9),9))) -> 
A10: 7 | B10: 7 | E10: =IF(ISERROR(MATCH(D10,#REF!,0))=FALSE,"C",IF(ISERROR(MATCH(D10,#REF!,0))=FALSE,"D","")) ->  | F10: =IF(E10="C",0,IF(E10 ="D",ROUND(1/((1+#REF!)^A10),9) * 2,ROUND(1/((1+#REF!)^A10),9))) -> 
A11: 8 | B11: 8 | E11: =IF(ISERROR(MATCH(D11,#REF!,0))=FALSE,"C",IF(ISERROR(MATCH(D11,#REF!,0))=FALSE,"D","")) ->  | F11: =IF(E11="C",0,IF(E11 ="D",ROUND(1/((1+#REF!)^A11),9) * 2,ROUND(1/((1+#REF!)^A11),9))) -> 
A12: 9 | B12: 9 | E12: =IF(ISERROR(MATCH(D12,#REF!,0))=FALSE,"C",IF(ISERROR(MATCH(D12,#REF!,0))=FALSE,"D","")) ->  | F12: =IF(E12="C",0,IF(E12 ="D",ROUND(1/((1+#REF!)^A12),9) * 2,ROUND(1/((1+#REF!)^A12),9))) -> 
A13: 10 | B13: 10 | E13: =IF(ISERROR(MATCH(D13,#REF!,0))=FALSE,"C",IF(ISERROR(MATCH(D13,#REF!,0))=FALSE,"D","")) ->  | F13: =IF(E13="C",0,IF(E13 ="D",ROUND(1/((1+#REF!)^A13),9) * 2,ROUND(1/((1+#REF!)^A13),9))) -> 
A14: 11 | B14: 11 | E14: =IF(ISERROR(MATCH(D14,#REF!,0))=FALSE,"C",IF(ISERROR(MATCH(D14,#REF!,0))=FALSE,"D","")) ->  | F14: =IF(E14="C",0,IF(E14 ="D",ROUND(1/((1+#REF!)^A14),9) * 2,ROUND(1/((1+#REF!)^A14),9))) -> 
A15: 12 | B15: 12 | E15: =IF(ISERROR(MATCH(D15,#REF!,0))=FALSE,"C",IF(ISERROR(MATCH(D15,#REF!,0))=FALSE,"D","")) ->  | F15: =IF(E15="C",0,IF(E15 ="D",ROUND(1/((1+#REF!)^A15),9) * 2,ROUND(1/((1+#REF!)^A15),9))) -> 
A16: 13 | B16: 13 | E16: =IF(ISERROR(MATCH(D16,#REF!,0))=FALSE,"C",IF(ISERROR(MATCH(D16,#REF!,0))=FALSE,"D","")) ->  | F16: =IF(E16="C",0,IF(E16 ="D",ROUND(1/((1+#REF!)^A16),9) * 2,ROUND(1/((1+#REF!)^A16),9))) -> 
A17: 14 | B17: 14 | E17: =IF(ISERROR(MATCH(D17,#REF!,0))=FALSE,"C",IF(ISERROR(MATCH(D17,#REF!,0))=FALSE,"D","")) ->  | F17: =IF(E17="C",0,IF(E17 ="D",ROUND(1/((1+#REF!)^A17),9) * 2,ROUND(1/((1+#REF!)^A17),9))) -> 
A18: 15 | B18: 15 | E18: =IF(ISERROR(MATCH(D18,#REF!,0))=FALSE,"C",IF(ISERROR(MATCH(D18,#REF!,0))=FALSE,"D","")) ->  | F18: =IF(E18="C",0,IF(E18 ="D",ROUND(1/((1+#REF!)^A18),9) * 2,ROUND(1/((1+#REF!)^A18),9))) -> 
A19: 16 | B19: 16 | E19: =IF(ISERROR(MATCH(D19,#REF!,0))=FALSE,"C",IF(ISERROR(MATCH(D19,#REF!,0))=FALSE,"D","")) ->  | F19: =IF(E19="C",0,IF(E19 ="D",ROUND(1/((1+#REF!)^A19),9) * 2,ROUND(1/((1+#REF!)^A19),9))) -> 
A20: 17 | B20: 17 | E20: =IF(ISERROR(MATCH(D20,#REF!,0))=FALSE,"C",IF(ISERROR(MATCH(D20,#REF!,0))=FALSE,"D","")) ->  | F20: =IF(E20="C",0,IF(E20 ="D",ROUND(1/((1+#REF!)^A20),9) * 2,ROUND(1/((1+#REF!)^A20),9))) -> 
A21: 18 | B21: 18 | E21: =IF(ISERROR(MATCH(D21,#REF!,0))=FALSE,"C",IF(ISERROR(MATCH(D21,#REF!,0))=FALSE,"D","")) ->  | F21: =IF(E21="C",0,IF(E21 ="D",ROUND(1/((1+#REF!)^A21),9) * 2,ROUND(1/((1+#REF!)^A21),9))) -> 
A22: 19 | B22: 19 | E22: =IF(ISERROR(MATCH(D22,#REF!,0))=FALSE,"C",IF(ISERROR(MATCH(D22,#REF!,0))=FALSE,"D","")) ->  | F22: =IF(E22="C",0,IF(E22 ="D",ROUND(1/((1+#REF!)^A22),9) * 2,ROUND(1/((1+#REF!)^A22),9))) -> 
A23: 20 | B23: 20 | E23: =IF(ISERROR(MATCH(D23,#REF!,0))=FALSE,"C",IF(ISERROR(MATCH(D23,#REF!,0))=FALSE,"D","")) ->  | F23: =IF(E23="C",0,IF(E23 ="D",ROUND(1/((1+#REF!)^A23),9) * 2,ROUND(1/((1+#REF!)^A23),9))) -> 
A24: 21 | B24: 21 | E24: =IF(ISERROR(MATCH(D24,#REF!,0))=FALSE,"C",IF(ISERROR(MATCH(D24,#REF!,0))=FALSE,"D","")) ->  | F24: =IF(E24="C",0,IF(E24 ="D",ROUND(1/((1+#REF!)^A24),9) * 2,ROUND(1/((1+#REF!)^A24),9))) -> 
A25: 22 | B25: 22 | E25: =IF(ISERROR(MATCH(D25,#REF!,0))=FALSE,"C",IF(ISERROR(MATCH(D25,#REF!,0))=FALSE,"D","")) ->  | F25: =IF(E25="C",0,IF(E25 ="D",ROUND(1/((1+#REF!)^A25),9) * 2,ROUND(1/((1+#REF!)^A25),9))) -> 
A26: 23 | B26: 23 | E26: =IF(ISERROR(MATCH(D26,#REF!,0))=FALSE,"C",IF(ISERROR(MATCH(D26,#REF!,0))=FALSE,"D","")) ->  | F26: =IF(E26="C",0,IF(E26 ="D",ROUND(1/((1+#REF!)^A26),9) * 2,ROUND(1/((1+#REF!)^A26),9))) -> 
A27: 24 | B27: 24 | E27: =IF(ISERROR(MATCH(D27,#REF!,0))=FALSE,"C",IF(ISERROR(MATCH(D27,#REF!,0))=FALSE,"D","")) ->  | F27: =IF(E27="C",0,IF(E27 ="D",ROUND(1/((1+#REF!)^A27),9) * 2,ROUND(1/((1+#REF!)^A27),9))) -> 
A28: 25 | B28: 25 | E28: =IF(ISERROR(MATCH(D28,#REF!,0))=FALSE,"C",IF(ISERROR(MATCH(D28,#REF!,0))=FALSE,"D","")) ->  | F28: =IF(E28="C",0,IF(E28 ="D",ROUND(1/((1+#REF!)^A28),9) * 2,ROUND(1/((1+#REF!)^A28),9))) -> 
A29: 26 | B29: 26 | E29: =IF(ISERROR(MATCH(D29,#REF!,0))=FALSE,"C",IF(ISERROR(MATCH(D29,#REF!,0))=FALSE,"D","")) ->  | F29: =IF(E29="C",0,IF(E29 ="D",ROUND(1/((1+#REF!)^A29),9) * 2,ROUND(1/((1+#REF!)^A29),9))) -> 
A30: 27 | B30: 27 | E30: =IF(ISERROR(MATCH(D30,#REF!,0))=FALSE,"C",IF(ISERROR(MATCH(D30,#REF!,0))=FALSE,"D","")) ->  | F30: =IF(E30="C",0,IF(E30 ="D",ROUND(1/((1+#REF!)^A30),9) * 2,ROUND(1/((1+#REF!)^A30),9))) -> 
A31: 28 | B31: 28 | E31: =IF(ISERROR(MATCH(D31,#REF!,0))=FALSE,"C",IF(ISERROR(MATCH(D31,#REF!,0))=FALSE,"D","")) ->  | F31: =IF(E31="C",0,IF(E31 ="D",ROUND(1/((1+#REF!)^A31),9) * 2,ROUND(1/((1+#REF!)^A31),9))) -> 
A32: 29 | B32: 29 | E32: =IF(ISERROR(MATCH(D32,#REF!,0))=FALSE,"C",IF(ISERROR(MATCH(D32,#REF!,0))=FALSE,"D","")) ->  | F32: =IF(E32="C",0,IF(E32 ="D",ROUND(1/((1+#REF!)^A32),9) * 2,ROUND(1/((1+#REF!)^A32),9))) -> 
A33: 30 | B33: 30 | E33: =IF(ISERROR(MATCH(D33,#REF!,0))=FALSE,"C",IF(ISERROR(MATCH(D33,#REF!,0))=FALSE,"D","")) ->  | F33: =IF(E33="C",0,IF(E33 ="D",ROUND(1/((1+#REF!)^A33),9) * 2,ROUND(1/((1+#REF!)^A33),9))) -> 
A34: 31 | B34: 31 | E34: =IF(ISERROR(MATCH(D34,#REF!,0))=FALSE,"C",IF(ISERROR(MATCH(D34,#REF!,0))=FALSE,"D","")) ->  | F34: =IF(E34="C",0,IF(E34 ="D",ROUND(1/((1+#REF!)^A34),9) * 2,ROUND(1/((1+#REF!)^A34),9))) -> 
A35: 32 | B35: 32 | E35: =IF(ISERROR(MATCH(D35,#REF!,0))=FALSE,"C",IF(ISERROR(MATCH(D35,#REF!,0))=FALSE,"D","")) ->  | F35: =IF(E35="C",0,IF(E35 ="D",ROUND(1/((1+#REF!)^A35),9) * 2,ROUND(1/((1+#REF!)^A35),9))) -> 
A36: 33 | B36: 33 | E36: =IF(ISERROR(MATCH(D36,#REF!,0))=FALSE,"C",IF(ISERROR(MATCH(D36,#REF!,0))=FALSE,"D","")) ->  | F36: =IF(E36="C",0,IF(E36 ="D",ROUND(1/((1+#REF!)^A36),9) * 2,ROUND(1/((1+#REF!)^A36),9))) -> 
A37: 34 | B37: 34 | E37: =IF(ISERROR(MATCH(D37,#REF!,0))=FALSE,"C",IF(ISERROR(MATCH(D37,#REF!,0))=FALSE,"D","")) ->  | F37: =IF(E37="C",0,IF(E37 ="D",ROUND(1/((1+#REF!)^A37),9) * 2,ROUND(1/((1+#REF!)^A37),9))) -> 
A38: 35 | B38: 35 | E38: =IF(ISERROR(MATCH(D38,#REF!,0))=FALSE,"C",IF(ISERROR(MATCH(D38,#REF!,0))=FALSE,"D","")) ->  | F38: =IF(E38="C",0,IF(E38 ="D",ROUND(1/((1+#REF!)^A38),9) * 2,ROUND(1/((1+#REF!)^A38),9))) -> 
A39: 36 | B39: 36 | E39: =IF(ISERROR(MATCH(D39,#REF!,0))=FALSE,"C",IF(ISERROR(MATCH(D39,#REF!,0))=FALSE,"D","")) ->  | F39: =IF(E39="C",0,IF(E39 ="D",ROUND(1/((1+#REF!)^A39),9) * 2,ROUND(1/((1+#REF!)^A39),9))) -> 
A40: 37 | B40: 37 | E40: =IF(ISERROR(MATCH(D40,#REF!,0))=FALSE,"C",IF(ISERROR(MATCH(D40,#REF!,0))=FALSE,"D","")) ->  | F40: =IF(E40="C",0,IF(E40 ="D",ROUND(1/((1+#REF!)^A40),9) * 2,ROUND(1/((1+#REF!)^A40),9))) -> 
A41: 38 | B41: 38 | E41: =IF(ISERROR(MATCH(D41,#REF!,0))=FALSE,"C",IF(ISERROR(MATCH(D41,#REF!,0))=FALSE,"D","")) ->  | F41: =IF(E41="C",0,IF(E41 ="D",ROUND(1/((1+#REF!)^A41),9) * 2,ROUND(1/((1+#REF!)^A41),9))) -> 
A42: 39 | B42: 39 | E42: =IF(ISERROR(MATCH(D42,#REF!,0))=FALSE,"C",IF(ISERROR(MATCH(D42,#REF!,0))=FALSE,"D","")) ->  | F42: =IF(E42="C",0,IF(E42 ="D",ROUND(1/((1+#REF!)^A42),9) * 2,ROUND(1/((1+#REF!)^A42),9))) -> 
A43: 40 | B43: 40 | E43: =IF(ISERROR(MATCH(D43,#REF!,0))=FALSE,"C",IF(ISERROR(MATCH(D43,#REF!,0))=FALSE,"D","")) ->  | F43: =IF(E43="C",0,IF(E43 ="D",ROUND(1/((1+#REF!)^A43),9) * 2,ROUND(1/((1+#REF!)^A43),9))) -> 
A44: 41 | B44: 41 | E44: =IF(ISERROR(MATCH(D44,#REF!,0))=FALSE,"C",IF(ISERROR(MATCH(D44,#REF!,0))=FALSE,"D","")) ->  | F44: =IF(E44="C",0,IF(E44 ="D",ROUND(1/((1+#REF!)^A44),9) * 2,ROUND(1/((1+#REF!)^A44),9))) -> 
A45: 42 | B45: 42 | E45: =IF(ISERROR(MATCH(D45,#REF!,0))=FALSE,"C",IF(ISERROR(MATCH(D45,#REF!,0))=FALSE,"D","")) ->  | F45: =IF(E45="C",0,IF(E45 ="D",ROUND(1/((1+#REF!)^A45),9) * 2,ROUND(1/((1+#REF!)^A45),9))) -> 
A46: 43 | B46: 43 | E46: =IF(ISERROR(MATCH(D46,#REF!,0))=FALSE,"C",IF(ISERROR(MATCH(D46,#REF!,0))=FALSE,"D","")) ->  | F46: =IF(E46="C",0,IF(E46 ="D",ROUND(1/((1+#REF!)^A46),9) * 2,ROUND(1/((1+#REF!)^A46),9))) -> 
A47: 44 | B47: 44 | E47: =IF(ISERROR(MATCH(D47,#REF!,0))=FALSE,"C",IF(ISERROR(MATCH(D47,#REF!,0))=FALSE,"D","")) ->  | F47: =IF(E47="C",0,IF(E47 ="D",ROUND(1/((1+#REF!)^A47),9) * 2,ROUND(1/((1+#REF!)^A47),9))) -> 
A48: 45 | B48: 45 | E48: =IF(ISERROR(MATCH(D48,#REF!,0))=FALSE,"C",IF(ISERROR(MATCH(D48,#REF!,0))=FALSE,"D","")) ->  | F48: =IF(E48="C",0,IF(E48 ="D",ROUND(1/((1+#REF!)^A48),9) * 2,ROUND(1/((1+#REF!)^A48),9))) -> 
A49: 46 | B49: 46 | E49: =IF(ISERROR(MATCH(D49,#REF!,0))=FALSE,"C",IF(ISERROR(MATCH(D49,#REF!,0))=FALSE,"D","")) ->  | F49: =IF(E49="C",0,IF(E49 ="D",ROUND(1/((1+#REF!)^A49),9) * 2,ROUND(1/((1+#REF!)^A49),9))) -> 
A50: 47 | B50: 47 | E50: =IF(ISERROR(MATCH(D50,#REF!,0))=FALSE,"C",IF(ISERROR(MATCH(D50,#REF!,0))=FALSE,"D","")) ->  | F50: =IF(E50="C",0,IF(E50 ="D",ROUND(1/((1+#REF!)^A50),9) * 2,ROUND(1/((1+#REF!)^A50),9))) -> 
A51: 48 | B51: 48 | E51: =IF(ISERROR(MATCH(D51,#REF!,0))=FALSE,"C",IF(ISERROR(MATCH(D51,#REF!,0))=FALSE,"D","")) ->  | F51: =IF(E51="C",0,IF(E51 ="D",ROUND(1/((1+#REF!)^A51),9) * 2,ROUND(1/((1+#REF!)^A51),9))) -> 
A52: 49 | B52: 49 | E52: =IF(ISERROR(MATCH(D52,#REF!,0))=FALSE,"C",IF(ISERROR(MATCH(D52,#REF!,0))=FALSE,"D","")) ->  | F52: =IF(E52="C",0,IF(E52 ="D",ROUND(1/((1+#REF!)^A52),9) * 2,ROUND(1/((1+#REF!)^A52),9))) -> 
A53: 50 | B53: 50 | E53: =IF(ISERROR(MATCH(D53,#REF!,0))=FALSE,"C",IF(ISERROR(MATCH(D53,#REF!,0))=FALSE,"D","")) ->  | F53: =IF(E53="C",0,IF(E53 ="D",ROUND(1/((1+#REF!)^A53),9) * 2,ROUND(1/((1+#REF!)^A53),9))) -> 
A54: 51 | B54: 51 | E54: =IF(ISERROR(MATCH(D54,#REF!,0))=FALSE,"C",IF(ISERROR(MATCH(D54,#REF!,0))=FALSE,"D","")) ->  | F54: =IF(E54="C",0,IF(E54 ="D",ROUND(1/((1+#REF!)^A54),9) * 2,ROUND(1/((1+#REF!)^A54),9))) -> 
A55: 52 | B55: 52 | E55: =IF(ISERROR(MATCH(D55,#REF!,0))=FALSE,"C",IF(ISERROR(MATCH(D55,#REF!,0))=FALSE,"D","")) ->  | F55: =IF(E55="C",0,IF(E55 ="D",ROUND(1/((1+#REF!)^A55),9) * 2,ROUND(1/((1+#REF!)^A55),9))) -> 
A56: 53 | B56: 53 | E56: =IF(ISERROR(MATCH(D56,#REF!,0))=FALSE,"C",IF(ISERROR(MATCH(D56,#REF!,0))=FALSE,"D","")) ->  | F56: =IF(E56="C",0,IF(E56 ="D",ROUND(1/((1+#REF!)^A56),9) * 2,ROUND(1/((1+#REF!)^A56),9))) -> 
A57: 54 | B57: 54 | E57: =IF(ISERROR(MATCH(D57,#REF!,0))=FALSE,"C",IF(ISERROR(MATCH(D57,#REF!,0))=FALSE,"D","")) ->  | F57: =IF(E57="C",0,IF(E57 ="D",ROUND(1/((1+#REF!)^A57),9) * 2,ROUND(1/((1+#REF!)^A57),9))) -> 
A58: 55 | B58: 55 | E58: =IF(ISERROR(MATCH(D58,#REF!,0))=FALSE,"C",IF(ISERROR(MATCH(D58,#REF!,0))=FALSE,"D","")) ->  | F58: =IF(E58="C",0,IF(E58 ="D",ROUND(1/((1+#REF!)^A58),9) * 2,ROUND(1/((1+#REF!)^A58),9))) -> 
A59: 56 | B59: 56 | E59: =IF(ISERROR(MATCH(D59,#REF!,0))=FALSE,"C",IF(ISERROR(MATCH(D59,#REF!,0))=FALSE,"D","")) ->  | F59: =IF(E59="C",0,IF(E59 ="D",ROUND(1/((1+#REF!)^A59),9) * 2,ROUND(1/((1+#REF!)^A59),9))) -> 
A60: 57 | B60: 57 | E60: =IF(ISERROR(MATCH(D60,#REF!,0))=FALSE,"C",IF(ISERROR(MATCH(D60,#REF!,0))=FALSE,"D","")) ->  | F60: =IF(E60="C",0,IF(E60 ="D",ROUND(1/((1+#REF!)^A60),9) * 2,ROUND(1/((1+#REF!)^A60),9))) -> 
A61: 58 | B61: 58 | E61: =IF(ISERROR(MATCH(D61,#REF!,0))=FALSE,"C",IF(ISERROR(MATCH(D61,#REF!,0))=FALSE,"D","")) ->  | F61: =IF(E61="C",0,IF(E61 ="D",ROUND(1/((1+#REF!)^A61),9) * 2,ROUND(1/((1+#REF!)^A61),9))) -> 
A62: 59 | B62: 59 | E62: =IF(ISERROR(MATCH(D62,#REF!,0))=FALSE,"C",IF(ISERROR(MATCH(D62,#REF!,0))=FALSE,"D","")) ->  | F62: =IF(E62="C",0,IF(E62 ="D",ROUND(1/((1+#REF!)^A62),9) * 2,ROUND(1/((1+#REF!)^A62),9))) -> 
A63: 60 | B63: 60 | E63: =IF(ISERROR(MATCH(D63,#REF!,0))=FALSE,"C",IF(ISERROR(MATCH(D63,#REF!,0))=FALSE,"D","")) ->  | F63: =IF(E63="C",0,IF(E63 ="D",ROUND(1/((1+#REF!)^A63),9) * 2,ROUND(1/((1+#REF!)^A63),9))) -> 
A64: 61 | B64: 61 | E64: =IF(ISERROR(MATCH(D64,#REF!,0))=FALSE,"C",IF(ISERROR(MATCH(D64,#REF!,0))=FALSE,"D","")) ->  | F64: =IF(E64="C",0,IF(E64 ="D",ROUND(1/((1+#REF!)^A64),9) * 2,ROUND(1/((1+#REF!)^A64),9))) -> 
A65: 62 | B65: 62 | E65: =IF(ISERROR(MATCH(D65,#REF!,0))=FALSE,"C",IF(ISERROR(MATCH(D65,#REF!,0))=FALSE,"D","")) ->  | F65: =IF(E65="C",0,IF(E65 ="D",ROUND(1/((1+#REF!)^A65),9) * 2,ROUND(1/((1+#REF!)^A65),9))) -> 
A66: 63 | B66: 63 | E66: =IF(ISERROR(MATCH(D66,#REF!,0))=FALSE,"C",IF(ISERROR(MATCH(D66,#REF!,0))=FALSE,"D","")) ->  | F66: =IF(E66="C",0,IF(E66 ="D",ROUND(1/((1+#REF!)^A66),9) * 2,ROUND(1/((1+#REF!)^A66),9))) -> 
A67: 64 | B67: 64 | E67: =IF(ISERROR(MATCH(D67,#REF!,0))=FALSE,"C",IF(ISERROR(MATCH(D67,#REF!,0))=FALSE,"D","")) ->  | F67: =IF(E67="C",0,IF(E67 ="D",ROUND(1/((1+#REF!)^A67),9) * 2,ROUND(1/((1+#REF!)^A67),9))) -> 
A68: 65 | B68: 65 | D68: =MONTH(C68) ->  | E68: =IF(ISERROR(MATCH(D68,#REF!,0))=FALSE,"C",IF(ISERROR(MATCH(D68,#REF!,0))=FALSE,"D","")) ->  | F68: =IF(E68="C",0,IF(E68 ="D",ROUND(1/((1+#REF!)^A68),9) * 2,ROUND(1/((1+#REF!)^A68),9))) -> 
A69: =A68+1 -> 66 | B69: =IF(E69<>"C",IF(ISERROR(1+B68)=TRUE,1,1+B68),IF(ISNUMBER(B68),B68,1)) -> 66 | C69: =DATE(YEAR(C68) + 1/12,MONTH(C68)+1,DAY(C68)) ->  | E69: =IF(ISERROR(MATCH(D69,#REF!,0))=FALSE,"C",IF(ISERROR(MATCH(D69,#REF!,0))=FALSE,"D","")) ->  | F69: =IF(E69="C",0,IF(E69 ="D",ROUND(1/((1+#REF!)^A69),9) * 2,ROUND(1/((1+#REF!)^A69),9))) -> 
A70: 67 | B70: 67 | E70: =IF(ISERROR(MATCH(D70,#REF!,0))=FALSE,"C",IF(ISERROR(MATCH(D70,#REF!,0))=FALSE,"D","")) ->  | F70: =IF(E70="C",0,IF(E70 ="D",ROUND(1/((1+#REF!)^A70),9) * 2,ROUND(1/((1+#REF!)^A70),9))) ->  | G70: =G69+ROUND(F70,9) -> 
A71: 68 | B71: 68 | E71: =IF(ISERROR(MATCH(D71,#REF!,0))=FALSE,"C",IF(ISERROR(MATCH(D71,#REF!,0))=FALSE,"D","")) ->  | F71: =IF(E71="C",0,IF(E71 ="D",ROUND(1/((1+#REF!)^A71),9) * 2,ROUND(1/((1+#REF!)^A71),9))) -> 
A72: 69 | B72: 69 | E72: =IF(ISERROR(MATCH(D72,#REF!,0))=FALSE,"C",IF(ISERROR(MATCH(D72,#REF!,0))=FALSE,"D","")) ->  | F72: =IF(E72="C",0,IF(E72 ="D",ROUND(1/((1+#REF!)^A72),9) * 2,ROUND(1/((1+#REF!)^A72),9))) -> 
A73: 70 | B73: 70 | E73: =IF(ISERROR(MATCH(D73,#REF!,0))=FALSE,"C",IF(ISERROR(MATCH(D73,#REF!,0))=FALSE,"D","")) ->  | F73: =IF(E73="C",0,IF(E73 ="D",ROUND(1/((1+#REF!)^A73),9) * 2,ROUND(1/((1+#REF!)^A73),9))) -> 
A74: 71 | B74: 71 | E74: =IF(ISERROR(MATCH(D74,#REF!,0))=FALSE,"C",IF(ISERROR(MATCH(D74,#REF!,0))=FALSE,"D","")) ->  | F74: =IF(E74="C",0,IF(E74 ="D",ROUND(1/((1+#REF!)^A74),9) * 2,ROUND(1/((1+#REF!)^A74),9))) -> 
A75: 72 | B75: 72 | E75: =IF(ISERROR(MATCH(D75,#REF!,0))=FALSE,"C",IF(ISERROR(MATCH(D75,#REF!,0))=FALSE,"D","")) ->  | F75: =IF(E75="C",0,IF(E75 ="D",ROUND(1/((1+#REF!)^A75),9) * 2,ROUND(1/((1+#REF!)^A75),9))) -> 
A76: 73 | B76: 73 | E76: =IF(ISERROR(MATCH(D76,#REF!,0))=FALSE,"C",IF(ISERROR(MATCH(D76,#REF!,0))=FALSE,"D","")) ->  | F76: =IF(E76="C",0,IF(E76 ="D",ROUND(1/((1+#REF!)^A76),9) * 2,ROUND(1/((1+#REF!)^A76),9))) -> 
A77: 74 | B77: 74 | E77: =IF(ISERROR(MATCH(D77,#REF!,0))=FALSE,"C",IF(ISERROR(MATCH(D77,#REF!,0))=FALSE,"D","")) ->  | F77: =IF(E77="C",0,IF(E77 ="D",ROUND(1/((1+#REF!)^A77),9) * 2,ROUND(1/((1+#REF!)^A77),9))) -> 
A78: 75 | B78: 75 | E78: =IF(ISERROR(MATCH(D78,#REF!,0))=FALSE,"C",IF(ISERROR(MATCH(D78,#REF!,0))=FALSE,"D","")) ->  | F78: =IF(E78="C",0,IF(E78 ="D",ROUND(1/((1+#REF!)^A78),9) * 2,ROUND(1/((1+#REF!)^A78),9))) -> 
A79: 76 | B79: 76 | E79: =IF(ISERROR(MATCH(D79,#REF!,0))=FALSE,"C",IF(ISERROR(MATCH(D79,#REF!,0))=FALSE,"D","")) ->  | F79: =IF(E79="C",0,IF(E79 ="D",ROUND(1/((1+#REF!)^A79),9) * 2,ROUND(1/((1+#REF!)^A79),9))) -> 
A80: 77 | B80: 77 | E80: =IF(ISERROR(MATCH(D80,#REF!,0))=FALSE,"C",IF(ISERROR(MATCH(D80,#REF!,0))=FALSE,"D","")) ->  | F80: =IF(E80="C",0,IF(E80 ="D",ROUND(1/((1+#REF!)^A80),9) * 2,ROUND(1/((1+#REF!)^A80),9))) -> 
A81: 78 | B81: 78 | E81: =IF(ISERROR(MATCH(D81,#REF!,0))=FALSE,"C",IF(ISERROR(MATCH(D81,#REF!,0))=FALSE,"D","")) ->  | F81: =IF(E81="C",0,IF(E81 ="D",ROUND(1/((1+#REF!)^A81),9) * 2,ROUND(1/((1+#REF!)^A81),9))) -> 
A82: 79 | B82: 79 | E82: =IF(ISERROR(MATCH(D82,#REF!,0))=FALSE,"C",IF(ISERROR(MATCH(D82,#REF!,0))=FALSE,"D","")) ->  | F82: =IF(E82="C",0,IF(E82 ="D",ROUND(1/((1+#REF!)^A82),9) * 2,ROUND(1/((1+#REF!)^A82),9))) -> 
A83: 80 | B83: 80 | E83: =IF(ISERROR(MATCH(D83,#REF!,0))=FALSE,"C",IF(ISERROR(MATCH(D83,#REF!,0))=FALSE,"D","")) ->  | F83: =IF(E83="C",0,IF(E83 ="D",ROUND(1/((1+#REF!)^A83),9) * 2,ROUND(1/((1+#REF!)^A83),9))) -> 
A84: 81 | B84: 81 | E84: =IF(ISERROR(MATCH(D84,#REF!,0))=FALSE,"C",IF(ISERROR(MATCH(D84,#REF!,0))=FALSE,"D","")) ->  | F84: =IF(E84="C",0,IF(E84 ="D",ROUND(1/((1+#REF!)^A84),9) * 2,ROUND(1/((1+#REF!)^A84),9))) -> 
A85: 82 | B85: 82 | E85: =IF(ISERROR(MATCH(D85,#REF!,0))=FALSE,"C",IF(ISERROR(MATCH(D85,#REF!,0))=FALSE,"D","")) ->  | F85: =IF(E85="C",0,IF(E85 ="D",ROUND(1/((1+#REF!)^A85),9) * 2,ROUND(1/((1+#REF!)^A85),9))) -> 
A86: 83 | B86: 83 | E86: =IF(ISERROR(MATCH(D86,#REF!,0))=FALSE,"C",IF(ISERROR(MATCH(D86,#REF!,0))=FALSE,"D","")) ->  | F86: =IF(E86="C",0,IF(E86 ="D",ROUND(1/((1+#REF!)^A86),9) * 2,ROUND(1/((1+#REF!)^A86),9))) -> 
A87: 84 | B87: 84 | E87: =IF(ISERROR(MATCH(D87,#REF!,0))=FALSE,"C",IF(ISERROR(MATCH(D87,#REF!,0))=FALSE,"D","")) ->  | F87: =IF(E87="C",0,IF(E87 ="D",ROUND(1/((1+#REF!)^A87),9) * 2,ROUND(1/((1+#REF!)^A87),9))) -> 
A88: 85 | B88: 85 | E88: =IF(ISERROR(MATCH(D88,#REF!,0))=FALSE,"C",IF(ISERROR(MATCH(D88,#REF!,0))=FALSE,"D","")) ->  | F88: =IF(E88="C",0,IF(E88 ="D",ROUND(1/((1+#REF!)^A88),9) * 2,ROUND(1/((1+#REF!)^A88),9))) -> 
A89: 86 | B89: 86 | E89: =IF(ISERROR(MATCH(D89,#REF!,0))=FALSE,"C",IF(ISERROR(MATCH(D89,#REF!,0))=FALSE,"D","")) ->  | F89: =IF(E89="C",0,IF(E89 ="D",ROUND(1/((1+#REF!)^A89),9) * 2,ROUND(1/((1+#REF!)^A89),9))) -> 
A90: 87 | B90: 87 | E90: =IF(ISERROR(MATCH(D90,#REF!,0))=FALSE,"C",IF(ISERROR(MATCH(D90,#REF!,0))=FALSE,"D","")) ->  | F90: =IF(E90="C",0,IF(E90 ="D",ROUND(1/((1+#REF!)^A90),9) * 2,ROUND(1/((1+#REF!)^A90),9))) -> 
A91: 88 | B91: 88 | E91: =IF(ISERROR(MATCH(D91,#REF!,0))=FALSE,"C",IF(ISERROR(MATCH(D91,#REF!,0))=FALSE,"D","")) ->  | F91: =IF(E91="C",0,IF(E91 ="D",ROUND(1/((1+#REF!)^A91),9) * 2,ROUND(1/((1+#REF!)^A91),9))) -> 
A92: 89 | B92: 89 | E92: =IF(ISERROR(MATCH(D92,#REF!,0))=FALSE,"C",IF(ISERROR(MATCH(D92,#REF!,0))=FALSE,"D","")) ->  | F92: =IF(E92="C",0,IF(E92 ="D",ROUND(1/((1+#REF!)^A92),9) * 2,ROUND(1/((1+#REF!)^A92),9))) -> 
A93: 90 | B93: 90 | E93: =IF(ISERROR(MATCH(D93,#REF!,0))=FALSE,"C",IF(ISERROR(MATCH(D93,#REF!,0))=FALSE,"D","")) ->  | F93: =IF(E93="C",0,IF(E93 ="D",ROUND(1/((1+#REF!)^A93),9) * 2,ROUND(1/((1+#REF!)^A93),9))) -> 
A94: 91 | B94: 91 | E94: =IF(ISERROR(MATCH(D94,#REF!,0))=FALSE,"C",IF(ISERROR(MATCH(D94,#REF!,0))=FALSE,"D","")) ->  | F94: =IF(E94="C",0,IF(E94 ="D",ROUND(1/((1+#REF!)^A94),9) * 2,ROUND(1/((1+#REF!)^A94),9))) -> 
A95: 92 | B95: 92 | E95: =IF(ISERROR(MATCH(D95,#REF!,0))=FALSE,"C",IF(ISERROR(MATCH(D95,#REF!,0))=FALSE,"D","")) ->  | F95: =IF(E95="C",0,IF(E95 ="D",ROUND(1/((1+#REF!)^A95),9) * 2,ROUND(1/((1+#REF!)^A95),9))) -> 
A96: 93 | B96: 93 | E96: =IF(ISERROR(MATCH(D96,#REF!,0))=FALSE,"C",IF(ISERROR(MATCH(D96,#REF!,0))=FALSE,"D","")) ->  | F96: =IF(E96="C",0,IF(E96 ="D",ROUND(1/((1+#REF!)^A96),9) * 2,ROUND(1/((1+#REF!)^A96),9))) -> 
A97: 94 | B97: 94 | E97: =IF(ISERROR(MATCH(D97,#REF!,0))=FALSE,"C",IF(ISERROR(MATCH(D97,#REF!,0))=FALSE,"D","")) ->  | F97: =IF(E97="C",0,IF(E97 ="D",ROUND(1/((1+#REF!)^A97),9) * 2,ROUND(1/((1+#REF!)^A97),9))) -> 
A98: 95 | B98: 95 | E98: =IF(ISERROR(MATCH(D98,#REF!,0))=FALSE,"C",IF(ISERROR(MATCH(D98,#REF!,0))=FALSE,"D","")) ->  | F98: =IF(E98="C",0,IF(E98 ="D",ROUND(1/((1+#REF!)^A98),9) * 2,ROUND(1/((1+#REF!)^A98),9))) -> 
A99: 96 | B99: 96 | E99: =IF(ISERROR(MATCH(D99,#REF!,0))=FALSE,"C",IF(ISERROR(MATCH(D99,#REF!,0))=FALSE,"D","")) ->  | F99: =IF(E99="C",0,IF(E99 ="D",ROUND(1/((1+#REF!)^A99),9) * 2,ROUND(1/((1+#REF!)^A99),9))) -> 
A100: 97 | B100: =IF(E100<>"C",IF(ISERROR(1+B99)=TRUE,1,1+B99),IF(ISNUMBER(B99),B99,1)) -> 97 | D100: =MONTH(C100) ->  | E100: =IF(ISERROR(MATCH(D100,#REF!,0))=FALSE,"C",IF(ISERROR(MATCH(D100,#REF!,0))=FALSE,"D","")) ->  | F100: =IF(E100="C",0,IF(E100 ="D",ROUND(1/((1+#REF!)^A100),9) * 2,ROUND(1/((1+#REF!)^A100),9))) ->  | G100: =G99+ROUND(F100,9) -> 
A101: 98 | B101: 98 | E101: =IF(ISERROR(MATCH(D101,#REF!,0))=FALSE,"C",IF(ISERROR(MATCH(D101,#REF!,0))=FALSE,"D","")) ->  | F101: =IF(E101="C",0,IF(E101 ="D",ROUND(1/((1+#REF!)^A101),9) * 2,ROUND(1/((1+#REF!)^A101),9))) -> 
A102: 99 | B102: 99 | E102: =IF(ISERROR(MATCH(D102,#REF!,0))=FALSE,"C",IF(ISERROR(MATCH(D102,#REF!,0))=FALSE,"D","")) ->  | F102: =IF(E102="C",0,IF(E102 ="D",ROUND(1/((1+#REF!)^A102),9) * 2,ROUND(1/((1+#REF!)^A102),9))) -> 
A103: 100 | B103: 100 | E103: =IF(ISERROR(MATCH(D103,#REF!,0))=FALSE,"C",IF(ISERROR(MATCH(D103,#REF!,0))=FALSE,"D","")) ->  | F103: =IF(E103="C",0,IF(E103 ="D",ROUND(1/((1+#REF!)^A103),9) * 2,ROUND(1/((1+#REF!)^A103),9))) -> 
A104: 101 | B104: 101 | E104: =IF(ISERROR(MATCH(D104,#REF!,0))=FALSE,"C",IF(ISERROR(MATCH(D104,#REF!,0))=FALSE,"D","")) ->  | F104: =IF(E104="C",0,IF(E104 ="D",ROUND(1/((1+#REF!)^A104),9) * 2,ROUND(1/((1+#REF!)^A104),9))) -> 
A105: 102 | B105: 102 | E105: =IF(ISERROR(MATCH(D105,#REF!,0))=FALSE,"C",IF(ISERROR(MATCH(D105,#REF!,0))=FALSE,"D","")) ->  | F105: =IF(E105="C",0,IF(E105 ="D",ROUND(1/((1+#REF!)^A105),9) * 2,ROUND(1/((1+#REF!)^A105),9))) -> 
A106: 103 | B106: 103 | E106: =IF(ISERROR(MATCH(D106,#REF!,0))=FALSE,"C",IF(ISERROR(MATCH(D106,#REF!,0))=FALSE,"D","")) ->  | F106: =IF(E106="C",0,IF(E106 ="D",ROUND(1/((1+#REF!)^A106),9) * 2,ROUND(1/((1+#REF!)^A106),9))) -> 
A107: 104 | B107: 104 | E107: =IF(ISERROR(MATCH(D107,#REF!,0))=FALSE,"C",IF(ISERROR(MATCH(D107,#REF!,0))=FALSE,"D","")) ->  | F107: =IF(E107="C",0,IF(E107 ="D",ROUND(1/((1+#REF!)^A107),9) * 2,ROUND(1/((1+#REF!)^A107),9))) -> 
A108: 105 | B108: 105 | E108: =IF(ISERROR(MATCH(D108,#REF!,0))=FALSE,"C",IF(ISERROR(MATCH(D108,#REF!,0))=FALSE,"D","")) ->  | F108: =IF(E108="C",0,IF(E108 ="D",ROUND(1/((1+#REF!)^A108),9) * 2,ROUND(1/((1+#REF!)^A108),9))) -> 
A109: 106 | B109: 106 | E109: =IF(ISERROR(MATCH(D109,#REF!,0))=FALSE,"C",IF(ISERROR(MATCH(D109,#REF!,0))=FALSE,"D","")) ->  | F109: =IF(E109="C",0,IF(E109 ="D",ROUND(1/((1+#REF!)^A109),9) * 2,ROUND(1/((1+#REF!)^A109),9))) -> 
A110: 107 | B110: 107 | E110: =IF(ISERROR(MATCH(D110,#REF!,0))=FALSE,"C",IF(ISERROR(MATCH(D110,#REF!,0))=FALSE,"D","")) ->  | F110: =IF(E110="C",0,IF(E110 ="D",ROUND(1/((1+#REF!)^A110),9) * 2,ROUND(1/((1+#REF!)^A110),9))) -> 
A111: 108 | B111: 108 | E111: =IF(ISERROR(MATCH(D111,#REF!,0))=FALSE,"C",IF(ISERROR(MATCH(D111,#REF!,0))=FALSE,"D","")) ->  | F111: =IF(E111="C",0,IF(E111 ="D",ROUND(1/((1+#REF!)^A111),9) * 2,ROUND(1/((1+#REF!)^A111),9))) -> 
A112: 109 | B112: 109 | E112: =IF(ISERROR(MATCH(D112,#REF!,0))=FALSE,"C",IF(ISERROR(MATCH(D112,#REF!,0))=FALSE,"D","")) ->  | F112: =IF(E112="C",0,IF(E112 ="D",ROUND(1/((1+#REF!)^A112),9) * 2,ROUND(1/((1+#REF!)^A112),9))) -> 
A113: 110 | B113: 110 | E113: =IF(ISERROR(MATCH(D113,#REF!,0))=FALSE,"C",IF(ISERROR(MATCH(D113,#REF!,0))=FALSE,"D","")) ->  | F113: =IF(E113="C",0,IF(E113 ="D",ROUND(1/((1+#REF!)^A113),9) * 2,ROUND(1/((1+#REF!)^A113),9))) -> 
A114: 111 | B114: 111 | E114: =IF(ISERROR(MATCH(D114,#REF!,0))=FALSE,"C",IF(ISERROR(MATCH(D114,#REF!,0))=FALSE,"D","")) ->  | F114: =IF(E114="C",0,IF(E114 ="D",ROUND(1/((1+#REF!)^A114),9) * 2,ROUND(1/((1+#REF!)^A114),9))) -> 
A115: 112 | B115: 112 | E115: =IF(ISERROR(MATCH(D115,#REF!,0))=FALSE,"C",IF(ISERROR(MATCH(D115,#REF!,0))=FALSE,"D","")) ->  | F115: =IF(E115="C",0,IF(E115 ="D",ROUND(1/((1+#REF!)^A115),9) * 2,ROUND(1/((1+#REF!)^A115),9))) -> 
A116: 113 | B116: 113 | E116: =IF(ISERROR(MATCH(D116,#REF!,0))=FALSE,"C",IF(ISERROR(MATCH(D116,#REF!,0))=FALSE,"D","")) ->  | F116: =IF(E116="C",0,IF(E116 ="D",ROUND(1/((1+#REF!)^A116),9) * 2,ROUND(1/((1+#REF!)^A116),9))) -> 
A117: 114 | B117: 114 | E117: =IF(ISERROR(MATCH(D117,#REF!,0))=FALSE,"C",IF(ISERROR(MATCH(D117,#REF!,0))=FALSE,"D","")) ->  | F117: =IF(E117="C",0,IF(E117 ="D",ROUND(1/((1+#REF!)^A117),9) * 2,ROUND(1/((1+#REF!)^A117),9))) -> 
A118: 115 | B118: 115 | E118: =IF(ISERROR(MATCH(D118,#REF!,0))=FALSE,"C",IF(ISERROR(MATCH(D118,#REF!,0))=FALSE,"D","")) ->  | F118: =IF(E118="C",0,IF(E118 ="D",ROUND(1/((1+#REF!)^A118),9) * 2,ROUND(1/((1+#REF!)^A118),9))) -> 
A119: 116 | B119: 116 | E119: =IF(ISERROR(MATCH(D119,#REF!,0))=FALSE,"C",IF(ISERROR(MATCH(D119,#REF!,0))=FALSE,"D","")) ->  | F119: =IF(E119="C",0,IF(E119 ="D",ROUND(1/((1+#REF!)^A119),9) * 2,ROUND(1/((1+#REF!)^A119),9))) -> 
A120: 117 | B120: 117 | E120: =IF(ISERROR(MATCH(D120,#REF!,0))=FALSE,"C",IF(ISERROR(MATCH(D120,#REF!,0))=FALSE,"D","")) ->  | F120: =IF(E120="C",0,IF(E120 ="D",ROUND(1/((1+#REF!)^A120),9) * 2,ROUND(1/((1+#REF!)^A120),9))) -> 
A121: 118 | B121: 118 | E121: =IF(ISERROR(MATCH(D121,#REF!,0))=FALSE,"C",IF(ISERROR(MATCH(D121,#REF!,0))=FALSE,"D","")) ->  | F121: =IF(E121="C",0,IF(E121 ="D",ROUND(1/((1+#REF!)^A121),9) * 2,ROUND(1/((1+#REF!)^A121),9))) -> 
A122: 119 | B122: 119 | E122: =IF(ISERROR(MATCH(D122,#REF!,0))=FALSE,"C",IF(ISERROR(MATCH(D122,#REF!,0))=FALSE,"D","")) ->  | F122: =IF(E122="C",0,IF(E122 ="D",ROUND(1/((1+#REF!)^A122),9) * 2,ROUND(1/((1+#REF!)^A122),9))) -> 
A123: 120 | B123: 120 | E123: =IF(ISERROR(MATCH(D123,#REF!,0))=FALSE,"C",IF(ISERROR(MATCH(D123,#REF!,0))=FALSE,"D","")) ->  | F123: =IF(E123="C",0,IF(E123 ="D",ROUND(1/((1+#REF!)^A123),9) * 2,ROUND(1/((1+#REF!)^A123),9))) -> 
A124: 121 | B124: 121 | E124: =IF(ISERROR(MATCH(D124,#REF!,0))=FALSE,"C",IF(ISERROR(MATCH(D124,#REF!,0))=FALSE,"D","")) ->  | F124: =IF(E124="C",0,IF(E124 ="D",ROUND(1/((1+#REF!)^A124),9) * 2,ROUND(1/((1+#REF!)^A124),9))) -> 
A125: 122 | B125: 122 | E125: =IF(ISERROR(MATCH(D125,#REF!,0))=FALSE,"C",IF(ISERROR(MATCH(D125,#REF!,0))=FALSE,"D","")) ->  | F125: =IF(E125="C",0,IF(E125 ="D",ROUND(1/((1+#REF!)^A125),9) * 2,ROUND(1/((1+#REF!)^A125),9))) -> 
A126: 123 | B126: 123 | E126: =IF(ISERROR(MATCH(D126,#REF!,0))=FALSE,"C",IF(ISERROR(MATCH(D126,#REF!,0))=FALSE,"D","")) ->  | F126: =IF(E126="C",0,IF(E126 ="D",ROUND(1/((1+#REF!)^A126),9) * 2,ROUND(1/((1+#REF!)^A126),9))) -> 
A127: 124 | B127: 124 | E127: =IF(ISERROR(MATCH(D127,#REF!,0))=FALSE,"C",IF(ISERROR(MATCH(D127,#REF!,0))=FALSE,"D","")) ->  | F127: =IF(E127="C",0,IF(E127 ="D",ROUND(1/((1+#REF!)^A127),9) * 2,ROUND(1/((1+#REF!)^A127),9))) -> 
A128: 125 | B128: 125 | E128: =IF(ISERROR(MATCH(D128,#REF!,0))=FALSE,"C",IF(ISERROR(MATCH(D128,#REF!,0))=FALSE,"D","")) ->  | F128: =IF(E128="C",0,IF(E128 ="D",ROUND(1/((1+#REF!)^A128),9) * 2,ROUND(1/((1+#REF!)^A128),9))) -> 
A129: 126 | B129: 126 | E129: =IF(ISERROR(MATCH(D129,#REF!,0))=FALSE,"C",IF(ISERROR(MATCH(D129,#REF!,0))=FALSE,"D","")) ->  | F129: =IF(E129="C",0,IF(E129 ="D",ROUND(1/((1+#REF!)^A129),9) * 2,ROUND(1/((1+#REF!)^A129),9))) -> 
A130: 127 | B130: 127 | E130: =IF(ISERROR(MATCH(D130,#REF!,0))=FALSE,"C",IF(ISERROR(MATCH(D130,#REF!,0))=FALSE,"D","")) ->  | F130: =IF(E130="C",0,IF(E130 ="D",ROUND(1/((1+#REF!)^A130),9) * 2,ROUND(1/((1+#REF!)^A130),9))) -> 
A131: 128 | B131: 128 | E131: =IF(ISERROR(MATCH(D131,#REF!,0))=FALSE,"C",IF(ISERROR(MATCH(D131,#REF!,0))=FALSE,"D","")) ->  | F131: =IF(E131="C",0,IF(E131 ="D",ROUND(1/((1+#REF!)^A131),9) * 2,ROUND(1/((1+#REF!)^A131),9))) -> 
A132: 129 | B132: 129 | E132: =IF(ISERROR(MATCH(D132,#REF!,0))=FALSE,"C",IF(ISERROR(MATCH(D132,#REF!,0))=FALSE,"D","")) ->  | F132: =IF(E132="C",0,IF(E132 ="D",ROUND(1/((1+#REF!)^A132),9) * 2,ROUND(1/((1+#REF!)^A132),9))) -> 
A133: =A132+1 -> 130 | B133: 130 | C133: =DATE(YEAR(C132) + 1/12,MONTH(C132)+1,DAY(C132)) ->  | E133: =IF(ISERROR(MATCH(D133,#REF!,0))=FALSE,"C",IF(ISERROR(MATCH(D133,#REF!,0))=FALSE,"D","")) ->  | F133: =IF(E133="C",0,IF(E133 ="D",ROUND(1/((1+#REF!)^A133),9) * 2,ROUND(1/((1+#REF!)^A133),9))) -> 
A134: 131 | B134: 131 | E134: =IF(ISERROR(MATCH(D134,#REF!,0))=FALSE,"C",IF(ISERROR(MATCH(D134,#REF!,0))=FALSE,"D","")) ->  | F134: =IF(E134="C",0,IF(E134 ="D",ROUND(1/((1+#REF!)^A134),9) * 2,ROUND(1/((1+#REF!)^A134),9))) -> 
A135: 132 | B135: 132 | E135: =IF(ISERROR(MATCH(D135,#REF!,0))=FALSE,"C",IF(ISERROR(MATCH(D135,#REF!,0))=FALSE,"D","")) ->  | F135: =IF(E135="C",0,IF(E135 ="D",ROUND(1/((1+#REF!)^A135),9) * 2,ROUND(1/((1+#REF!)^A135),9))) -> 
A136: 133 | B136: 133 | E136: =IF(ISERROR(MATCH(D136,#REF!,0))=FALSE,"C",IF(ISERROR(MATCH(D136,#REF!,0))=FALSE,"D","")) ->  | F136: =IF(E136="C",0,IF(E136 ="D",ROUND(1/((1+#REF!)^A136),9) * 2,ROUND(1/((1+#REF!)^A136),9))) -> 
A137: 134 | B137: 134 | E137: =IF(ISERROR(MATCH(D137,#REF!,0))=FALSE,"C",IF(ISERROR(MATCH(D137,#REF!,0))=FALSE,"D","")) ->  | F137: =IF(E137="C",0,IF(E137 ="D",ROUND(1/((1+#REF!)^A137),9) * 2,ROUND(1/((1+#REF!)^A137),9))) -> 
A138: 135 | B138: 135 | E138: =IF(ISERROR(MATCH(D138,#REF!,0))=FALSE,"C",IF(ISERROR(MATCH(D138,#REF!,0))=FALSE,"D","")) ->  | F138: =IF(E138="C",0,IF(E138 ="D",ROUND(1/((1+#REF!)^A138),9) * 2,ROUND(1/((1+#REF!)^A138),9))) -> 
A139: 136 | B139: 136 | E139: =IF(ISERROR(MATCH(D139,#REF!,0))=FALSE,"C",IF(ISERROR(MATCH(D139,#REF!,0))=FALSE,"D","")) ->  | F139: =IF(E139="C",0,IF(E139 ="D",ROUND(1/((1+#REF!)^A139),9) * 2,ROUND(1/((1+#REF!)^A139),9))) -> 
A140: 137 | B140: 137 | E140: =IF(ISERROR(MATCH(D140,#REF!,0))=FALSE,"C",IF(ISERROR(MATCH(D140,#REF!,0))=FALSE,"D","")) ->  | F140: =IF(E140="C",0,IF(E140 ="D",ROUND(1/((1+#REF!)^A140),9) * 2,ROUND(1/((1+#REF!)^A140),9))) -> 
A141: 138 | B141: 138 | E141: =IF(ISERROR(MATCH(D141,#REF!,0))=FALSE,"C",IF(ISERROR(MATCH(D141,#REF!,0))=FALSE,"D","")) ->  | F141: =IF(E141="C",0,IF(E141 ="D",ROUND(1/((1+#REF!)^A141),9) * 2,ROUND(1/((1+#REF!)^A141),9))) -> 
A142: 139 | B142: 139 | E142: =IF(ISERROR(MATCH(D142,#REF!,0))=FALSE,"C",IF(ISERROR(MATCH(D142,#REF!,0))=FALSE,"D","")) ->  | F142: =IF(E142="C",0,IF(E142 ="D",ROUND(1/((1+#REF!)^A142),9) * 2,ROUND(1/((1+#REF!)^A142),9))) -> 
A143: 140 | B143: 140 | E143: =IF(ISERROR(MATCH(D143,#REF!,0))=FALSE,"C",IF(ISERROR(MATCH(D143,#REF!,0))=FALSE,"D","")) ->  | F143: =IF(E143="C",0,IF(E143 ="D",ROUND(1/((1+#REF!)^A143),9) * 2,ROUND(1/((1+#REF!)^A143),9))) -> 
A144: 141 | B144: 141 | E144: =IF(ISERROR(MATCH(D144,#REF!,0))=FALSE,"C",IF(ISERROR(MATCH(D144,#REF!,0))=FALSE,"D","")) ->  | F144: =IF(E144="C",0,IF(E144 ="D",ROUND(1/((1+#REF!)^A144),9) * 2,ROUND(1/((1+#REF!)^A144),9))) -> 
A145: 142 | B145: 142 | E145: =IF(ISERROR(MATCH(D145,#REF!,0))=FALSE,"C",IF(ISERROR(MATCH(D145,#REF!,0))=FALSE,"D","")) ->  | F145: =IF(E145="C",0,IF(E145 ="D",ROUND(1/((1+#REF!)^A145),9) * 2,ROUND(1/((1+#REF!)^A145),9))) -> 
A146: 143 | B146: 143 | E146: =IF(ISERROR(MATCH(D146,#REF!,0))=FALSE,"C",IF(ISERROR(MATCH(D146,#REF!,0))=FALSE,"D","")) ->  | F146: =IF(E146="C",0,IF(E146 ="D",ROUND(1/((1+#REF!)^A146),9) * 2,ROUND(1/((1+#REF!)^A146),9))) -> 
A147: 144 | B147: 144 | E147: =IF(ISERROR(MATCH(D147,#REF!,0))=FALSE,"C",IF(ISERROR(MATCH(D147,#REF!,0))=FALSE,"D","")) ->  | F147: =IF(E147="C",0,IF(E147 ="D",ROUND(1/((1+#REF!)^A147),9) * 2,ROUND(1/((1+#REF!)^A147),9))) -> 
A148: 145 | B148: 145 | E148: =IF(ISERROR(MATCH(D148,#REF!,0))=FALSE,"C",IF(ISERROR(MATCH(D148,#REF!,0))=FALSE,"D","")) ->  | F148: =IF(E148="C",0,IF(E148 ="D",ROUND(1/((1+#REF!)^A148),9) * 2,ROUND(1/((1+#REF!)^A148),9))) -> 
A149: 146 | B149: 146 | E149: =IF(ISERROR(MATCH(D149,#REF!,0))=FALSE,"C",IF(ISERROR(MATCH(D149,#REF!,0))=FALSE,"D","")) ->  | F149: =IF(E149="C",0,IF(E149 ="D",ROUND(1/((1+#REF!)^A149),9) * 2,ROUND(1/((1+#REF!)^A149),9))) -> 
A150: 147 | B150: 147 | E150: =IF(ISERROR(MATCH(D150,#REF!,0))=FALSE,"C",IF(ISERROR(MATCH(D150,#REF!,0))=FALSE,"D","")) ->  | F150: =IF(E150="C",0,IF(E150 ="D",ROUND(1/((1+#REF!)^A150),9) * 2,ROUND(1/((1+#REF!)^A150),9))) -> 
A151: 148 | B151: 148 | E151: =IF(ISERROR(MATCH(D151,#REF!,0))=FALSE,"C",IF(ISERROR(MATCH(D151,#REF!,0))=FALSE,"D","")) ->  | F151: =IF(E151="C",0,IF(E151 ="D",ROUND(1/((1+#REF!)^A151),9) * 2,ROUND(1/((1+#REF!)^A151),9))) -> 
A152: 149 | B152: 149 | E152: =IF(ISERROR(MATCH(D152,#REF!,0))=FALSE,"C",IF(ISERROR(MATCH(D152,#REF!,0))=FALSE,"D","")) ->  | F152: =IF(E152="C",0,IF(E152 ="D",ROUND(1/((1+#REF!)^A152),9) * 2,ROUND(1/((1+#REF!)^A152),9))) -> 
A153: 150 | B153: 150 | E153: =IF(ISERROR(MATCH(D153,#REF!,0))=FALSE,"C",IF(ISERROR(MATCH(D153,#REF!,0))=FALSE,"D","")) ->  | F153: =IF(E153="C",0,IF(E153 ="D",ROUND(1/((1+#REF!)^A153),9) * 2,ROUND(1/((1+#REF!)^A153),9))) -> 
A154: 151 | B154: 151 | E154: =IF(ISERROR(MATCH(D154,#REF!,0))=FALSE,"C",IF(ISERROR(MATCH(D154,#REF!,0))=FALSE,"D","")) ->  | F154: =IF(E154="C",0,IF(E154 ="D",ROUND(1/((1+#REF!)^A154),9) * 2,ROUND(1/((1+#REF!)^A154),9))) -> 
A155: 152 | B155: 152 | E155: =IF(ISERROR(MATCH(D155,#REF!,0))=FALSE,"C",IF(ISERROR(MATCH(D155,#REF!,0))=FALSE,"D","")) ->  | F155: =IF(E155="C",0,IF(E155 ="D",ROUND(1/((1+#REF!)^A155),9) * 2,ROUND(1/((1+#REF!)^A155),9))) -> 
A156: 153 | B156: 153 | E156: =IF(ISERROR(MATCH(D156,#REF!,0))=FALSE,"C",IF(ISERROR(MATCH(D156,#REF!,0))=FALSE,"D","")) ->  | F156: =IF(E156="C",0,IF(E156 ="D",ROUND(1/((1+#REF!)^A156),9) * 2,ROUND(1/((1+#REF!)^A156),9))) -> 
A157: 154 | B157: 154 | E157: =IF(ISERROR(MATCH(D157,#REF!,0))=FALSE,"C",IF(ISERROR(MATCH(D157,#REF!,0))=FALSE,"D","")) ->  | F157: =IF(E157="C",0,IF(E157 ="D",ROUND(1/((1+#REF!)^A157),9) * 2,ROUND(1/((1+#REF!)^A157),9))) -> 
A158: 155 | B158: 155 | E158: =IF(ISERROR(MATCH(D158,#REF!,0))=FALSE,"C",IF(ISERROR(MATCH(D158,#REF!,0))=FALSE,"D","")) ->  | F158: =IF(E158="C",0,IF(E158 ="D",ROUND(1/((1+#REF!)^A158),9) * 2,ROUND(1/((1+#REF!)^A158),9))) -> 
A159: 156 | B159: 156 | E159: =IF(ISERROR(MATCH(D159,#REF!,0))=FALSE,"C",IF(ISERROR(MATCH(D159,#REF!,0))=FALSE,"D","")) ->  | F159: =IF(E159="C",0,IF(E159 ="D",ROUND(1/((1+#REF!)^A159),9) * 2,ROUND(1/((1+#REF!)^A159),9))) -> 
A160: 157 | B160: 157 | E160: =IF(ISERROR(MATCH(D160,#REF!,0))=FALSE,"C",IF(ISERROR(MATCH(D160,#REF!,0))=FALSE,"D","")) ->  | F160: =IF(E160="C",0,IF(E160 ="D",ROUND(1/((1+#REF!)^A160),9) * 2,ROUND(1/((1+#REF!)^A160),9))) -> 
A161: 158 | B161: 158 | E161: =IF(ISERROR(MATCH(D161,#REF!,0))=FALSE,"C",IF(ISERROR(MATCH(D161,#REF!,0))=FALSE,"D","")) ->  | F161: =IF(E161="C",0,IF(E161 ="D",ROUND(1/((1+#REF!)^A161),9) * 2,ROUND(1/((1+#REF!)^A161),9))) -> 
A162: 159 | B162: 159 | E162: =IF(ISERROR(MATCH(D162,#REF!,0))=FALSE,"C",IF(ISERROR(MATCH(D162,#REF!,0))=FALSE,"D","")) ->  | F162: =IF(E162="C",0,IF(E162 ="D",ROUND(1/((1+#REF!)^A162),9) * 2,ROUND(1/((1+#REF!)^A162),9))) -> 
A163: 160 | B163: 160 | E163: =IF(ISERROR(MATCH(D163,#REF!,0))=FALSE,"C",IF(ISERROR(MATCH(D163,#REF!,0))=FALSE,"D","")) ->  | F163: =IF(E163="C",0,IF(E163 ="D",ROUND(1/((1+#REF!)^A163),9) * 2,ROUND(1/((1+#REF!)^A163),9))) -> 
A164: 161 | B164: =IF(E164<>"C",IF(ISERROR(1+B163)=TRUE,1,1+B163),IF(ISNUMBER(B163),B163,1)) -> 161 | D164: =MONTH(C164) ->  | E164: =IF(ISERROR(MATCH(D164,#REF!,0))=FALSE,"C",IF(ISERROR(MATCH(D164,#REF!,0))=FALSE,"D","")) ->  | F164: =IF(E164="C",0,IF(E164 ="D",ROUND(1/((1+#REF!)^A164),9) * 2,ROUND(1/((1+#REF!)^A164),9))) ->  | G164: =G163+ROUND(F164,9) -> 
A165: 162 | B165: 162 | E165: =IF(ISERROR(MATCH(D165,#REF!,0))=FALSE,"C",IF(ISERROR(MATCH(D165,#REF!,0))=FALSE,"D","")) ->  | F165: =IF(E165="C",0,IF(E165 ="D",ROUND(1/((1+#REF!)^A165),9) * 2,ROUND(1/((1+#REF!)^A165),9))) -> 
A166: 163 | B166: 163 | E166: =IF(ISERROR(MATCH(D166,#REF!,0))=FALSE,"C",IF(ISERROR(MATCH(D166,#REF!,0))=FALSE,"D","")) ->  | F166: =IF(E166="C",0,IF(E166 ="D",ROUND(1/((1+#REF!)^A166),9) * 2,ROUND(1/((1+#REF!)^A166),9))) -> 
A167: 164 | B167: 164 | E167: =IF(ISERROR(MATCH(D167,#REF!,0))=FALSE,"C",IF(ISERROR(MATCH(D167,#REF!,0))=FALSE,"D","")) ->  | F167: =IF(E167="C",0,IF(E167 ="D",ROUND(1/((1+#REF!)^A167),9) * 2,ROUND(1/((1+#REF!)^A167),9))) -> 
A168: 165 | B168: 165 | E168: =IF(ISERROR(MATCH(D168,#REF!,0))=FALSE,"C",IF(ISERROR(MATCH(D168,#REF!,0))=FALSE,"D","")) ->  | F168: =IF(E168="C",0,IF(E168 ="D",ROUND(1/((1+#REF!)^A168),9) * 2,ROUND(1/((1+#REF!)^A168),9))) -> 
A169: 166 | B169: 166 | E169: =IF(ISERROR(MATCH(D169,#REF!,0))=FALSE,"C",IF(ISERROR(MATCH(D169,#REF!,0))=FALSE,"D","")) ->  | F169: =IF(E169="C",0,IF(E169 ="D",ROUND(1/((1+#REF!)^A169),9) * 2,ROUND(1/((1+#REF!)^A169),9))) -> 
A170: 167 | B170: 167 | E170: =IF(ISERROR(MATCH(D170,#REF!,0))=FALSE,"C",IF(ISERROR(MATCH(D170,#REF!,0))=FALSE,"D","")) ->  | F170: =IF(E170="C",0,IF(E170 ="D",ROUND(1/((1+#REF!)^A170),9) * 2,ROUND(1/((1+#REF!)^A170),9))) -> 
A171: 168 | B171: 168 | E171: =IF(ISERROR(MATCH(D171,#REF!,0))=FALSE,"C",IF(ISERROR(MATCH(D171,#REF!,0))=FALSE,"D","")) ->  | F171: =IF(E171="C",0,IF(E171 ="D",ROUND(1/((1+#REF!)^A171),9) * 2,ROUND(1/((1+#REF!)^A171),9))) -> 
A172: 169 | B172: 169 | E172: =IF(ISERROR(MATCH(D172,#REF!,0))=FALSE,"C",IF(ISERROR(MATCH(D172,#REF!,0))=FALSE,"D","")) ->  | F172: =IF(E172="C",0,IF(E172 ="D",ROUND(1/((1+#REF!)^A172),9) * 2,ROUND(1/((1+#REF!)^A172),9))) -> 
A173: 170 | B173: 170 | E173: =IF(ISERROR(MATCH(D173,#REF!,0))=FALSE,"C",IF(ISERROR(MATCH(D173,#REF!,0))=FALSE,"D","")) ->  | F173: =IF(E173="C",0,IF(E173 ="D",ROUND(1/((1+#REF!)^A173),9) * 2,ROUND(1/((1+#REF!)^A173),9))) -> 
A174: 171 | B174: 171 | E174: =IF(ISERROR(MATCH(D174,#REF!,0))=FALSE,"C",IF(ISERROR(MATCH(D174,#REF!,0))=FALSE,"D","")) ->  | F174: =IF(E174="C",0,IF(E174 ="D",ROUND(1/((1+#REF!)^A174),9) * 2,ROUND(1/((1+#REF!)^A174),9))) -> 
A175: 172 | B175: 172 | E175: =IF(ISERROR(MATCH(D175,#REF!,0))=FALSE,"C",IF(ISERROR(MATCH(D175,#REF!,0))=FALSE,"D","")) ->  | F175: =IF(E175="C",0,IF(E175 ="D",ROUND(1/((1+#REF!)^A175),9) * 2,ROUND(1/((1+#REF!)^A175),9))) -> 
A176: 173 | B176: 173 | E176: =IF(ISERROR(MATCH(D176,#REF!,0))=FALSE,"C",IF(ISERROR(MATCH(D176,#REF!,0))=FALSE,"D","")) ->  | F176: =IF(E176="C",0,IF(E176 ="D",ROUND(1/((1+#REF!)^A176),9) * 2,ROUND(1/((1+#REF!)^A176),9))) -> 
A177: 174 | B177: 174 | E177: =IF(ISERROR(MATCH(D177,#REF!,0))=FALSE,"C",IF(ISERROR(MATCH(D177,#REF!,0))=FALSE,"D","")) ->  | F177: =IF(E177="C",0,IF(E177 ="D",ROUND(1/((1+#REF!)^A177),9) * 2,ROUND(1/((1+#REF!)^A177),9))) -> 
A178: 175 | B178: 175 | E178: =IF(ISERROR(MATCH(D178,#REF!,0))=FALSE,"C",IF(ISERROR(MATCH(D178,#REF!,0))=FALSE,"D","")) ->  | F178: =IF(E178="C",0,IF(E178 ="D",ROUND(1/((1+#REF!)^A178),9) * 2,ROUND(1/((1+#REF!)^A178),9))) -> 
A179: 176 | B179: 176 | E179: =IF(ISERROR(MATCH(D179,#REF!,0))=FALSE,"C",IF(ISERROR(MATCH(D179,#REF!,0))=FALSE,"D","")) ->  | F179: =IF(E179="C",0,IF(E179 ="D",ROUND(1/((1+#REF!)^A179),9) * 2,ROUND(1/((1+#REF!)^A179),9))) -> 
A180: 177 | B180: 177 | E180: =IF(ISERROR(MATCH(D180,#REF!,0))=FALSE,"C",IF(ISERROR(MATCH(D180,#REF!,0))=FALSE,"D","")) ->  | F180: =IF(E180="C",0,IF(E180 ="D",ROUND(1/((1+#REF!)^A180),9) * 2,ROUND(1/((1+#REF!)^A180),9))) -> 
A181: 178 | B181: 178 | E181: =IF(ISERROR(MATCH(D181,#REF!,0))=FALSE,"C",IF(ISERROR(MATCH(D181,#REF!,0))=FALSE,"D","")) ->  | F181: =IF(E181="C",0,IF(E181 ="D",ROUND(1/((1+#REF!)^A181),9) * 2,ROUND(1/((1+#REF!)^A181),9))) -> 
A182: 179 | B182: 179 | E182: =IF(ISERROR(MATCH(D182,#REF!,0))=FALSE,"C",IF(ISERROR(MATCH(D182,#REF!,0))=FALSE,"D","")) ->  | F182: =IF(E182="C",0,IF(E182 ="D",ROUND(1/((1+#REF!)^A182),9) * 2,ROUND(1/((1+#REF!)^A182),9))) -> 
A183: 180 | B183: 180 | E183: =IF(ISERROR(MATCH(D183,#REF!,0))=FALSE,"C",IF(ISERROR(MATCH(D183,#REF!,0))=FALSE,"D","")) ->  | F183: =IF(E183="C",0,IF(E183 ="D",ROUND(1/((1+#REF!)^A183),9) * 2,ROUND(1/((1+#REF!)^A183),9))) -> 
A184: 181 | B184: 181 | E184: =IF(ISERROR(MATCH(D184,#REF!,0))=FALSE,"C",IF(ISERROR(MATCH(D184,#REF!,0))=FALSE,"D","")) ->  | F184: =IF(E184="C",0,IF(E184 ="D",ROUND(1/((1+#REF!)^A184),9) * 2,ROUND(1/((1+#REF!)^A184),9))) -> 
A185: 182 | B185: 182 | E185: =IF(ISERROR(MATCH(D185,#REF!,0))=FALSE,"C",IF(ISERROR(MATCH(D185,#REF!,0))=FALSE,"D","")) ->  | F185: =IF(E185="C",0,IF(E185 ="D",ROUND(1/((1+#REF!)^A185),9) * 2,ROUND(1/((1+#REF!)^A185),9))) -> 
A186: 183 | B186: 183 | E186: =IF(ISERROR(MATCH(D186,#REF!,0))=FALSE,"C",IF(ISERROR(MATCH(D186,#REF!,0))=FALSE,"D","")) ->  | F186: =IF(E186="C",0,IF(E186 ="D",ROUND(1/((1+#REF!)^A186),9) * 2,ROUND(1/((1+#REF!)^A186),9))) -> 
A187: 184 | B187: 184 | E187: =IF(ISERROR(MATCH(D187,#REF!,0))=FALSE,"C",IF(ISERROR(MATCH(D187,#REF!,0))=FALSE,"D","")) ->  | F187: =IF(E187="C",0,IF(E187 ="D",ROUND(1/((1+#REF!)^A187),9) * 2,ROUND(1/((1+#REF!)^A187),9))) -> 
A188: 185 | B188: 185 | E188: =IF(ISERROR(MATCH(D188,#REF!,0))=FALSE,"C",IF(ISERROR(MATCH(D188,#REF!,0))=FALSE,"D","")) ->  | F188: =IF(E188="C",0,IF(E188 ="D",ROUND(1/((1+#REF!)^A188),9) * 2,ROUND(1/((1+#REF!)^A188),9))) -> 
A189: 186 | B189: 186 | E189: =IF(ISERROR(MATCH(D189,#REF!,0))=FALSE,"C",IF(ISERROR(MATCH(D189,#REF!,0))=FALSE,"D","")) ->  | F189: =IF(E189="C",0,IF(E189 ="D",ROUND(1/((1+#REF!)^A189),9) * 2,ROUND(1/((1+#REF!)^A189),9))) -> 
A190: 187 | B190: 187 | E190: =IF(ISERROR(MATCH(D190,#REF!,0))=FALSE,"C",IF(ISERROR(MATCH(D190,#REF!,0))=FALSE,"D","")) ->  | F190: =IF(E190="C",0,IF(E190 ="D",ROUND(1/((1+#REF!)^A190),9) * 2,ROUND(1/((1+#REF!)^A190),9))) -> 
A191: 188 | B191: 188 | E191: =IF(ISERROR(MATCH(D191,#REF!,0))=FALSE,"C",IF(ISERROR(MATCH(D191,#REF!,0))=FALSE,"D","")) ->  | F191: =IF(E191="C",0,IF(E191 ="D",ROUND(1/((1+#REF!)^A191),9) * 2,ROUND(1/((1+#REF!)^A191),9))) -> 
A192: 189 | B192: 189 | E192: =IF(ISERROR(MATCH(D192,#REF!,0))=FALSE,"C",IF(ISERROR(MATCH(D192,#REF!,0))=FALSE,"D","")) ->  | F192: =IF(E192="C",0,IF(E192 ="D",ROUND(1/((1+#REF!)^A192),9) * 2,ROUND(1/((1+#REF!)^A192),9))) -> 
A193: 190 | B193: 190 | E193: =IF(ISERROR(MATCH(D193,#REF!,0))=FALSE,"C",IF(ISERROR(MATCH(D193,#REF!,0))=FALSE,"D","")) ->  | F193: =IF(E193="C",0,IF(E193 ="D",ROUND(1/((1+#REF!)^A193),9) * 2,ROUND(1/((1+#REF!)^A193),9))) -> 
A194: 191 | B194: 191 | E194: =IF(ISERROR(MATCH(D194,#REF!,0))=FALSE,"C",IF(ISERROR(MATCH(D194,#REF!,0))=FALSE,"D","")) ->  | F194: =IF(E194="C",0,IF(E194 ="D",ROUND(1/((1+#REF!)^A194),9) * 2,ROUND(1/((1+#REF!)^A194),9))) -> 
A195: 192 | B195: 192 | E195: =IF(ISERROR(MATCH(D195,#REF!,0))=FALSE,"C",IF(ISERROR(MATCH(D195,#REF!,0))=FALSE,"D","")) ->  | F195: =IF(E195="C",0,IF(E195 ="D",ROUND(1/((1+#REF!)^A195),9) * 2,ROUND(1/((1+#REF!)^A195),9))) -> 
A196: 193 | B196: 193 | E196: =IF(ISERROR(MATCH(D196,#REF!,0))=FALSE,"C",IF(ISERROR(MATCH(D196,#REF!,0))=FALSE,"D","")) ->  | F196: =IF(E196="C",0,IF(E196 ="D",ROUND(1/((1+#REF!)^A196),9) * 2,ROUND(1/((1+#REF!)^A196),9))) -> 
A197: =A196+1 -> 194 | B197: 194 | C197: =DATE(YEAR(C196) + 1/12,MONTH(C196)+1,DAY(C196)) ->  | E197: =IF(ISERROR(MATCH(D197,#REF!,0))=FALSE,"C",IF(ISERROR(MATCH(D197,#REF!,0))=FALSE,"D","")) ->  | F197: =IF(E197="C",0,IF(E197 ="D",ROUND(1/((1+#REF!)^A197),9) * 2,ROUND(1/((1+#REF!)^A197),9))) -> 
A198: 195 | B198: 195 | E198: =IF(ISERROR(MATCH(D198,#REF!,0))=FALSE,"C",IF(ISERROR(MATCH(D198,#REF!,0))=FALSE,"D","")) ->  | F198: =IF(E198="C",0,IF(E198 ="D",ROUND(1/((1+#REF!)^A198),9) * 2,ROUND(1/((1+#REF!)^A198),9))) -> 
A199: 196 | B199: 196 | E199: =IF(ISERROR(MATCH(D199,#REF!,0))=FALSE,"C",IF(ISERROR(MATCH(D199,#REF!,0))=FALSE,"D","")) ->  | F199: =IF(E199="C",0,IF(E199 ="D",ROUND(1/((1+#REF!)^A199),9) * 2,ROUND(1/((1+#REF!)^A199),9))) -> 
A200: 197 | B200: 197 | E200: =IF(ISERROR(MATCH(D200,#REF!,0))=FALSE,"C",IF(ISERROR(MATCH(D200,#REF!,0))=FALSE,"D","")) ->  | F200: =IF(E200="C",0,IF(E200 ="D",ROUND(1/((1+#REF!)^A200),9) * 2,ROUND(1/((1+#REF!)^A200),9))) -> 
A201: 198 | B201: 198 | E201: =IF(ISERROR(MATCH(D201,#REF!,0))=FALSE,"C",IF(ISERROR(MATCH(D201,#REF!,0))=FALSE,"D","")) ->  | F201: =IF(E201="C",0,IF(E201 ="D",ROUND(1/((1+#REF!)^A201),9) * 2,ROUND(1/((1+#REF!)^A201),9))) -> 
... 185 more rows

Sheet Simulador_Cliente
C3: SIMULADOR PRÉSTAMO BANCA EMPRENDEDORA PYME | N3: Soles
N4: Dólares
N6: No
B7: Moneda | C7: Soles | N7: Julio
B8: Producto | C8: Capital de Trabajo PYME | N8: Diciembre
B9: Monto del Préstamo | C9: 1000000
B10: Fecha de Desembolso | C10: 2022-07-17 | T10: 0
B11: Plazo | C11: 84 | N11: Con Retorno | T11: 30 | V11: =+IF(C14="Con Retorno","0.299%",IF(C14="Endosado",0,"0.07%")) -> 0.299% | Y11: =IF(C8=N20,C11<=18,IF(C8=N17,C11<=24,C11<=36)) -> FALSE | Z11: O(C11=" ";Y(C11>=1;C11<=60))
B12: TEA | C12: 20.1 | N12: Sin Retorno | T12: 60
B13: Días de Gracia | C13: 35 | N13: Endosado | T13: 90
B14: Seguro Desgravamen | C14: Con Retorno | N14: Sí | T14: 180
B15: Tasa Seguro Desgravamen | C15: =+V11 -> 0.299% | N15: No
B16: Seguro Multiriesgo | C16: Sí
B17: Seguro Todo Riesgo | C17: Sí | N17: Capital de Trabajo PYME | Z17: 24 | AC17: 8.3 | AE17: 20.1 | AL17: =OR(C18=" ",C18>C9) -> FALSE
B18: =+IF(C17="Sí","Valor del Bien a asegurar","") -> Valor del Bien a asegurar | C18: 602716 | N18: Activo Fijo PYME | V18: 180 | Z18: 84 | AC18: 7.9 | AE18: 19.6
N19: Vivienda
N20: Consumo
O21: =IF(C8=N17,C11<=24,IF(C8=N18,C11<=84,C11<=84)) -> FALSE | Q21: =IF(C8=N18,AND(C12>=7.9,C12<=19.6),OR(IF(C8=N17,AND(C12>=8.3,C12<=20.1)))) -> TRUE | S21: =+C13<=90 -> TRUE

Sheet Cronograma_Referencial
B5: (SIMULACIÓN)
B6: CRONOGRAMA DE PAGOS
B9: Moneda : | D9: =+Simulador_Cliente!C7 -> Soles | F9: Monto del Préstamo : | H9: =+Simulador_Cliente!C9 -> 1000000
B10: Producto : | D10: =+Simulador_Cliente!C8 -> Capital de Trabajo PYME | F10: Tasa Efectiva Anual : | H10: =+Simulador_Cliente!C12&"%" -> 20.1%
B11: Fecha de desembolso : | D11: =+Simulador_Cliente!C10 -> 2022-07-17 | F11: Tasa de Costo Efectiva Anual : | H11: =+((1+I11)^12)-1 -> 0.244141463 | I11: =+RATE(D12,J18,-H9-I12) -> 0.01837050799
B12: Plazo (en meses) : | D12: =+Simulador_Cliente!C11 -> 84 | F12: Tasa Seguro de Desgravamen Mensual : | H12: =+Simulador_Cliente!C15 -> 0.299% | I12: =+Simulador_v2!Q16 -> 17966.176
B13: Periodo de gracia : | D13: =+Simulador_Cliente!C13&" "& "días" -> 35 días | F13: Tasa Seguro de Seguro Multiriesgo : | H13: =+IF(Simulador_Cliente!C16="No",0,0.07%) -> 0.0007
F14: Tasa Seguro Todo Riesgo : | H14: =+IF(Simulador_Cliente!C17="No",0,0.0292%) -> 0.000292
B17: N° | C17: Fecha Vencimiento | D17: Capital | E17: Interes | F17: Interes de Gracia | G17: Seguro Desgravamen | H17: Seguro Multiriesgos | I17: Seguro Todo Riesgo | J17: Total Cuota
B18: 1 | C18: =IFERROR(+IF(B18>0,VLOOKUP(B18,Simulador_v2!$A$33:$AJ$273,3,0)," ")," ") -> 2022-10-22 | D18: =IFERROR(+IF(B18>0,VLOOKUP(B18,Simulador_v2!$A$33:$AJ$273,11,0)," ")," ") -> -92.655 | E18: =IFERROR(+IF(B18>0,VLOOKUP(B18,Simulador_v2!$A$33:$AJ$273,12,0)," ")," ") -> 15379.95 | F18: =IFERROR(+IF(B18>0,VLOOKUP(B18,Simulador_v2!$A$33:$AJ$273,13,0)," ")," ") -> 213.883 | G18: =IFERROR(+IF(B18>0,VLOOKUP(B18,Simulador_v2!$A$33:$AJ$273,20,0)," ")," ") -> 6478.33 | H18: =IFERROR(+IF(B18>0,VLOOKUP(B18,Simulador_v2!$A$33:$AJ$273,26,0)," ")," ") -> 1516.66 | I18: =IFERROR(+IF(B18>0,VLOOKUP(B18,Simulador_v2!$A$33:$AJ$273,23,0)," ")," ") -> 378.7 | J18: =IFERROR(+IF(B18>0,VLOOKUP(B18,Simulador_v2!$A$33:$AJ$273,36,0)," ")," ") -> 23874.868
B19: =IF(B18=0," ",IF(B18>=$D$12,"",B18+1)) -> 2 | C19: =IF($D$12=0," ",IF(B18=$D$12,"TOTALES",+IF(B19>0,VLOOKUP(B19,Simulador_v2!$A$33:$AJ$273,3,0)," "))) -> 2022-11-22 | D19: =IF($D$12=0," ",IF(B18=$D$12,Simulador_v2!$K$32,+IF(B19>0,VLOOKUP(B19,Simulador_v2!$A$33:$AJ$273,11,0)," "))) -> 3798.105 | E19: =IF($D$12=0," ",IF(B18=$D$12,Simulador_v2!$L$32,+IF(B19>0,VLOOKUP(B19,Simulador_v2!$A$33:$AJ$273,12,0)," "))) -> 15898.14 | F19: =IF($D$12=0," ",IF(B18=$D$12,Simulador_v2!$M$32,+IF(B19>0,VLOOKUP(B19,Simulador_v2!$A$33:$AJ$273,13,0)," "))) -> 213.883 | G19: =IF($D$12=0," ",IF(B18=$D$12,Simulador_v2!$T$32,+IF(B19>0,VLOOKUP(B19,Simulador_v2!$A$33:$AJ$273,20,0)," "))) -> 3089.95 | H19: =IF($D$12=0," ",IF(B18=$D$12,Simulador_v2!$Z$32,+IF(B19>0,VLOOKUP(B19,Simulador_v2!$A$33:$AJ$273,26,0)," "))) -> 700 | I19: =IF($D$12=0," ",IF(B18=$D$12,Simulador_v2!$W$32,+IF(B19>0,VLOOKUP(B19,Simulador_v2!$A$33:$AJ$273,23,0)," "))) -> 174.79 | J19: =IF($D$12=0," ",IF(B18=$D$12,Simulador_v2!$AJ$32,+IF(B19>0,VLOOKUP(B19,Simulador_v2!$A$33:$AJ$273,36,0)," "))) -> 23874.868
B20: 3 | C20: =IF($D$12=0," ",IF(B19=$D$12,"TOTALES",+IF(B20>0,VLOOKUP(B20,Simulador_v2!$A$33:$AJ$273,3,0)," "))) -> 2022-12-22 | D20: =IF($D$12=0," ",IF(B19=$D$12,Simulador_v2!$K$32,+IF(B20>0,VLOOKUP(B20,Simulador_v2!$A$33:$AJ$273,11,0)," "))) -> 4484.315 | E20: =IF($D$12=0," ",IF(B19=$D$12,Simulador_v2!$L$32,+IF(B20>0,VLOOKUP(B20,Simulador_v2!$A$33:$AJ$273,12,0)," "))) -> 15322.96 | F20: =IF($D$12=0," ",IF(B19=$D$12,Simulador_v2!$M$32,+IF(B20>0,VLOOKUP(B20,Simulador_v2!$A$33:$AJ$273,13,0)," "))) -> 213.883 | G20: =IF($D$12=0," ",IF(B19=$D$12,Simulador_v2!$T$32,+IF(B20>0,VLOOKUP(B20,Simulador_v2!$A$33:$AJ$273,20,0)," "))) -> 2978.92 | H20: =IF($D$12=0," ",IF(B19=$D$12,Simulador_v2!$Z$32,+IF(B20>0,VLOOKUP(B20,Simulador_v2!$A$33:$AJ$273,26,0)," "))) -> 700 | I20: =IF($D$12=0," ",IF(B19=$D$12,Simulador_v2!$W$32,+IF(B20>0,VLOOKUP(B20,Simulador_v2!$A$33:$AJ$273,23,0)," "))) -> 174.79 | J20: =IF($D$12=0," ",IF(B19=$D$12,Simulador_v2!$AJ$32,+IF(B20>0,VLOOKUP(B20,Simulador_v2!$A$33:$AJ$273,36,0)," "))) -> 23874.868
B21: 4 | C21: =IF($D$12=0," ",IF(B20=$D$12,"TOTALES",+IF(B21>0,VLOOKUP(B21,Simulador_v2!$A$33:$AJ$273,3,0)," "))) -> 2023-01-22 | D21: =IF($D$12=0," ",IF(B20=$D$12,Simulador_v2!$K$32,+IF(B21>0,VLOOKUP(B21,Simulador_v2!$A$33:$AJ$273,11,0)," "))) -> 3955.355 | E21: =IF($D$12=0," ",IF(B20=$D$12,Simulador_v2!$L$32,+IF(B21>0,VLOOKUP(B21,Simulador_v2!$A$33:$AJ$273,12,0)," "))) -> 15766.48 | F21: =IF($D$12=0," ",IF(B20=$D$12,Simulador_v2!$M$32,+IF(B21>0,VLOOKUP(B21,Simulador_v2!$A$33:$AJ$273,13,0)," "))) -> 213.883 | G21: =IF($D$12=0," ",IF(B20=$D$12,Simulador_v2!$T$32,+IF(B21>0,VLOOKUP(B21,Simulador_v2!$A$33:$AJ$273,20,0)," "))) -> 3064.36 | H21: =IF($D$12=0," ",IF(B20=$D$12,Simulador_v2!$Z$32,+IF(B21>0,VLOOKUP(B21,Simulador_v2!$A$33:$AJ$273,26,0)," "))) -> 700 | I21: =IF($D$12=0," ",IF(B20=$D$12,Simulador_v2!$W$32,+IF(B21>0,VLOOKUP(B21,Simulador_v2!$A$33:$AJ$273,23,0)," "))) -> 174.79 | J21: =IF($D$12=0," ",IF(B20=$D$12,Simulador_v2!$AJ$32,+IF(B21>0,VLOOKUP(B21,Simulador_v2!$A$33:$AJ$273,36,0)," "))) -> 23874.868
B22: 5 | C22: =IF($D$12=0," ",IF(B21=$D$12,"TOTALES",+IF(B22>0,VLOOKUP(B22,Simulador_v2!$A$33:$AJ$273,3,0)," "))) -> 2023-02-22 | D22: =IF($D$12=0," ",IF(B21=$D$12,Simulador_v2!$K$32,+IF(B22>0,VLOOKUP(B22,Simulador_v2!$A$33:$AJ$273,11,0)," "))) -> 4030.455 | E22: =IF($D$12=0," ",IF(B21=$D$12,Simulador_v2!$L$32,+IF(B22>0,VLOOKUP(B22,Simulador_v2!$A$33:$AJ$273,12,0)," "))) -> 15703.6 | F22: =IF($D$12=0," ",IF(B21=$D$12,Simulador_v2!$M$32,+IF(B22>0,VLOOKUP(B22,Simulador_v2!$A$33:$AJ$273,13,0)," "))) -> 213.883 | G22: =IF($D$12=0," ",IF(B21=$D$12,Simulador_v2!$T$32,+IF(B22>0,VLOOKUP(B22,Simulador_v2!$A$33:$AJ$273,20,0)," "))) -> 3052.14 | H22: =IF($D$12=0," ",IF(B21=$D$12,Simulador_v2!$Z$32,+IF(B22>0,VLOOKUP(B22,Simulador_v2!$A$33:$AJ$273,26,0)," "))) -> 700 | I22: =IF($D$12=0," ",IF(B21=$D$12,Simulador_v2!$W$32,+IF(B22>0,VLOOKUP(B22,Simulador_v2!$A$33:$AJ$273,23,0)," "))) -> 174.79 | J22: =IF($D$12=0," ",IF(B21=$D$12,Simulador_v2!$AJ$32,+IF(B22>0,VLOOKUP(B22,Simulador_v2!$A$33:$AJ$273,36,0)," "))) -> 23874.868
B23: 6 | C23: =IF($D$12=0," ",IF(B22=$D$12,"TOTALES",+IF(B23>0,VLOOKUP(B23,Simulador_v2!$A$33:$AJ$273,3,0)," "))) -> 2023-03-22 | D23: =IF($D$12=0," ",IF(B22=$D$12,Simulador_v2!$K$32,+IF(B23>0,VLOOKUP(B23,Simulador_v2!$A$33:$AJ$273,11,0)," "))) -> 5925.435 | E23: =IF($D$12=0," ",IF(B22=$D$12,Simulador_v2!$L$32,+IF(B23>0,VLOOKUP(B23,Simulador_v2!$A$33:$AJ$273,12,0)," "))) -> 14115.23 | F23: =IF($D$12=0," ",IF(B22=$D$12,Simulador_v2!$M$32,+IF(B23>0,VLOOKUP(B23,Simulador_v2!$A$33:$AJ$273,13,0)," "))) -> 213.883 | G23: =IF($D$12=0," ",IF(B22=$D$12,Simulador_v2!$T$32,+IF(B23>0,VLOOKUP(B23,Simulador_v2!$A$33:$AJ$273,20,0)," "))) -> 2745.53 | H23: =IF($D$12=0," ",IF(B22=$D$12,Simulador_v2!$Z$32,+IF(B23>0,VLOOKUP(B23,Simulador_v2!$A$33:$AJ$273,26,0)," "))) -> 700 | I23: =IF($D$12=0," ",IF(B22=$D$12,Simulador_v2!$W$32,+IF(B23>0,VLOOKUP(B23,Simulador_v2!$A$33:$AJ$273,23,0)," "))) -> 174.79 | J23: =IF($D$12=0," ",IF(B22=$D$12,Simulador_v2!$AJ$32,+IF(B23>0,VLOOKUP(B23,Simulador_v2!$A$33:$AJ$273,36,0)," "))) -> 23874.868
B24: 7 | C24: =IF($D$12=0," ",IF(B23=$D$12,"TOTALES",+IF(B24>0,VLOOKUP(B24,Simulador_v2!$A$33:$AJ$273,3,0)," "))) -> 2023-04-22 | D24: =IF($D$12=0," ",IF(B23=$D$12,Simulador_v2!$K$32,+IF(B24>0,VLOOKUP(B24,Simulador_v2!$A$33:$AJ$273,11,0)," "))) -> 4219.475 | E24: =IF($D$12=0," ",IF(B23=$D$12,Simulador_v2!$L$32,+IF(B24>0,VLOOKUP(B24,Simulador_v2!$A$33:$AJ$273,12,0)," "))) -> 15545.34 | F24: =IF($D$12=0," ",IF(B23=$D$12,Simulador_v2!$M$32,+IF(B24>0,VLOOKUP(B24,Simulador_v2!$A$33:$AJ$273,13,0)," "))) -> 213.883 | G24: =IF($D$12=0," ",IF(B23=$D$12,Simulador_v2!$T$32,+IF(B24>0,VLOOKUP(B24,Simulador_v2!$A$33:$AJ$273,20,0)," "))) -> 3021.38 | H24: =IF($D$12=0," ",IF(B23=$D$12,Simulador_v2!$Z$32,+IF(B24>0,VLOOKUP(B24,Simulador_v2!$A$33:$AJ$273,26,0)," "))) -> 700 | I24: =IF($D$12=0," ",IF(B23=$D$12,Simulador_v2!$W$32,+IF(B24>0,VLOOKUP(B24,Simulador_v2!$A$33:$AJ$273,23,0)," "))) -> 174.79 | J24: =IF($D$12=0," ",IF(B23=$D$12,Simulador_v2!$AJ$32,+IF(B24>0,VLOOKUP(B24,Simulador_v2!$A$33:$AJ$273,36,0)," "))) -> 23874.868
B25: 8 | C25: =IF($D$12=0," ",IF(B24=$D$12,"TOTALES",+IF(B25>0,VLOOKUP(B25,Simulador_v2!$A$33:$AJ$273,3,0)," "))) -> 2023-05-22 | D25: =IF($D$12=0," ",IF(B24=$D$12,Simulador_v2!$K$32,+IF(B25>0,VLOOKUP(B25,Simulador_v2!$A$33:$AJ$273,11,0)," "))) -> 4899.755 | E25: =IF($D$12=0," ",IF(B24=$D$12,Simulador_v2!$L$32,+IF(B25>0,VLOOKUP(B25,Simulador_v2!$A$33:$AJ$273,12,0)," "))) -> 14975.14 | F25: =IF($D$12=0," ",IF(B24=$D$12,Simulador_v2!$M$32,+IF(B25>0,VLOOKUP(B25,Simulador_v2!$A$33:$AJ$273,13,0)," "))) -> 213.883 | G25: =IF($D$12=0," ",IF(B24=$D$12,Simulador_v2!$T$32,+IF(B25>0,VLOOKUP(B25,Simulador_v2!$A$33:$AJ$273,20,0)," "))) -> 2911.3 | H25: =IF($D$12=0," ",IF(B24=$D$12,Simulador_v2!$Z$32,+IF(B25>0,VLOOKUP(B25,Simulador_v2!$A$33:$AJ$273,26,0)," "))) -> 700 | I25: =IF($D$12=0," ",IF(B24=$D$12,Simulador_v2!$W$32,+IF(B25>0,VLOOKUP(B25,Simulador_v2!$A$33:$AJ$273,23,0)," "))) -> 174.79 | J25: =IF($D$12=0," ",IF(B24=$D$12,Simulador_v2!$AJ$32,+IF(B25>0,VLOOKUP(B25,Simulador_v2!$A$33:$AJ$273,36,0)," "))) -> 23874.868
B26: 9 | C26: =IF($D$12=0," ",IF(B25=$D$12,"TOTALES",+IF(B26>0,VLOOKUP(B26,Simulador_v2!$A$33:$AJ$273,3,0)," "))) -> 2023-06-22 | D26: =IF($D$12=0," ",IF(B25=$D$12,Simulador_v2!$K$32,+IF(B26>0,VLOOKUP(B26,Simulador_v2!$A$33:$AJ$273,11,0)," "))) -> 4392.615 | E26: =IF($D$12=0," ",IF(B25=$D$12,Simulador_v2!$L$32,+IF(B26>0,VLOOKUP(B26,Simulador_v2!$A$33:$AJ$273,12,0)," "))) -> 15400.37 | F26: =IF($D$12=0," ",IF(B25=$D$12,Simulador_v2!$M$32,+IF(B26>0,VLOOKUP(B26,Simulador_v2!$A$33:$AJ$273,13,0)," "))) -> 213.883 | G26: =IF($D$12=0," ",IF(B25=$D$12,Simulador_v2!$T$32,+IF(B26>0,VLOOKUP(B26,Simulador_v2!$A$33:$AJ$273,20,0)," "))) -> 2993.21 | H26: =IF($D$12=0," ",IF(B25=$D$12,Simulador_v2!$Z$32,+IF(B26>0,VLOOKUP(B26,Simulador_v2!$A$33:$AJ$273,26,0)," "))) -> 700 | I26: =IF($D$12=0," ",IF(B25=$D$12,Simulador_v2!$W$32,+IF(B26>0,VLOOKUP(B26,Simulador_v2!$A$33:$AJ$273,23,0)," "))) -> 174.79 | J26: =IF($D$12=0," ",IF(B25=$D$12,Simulador_v2!$AJ$32,+IF(B26>0,VLOOKUP(B26,Simulador_v2!$A$33:$AJ$273,36,0)," "))) -> 23874.868
B27: 10 | C27: =IF($D$12=0," ",IF(B26=$D$12,"TOTALES",+IF(B27>0,VLOOKUP(B27,Simulador_v2!$A$33:$AJ$273,3,0)," "))) -> 2023-07-22 | D27: =IF($D$12=0," ",IF(B26=$D$12,Simulador_v2!$K$32,+IF(B27>0,VLOOKUP(B27,Simulador_v2!$A$33:$AJ$273,11,0)," "))) -> 5070.445 | E27: =IF($D$12=0," ",IF(B26=$D$12,Simulador_v2!$L$32,+IF(B27>0,VLOOKUP(B27,Simulador_v2!$A$33:$AJ$273,12,0)," "))) -> 14832.23 | F27: =IF($D$12=0," ",IF(B26=$D$12,Simulador_v2!$M$32,+IF(B27>0,VLOOKUP(B27,Simulador_v2!$A$33:$AJ$273,13,0)," "))) -> 213.883 | G27: =IF($D$12=0," ",IF(B26=$D$12,Simulador_v2!$T$32,+IF(B27>0,VLOOKUP(B27,Simulador_v2!$A$33:$AJ$273,20,0)," "))) -> 2883.52 | H27: =IF($D$12=0," ",IF(B26=$D$12,Simulador_v2!$Z$32,+IF(B27>0,VLOOKUP(B27,Simulador_v2!$A$33:$AJ$273,26,0)," "))) -> 700 | I27: =IF($D$12=0," ",IF(B26=$D$12,Simulador_v2!$W$32,+IF(B27>0,VLOOKUP(B27,Simulador_v2!$A$33:$AJ$273,23,0)," "))) -> 174.79 | J27: =IF($D$12=0," ",IF(B26=$D$12,Simulador_v2!$AJ$32,+IF(B27>0,VLOOKUP(B27,Simulador_v2!$A$33:$AJ$273,36,0)," "))) -> 23874.868
B28: 11 | C28: =IF($D$12=0," ",IF(B27=$D$12,"TOTALES",+IF(B28>0,VLOOKUP(B28,Simulador_v2!$A$33:$AJ$273,3,0)," "))) -> 2023-08-22 | D28: =IF($D$12=0," ",IF(B27=$D$12,Simulador_v2!$K$32,+IF(B28>0,VLOOKUP(B28,Simulador_v2!$A$33:$AJ$273,11,0)," "))) -> 4572.285 | E28: =IF($D$12=0," ",IF(B27=$D$12,Simulador_v2!$L$32,+IF(B28>0,VLOOKUP(B28,Simulador_v2!$A$33:$AJ$273,12,0)," "))) -> 15249.94 | F28: =IF($D$12=0," ",IF(B27=$D$12,Simulador_v2!$M$32,+IF(B28>0,VLOOKUP(B28,Simulador_v2!$A$33:$AJ$273,13,0)," "))) -> 213.883 | G28: =IF($D$12=0," ",IF(B27=$D$12,Simulador_v2!$T$32,+IF(B28>0,VLOOKUP(B28,Simulador_v2!$A$33:$AJ$273,20,0)," "))) -> 2963.97 | H28: =IF($D$12=0," ",IF(B27=$D$12,Simulador_v2!$Z$32,+IF(B28>0,VLOOKUP(B28,Simulador_v2!$A$33:$AJ$273,26,0)," "))) -> 700 | I28: =IF($D$12=0," ",IF(B27=$D$12,Simulador_v2!$W$32,+IF(B28>0,VLOOKUP(B28,Simulador_v2!$A$33:$AJ$273,23,0)," "))) -> 174.79 | J28: =IF($D$12=0," ",IF(B27=$D$12,Simulador_v2!$AJ$32,+IF(B28>0,VLOOKUP(B28,Simulador_v2!$A$33:$AJ$273,36,0)," "))) -> 23874.868
B29: 12 | C29: =IF($D$12=0," ",IF(B28=$D$12,"TOTALES",+IF(B29>0,VLOOKUP(B29,Simulador_v2!$A$33:$AJ$273,3,0)," "))) -> 2023-09-22 | D29: =IF($D$12=0," ",IF(B28=$D$12,Simulador_v2!$K$32,+IF(B29>0,VLOOKUP(B29,Simulador_v2!$A$33:$AJ$273,11,0)," "))) -> 4659.095 | E29: =IF($D$12=0," ",IF(B28=$D$12,Simulador_v2!$L$32,+IF(B29>0,VLOOKUP(B29,Simulador_v2!$A$33:$AJ$273,12,0)," "))) -> 15177.26 | F29: =IF($D$12=0," ",IF(B28=$D$12,Simulador_v2!$M$32,+IF(B29>0,VLOOKUP(B29,Simulador_v2!$A$33:$AJ$273,13,0)," "))) -> 213.883 | G29: =IF($D$12=0," ",IF(B28=$D$12,Simulador_v2!$T$32,+IF(B29>0,VLOOKUP(B29,Simulador_v2!$A$33:$AJ$273,20,0)," "))) -> 2949.84 | H29: =IF($D$12=0," ",IF(B28=$D$12,Simulador_v2!$Z$32,+IF(B29>0,VLOOKUP(B29,Simulador_v2!$A$33:$AJ$273,26,0)," "))) -> 700 | I29: =IF($D$12=0," ",IF(B28=$D$12,Simulador_v2!$W$32,+IF(B29>0,VLOOKUP(B29,Simulador_v2!$A$33:$AJ$273,23,0)," "))) -> 174.79 | J29: =IF($D$12=0," ",IF(B28=$D$12,Simulador_v2!$AJ$32,+IF(B29>0,VLOOKUP(B29,Simulador_v2!$A$33:$AJ$273,36,0)," "))) -> 23874.868
B30: 13 | C30: =IF($D$12=0," ",IF(B29=$D$12,"TOTALES",+IF(B30>0,VLOOKUP(B30,Simulador_v2!$A$33:$AJ$273,3,0)," "))) -> 2023-10-22 | D30: =IF($D$12=0," ",IF(B29=$D$12,Simulador_v2!$K$32,+IF(B30>0,VLOOKUP(B30,Simulador_v2!$A$33:$AJ$273,11,0)," "))) -> 5333.165 | E30: =IF($D$12=0," ",IF(B29=$D$12,Simulador_v2!$L$32,+IF(B30>0,VLOOKUP(B30,Simulador_v2!$A$33:$AJ$273,12,0)," "))) -> 14612.27 | F30: =IF($D$12=0," ",IF(B29=$D$12,Simulador_v2!$M$32,+IF(B30>0,VLOOKUP(B30,Simulador_v2!$A$33:$AJ$273,13,0)," "))) -> 213.883 | G30: =IF($D$12=0," ",IF(B29=$D$12,Simulador_v2!$T$32,+IF(B30>0,VLOOKUP(B30,Simulador_v2!$A$33:$AJ$273,20,0)," "))) -> 2840.76 | H30: =IF($D$12=0," ",IF(B29=$D$12,Simulador_v2!$Z$32,+IF(B30>0,VLOOKUP(B30,Simulador_v2!$A$33:$AJ$273,26,0)," "))) -> 700 | I30: =IF($D$12=0," ",IF(B29=$D$12,Simulador_v2!$W$32,+IF(B30>0,VLOOKUP(B30,Simulador_v2!$A$33:$AJ$273,23,0)," "))) -> 174.79 | J30: =IF($D$12=0," ",IF(B29=$D$12,Simulador_v2!$AJ$32,+IF(B30>0,VLOOKUP(B30,Simulador_v2!$A$33:$AJ$273,36,0)," "))) -> 23874.868
B31: 14 | C31: =IF($D$12=0," ",IF(B30=$D$12,"TOTALES",+IF(B31>0,VLOOKUP(B31,Simulador_v2!$A$33:$AJ$273,3,0)," "))) -> 2023-11-22 | D31: =IF($D$12=0," ",IF(B30=$D$12,Simulador_v2!$K$32,+IF(B31>0,VLOOKUP(B31,Simulador_v2!$A$33:$AJ$273,11,0)," "))) -> 4848.815 | E31: =IF($D$12=0," ",IF(B30=$D$12,Simulador_v2!$L$32,+IF(B31>0,VLOOKUP(B31,Simulador_v2!$A$33:$AJ$273,12,0)," "))) -> 15018.41 | F31: =IF($D$12=0," ",IF(B30=$D$12,Simulador_v2!$M$32,+IF(B31>0,VLOOKUP(B31,Simulador_v2!$A$33:$AJ$273,13,0)," "))) -> 213.883 | G31: =IF($D$12=0," ",IF(B30=$D$12,Simulador_v2!$T$32,+IF(B31>0,VLOOKUP(B31,Simulador_v2!$A$33:$AJ$273,20,0)," "))) -> 2918.97 | H31: =IF($D$12=0," ",IF(B30=$D$12,Simulador_v2!$Z$32,+IF(B31>0,VLOOKUP(B31,Simulador_v2!$A$33:$AJ$273,26,0)," "))) -> 700 | I31: =IF($D$12=0," ",IF(B30=$D$12,Simulador_v2!$W$32,+IF(B31>0,VLOOKUP(B31,Simulador_v2!$A$33:$AJ$273,23,0)," "))) -> 174.79 | J31: =IF($D$12=0," ",IF(B30=$D$12,Simulador_v2!$AJ$32,+IF(B31>0,VLOOKUP(B31,Simulador_v2!$A$33:$AJ$273,36,0)," "))) -> 23874.868
B32: 15 | C32: =IF($D$12=0," ",IF(B31=$D$12,"TOTALES",+IF(B32>0,VLOOKUP(B32,Simulador_v2!$A$33:$AJ$273,3,0)," "))) -> 2023-12-22 | D32: =IF($D$12=0," ",IF(B31=$D$12,Simulador_v2!$K$32,+IF(B32>0,VLOOKUP(B32,Simulador_v2!$A$33:$AJ$273,11,0)," "))) -> 5520.215 | E32: =IF($D$12=0," ",IF(B31=$D$12,Simulador_v2!$L$32,+IF(B32>0,VLOOKUP(B32,Simulador_v2!$A$33:$AJ$273,12,0)," "))) -> 14455.67 | F32: =IF($D$12=0," ",IF(B31=$D$12,Simulador_v2!$M$32,+IF(B32>0,VLOOKUP(B32,Simulador_v2!$A$33:$AJ$273,13,0)," "))) -> 213.883 | G32: =IF($D$12=0," ",IF(B31=$D$12,Simulador_v2!$T$32,+IF(B32>0,VLOOKUP(B32,Simulador_v2!$A$33:$AJ$273,20,0)," "))) -> 2810.31 | H32: =IF($D$12=0," ",IF(B31=$D$12,Simulador_v2!$Z$32,+IF(B32>0,VLOOKUP(B32,Simulador_v2!$A$33:$AJ$273,26,0)," "))) -> 700 | I32: =IF($D$12=0," ",IF(B31=$D$12,Simulador_v2!$W$32,+IF(B32>0,VLOOKUP(B32,Simulador_v2!$A$33:$AJ$273,23,0)," "))) -> 174.79 | J32: =IF($D$12=0," ",IF(B31=$D$12,Simulador_v2!$AJ$32,+IF(B32>0,VLOOKUP(B32,Simulador_v2!$A$33:$AJ$273,36,0)," "))) -> 23874.868
B33: 16 | C33: =IF($D$12=0," ",IF(B32=$D$12,"TOTALES",+IF(B33>0,VLOOKUP(B33,Simulador_v2!$A$33:$AJ$273,3,0)," "))) -> 2024-01-22 | D33: =IF($D$12=0," ",IF(B32=$D$12,Simulador_v2!$K$32,+IF(B33>0,VLOOKUP(B33,Simulador_v2!$A$33:$AJ$273,11,0)," "))) -> 5045.685 | E33: =IF($D$12=0," ",IF(B32=$D$12,Simulador_v2!$L$32,+IF(B33>0,VLOOKUP(B33,Simulador_v2!$A$33:$AJ$273,12,0)," "))) -> 14853.58 | F33: =IF($D$12=0," ",IF(B32=$D$12,Simulador_v2!$M$32,+IF(B33>0,VLOOKUP(B33,Simulador_v2!$A$33:$AJ$273,13,0)," "))) -> 213.883 | G33: =IF($D$12=0," ",IF(B32=$D$12,Simulador_v2!$T$32,+IF(B33>0,VLOOKUP(B33,Simulador_v2!$A$33:$AJ$273,20,0)," "))) -> 2886.93 | H33: =IF($D$12=0," ",IF(B32=$D$12,Simulador_v2!$Z$32,+IF(B33>0,VLOOKUP(B33,Simulador_v2!$A$33:$AJ$273,26,0)," "))) -> 700 | I33: =IF($D$12=0," ",IF(B32=$D$12,Simulador_v2!$W$32,+IF(B33>0,VLOOKUP(B33,Simulador_v2!$A$33:$AJ$273,23,0)," "))) -> 174.79 | J33: =IF($D$12=0," ",IF(B32=$D$12,Simulador_v2!$AJ$32,+IF(B33>0,VLOOKUP(B33,Simulador_v2!$A$33:$AJ$273,36,0)," "))) -> 23874.868
B34: 17 | C34: =IF($D$12=0," ",IF(B33=$D$12,"TOTALES",+IF(B34>0,VLOOKUP(B34,Simulador_v2!$A$33:$AJ$273,3,0)," "))) -> 2024-02-22 | D34: =IF($D$12=0," ",IF(B33=$D$12,Simulador_v2!$K$32,+IF(B34>0,VLOOKUP(B34,Simulador_v2!$A$33:$AJ$273,11,0)," "))) -> 5141.485 | E34: =IF($D$12=0," ",IF(B33=$D$12,Simulador_v2!$L$32,+IF(B34>0,VLOOKUP(B34,Simulador_v2!$A$33:$AJ$273,12,0)," "))) -> 14773.37 | F34: =IF($D$12=0," ",IF(B33=$D$12,Simulador_v2!$M$32,+IF(B34>0,VLOOKUP(B34,Simulador_v2!$A$33:$AJ$273,13,0)," "))) -> 213.883 | G34: =IF($D$12=0," ",IF(B33=$D$12,Simulador_v2!$T$32,+IF(B34>0,VLOOKUP(B34,Simulador_v2!$A$33:$AJ$273,20,0)," "))) -> 2871.34 | H34: =IF($D$12=0," ",IF(B33=$D$12,Simulador_v2!$Z$32,+IF(B34>0,VLOOKUP(B34,Simulador_v2!$A$33:$AJ$273,26,0)," "))) -> 700 | I34: =IF($D$12=0," ",IF(B33=$D$12,Simulador_v2!$W$32,+IF(B34>0,VLOOKUP(B34,Simulador_v2!$A$33:$AJ$273,23,0)," "))) -> 174.79 | J34: =IF($D$12=0," ",IF(B33=$D$12,Simulador_v2!$AJ$32,+IF(B34>0,VLOOKUP(B34,Simulador_v2!$A$33:$AJ$273,36,0)," "))) -> 23874.868
B35: 18 | C35: =IF($D$12=0," ",IF(B34=$D$12,"TOTALES",+IF(B35>0,VLOOKUP(B35,Simulador_v2!$A$33:$AJ$273,3,0)," "))) -> 2024-03-22 | D35: =IF($D$12=0," ",IF(B34=$D$12,Simulador_v2!$K$32,+IF(B35>0,VLOOKUP(B35,Simulador_v2!$A$33:$AJ$273,11,0)," "))) -> 6378.185 | E35: =IF($D$12=0," ",IF(B34=$D$12,Simulador_v2!$L$32,+IF(B35>0,VLOOKUP(B35,Simulador_v2!$A$33:$AJ$273,12,0)," "))) -> 13736.78 | F35: =IF($D$12=0," ",IF(B34=$D$12,Simulador_v2!$M$32,+IF(B35>0,VLOOKUP(B35,Simulador_v2!$A$33:$AJ$273,13,0)," "))) -> 213.883 | G35: =IF($D$12=0," ",IF(B34=$D$12,Simulador_v2!$T$32,+IF(B35>0,VLOOKUP(B35,Simulador_v2!$A$33:$AJ$273,20,0)," "))) -> 2671.23 | H35: =IF($D$12=0," ",IF(B34=$D$12,Simulador_v2!$Z$32,+IF(B35>0,VLOOKUP(B35,Simulador_v2!$A$33:$AJ$273,26,0)," "))) -> 700 | I35: =IF($D$12=0," ",IF(B34=$D$12,Simulador_v2!$W$32,+IF(B35>0,VLOOKUP(B35,Simulador_v2!$A$33:$AJ$273,23,0)," "))) -> 174.79 | J35: =IF($D$12=0," ",IF(B34=$D$12,Simulador_v2!$AJ$32,+IF(B35>0,VLOOKUP(B35,Simulador_v2!$A$33:$AJ$273,36,0)," "))) -> 23874.868
B36: 19 | C36: =IF($D$12=0," ",IF(B35=$D$12,"TOTALES",+IF(B36>0,VLOOKUP(B36,Simulador_v2!$A$33:$AJ$273,3,0)," "))) -> 2024-04-22 | D36: =IF($D$12=0," ",IF(B35=$D$12,Simulador_v2!$K$32,+IF(B36>0,VLOOKUP(B36,Simulador_v2!$A$33:$AJ$273,11,0)," "))) -> 5360.195 | E36: =IF($D$12=0," ",IF(B35=$D$12,Simulador_v2!$L$32,+IF(B36>0,VLOOKUP(B36,Simulador_v2!$A$33:$AJ$273,12,0)," "))) -> 14590.25 | F36: =IF($D$12=0," ",IF(B35=$D$12,Simulador_v2!$M$32,+IF(B36>0,VLOOKUP(B36,Simulador_v2!$A$33:$AJ$273,13,0)," "))) -> 213.883 | G36: =IF($D$12=0," ",IF(B35=$D$12,Simulador_v2!$T$32,+IF(B36>0,VLOOKUP(B36,Simulador_v2!$A$33:$AJ$273,20,0)," "))) -> 2835.75 | H36: =IF($D$12=0," ",IF(B35=$D$12,Simulador_v2!$Z$32,+IF(B36>0,VLOOKUP(B36,Simulador_v2!$A$33:$AJ$273,26,0)," "))) -> 700 | I36: =IF($D$12=0," ",IF(B35=$D$12,Simulador_v2!$W$32,+IF(B36>0,VLOOKUP(B36,Simulador_v2!$A$33:$AJ$273,23,0)," "))) -> 174.79 | J36: =IF($D$12=0," ",IF(B35=$D$12,Simulador_v2!$AJ$32,+IF(B36>0,VLOOKUP(B36,Simulador_v2!$A$33:$AJ$273,36,0)," "))) -> 23874.868
B37: 20 | C37: =IF($D$12=0," ",IF(B36=$D$12,"TOTALES",+IF(B37>0,VLOOKUP(B37,Simulador_v2!$A$33:$AJ$273,3,0)," "))) -> 2024-05-22 | D37: =IF($D$12=0," ",IF(B36=$D$12,Simulador_v2!$K$32,+IF(B37>0,VLOOKUP(B37,Simulador_v2!$A$33:$AJ$273,11,0)," "))) -> 6024.395 | E37: =IF($D$12=0," ",IF(B36=$D$12,Simulador_v2!$L$32,+IF(B37>0,VLOOKUP(B37,Simulador_v2!$A$33:$AJ$273,12,0)," "))) -> 14033.55 | F37: =IF($D$12=0," ",IF(B36=$D$12,Simulador_v2!$M$32,+IF(B37>0,VLOOKUP(B37,Simulador_v2!$A$33:$AJ$273,13,0)," "))) -> 213.883 | G37: =IF($D$12=0," ",IF(B36=$D$12,Simulador_v2!$T$32,+IF(B37>0,VLOOKUP(B37,Simulador_v2!$A$33:$AJ$273,20,0)," "))) -> 2728.25 | H37: =IF($D$12=0," ",IF(B36=$D$12,Simulador_v2!$Z$32,+IF(B37>0,VLOOKUP(B37,Simulador_v2!$A$33:$AJ$273,26,0)," "))) -> 700 | I37: =IF($D$12=0," ",IF(B36=$D$12,Simulador_v2!$W$32,+IF(B37>0,VLOOKUP(B37,Simulador_v2!$A$33:$AJ$273,23,0)," "))) -> 174.79 | J37: =IF($D$12=0," ",IF(B36=$D$12,Simulador_v2!$AJ$32,+IF(B37>0,VLOOKUP(B37,Simulador_v2!$A$33:$AJ$273,36,0)," "))) -> 23874.868
B38: 21 | C38: =IF($D$12=0," ",IF(B37=$D$12,"TOTALES",+IF(B38>0,VLOOKUP(B38,Simulador_v2!$A$33:$AJ$273,3,0)," "))) -> 2024-06-22 | D38: =IF($D$12=0," ",IF(B37=$D$12,Simulador_v2!$K$32,+IF(B38>0,VLOOKUP(B38,Simulador_v2!$A$33:$AJ$273,11,0)," "))) -> 5576.345 | E38: =IF($D$12=0," ",IF(B37=$D$12,Simulador_v2!$L$32,+IF(B38>0,VLOOKUP(B38,Simulador_v2!$A$33:$AJ$273,12,0)," "))) -> 14409.27 | F38: =IF($D$12=0," ",IF(B37=$D$12,Simulador_v2!$M$32,+IF(B38>0,VLOOKUP(B38,Simulador_v2!$A$33:$AJ$273,13,0)," "))) -> 213.883 | G38: =IF($D$12=0," ",IF(B37=$D$12,Simulador_v2!$T$32,+IF(B38>0,VLOOKUP(B38,Simulador_v2!$A$33:$AJ$273,20,0)," "))) -> 2800.58 | H38: =IF($D$12=0," ",IF(B37=$D$12,Simulador_v2!$Z$32,+IF(B38>0,VLOOKUP(B38,Simulador_v2!$A$33:$AJ$273,26,0)," "))) -> 700 | I38: =IF($D$12=0," ",IF(B37=$D$12,Simulador_v2!$W$32,+IF(B38>0,VLOOKUP(B38,Simulador_v2!$A$33:$AJ$273,23,0)," "))) -> 174.79 | J38: =IF($D$12=0," ",IF(B37=$D$12,Simulador_v2!$AJ$32,+IF(B38>0,VLOOKUP(B38,Simulador_v2!$A$33:$AJ$273,36,0)," "))) -> 23874.868
B39: 22 | C39: =IF($D$12=0," ",IF(B38=$D$12,"TOTALES",+IF(B39>0,VLOOKUP(B39,Simulador_v2!$A$33:$AJ$273,3,0)," "))) -> 2024-07-22 | D39: =IF($D$12=0," ",IF(B38=$D$12,Simulador_v2!$K$32,+IF(B39>0,VLOOKUP(B39,Simulador_v2!$A$33:$AJ$273,11,0)," "))) -> 6237.495 | E39: =IF($D$12=0," ",IF(B38=$D$12,Simulador_v2!$L$32,+IF(B39>0,VLOOKUP(B39,Simulador_v2!$A$33:$AJ$273,12,0)," "))) -> 13855.14 | F39: =IF($D$12=0," ",IF(B38=$D$12,Simulador_v2!$M$32,+IF(B39>0,VLOOKUP(B39,Simulador_v2!$A$33:$AJ$273,13,0)," "))) -> 213.883 | G39: =IF($D$12=0," ",IF(B38=$D$12,Simulador_v2!$T$32,+IF(B39>0,VLOOKUP(B39,Simulador_v2!$A$33:$AJ$273,20,0)," "))) -> 2693.56 | H39: =IF($D$12=0," ",IF(B38=$D$12,Simulador_v2!$Z$32,+IF(B39>0,VLOOKUP(B39,Simulador_v2!$A$33:$AJ$273,26,0)," "))) -> 700 | I39: =IF($D$12=0," ",IF(B38=$D$12,Simulador_v2!$W$32,+IF(B39>0,VLOOKUP(B39,Simulador_v2!$A$33:$AJ$273,23,0)," "))) -> 174.79 | J39: =IF($D$12=0," ",IF(B38=$D$12,Simulador_v2!$AJ$32,+IF(B39>0,VLOOKUP(B39,Simulador_v2!$A$33:$AJ$273,36,0)," "))) -> 23874.868
B40: 23 | C40: =IF($D$12=0," ",IF(B39=$D$12,"TOTALES",+IF(B40>0,VLOOKUP(B40,Simulador_v2!$A$33:$AJ$273,3,0)," "))) -> 2024-08-22 | D40: =IF($D$12=0," ",IF(B39=$D$12,Simulador_v2!$K$32,+IF(B40>0,VLOOKUP(B40,Simulador_v2!$A$33:$AJ$273,11,0)," "))) -> 5800.645 | E40: =IF($D$12=0," ",IF(B39=$D$12,Simulador_v2!$L$32,+IF(B40>0,VLOOKUP(B40,Simulador_v2!$A$33:$AJ$273,12,0)," "))) -> 14221.47 | F40: =IF($D$12=0," ",IF(B39=$D$12,Simulador_v2!$M$32,+IF(B40>0,VLOOKUP(B40,Simulador_v2!$A$33:$AJ$273,13,0)," "))) -> 213.883 | G40: =IF($D$12=0," ",IF(B39=$D$12,Simulador_v2!$T$32,+IF(B40>0,VLOOKUP(B40,Simulador_v2!$A$33:$AJ$273,20,0)," "))) -> 2764.08 | H40: =IF($D$12=0," ",IF(B39=$D$12,Simulador_v2!$Z$32,+IF(B40>0,VLOOKUP(B40,Simulador_v2!$A$33:$AJ$273,26,0)," "))) -> 700 | I40: =IF($D$12=0," ",IF(B39=$D$12,Simulador_v2!$W$32,+IF(B40>0,VLOOKUP(B40,Simulador_v2!$A$33:$AJ$273,23,0)," "))) -> 174.79 | J40: =IF($D$12=0," ",IF(B39=$D$12,Simulador_v2!$AJ$32,+IF(B40>0,VLOOKUP(B40,Simulador_v2!$A$33:$AJ$273,36,0)," "))) -> 23874.868
B41: 24 | C41: =IF($D$12=0," ",IF(B40=$D$12,"TOTALES",+IF(B41>0,VLOOKUP(B41,Simulador_v2!$A$33:$AJ$273,3,0)," "))) -> 2024-09-22 | D41: =IF($D$12=0," ",IF(B40=$D$12,Simulador_v2!$K$32,+IF(B41>0,VLOOKUP(B41,Simulador_v2!$A$33:$AJ$273,11,0)," "))) -> 5910.785 | E41: =IF($D$12=0," ",IF(B40=$D$12,Simulador_v2!$L$32,+IF(B41>0,VLOOKUP(B41,Simulador_v2!$A$33:$AJ$273,12,0)," "))) -> 14129.26 | F41: =IF($D$12=0," ",IF(B40=$D$12,Simulador_v2!$M$32,+IF(B41>0,VLOOKUP(B41,Simulador_v2!$A$33:$AJ$273,13,0)," "))) -> 213.883 | G41: =IF($D$12=0," ",IF(B40=$D$12,Simulador_v2!$T$32,+IF(B41>0,VLOOKUP(B41,Simulador_v2!$A$33:$AJ$273,20,0)," "))) -> 2746.15 | H41: =IF($D$12=0," ",IF(B40=$D$12,Simulador_v2!$Z$32,+IF(B41>0,VLOOKUP(B41,Simulador_v2!$A$33:$AJ$273,26,0)," "))) -> 700 | I41: =IF($D$12=0," ",IF(B40=$D$12,Simulador_v2!$W$32,+IF(B41>0,VLOOKUP(B41,Simulador_v2!$A$33:$AJ$273,23,0)," "))) -> 174.79 | J41: =IF($D$12=0," ",IF(B40=$D$12,Simulador_v2!$AJ$32,+IF(B41>0,VLOOKUP(B41,Simulador_v2!$A$33:$AJ$273,36,0)," "))) -> 23874.868
B42: 25 | C42: =IF($D$12=0," ",IF(B41=$D$12,"TOTALES",+IF(B42>0,VLOOKUP(B42,Simulador_v2!$A$33:$AJ$273,3,0)," "))) -> 2024-10-22 | D42: =IF($D$12=0," ",IF(B41=$D$12,Simulador_v2!$K$32,+IF(B42>0,VLOOKUP(B42,Simulador_v2!$A$33:$AJ$273,11,0)," "))) -> 6567.215 | E42: =IF($D$12=0," ",IF(B41=$D$12,Simulador_v2!$L$32,+IF(B42>0,VLOOKUP(B42,Simulador_v2!$A$33:$AJ$273,12,0)," "))) -> 13579.08 | F42: =IF($D$12=0," ",IF(B41=$D$12,Simulador_v2!$M$32,+IF(B42>0,VLOOKUP(B42,Simulador_v2!$A$33:$AJ$273,13,0)," "))) -> 213.883 | G42: =IF($D$12=0," ",IF(B41=$D$12,Simulador_v2!$T$32,+IF(B42>0,VLOOKUP(B42,Simulador_v2!$A$33:$AJ$273,20,0)," "))) -> 2639.9 | H42: =IF($D$12=0," ",IF(B41=$D$12,Simulador_v2!$Z$32,+IF(B42>0,VLOOKUP(B42,Simulador_v2!$A$33:$AJ$273,26,0)," "))) -> 700 | I42: =IF($D$12=0," ",IF(B41=$D$12,Simulador_v2!$W$32,+IF(B42>0,VLOOKUP(B42,Simulador_v2!$A$33:$AJ$273,23,0)," "))) -> 174.79 | J42: =IF($D$12=0," ",IF(B41=$D$12,Simulador_v2!$AJ$32,+IF(B42>0,VLOOKUP(B42,Simulador_v2!$A$33:$AJ$273,36,0)," "))) -> 23874.868
B43: 26 | C43: =IF($D$12=0," ",IF(B42=$D$12,"TOTALES",+IF(B43>0,VLOOKUP(B43,Simulador_v2!$A$33:$AJ$273,3,0)," "))) -> 2024-11-22 | D43: =IF($D$12=0," ",IF(B42=$D$12,Simulador_v2!$K$32,+IF(B43>0,VLOOKUP(B43,Simulador_v2!$A$33:$AJ$273,11,0)," "))) -> 6147.695 | E43: =IF($D$12=0," ",IF(B42=$D$12,Simulador_v2!$L$32,+IF(B43>0,VLOOKUP(B43,Simulador_v2!$A$33:$AJ$273,12,0)," "))) -> 13930.9 | F43: =IF($D$12=0," ",IF(B42=$D$12,Simulador_v2!$M$32,+IF(B43>0,VLOOKUP(B43,Simulador_v2!$A$33:$AJ$273,13,0)," "))) -> 213.883 | G43: =IF($D$12=0," ",IF(B42=$D$12,Simulador_v2!$T$32,+IF(B43>0,VLOOKUP(B43,Simulador_v2!$A$33:$AJ$273,20,0)," "))) -> 2707.6 | H43: =IF($D$12=0," ",IF(B42=$D$12,Simulador_v2!$Z$32,+IF(B43>0,VLOOKUP(B43,Simulador_v2!$A$33:$AJ$273,26,0)," "))) -> 700 | I43: =IF($D$12=0," ",IF(B42=$D$12,Simulador_v2!$W$32,+IF(B43>0,VLOOKUP(B43,Simulador_v2!$A$33:$AJ$273,23,0)," "))) -> 174.79 | J43: =IF($D$12=0," ",IF(B42=$D$12,Simulador_v2!$AJ$32,+IF(B43>0,VLOOKUP(B43,Simulador_v2!$A$33:$AJ$273,36,0)," "))) -> 23874.868
B44: 27 | C44: =IF($D$12=0," ",IF(B43=$D$12,"TOTALES",+IF(B44>0,VLOOKUP(B44,Simulador_v2!$A$33:$AJ$273,3,0)," "))) -> 2024-12-22 | D44: =IF($D$12=0," ",IF(B43=$D$12,Simulador_v2!$K$32,+IF(B44>0,VLOOKUP(B44,Simulador_v2!$A$33:$AJ$273,11,0)," "))) -> 6800.785 | E44: =IF($D$12=0," ",IF(B43=$D$12,Simulador_v2!$L$32,+IF(B44>0,VLOOKUP(B44,Simulador_v2!$A$33:$AJ$273,12,0)," "))) -> 13383.53 | F44: =IF($D$12=0," ",IF(B43=$D$12,Simulador_v2!$M$32,+IF(B44>0,VLOOKUP(B44,Simulador_v2!$A$33:$AJ$273,13,0)," "))) -> 213.883 | G44: =IF($D$12=0," ",IF(B43=$D$12,Simulador_v2!$T$32,+IF(B44>0,VLOOKUP(B44,Simulador_v2!$A$33:$AJ$273,20,0)," "))) -> 2601.88 | H44: =IF($D$12=0," ",IF(B43=$D$12,Simulador_v2!$Z$32,+IF(B44>0,VLOOKUP(B44,Simulador_v2!$A$33:$AJ$273,26,0)," "))) -> 700 | I44: =IF($D$12=0," ",IF(B43=$D$12,Simulador_v2!$W$32,+IF(B44>0,VLOOKUP(B44,Simulador_v2!$A$33:$AJ$273,23,0)," "))) -> 174.79 | J44: =IF($D$12=0," ",IF(B43=$D$12,Simulador_v2!$AJ$32,+IF(B44>0,VLOOKUP(B44,Simulador_v2!$A$33:$AJ$273,36,0)," "))) -> 23874.868
B45: 28 | C45: =IF($D$12=0," ",IF(B44=$D$12,"TOTALES",+IF(B45>0,VLOOKUP(B45,Simulador_v2!$A$33:$AJ$273,3,0)," "))) -> 2025-01-22 | D45: =IF($D$12=0," ",IF(B44=$D$12,Simulador_v2!$K$32,+IF(B45>0,VLOOKUP(B45,Simulador_v2!$A$33:$AJ$273,11,0)," "))) -> 6393.545 | E45: =IF($D$12=0," ",IF(B44=$D$12,Simulador_v2!$L$32,+IF(B45>0,VLOOKUP(B45,Simulador_v2!$A$33:$AJ$273,12,0)," "))) -> 13725.06 | F45: =IF($D$12=0," ",IF(B44=$D$12,Simulador_v2!$M$32,+IF(B45>0,VLOOKUP(B45,Simulador_v2!$A$33:$AJ$273,13,0)," "))) -> 213.883 | G45: =IF($D$12=0," ",IF(B44=$D$12,Simulador_v2!$T$32,+IF(B45>0,VLOOKUP(B45,Simulador_v2!$A$33:$AJ$273,20,0)," "))) -> 2667.59 | H45: =IF($D$12=0," ",IF(B44=$D$12,Simulador_v2!$Z$32,+IF(B45>0,VLOOKUP(B45,Simulador_v2!$A$33:$AJ$273,26,0)," "))) -> 700 | I45: =IF($D$12=0," ",IF(B44=$D$12,Simulador_v2!$W$32,+IF(B45>0,VLOOKUP(B45,Simulador_v2!$A$33:$AJ$273,23,0)," "))) -> 174.79 | J45: =IF($D$12=0," ",IF(B44=$D$12,Simulador_v2!$AJ$32,+IF(B45>0,VLOOKUP(B45,Simulador_v2!$A$33:$AJ$273,36,0)," "))) -> 23874.868
B46: 29 | C46: =IF($D$12=0," ",IF(B45=$D$12,"TOTALES",+IF(B46>0,VLOOKUP(B46,Simulador_v2!$A$33:$AJ$273,3,0)," "))) -> 2025-02-22 | D46: =IF($D$12=0," ",IF(B45=$D$12,Simulador_v2!$K$32,+IF(B46>0,VLOOKUP(B46,Simulador_v2!$A$33:$AJ$273,11,0)," "))) -> 6514.925 | E46: =IF($D$12=0," ",IF(B45=$D$12,Simulador_v2!$L$32,+IF(B46>0,VLOOKUP(B46,Simulador_v2!$A$33:$AJ$273,12,0)," "))) -> 13623.43 | F46: =IF($D$12=0," ",IF(B45=$D$12,Simulador_v2!$M$32,+IF(B46>0,VLOOKUP(B46,Simulador_v2!$A$33:$AJ$273,13,0)," "))) -> 213.883 | G46: =IF($D$12=0," ",IF(B45=$D$12,Simulador_v2!$T$32,+IF(B46>0,VLOOKUP(B46,Simulador_v2!$A$33:$AJ$273,20,0)," "))) -> 2647.84 | H46: =IF($D$12=0," ",IF(B45=$D$12,Simulador_v2!$Z$32,+IF(B46>0,VLOOKUP(B46,Simulador_v2!$A$33:$AJ$273,26,0)," "))) -> 700 | I46: =IF($D$12=0," ",IF(B45=$D$12,Simulador_v2!$W$32,+IF(B46>0,VLOOKUP(B46,Simulador_v2!$A$33:$AJ$273,23,0)," "))) -> 174.79 | J46: =IF($D$12=0," ",IF(B45=$D$12,Simulador_v2!$AJ$32,+IF(B46>0,VLOOKUP(B46,Simulador_v2!$A$33:$AJ$273,36,0)," "))) -> 23874.868
B47: 30 | C47: =IF($D$12=0," ",IF(B46=$D$12,"TOTALES",+IF(B47>0,VLOOKUP(B47,Simulador_v2!$A$33:$AJ$273,3,0)," "))) -> 2025-03-22 | D47: =IF($D$12=0," ",IF(B46=$D$12,Simulador_v2!$K$32,+IF(B47>0,VLOOKUP(B47,Simulador_v2!$A$33:$AJ$273,11,0)," "))) -> 8210.625 | E47: =IF($D$12=0," ",IF(B46=$D$12,Simulador_v2!$L$32,+IF(B47>0,VLOOKUP(B47,Simulador_v2!$A$33:$AJ$273,12,0)," "))) -> 12202.15 | F47: =IF($D$12=0," ",IF(B46=$D$12,Simulador_v2!$M$32,+IF(B47>0,VLOOKUP(B47,Simulador_v2!$A$33:$AJ$273,13,0)," "))) -> 213.883 | G47: =IF($D$12=0," ",IF(B46=$D$12,Simulador_v2!$T$32,+IF(B47>0,VLOOKUP(B47,Simulador_v2!$A$33:$AJ$273,20,0)," "))) -> 2373.42 | H47: =IF($D$12=0," ",IF(B46=$D$12,Simulador_v2!$Z$32,+IF(B47>0,VLOOKUP(B47,Simulador_v2!$A$33:$AJ$273,26,0)," "))) -> 700 | I47: =IF($D$12=0," ",IF(B46=$D$12,Simulador_v2!$W$32,+IF(B47>0,VLOOKUP(B47,Simulador_v2!$A$33:$AJ$273,23,0)," "))) -> 174.79 | J47: =IF($D$12=0," ",IF(B46=$D$12,Simulador_v2!$AJ$32,+IF(B47>0,VLOOKUP(B47,Simulador_v2!$A$33:$AJ$273,36,0)," "))) -> 23874.868
B48: 31 | C48: =IF($D$12=0," ",IF(B47=$D$12,"TOTALES",+IF(B48>0,VLOOKUP(B48,Simulador_v2!$A$33:$AJ$273,3,0)," "))) -> 2025-04-22 | D48: =IF($D$12=0," ",IF(B47=$D$12,Simulador_v2!$K$32,+IF(B48>0,VLOOKUP(B48,Simulador_v2!$A$33:$AJ$273,11,0)," "))) -> 6794.515 | E48: =IF($D$12=0," ",IF(B47=$D$12,Simulador_v2!$L$32,+IF(B48>0,VLOOKUP(B48,Simulador_v2!$A$33:$AJ$273,12,0)," "))) -> 13389.34 | F48: =IF($D$12=0," ",IF(B47=$D$12,Simulador_v2!$M$32,+IF(B48>0,VLOOKUP(B48,Simulador_v2!$A$33:$AJ$273,13,0)," "))) -> 213.883 | G48: =IF($D$12=0," ",IF(B47=$D$12,Simulador_v2!$T$32,+IF(B48>0,VLOOKUP(B48,Simulador_v2!$A$33:$AJ$273,20,0)," "))) -> 2602.34 | H48: =IF($D$12=0," ",IF(B47=$D$12,Simulador_v2!$Z$32,+IF(B48>0,VLOOKUP(B48,Simulador_v2!$A$33:$AJ$273,26,0)," "))) -> 700 | I48: =IF($D$12=0," ",IF(B47=$D$12,Simulador_v2!$W$32,+IF(B48>0,VLOOKUP(B48,Simulador_v2!$A$33:$AJ$273,23,0)," "))) -> 174.79 | J48: =IF($D$12=0," ",IF(B47=$D$12,Simulador_v2!$AJ$32,+IF(B48>0,VLOOKUP(B48,Simulador_v2!$A$33:$AJ$273,36,0)," "))) -> 23874.868
B49: 32 | C49: =IF($D$12=0," ",IF(B48=$D$12,"TOTALES",+IF(B49>0,VLOOKUP(B49,Simulador_v2!$A$33:$AJ$273,3,0)," "))) -> 2025-05-22 | D49: =IF($D$12=0," ",IF(B48=$D$12,Simulador_v2!$K$32,+IF(B49>0,VLOOKUP(B49,Simulador_v2!$A$33:$AJ$273,11,0)," "))) -> 7438.495 | E49: =IF($D$12=0," ",IF(B48=$D$12,Simulador_v2!$L$32,+IF(B49>0,VLOOKUP(B49,Simulador_v2!$A$33:$AJ$273,12,0)," "))) -> 12849.62 | F49: =IF($D$12=0," ",IF(B48=$D$12,Simulador_v2!$M$32,+IF(B49>0,VLOOKUP(B49,Simulador_v2!$A$33:$AJ$273,13,0)," "))) -> 213.883 | G49: =IF($D$12=0," ",IF(B48=$D$12,Simulador_v2!$T$32,+IF(B49>0,VLOOKUP(B49,Simulador_v2!$A$33:$AJ$273,20,0)," "))) -> 2498.08 | H49: =IF($D$12=0," ",IF(B48=$D$12,Simulador_v2!$Z$32,+IF(B49>0,VLOOKUP(B49,Simulador_v2!$A$33:$AJ$273,26,0)," "))) -> 700 | I49: =IF($D$12=0," ",IF(B48=$D$12,Simulador_v2!$W$32,+IF(B49>0,VLOOKUP(B49,Simulador_v2!$A$33:$AJ$273,23,0)," "))) -> 174.79 | J49: =IF($D$12=0," ",IF(B48=$D$12,Simulador_v2!$AJ$32,+IF(B49>0,VLOOKUP(B49,Simulador_v2!$A$33:$AJ$273,36,0)," "))) -> 23874.868
B50: 33 | C50: =IF($D$12=0," ",IF(B49=$D$12,"TOTALES",+IF(B50>0,VLOOKUP(B50,Simulador_v2!$A$33:$AJ$273,3,0)," "))) -> 2025-06-22 | D50: =IF($D$12=0," ",IF(B49=$D$12,Simulador_v2!$K$32,+IF(B50>0,VLOOKUP(B50,Simulador_v2!$A$33:$AJ$273,11,0)," "))) -> 7064.745 | E50: =IF($D$12=0," ",IF(B49=$D$12,Simulador_v2!$L$32,+IF(B50>0,VLOOKUP(B50,Simulador_v2!$A$33:$AJ$273,12,0)," "))) -> 13163.08 | F50: =IF($D$12=0," ",IF(B49=$D$12,Simulador_v2!$M$32,+IF(B50>0,VLOOKUP(B50,Simulador_v2!$A$33:$AJ$273,13,0)," "))) -> 213.883 | G50: =IF($D$12=0," ",IF(B49=$D$12,Simulador_v2!$T$32,+IF(B50>0,VLOOKUP(B50,Simulador_v2!$A$33:$AJ$273,20,0)," "))) -> 2558.37 | H50: =IF($D$12=0," ",IF(B49=$D$12,Simulador_v2!$Z$32,+IF(B50>0,VLOOKUP(B50,Simulador_v2!$A$33:$AJ$273,26,0)," "))) -> 700 | I50: =IF($D$12=0," ",IF(B49=$D$12,Simulador_v2!$W$32,+IF(B50>0,VLOOKUP(B50,Simulador_v2!$A$33:$AJ$273,23,0)," "))) -> 174.79 | J50: =IF($D$12=0," ",IF(B49=$D$12,Simulador_v2!$AJ$32,+IF(B50>0,VLOOKUP(B50,Simulador_v2!$A$33:$AJ$273,36,0)," "))) -> 23874.868
B51: =IF(B50=0," ",IF(B50>=$D$12,"",B50+1)) -> 34 | C51: =IF($D$12=0," ",IF(B50=$D$12,"TOTALES",+IF(B51>0,VLOOKUP(B51,Simulador_v2!$A$33:$AJ$273,3,0)," "))) -> 2025-07-22 | D51: =IF($D$12=0," ",IF(B50=$D$12,Simulador_v2!$K$32,+IF(B51>0,VLOOKUP(B51,Simulador_v2!$A$33:$AJ$273,11,0)," "))) -> 7704.915 | E51: =IF($D$12=0," ",IF(B50=$D$12,Simulador_v2!$L$32,+IF(B51>0,VLOOKUP(B51,Simulador_v2!$A$33:$AJ$273,12,0)," "))) -> 12626.56 | F51: =IF($D$12=0," ",IF(B50=$D$12,Simulador_v2!$M$32,+IF(B51>0,VLOOKUP(B51,Simulador_v2!$A$33:$AJ$273,13,0)," "))) -> 213.883 | G51: =IF($D$12=0," ",IF(B50=$D$12,Simulador_v2!$T$32,+IF(B51>0,VLOOKUP(B51,Simulador_v2!$A$33:$AJ$273,20,0)," "))) -> 2454.72 | H51: =IF($D$12=0," ",IF(B50=$D$12,Simulador_v2!$Z$32,+IF(B51>0,VLOOKUP(B51,Simulador_v2!$A$33:$AJ$273,26,0)," "))) -> 700 | I51: =IF($D$12=0," ",IF(B50=$D$12,Simulador_v2!$W$32,+IF(B51>0,VLOOKUP(B51,Simulador_v2!$A$33:$AJ$273,23,0)," "))) -> 174.79 | J51: =IF($D$12=0," ",IF(B50=$D$12,Simulador_v2!$AJ$32,+IF(B51>0,VLOOKUP(B51,Simulador_v2!$A$33:$AJ$273,36,0)," "))) -> 23874.868
B52: 35 | C52: =IF($D$12=0," ",IF(B51=$D$12,"TOTALES",+IF(B52>0,VLOOKUP(B52,Simulador_v2!$A$33:$AJ$273,3,0)," "))) -> 2025-08-22 | D52: =IF($D$12=0," ",IF(B51=$D$12,Simulador_v2!$K$32,+IF(B52>0,VLOOKUP(B52,Simulador_v2!$A$33:$AJ$273,11,0)," "))) -> 7345.165 | E52: =IF($D$12=0," ",IF(B51=$D$12,Simulador_v2!$L$32,+IF(B52>0,VLOOKUP(B52,Simulador_v2!$A$33:$AJ$273,12,0)," "))) -> 12928.29 | F52: =IF($D$12=0," ",IF(B51=$D$12,Simulador_v2!$M$32,+IF(B52>0,VLOOKUP(B52,Simulador_v2!$A$33:$AJ$273,13,0)," "))) -> 213.883 | G52: =IF($D$12=0," ",IF(B51=$D$12,Simulador_v2!$T$32,+IF(B52>0,VLOOKUP(B52,Simulador_v2!$A$33:$AJ$273,20,0)," "))) -> 2512.74 | H52: =IF($D$12=0," ",IF(B51=$D$12,Simulador_v2!$Z$32,+IF(B52>0,VLOOKUP(B52,Simulador_v2!$A$33:$AJ$273,26,0)," "))) -> 700 | I52: =IF($D$12=0," ",IF(B51=$D$12,Simulador_v2!$W$32,+IF(B52>0,VLOOKUP(B52,Simulador_v2!$A$33:$AJ$273,23,0)," "))) -> 174.79 | J52: =IF($D$12=0," ",IF(B51=$D$12,Simulador_v2!$AJ$32,+IF(B52>0,VLOOKUP(B52,Simulador_v2!$A$33:$AJ$273,36,0)," "))) -> 23874.868
B53: 36 | C53: =IF($D$12=0," ",IF(B52=$D$12,"TOTALES",+IF(B53>0,VLOOKUP(B53,Simulador_v2!$A$33:$AJ$273,3,0)," "))) -> 2025-09-22 | D53: =IF($D$12=0," ",IF(B52=$D$12,Simulador_v2!$K$32,+IF(B53>0,VLOOKUP(B53,Simulador_v2!$A$33:$AJ$273,11,0)," "))) -> 7484.625 | E53: =IF($D$12=0," ",IF(B52=$D$12,Simulador_v2!$L$32,+IF(B53>0,VLOOKUP(B53,Simulador_v2!$A$33:$AJ$273,12,0)," "))) -> 12811.53 | F53: =IF($D$12=0," ",IF(B52=$D$12,Simulador_v2!$M$32,+IF(B53>0,VLOOKUP(B53,Simulador_v2!$A$33:$AJ$273,13,0)," "))) -> 213.883 | G53: =IF($D$12=0," ",IF(B52=$D$12,Simulador_v2!$T$32,+IF(B53>0,VLOOKUP(B53,Simulador_v2!$A$33:$AJ$273,20,0)," "))) -> 2490.04 | H53: =IF($D$12=0," ",IF(B52=$D$12,Simulador_v2!$Z$32,+IF(B53>0,VLOOKUP(B53,Simulador_v2!$A$33:$AJ$273,26,0)," "))) -> 700 | I53: =IF($D$12=0," ",IF(B52=$D$12,Simulador_v2!$W$32,+IF(B53>0,VLOOKUP(B53,Simulador_v2!$A$33:$AJ$273,23,0)," "))) -> 174.79 | J53: =IF($D$12=0," ",IF(B52=$D$12,Simulador_v2!$AJ$32,+IF(B53>0,VLOOKUP(B53,Simulador_v2!$A$33:$AJ$273,36,0)," "))) -> 23874.868
B54: 37 | C54: =IF($D$12=0," ",IF(B53=$D$12,"TOTALES",+IF(B54>0,VLOOKUP(B54,Simulador_v2!$A$33:$AJ$273,3,0)," "))) -> 2025-10-22 | D54: =IF($D$12=0," ",IF(B53=$D$12,Simulador_v2!$K$32,+IF(B54>0,VLOOKUP(B54,Simulador_v2!$A$33:$AJ$273,11,0)," "))) -> 8118.875 | E54: =IF($D$12=0," ",IF(B53=$D$12,Simulador_v2!$L$32,+IF(B54>0,VLOOKUP(B54,Simulador_v2!$A$33:$AJ$273,12,0)," "))) -> 12279.98 | F54: =IF($D$12=0," ",IF(B53=$D$12,Simulador_v2!$M$32,+IF(B54>0,VLOOKUP(B54,Simulador_v2!$A$33:$AJ$273,13,0)," "))) -> 213.883 | G54: =IF($D$12=0," ",IF(B53=$D$12,Simulador_v2!$T$32,+IF(B54>0,VLOOKUP(B54,Simulador_v2!$A$33:$AJ$273,20,0)," "))) -> 2387.34 | H54: =IF($D$12=0," ",IF(B53=$D$12,Simulador_v2!$Z$32,+IF(B54>0,VLOOKUP(B54,Simulador_v2!$A$33:$AJ$273,26,0)," "))) -> 700 | I54: =IF($D$12=0," ",IF(B53=$D$12,Simulador_v2!$W$32,+IF(B54>0,VLOOKUP(B54,Simulador_v2!$A$33:$AJ$273,23,0)," "))) -> 174.79 | J54: =IF($D$12=0," ",IF(B53=$D$12,Simulador_v2!$AJ$32,+IF(B54>0,VLOOKUP(B54,Simulador_v2!$A$33:$AJ$273,36,0)," "))) -> 23874.868
B55: 38 | C55: =IF($D$12=0," ",IF(B54=$D$12,"TOTALES",+IF(B55>0,VLOOKUP(B55,Simulador_v2!$A$33:$AJ$273,3,0)," "))) -> 2025-11-22 | D55: =IF($D$12=0," ",IF(B54=$D$12,Simulador_v2!$K$32,+IF(B55>0,VLOOKUP(B55,Simulador_v2!$A$33:$AJ$273,11,0)," "))) -> 7780.875 | E55: =IF($D$12=0," ",IF(B54=$D$12,Simulador_v2!$L$32,+IF(B55>0,VLOOKUP(B55,Simulador_v2!$A$33:$AJ$273,12,0)," "))) -> 12563.49 | F55: =IF($D$12=0," ",IF(B54=$D$12,Simulador_v2!$M$32,+IF(B55>0,VLOOKUP(B55,Simulador_v2!$A$33:$AJ$273,13,0)," "))) -> 213.883 | G55: =IF($D$12=0," ",IF(B54=$D$12,Simulador_v2!$T$32,+IF(B55>0,VLOOKUP(B55,Simulador_v2!$A$33:$AJ$273,20,0)," "))) -> 2441.83 | H55: =IF($D$12=0," ",IF(B54=$D$12,Simulador_v2!$Z$32,+IF(B55>0,VLOOKUP(B55,Simulador_v2!$A$33:$AJ$273,26,0)," "))) -> 700 | I55: =IF($D$12=0," ",IF(B54=$D$12,Simulador_v2!$W$32,+IF(B55>0,VLOOKUP(B55,Simulador_v2!$A$33:$AJ$273,23,0)," "))) -> 174.79 | J55: =IF($D$12=0," ",IF(B54=$D$12,Simulador_v2!$AJ$32,+IF(B55>0,VLOOKUP(B55,Simulador_v2!$A$33:$AJ$273,36,0)," "))) -> 23874.868
B56: 39 | C56: =IF($D$12=0," ",IF(B55=$D$12,"TOTALES",+IF(B56>0,VLOOKUP(B56,Simulador_v2!$A$33:$AJ$273,3,0)," "))) -> 2025-12-22 | D56: =IF($D$12=0," ",IF(B55=$D$12,Simulador_v2!$K$32,+IF(B56>0,VLOOKUP(B56,Simulador_v2!$A$33:$AJ$273,11,0)," "))) -> 8410.955 | E56: =IF($D$12=0," ",IF(B55=$D$12,Simulador_v2!$L$32,+IF(B56>0,VLOOKUP(B56,Simulador_v2!$A$33:$AJ$273,12,0)," "))) -> 12035.44 | F56: =IF($D$12=0," ",IF(B55=$D$12,Simulador_v2!$M$32,+IF(B56>0,VLOOKUP(B56,Simulador_v2!$A$33:$AJ$273,13,0)," "))) -> 213.883 | G56: =IF($D$12=0," ",IF(B55=$D$12,Simulador_v2!$T$32,+IF(B56>0,VLOOKUP(B56,Simulador_v2!$A$33:$AJ$273,20,0)," "))) -> 2339.8 | H56: =IF($D$12=0," ",IF(B55=$D$12,Simulador_v2!$Z$32,+IF(B56>0,VLOOKUP(B56,Simulador_v2!$A$33:$AJ$273,26,0)," "))) -> 700 | I56: =IF($D$12=0," ",IF(B55=$D$12,Simulador_v2!$W$32,+IF(B56>0,VLOOKUP(B56,Simulador_v2!$A$33:$AJ$273,23,0)," "))) -> 174.79 | J56: =IF($D$12=0," ",IF(B55=$D$12,Simulador_v2!$AJ$32,+IF(B56>0,VLOOKUP(B56,Simulador_v2!$A$33:$AJ$273,36,0)," "))) -> 23874.868
B57: 40 | C57: =IF($D$12=0," ",IF(B56=$D$12,"TOTALES",+IF(B57>0,VLOOKUP(B57,Simulador_v2!$A$33:$AJ$273,3,0)," "))) -> 2026-01-22 | D57: =IF($D$12=0," ",IF(B56=$D$12,Simulador_v2!$K$32,+IF(B57>0,VLOOKUP(B57,Simulador_v2!$A$33:$AJ$273,11,0)," "))) -> 8088.305 | E57: =IF($D$12=0," ",IF(B56=$D$12,Simulador_v2!$L$32,+IF(B57>0,VLOOKUP(B57,Simulador_v2!$A$33:$AJ$273,12,0)," "))) -> 12306.09 | F57: =IF($D$12=0," ",IF(B56=$D$12,Simulador_v2!$M$32,+IF(B57>0,VLOOKUP(B57,Simulador_v2!$A$33:$AJ$273,13,0)," "))) -> 213.883 | G57: =IF($D$12=0," ",IF(B56=$D$12,Simulador_v2!$T$32,+IF(B57>0,VLOOKUP(B57,Simulador_v2!$A$33:$AJ$273,20,0)," "))) -> 2391.8 | H57: =IF($D$12=0," ",IF(B56=$D$12,Simulador_v2!$Z$32,+IF(B57>0,VLOOKUP(B57,Simulador_v2!$A$33:$AJ$273,26,0)," "))) -> 700 | I57: =IF($D$12=0," ",IF(B56=$D$12,Simulador_v2!$W$32,+IF(B57>0,VLOOKUP(B57,Simulador_v2!$A$33:$AJ$273,23,0)," "))) -> 174.79 | J57: =IF($D$12=0," ",IF(B56=$D$12,Simulador_v2!$AJ$32,+IF(B57>0,VLOOKUP(B57,Simulador_v2!$A$33:$AJ$273,36,0)," "))) -> 23874.868
B58: 41 | C58: =IF($D$12=0," ",IF(B57=$D$12,"TOTALES",+IF(B58>0,VLOOKUP(B58,Simulador_v2!$A$33:$AJ$273,3,0)," "))) -> 2026-02-22 | D58: =IF($D$12=0," ",IF(B57=$D$12,Simulador_v2!$K$32,+IF(B58>0,VLOOKUP(B58,Simulador_v2!$A$33:$AJ$273,11,0)," "))) -> 8241.875 | E58: =IF($D$12=0," ",IF(B57=$D$12,Simulador_v2!$L$32,+IF(B58>0,VLOOKUP(B58,Simulador_v2!$A$33:$AJ$273,12,0)," "))) -> 12177.51 | F58: =IF($D$12=0," ",IF(B57=$D$12,Simulador_v2!$M$32,+IF(B58>0,VLOOKUP(B58,Simulador_v2!$A$33:$AJ$273,13,0)," "))) -> 213.883 | G58: =IF($D$12=0," ",IF(B57=$D$12,Simulador_v2!$T$32,+IF(B58>0,VLOOKUP(B58,Simulador_v2!$A$33:$AJ$273,20,0)," "))) -> 2366.81 | H58: =IF($D$12=0," ",IF(B57=$D$12,Simulador_v2!$Z$32,+IF(B58>0,VLOOKUP(B58,Simulador_v2!$A$33:$AJ$273,26,0)," "))) -> 700 | I58: =IF($D$12=0," ",IF(B57=$D$12,Simulador_v2!$W$32,+IF(B58>0,VLOOKUP(B58,Simulador_v2!$A$33:$AJ$273,23,0)," "))) -> 174.79 | J58: =IF($D$12=0," ",IF(B57=$D$12,Simulador_v2!$AJ$32,+IF(B58>0,VLOOKUP(B58,Simulador_v2!$A$33:$AJ$273,36,0)," "))) -> 23874.868
B59: 42 | C59: =IF($D$12=0," ",IF(B58=$D$12,"TOTALES",+IF(B59>0,VLOOKUP(B59,Simulador_v2!$A$33:$AJ$273,3,0)," "))) -> 2026-03-22 | D59: =IF($D$12=0," ",IF(B58=$D$12,Simulador_v2!$K$32,+IF(B59>0,VLOOKUP(B59,Simulador_v2!$A$33:$AJ$273,11,0)," "))) -> 9799.035 | E59: =IF($D$12=0," ",IF(B58=$D$12,Simulador_v2!$L$32,+IF(B59>0,VLOOKUP(B59,Simulador_v2!$A$33:$AJ$273,12,0)," "))) -> 10872.39 | F59: =IF($D$12=0," ",IF(B58=$D$12,Simulador_v2!$M$32,+IF(B59>0,VLOOKUP(B59,Simulador_v2!$A$33:$AJ$273,13,0)," "))) -> 213.883 | G59: =IF($D$12=0," ",IF(B58=$D$12,Simulador_v2!$T$32,+IF(B59>0,VLOOKUP(B59,Simulador_v2!$A$33:$AJ$273,20,0)," "))) -> 2114.77 | H59: =IF($D$12=0," ",IF(B58=$D$12,Simulador_v2!$Z$32,+IF(B59>0,VLOOKUP(B59,Simulador_v2!$A$33:$AJ$273,26,0)," "))) -> 700 | I59: =IF($D$12=0," ",IF(B58=$D$12,Simulador_v2!$W$32,+IF(B59>0,VLOOKUP(B59,Simulador_v2!$A$33:$AJ$273,23,0)," "))) -> 174.79 | J59: =IF($D$12=0," ",IF(B58=$D$12,Simulador_v2!$AJ$32,+IF(B59>0,VLOOKUP(B59,Simulador_v2!$A$33:$AJ$273,36,0)," "))) -> 23874.868
B60: 43 | C60: =IF($D$12=0," ",IF(B59=$D$12,"TOTALES",+IF(B60>0,VLOOKUP(B60,Simulador_v2!$A$33:$AJ$273,3,0)," "))) -> 2026-04-22 | D60: =IF($D$12=0," ",IF(B59=$D$12,Simulador_v2!$K$32,+IF(B60>0,VLOOKUP(B60,Simulador_v2!$A$33:$AJ$273,11,0)," "))) -> 8584.405 | E60: =IF($D$12=0," ",IF(B59=$D$12,Simulador_v2!$L$32,+IF(B60>0,VLOOKUP(B60,Simulador_v2!$A$33:$AJ$273,12,0)," "))) -> 11890.72 | F60: =IF($D$12=0," ",IF(B59=$D$12,Simulador_v2!$M$32,+IF(B60>0,VLOOKUP(B60,Simulador_v2!$A$33:$AJ$273,13,0)," "))) -> 213.883 | G60: =IF($D$12=0," ",IF(B59=$D$12,Simulador_v2!$T$32,+IF(B60>0,VLOOKUP(B60,Simulador_v2!$A$33:$AJ$273,20,0)," "))) -> 2311.07 | H60: =IF($D$12=0," ",IF(B59=$D$12,Simulador_v2!$Z$32,+IF(B60>0,VLOOKUP(B60,Simulador_v2!$A$33:$AJ$273,26,0)," "))) -> 700 | I60: =IF($D$12=0," ",IF(B59=$D$12,Simulador_v2!$W$32,+IF(B60>0,VLOOKUP(B60,Simulador_v2!$A$33:$AJ$273,23,0)," "))) -> 174.79 | J60: =IF($D$12=0," ",IF(B59=$D$12,Simulador_v2!$AJ$32,+IF(B60>0,VLOOKUP(B60,Simulador_v2!$A$33:$AJ$273,36,0)," "))) -> 23874.868
B61: 44 | C61: =IF($D$12=0," ",IF(B60=$D$12,"TOTALES",+IF(B61>0,VLOOKUP(B61,Simulador_v2!$A$33:$AJ$273,3,0)," "))) -> 2026-05-22 | D61: =IF($D$12=0," ",IF(B60=$D$12,Simulador_v2!$K$32,+IF(B61>0,VLOOKUP(B61,Simulador_v2!$A$33:$AJ$273,11,0)," "))) -> 9203.145 | E61: =IF($D$12=0," ",IF(B60=$D$12,Simulador_v2!$L$32,+IF(B61>0,VLOOKUP(B61,Simulador_v2!$A$33:$AJ$273,12,0)," "))) -> 11372.19 | F61: =IF($D$12=0," ",IF(B60=$D$12,Simulador_v2!$M$32,+IF(B61>0,VLOOKUP(B61,Simulador_v2!$A$33:$AJ$273,13,0)," "))) -> 213.883 | G61: =IF($D$12=0," ",IF(B60=$D$12,Simulador_v2!$T$32,+IF(B61>0,VLOOKUP(B61,Simulador_v2!$A$33:$AJ$273,20,0)," "))) -> 2210.86 | H61: =IF($D$12=0," ",IF(B60=$D$12,Simulador_v2!$Z$32,+IF(B61>0,VLOOKUP(B61,Simulador_v2!$A$33:$AJ$273,26,0)," "))) -> 700 | I61: =IF($D$12=0," ",IF(B60=$D$12,Simulador_v2!$W$32,+IF(B61>0,VLOOKUP(B61,Simulador_v2!$A$33:$AJ$273,23,0)," "))) -> 174.79 | J61: =IF($D$12=0," ",IF(B60=$D$12,Simulador_v2!$AJ$32,+IF(B61>0,VLOOKUP(B61,Simulador_v2!$A$33:$AJ$273,36,0)," "))) -> 23874.868
B62: 45 | C62: =IF($D$12=0," ",IF(B61=$D$12,"TOTALES",+IF(B62>0,VLOOKUP(B62,Simulador_v2!$A$33:$AJ$273,3,0)," "))) -> 2026-06-22 | D62: =IF($D$12=0," ",IF(B61=$D$12,Simulador_v2!$K$32,+IF(B62>0,VLOOKUP(B62,Simulador_v2!$A$33:$AJ$273,11,0)," "))) -> 8922.115 | E62: =IF($D$12=0," ",IF(B61=$D$12,Simulador_v2!$L$32,+IF(B62>0,VLOOKUP(B62,Simulador_v2!$A$33:$AJ$273,12,0)," "))) -> 11607.96 | F62: =IF($D$12=0," ",IF(B61=$D$12,Simulador_v2!$M$32,+IF(B62>0,VLOOKUP(B62,Simulador_v2!$A$33:$AJ$273,13,0)," "))) -> 213.883 | G62: =IF($D$12=0," ",IF(B61=$D$12,Simulador_v2!$T$32,+IF(B62>0,VLOOKUP(B62,Simulador_v2!$A$33:$AJ$273,20,0)," "))) -> 2256.12 | H62: =IF($D$12=0," ",IF(B61=$D$12,Simulador_v2!$Z$32,+IF(B62>0,VLOOKUP(B62,Simulador_v2!$A$33:$AJ$273,26,0)," "))) -> 700 | I62: =IF($D$12=0," ",IF(B61=$D$12,Simulador_v2!$W$32,+IF(B62>0,VLOOKUP(B62,Simulador_v2!$A$33:$AJ$273,23,0)," "))) -> 174.79 | J62: =IF($D$12=0," ",IF(B61=$D$12,Simulador_v2!$AJ$32,+IF(B62>0,VLOOKUP(B62,Simulador_v2!$A$33:$AJ$273,36,0)," "))) -> 23874.868
B63: 46 | C63: =IF($D$12=0," ",IF(B62=$D$12,"TOTALES",+IF(B63>0,VLOOKUP(B63,Simulador_v2!$A$33:$AJ$273,3,0)," "))) -> 2026-07-22 | D63: =IF($D$12=0," ",IF(B62=$D$12,Simulador_v2!$K$32,+IF(B63>0,VLOOKUP(B63,Simulador_v2!$A$33:$AJ$273,11,0)," "))) -> 9536.105 | E63: =IF($D$12=0," ",IF(B62=$D$12,Simulador_v2!$L$32,+IF(B63>0,VLOOKUP(B63,Simulador_v2!$A$33:$AJ$273,12,0)," "))) -> 11093.43 | F63: =IF($D$12=0," ",IF(B62=$D$12,Simulador_v2!$M$32,+IF(B63>0,VLOOKUP(B63,Simulador_v2!$A$33:$AJ$273,13,0)," "))) -> 213.883 | G63: =IF($D$12=0," ",IF(B62=$D$12,Simulador_v2!$T$32,+IF(B63>0,VLOOKUP(B63,Simulador_v2!$A$33:$AJ$273,20,0)," "))) -> 2156.66 | H63: =IF($D$12=0," ",IF(B62=$D$12,Simulador_v2!$Z$32,+IF(B63>0,VLOOKUP(B63,Simulador_v2!$A$33:$AJ$273,26,0)," "))) -> 700 | I63: =IF($D$12=0," ",IF(B62=$D$12,Simulador_v2!$W$32,+IF(B63>0,VLOOKUP(B63,Simulador_v2!$A$33:$AJ$273,23,0)," "))) -> 174.79 | J63: =IF($D$12=0," ",IF(B62=$D$12,Simulador_v2!$AJ$32,+IF(B63>0,VLOOKUP(B63,Simulador_v2!$A$33:$AJ$273,36,0)," "))) -> 23874.868
B64: 47 | C64: =IF($D$12=0," ",IF(B63=$D$12,"TOTALES",+IF(B64>0,VLOOKUP(B64,Simulador_v2!$A$33:$AJ$273,3,0)," "))) -> 2026-08-22 | D64: =IF($D$12=0," ",IF(B63=$D$12,Simulador_v2!$K$32,+IF(B64>0,VLOOKUP(B64,Simulador_v2!$A$33:$AJ$273,11,0)," "))) -> 9272.565 | E64: =IF($D$12=0," ",IF(B63=$D$12,Simulador_v2!$L$32,+IF(B64>0,VLOOKUP(B64,Simulador_v2!$A$33:$AJ$273,12,0)," "))) -> 11314.54 | F64: =IF($D$12=0," ",IF(B63=$D$12,Simulador_v2!$M$32,+IF(B64>0,VLOOKUP(B64,Simulador_v2!$A$33:$AJ$273,13,0)," "))) -> 213.883 | G64: =IF($D$12=0," ",IF(B63=$D$12,Simulador_v2!$T$32,+IF(B64>0,VLOOKUP(B64,Simulador_v2!$A$33:$AJ$273,20,0)," "))) -> 2199.09 | H64: =IF($D$12=0," ",IF(B63=$D$12,Simulador_v2!$Z$32,+IF(B64>0,VLOOKUP(B64,Simulador_v2!$A$33:$AJ$273,26,0)," "))) -> 700 | I64: =IF($D$12=0," ",IF(B63=$D$12,Simulador_v2!$W$32,+IF(B64>0,VLOOKUP(B64,Simulador_v2!$A$33:$AJ$273,23,0)," "))) -> 174.79 | J64: =IF($D$12=0," ",IF(B63=$D$12,Simulador_v2!$AJ$32,+IF(B64>0,VLOOKUP(B64,Simulador_v2!$A$33:$AJ$273,36,0)," "))) -> 23874.868
B65: 48 | C65: =IF($D$12=0," ",IF(B64=$D$12,"TOTALES",+IF(B65>0,VLOOKUP(B65,Simulador_v2!$A$33:$AJ$273,3,0)," "))) -> 2026-09-22 | D65: =IF($D$12=0," ",IF(B64=$D$12,Simulador_v2!$K$32,+IF(B65>0,VLOOKUP(B65,Simulador_v2!$A$33:$AJ$273,11,0)," "))) -> 9448.625 | E65: =IF($D$12=0," ",IF(B64=$D$12,Simulador_v2!$L$32,+IF(B65>0,VLOOKUP(B65,Simulador_v2!$A$33:$AJ$273,12,0)," "))) -> 11167.13 | F65: =IF($D$12=0," ",IF(B64=$D$12,Simulador_v2!$M$32,+IF(B65>0,VLOOKUP(B65,Simulador_v2!$A$33:$AJ$273,13,0)," "))) -> 213.883 | G65: =IF($D$12=0," ",IF(B64=$D$12,Simulador_v2!$T$32,+IF(B65>0,VLOOKUP(B65,Simulador_v2!$A$33:$AJ$273,20,0)," "))) -> 2170.44 | H65: =IF($D$12=0," ",IF(B64=$D$12,Simulador_v2!$Z$32,+IF(B65>0,VLOOKUP(B65,Simulador_v2!$A$33:$AJ$273,26,0)," "))) -> 700 | I65: =IF($D$12=0," ",IF(B64=$D$12,Simulador_v2!$W$32,+IF(B65>0,VLOOKUP(B65,Simulador_v2!$A$33:$AJ$273,23,0)," "))) -> 174.79 | J65: =IF($D$12=0," ",IF(B64=$D$12,Simulador_v2!$AJ$32,+IF(B65>0,VLOOKUP(B65,Simulador_v2!$A$33:$AJ$273,36,0)," "))) -> 23874.868
B66: 49 | C66: =IF($D$12=0," ",IF(B65=$D$12,"TOTALES",+IF(B66>0,VLOOKUP(B66,Simulador_v2!$A$33:$AJ$273,3,0)," "))) -> 2026-10-22 | D66: =IF($D$12=0," ",IF(B65=$D$12,Simulador_v2!$K$32,+IF(B66>0,VLOOKUP(B66,Simulador_v2!$A$33:$AJ$273,11,0)," "))) -> 10055.195 | E66: =IF($D$12=0," ",IF(B65=$D$12,Simulador_v2!$L$32,+IF(B66>0,VLOOKUP(B66,Simulador_v2!$A$33:$AJ$273,12,0)," "))) -> 10658.83 | F66: =IF($D$12=0," ",IF(B65=$D$12,Simulador_v2!$M$32,+IF(B66>0,VLOOKUP(B66,Simulador_v2!$A$33:$AJ$273,13,0)," "))) -> 213.883 | G66: =IF($D$12=0," ",IF(B65=$D$12,Simulador_v2!$T$32,+IF(B66>0,VLOOKUP(B66,Simulador_v2!$A$33:$AJ$273,20,0)," "))) -> 2072.17 | H66: =IF($D$12=0," ",IF(B65=$D$12,Simulador_v2!$Z$32,+IF(B66>0,VLOOKUP(B66,Simulador_v2!$A$33:$AJ$273,26,0)," "))) -> 700 | I66: =IF($D$12=0," ",IF(B65=$D$12,Simulador_v2!$W$32,+IF(B66>0,VLOOKUP(B66,Simulador_v2!$A$33:$AJ$273,23,0)," "))) -> 174.79 | J66: =IF($D$12=0," ",IF(B65=$D$12,Simulador_v2!$AJ$32,+IF(B66>0,VLOOKUP(B66,Simulador_v2!$A$33:$AJ$273,36,0)," "))) -> 23874.868
B67: 50 | C67: =IF($D$12=0," ",IF(B66=$D$12,"TOTALES",+IF(B67>0,VLOOKUP(B67,Simulador_v2!$A$33:$AJ$273,3,0)," "))) -> 2026-11-22 | D67: =IF($D$12=0," ",IF(B66=$D$12,Simulador_v2!$K$32,+IF(B67>0,VLOOKUP(B67,Simulador_v2!$A$33:$AJ$273,11,0)," "))) -> 9818.925 | E67: =IF($D$12=0," ",IF(B66=$D$12,Simulador_v2!$L$32,+IF(B67>0,VLOOKUP(B67,Simulador_v2!$A$33:$AJ$273,12,0)," "))) -> 10857.09 | F67: =IF($D$12=0," ",IF(B66=$D$12,Simulador_v2!$M$32,+IF(B67>0,VLOOKUP(B67,Simulador_v2!$A$33:$AJ$273,13,0)," "))) -> 213.883 | G67: =IF($D$12=0," ",IF(B66=$D$12,Simulador_v2!$T$32,+IF(B67>0,VLOOKUP(B67,Simulador_v2!$A$33:$AJ$273,20,0)," "))) -> 2110.18 | H67: =IF($D$12=0," ",IF(B66=$D$12,Simulador_v2!$Z$32,+IF(B67>0,VLOOKUP(B67,Simulador_v2!$A$33:$AJ$273,26,0)," "))) -> 700 | I67: =IF($D$12=0," ",IF(B66=$D$12,Simulador_v2!$W$32,+IF(B67>0,VLOOKUP(B67,Simulador_v2!$A$33:$AJ$273,23,0)," "))) -> 174.79 | J67: =IF($D$12=0," ",IF(B66=$D$12,Simulador_v2!$AJ$32,+IF(B67>0,VLOOKUP(B67,Simulador_v2!$A$33:$AJ$273,36,0)," "))) -> 23874.868
B68: 51 | C68: =IF($D$12=0," ",IF(B67=$D$12,"TOTALES",+IF(B68>0,VLOOKUP(B68,Simulador_v2!$A$33:$AJ$273,3,0)," "))) -> 2026-12-22 | D68: =IF($D$12=0," ",IF(B67=$D$12,Simulador_v2!$K$32,+IF(B68>0,VLOOKUP(B68,Simulador_v2!$A$33:$AJ$273,11,0)," "))) -> 10420.275 | E68: =IF($D$12=0," ",IF(B67=$D$12,Simulador_v2!$L$32,+IF(B68>0,VLOOKUP(B68,Simulador_v2!$A$33:$AJ$273,12,0)," "))) -> 10353.17 | F68: =IF($D$12=0," ",IF(B67=$D$12,Simulador_v2!$M$32,+IF(B68>0,VLOOKUP(B68,Simulador_v2!$A$33:$AJ$273,13,0)," "))) -> 213.883 | G68: =IF($D$12=0," ",IF(B67=$D$12,Simulador_v2!$T$32,+IF(B68>0,VLOOKUP(B68,Simulador_v2!$A$33:$AJ$273,20,0)," "))) -> 2012.75 | H68: =IF($D$12=0," ",IF(B67=$D$12,Simulador_v2!$Z$32,+IF(B68>0,VLOOKUP(B68,Simulador_v2!$A$33:$AJ$273,26,0)," "))) -> 700 | I68: =IF($D$12=0," ",IF(B67=$D$12,Simulador_v2!$W$32,+IF(B68>0,VLOOKUP(B68,Simulador_v2!$A$33:$AJ$273,23,0)," "))) -> 174.79 | J68: =IF($D$12=0," ",IF(B67=$D$12,Simulador_v2!$AJ$32,+IF(B68>0,VLOOKUP(B68,Simulador_v2!$A$33:$AJ$273,36,0)," "))) -> 23874.868
B69: 52 | C69: =IF($D$12=0," ",IF(B68=$D$12,"TOTALES",+IF(B69>0,VLOOKUP(B69,Simulador_v2!$A$33:$AJ$273,3,0)," "))) -> 2027-01-22 | D69: =IF($D$12=0," ",IF(B68=$D$12,Simulador_v2!$K$32,+IF(B69>0,VLOOKUP(B69,Simulador_v2!$A$33:$AJ$273,11,0)," "))) -> 10203.205 | E69: =IF($D$12=0," ",IF(B68=$D$12,Simulador_v2!$L$32,+IF(B69>0,VLOOKUP(B69,Simulador_v2!$A$33:$AJ$273,12,0)," "))) -> 10535.35 | F69: =IF($D$12=0," ",IF(B68=$D$12,Simulador_v2!$M$32,+IF(B69>0,VLOOKUP(B69,Simulador_v2!$A$33:$AJ$273,13,0)," "))) -> 213.883 | G69: =IF($D$12=0," ",IF(B68=$D$12,Simulador_v2!$T$32,+IF(B69>0,VLOOKUP(B69,Simulador_v2!$A$33:$AJ$273,20,0)," "))) -> 2047.64 | H69: =IF($D$12=0," ",IF(B68=$D$12,Simulador_v2!$Z$32,+IF(B69>0,VLOOKUP(B69,Simulador_v2!$A$33:$AJ$273,26,0)," "))) -> 700 | I69: =IF($D$12=0," ",IF(B68=$D$12,Simulador_v2!$W$32,+IF(B69>0,VLOOKUP(B69,Simulador_v2!$A$33:$AJ$273,23,0)," "))) -> 174.79 | J69: =IF($D$12=0," ",IF(B68=$D$12,Simulador_v2!$AJ$32,+IF(B69>0,VLOOKUP(B69,Simulador_v2!$A$33:$AJ$273,36,0)," "))) -> 23874.868
B70: 53 | C70: =IF($D$12=0," ",IF(B69=$D$12,"TOTALES",+IF(B70>0,VLOOKUP(B70,Simulador_v2!$A$33:$AJ$273,3,0)," "))) -> 2027-02-22 | D70: =IF($D$12=0," ",IF(B69=$D$12,Simulador_v2!$K$32,+IF(B70>0,VLOOKUP(B70,Simulador_v2!$A$33:$AJ$273,11,0)," "))) -> 10396.915 | E70: =IF($D$12=0," ",IF(B69=$D$12,Simulador_v2!$L$32,+IF(B70>0,VLOOKUP(B70,Simulador_v2!$A$33:$AJ$273,12,0)," "))) -> 10373.16 | F70: =IF($D$12=0," ",IF(B69=$D$12,Simulador_v2!$M$32,+IF(B70>0,VLOOKUP(B70,Simulador_v2!$A$33:$AJ$273,13,0)," "))) -> 213.883 | G70: =IF($D$12=0," ",IF(B69=$D$12,Simulador_v2!$T$32,+IF(B70>0,VLOOKUP(B70,Simulador_v2!$A$33:$AJ$273,20,0)," "))) -> 2016.12 | H70: =IF($D$12=0," ",IF(B69=$D$12,Simulador_v2!$Z$32,+IF(B70>0,VLOOKUP(B70,Simulador_v2!$A$33:$AJ$273,26,0)," "))) -> 700 | I70: =IF($D$12=0," ",IF(B69=$D$12,Simulador_v2!$W$32,+IF(B70>0,VLOOKUP(B70,Simulador_v2!$A$33:$AJ$273,23,0)," "))) -> 174.79 | J70: =IF($D$12=0," ",IF(B69=$D$12,Simulador_v2!$AJ$32,+IF(B70>0,VLOOKUP(B70,Simulador_v2!$A$33:$AJ$273,36,0)," "))) -> 23874.868
B71: 54 | C71: =IF($D$12=0," ",IF(B70=$D$12,"TOTALES",+IF(B71>0,VLOOKUP(B71,Simulador_v2!$A$33:$AJ$273,3,0)," "))) -> 2027-03-22 | D71: =IF($D$12=0," ",IF(B70=$D$12,Simulador_v2!$K$32,+IF(B71>0,VLOOKUP(B71,Simulador_v2!$A$33:$AJ$273,11,0)," "))) -> 11781.225 | E71: =IF($D$12=0," ",IF(B70=$D$12,Simulador_v2!$L$32,+IF(B71>0,VLOOKUP(B71,Simulador_v2!$A$33:$AJ$273,12,0)," "))) -> 9212.97 | F71: =IF($D$12=0," ",IF(B70=$D$12,Simulador_v2!$M$32,+IF(B71>0,VLOOKUP(B71,Simulador_v2!$A$33:$AJ$273,13,0)," "))) -> 213.883 | G71: =IF($D$12=0," ",IF(B70=$D$12,Simulador_v2!$T$32,+IF(B71>0,VLOOKUP(B71,Simulador_v2!$A$33:$AJ$273,20,0)," "))) -> 1792 | H71: =IF($D$12=0," ",IF(B70=$D$12,Simulador_v2!$Z$32,+IF(B71>0,VLOOKUP(B71,Simulador_v2!$A$33:$AJ$273,26,0)," "))) -> 700 | I71: =IF($D$12=0," ",IF(B70=$D$12,Simulador_v2!$W$32,+IF(B71>0,VLOOKUP(B71,Simulador_v2!$A$33:$AJ$273,23,0)," "))) -> 174.79 | J71: =IF($D$12=0," ",IF(B70=$D$12,Simulador_v2!$AJ$32,+IF(B71>0,VLOOKUP(B71,Simulador_v2!$A$33:$AJ$273,36,0)," "))) -> 23874.868
B72: 55 | C72: =IF($D$12=0," ",IF(B71=$D$12,"TOTALES",+IF(B72>0,VLOOKUP(B72,Simulador_v2!$A$33:$AJ$273,3,0)," "))) -> 2027-04-22 | D72: =IF($D$12=0," ",IF(B71=$D$12,Simulador_v2!$K$32,+IF(B72>0,VLOOKUP(B72,Simulador_v2!$A$33:$AJ$273,11,0)," "))) -> 10817.995 | E72: =IF($D$12=0," ",IF(B71=$D$12,Simulador_v2!$L$32,+IF(B72>0,VLOOKUP(B72,Simulador_v2!$A$33:$AJ$273,12,0)," "))) -> 10020.6 | F72: =IF($D$12=0," ",IF(B71=$D$12,Simulador_v2!$M$32,+IF(B72>0,VLOOKUP(B72,Simulador_v2!$A$33:$AJ$273,13,0)," "))) -> 213.883 | G72: =IF($D$12=0," ",IF(B71=$D$12,Simulador_v2!$T$32,+IF(B72>0,VLOOKUP(B72,Simulador_v2!$A$33:$AJ$273,20,0)," "))) -> 1947.6 | H72: =IF($D$12=0," ",IF(B71=$D$12,Simulador_v2!$Z$32,+IF(B72>0,VLOOKUP(B72,Simulador_v2!$A$33:$AJ$273,26,0)," "))) -> 700 | I72: =IF($D$12=0," ",IF(B71=$D$12,Simulador_v2!$W$32,+IF(B72>0,VLOOKUP(B72,Simulador_v2!$A$33:$AJ$273,23,0)," "))) -> 174.79 | J72: =IF($D$12=0," ",IF(B71=$D$12,Simulador_v2!$AJ$32,+IF(B72>0,VLOOKUP(B72,Simulador_v2!$A$33:$AJ$273,36,0)," "))) -> 23874.868
B73: 56 | C73: =IF($D$12=0," ",IF(B72=$D$12,"TOTALES",+IF(B73>0,VLOOKUP(B73,Simulador_v2!$A$33:$AJ$273,3,0)," "))) -> 2027-05-22 | D73: =IF($D$12=0," ",IF(B72=$D$12,Simulador_v2!$K$32,+IF(B73>0,VLOOKUP(B73,Simulador_v2!$A$33:$AJ$273,11,0)," "))) -> 11405.265 | E73: =IF($D$12=0," ",IF(B72=$D$12,Simulador_v2!$L$32,+IF(B73>0,VLOOKUP(B73,Simulador_v2!$A$33:$AJ$273,12,0)," "))) -> 9528.5 | F73: =IF($D$12=0," ",IF(B72=$D$12,Simulador_v2!$M$32,+IF(B73>0,VLOOKUP(B73,Simulador_v2!$A$33:$AJ$273,13,0)," "))) -> 213.883 | G73: =IF($D$12=0," ",IF(B72=$D$12,Simulador_v2!$T$32,+IF(B73>0,VLOOKUP(B73,Simulador_v2!$A$33:$AJ$273,20,0)," "))) -> 1852.43 | H73: =IF($D$12=0," ",IF(B72=$D$12,Simulador_v2!$Z$32,+IF(B73>0,VLOOKUP(B73,Simulador_v2!$A$33:$AJ$273,26,0)," "))) -> 700 | I73: =IF($D$12=0," ",IF(B72=$D$12,Simulador_v2!$W$32,+IF(B73>0,VLOOKUP(B73,Simulador_v2!$A$33:$AJ$273,23,0)," "))) -> 174.79 | J73: =IF($D$12=0," ",IF(B72=$D$12,Simulador_v2!$AJ$32,+IF(B73>0,VLOOKUP(B73,Simulador_v2!$A$33:$AJ$273,36,0)," "))) -> 23874.868
B74: 57 | C74: =IF($D$12=0," ",IF(B73=$D$12,"TOTALES",+IF(B74>0,VLOOKUP(B74,Simulador_v2!$A$33:$AJ$273,3,0)," "))) -> 2027-06-22 | D74: =IF($D$12=0," ",IF(B73=$D$12,Simulador_v2!$K$32,+IF(B74>0,VLOOKUP(B74,Simulador_v2!$A$33:$AJ$273,11,0)," "))) -> 11239.945 | E74: =IF($D$12=0," ",IF(B73=$D$12,Simulador_v2!$L$32,+IF(B74>0,VLOOKUP(B74,Simulador_v2!$A$33:$AJ$273,12,0)," "))) -> 9667.32 | F74: =IF($D$12=0," ",IF(B73=$D$12,Simulador_v2!$M$32,+IF(B74>0,VLOOKUP(B74,Simulador_v2!$A$33:$AJ$273,13,0)," "))) -> 213.883 | G74: =IF($D$12=0," ",IF(B73=$D$12,Simulador_v2!$T$32,+IF(B74>0,VLOOKUP(B74,Simulador_v2!$A$33:$AJ$273,20,0)," "))) -> 1878.93 | H74: =IF($D$12=0," ",IF(B73=$D$12,Simulador_v2!$Z$32,+IF(B74>0,VLOOKUP(B74,Simulador_v2!$A$33:$AJ$273,26,0)," "))) -> 700 | I74: =IF($D$12=0," ",IF(B73=$D$12,Simulador_v2!$W$32,+IF(B74>0,VLOOKUP(B74,Simulador_v2!$A$33:$AJ$273,23,0)," "))) -> 174.79 | J74: =IF($D$12=0," ",IF(B73=$D$12,Simulador_v2!$AJ$32,+IF(B74>0,VLOOKUP(B74,Simulador_v2!$A$33:$AJ$273,36,0)," "))) -> 23874.868
B75: 58 | C75: =IF($D$12=0," ",IF(B74=$D$12,"TOTALES",+IF(B75>0,VLOOKUP(B75,Simulador_v2!$A$33:$AJ$273,3,0)," "))) -> 2027-07-22 | D75: =IF($D$12=0," ",IF(B74=$D$12,Simulador_v2!$K$32,+IF(B75>0,VLOOKUP(B75,Simulador_v2!$A$33:$AJ$273,11,0)," "))) -> 11821.255 | E75: =IF($D$12=0," ",IF(B74=$D$12,Simulador_v2!$L$32,+IF(B75>0,VLOOKUP(B75,Simulador_v2!$A$33:$AJ$273,12,0)," "))) -> 9180.22 | F75: =IF($D$12=0," ",IF(B74=$D$12,Simulador_v2!$M$32,+IF(B75>0,VLOOKUP(B75,Simulador_v2!$A$33:$AJ$273,13,0)," "))) -> 213.883 | G75: =IF($D$12=0," ",IF(B74=$D$12,Simulador_v2!$T$32,+IF(B75>0,VLOOKUP(B75,Simulador_v2!$A$33:$AJ$273,20,0)," "))) -> 1784.72 | H75: =IF($D$12=0," ",IF(B74=$D$12,Simulador_v2!$Z$32,+IF(B75>0,VLOOKUP(B75,Simulador_v2!$A$33:$AJ$273,26,0)," "))) -> 700 | I75: =IF($D$12=0," ",IF(B74=$D$12,Simulador_v2!$W$32,+IF(B75>0,VLOOKUP(B75,Simulador_v2!$A$33:$AJ$273,23,0)," "))) -> 174.79 | J75: =IF($D$12=0," ",IF(B74=$D$12,Simulador_v2!$AJ$32,+IF(B75>0,VLOOKUP(B75,Simulador_v2!$A$33:$AJ$273,36,0)," "))) -> 23874.868
B76: 59 | C76: =IF($D$12=0," ",IF(B75=$D$12,"TOTALES",+IF(B76>0,VLOOKUP(B76,Simulador_v2!$A$33:$AJ$273,3,0)," "))) -> 2027-08-22 | D76: =IF($D$12=0," ",IF(B75=$D$12,Simulador_v2!$K$32,+IF(B76>0,VLOOKUP(B76,Simulador_v2!$A$33:$AJ$273,11,0)," "))) -> 11677.785 | E76: =IF($D$12=0," ",IF(B75=$D$12,Simulador_v2!$L$32,+IF(B76>0,VLOOKUP(B76,Simulador_v2!$A$33:$AJ$273,12,0)," "))) -> 9300.73 | F76: =IF($D$12=0," ",IF(B75=$D$12,Simulador_v2!$M$32,+IF(B76>0,VLOOKUP(B76,Simulador_v2!$A$33:$AJ$273,13,0)," "))) -> 213.883 | G76: =IF($D$12=0," ",IF(B75=$D$12,Simulador_v2!$T$32,+IF(B76>0,VLOOKUP(B76,Simulador_v2!$A$33:$AJ$273,20,0)," "))) -> 1807.68 | H76: =IF($D$12=0," ",IF(B75=$D$12,Simulador_v2!$Z$32,+IF(B76>0,VLOOKUP(B76,Simulador_v2!$A$33:$AJ$273,26,0)," "))) -> 700 | I76: =IF($D$12=0," ",IF(B75=$D$12,Simulador_v2!$W$32,+IF(B76>0,VLOOKUP(B76,Simulador_v2!$A$33:$AJ$273,23,0)," "))) -> 174.79 | J76: =IF($D$12=0," ",IF(B75=$D$12,Simulador_v2!$AJ$32,+IF(B76>0,VLOOKUP(B76,Simulador_v2!$A$33:$AJ$273,36,0)," "))) -> 23874.868
B77: 60 | C77: =IF($D$12=0," ",IF(B76=$D$12,"TOTALES",+IF(B77>0,VLOOKUP(B77,Simulador_v2!$A$33:$AJ$273,3,0)," "))) -> 2027-09-22 | D77: =IF($D$12=0," ",IF(B76=$D$12,Simulador_v2!$K$32,+IF(B77>0,VLOOKUP(B77,Simulador_v2!$A$33:$AJ$273,11,0)," "))) -> 11899.505 | E77: =IF($D$12=0," ",IF(B76=$D$12,Simulador_v2!$L$32,+IF(B77>0,VLOOKUP(B77,Simulador_v2!$A$33:$AJ$273,12,0)," "))) -> 9115.09 | F77: =IF($D$12=0," ",IF(B76=$D$12,Simulador_v2!$M$32,+IF(B77>0,VLOOKUP(B77,Simulador_v2!$A$33:$AJ$273,13,0)," "))) -> 213.883 | G77: =IF($D$12=0," ",IF(B76=$D$12,Simulador_v2!$T$32,+IF(B77>0,VLOOKUP(B77,Simulador_v2!$A$33:$AJ$273,20,0)," "))) -> 1771.6 | H77: =IF($D$12=0," ",IF(B76=$D$12,Simulador_v2!$Z$32,+IF(B77>0,VLOOKUP(B77,Simulador_v2!$A$33:$AJ$273,26,0)," "))) -> 700 | I77: =IF($D$12=0," ",IF(B76=$D$12,Simulador_v2!$W$32,+IF(B77>0,VLOOKUP(B77,Simulador_v2!$A$33:$AJ$273,23,0)," "))) -> 174.79 | J77: =IF($D$12=0," ",IF(B76=$D$12,Simulador_v2!$AJ$32,+IF(B77>0,VLOOKUP(B77,Simulador_v2!$A$33:$AJ$273,36,0)," "))) -> 23874.868
B78: 61 | C78: =IF($D$12=0," ",IF(B77=$D$12,"TOTALES",+IF(B78>0,VLOOKUP(B78,Simulador_v2!$A$33:$AJ$273,3,0)," "))) -> 2027-10-22 | D78: =IF($D$12=0," ",IF(B77=$D$12,Simulador_v2!$K$32,+IF(B78>0,VLOOKUP(B78,Simulador_v2!$A$33:$AJ$273,11,0)," "))) -> 12471.535 | E78: =IF($D$12=0," ",IF(B77=$D$12,Simulador_v2!$L$32,+IF(B78>0,VLOOKUP(B78,Simulador_v2!$A$33:$AJ$273,12,0)," "))) -> 8635.79 | F78: =IF($D$12=0," ",IF(B77=$D$12,Simulador_v2!$M$32,+IF(B78>0,VLOOKUP(B78,Simulador_v2!$A$33:$AJ$273,13,0)," "))) -> 213.883 | G78: =IF($D$12=0," ",IF(B77=$D$12,Simulador_v2!$T$32,+IF(B78>0,VLOOKUP(B78,Simulador_v2!$A$33:$AJ$273,20,0)," "))) -> 1678.87 | H78: =IF($D$12=0," ",IF(B77=$D$12,Simulador_v2!$Z$32,+IF(B78>0,VLOOKUP(B78,Simulador_v2!$A$33:$AJ$273,26,0)," "))) -> 700 | I78: =IF($D$12=0," ",IF(B77=$D$12,Simulador_v2!$W$32,+IF(B78>0,VLOOKUP(B78,Simulador_v2!$A$33:$AJ$273,23,0)," "))) -> 174.79 | J78: =IF($D$12=0," ",IF(B77=$D$12,Simulador_v2!$AJ$32,+IF(B78>0,VLOOKUP(B78,Simulador_v2!$A$33:$AJ$273,36,0)," "))) -> 23874.868
B79: 62 | C79: =IF($D$12=0," ",IF(B78=$D$12,"TOTALES",+IF(B79>0,VLOOKUP(B79,Simulador_v2!$A$33:$AJ$273,3,0)," "))) -> 2027-11-22 | D79: =IF($D$12=0," ",IF(B78=$D$12,Simulador_v2!$K$32,+IF(B79>0,VLOOKUP(B79,Simulador_v2!$A$33:$AJ$273,11,0)," "))) -> 12362.225 | E79: =IF($D$12=0," ",IF(B78=$D$12,Simulador_v2!$L$32,+IF(B79>0,VLOOKUP(B79,Simulador_v2!$A$33:$AJ$273,12,0)," "))) -> 8727.67 | F79: =IF($D$12=0," ",IF(B78=$D$12,Simulador_v2!$M$32,+IF(B79>0,VLOOKUP(B79,Simulador_v2!$A$33:$AJ$273,13,0)," "))) -> 213.883 | G79: =IF($D$12=0," ",IF(B78=$D$12,Simulador_v2!$T$32,+IF(B79>0,VLOOKUP(B79,Simulador_v2!$A$33:$AJ$273,20,0)," "))) -> 1696.3 | H79: =IF($D$12=0," ",IF(B78=$D$12,Simulador_v2!$Z$32,+IF(B79>0,VLOOKUP(B79,Simulador_v2!$A$33:$AJ$273,26,0)," "))) -> 700 | I79: =IF($D$12=0," ",IF(B78=$D$12,Simulador_v2!$W$32,+IF(B79>0,VLOOKUP(B79,Simulador_v2!$A$33:$AJ$273,23,0)," "))) -> 174.79 | J79: =IF($D$12=0," ",IF(B78=$D$12,Simulador_v2!$AJ$32,+IF(B79>0,VLOOKUP(B79,Simulador_v2!$A$33:$AJ$273,36,0)," "))) -> 23874.868
B80: 63 | C80: =IF($D$12=0," ",IF(B79=$D$12,"TOTALES",+IF(B80>0,VLOOKUP(B80,Simulador_v2!$A$33:$AJ$273,3,0)," "))) -> 2027-12-22 | D80: =IF($D$12=0," ",IF(B79=$D$12,Simulador_v2!$K$32,+IF(B80>0,VLOOKUP(B80,Simulador_v2!$A$33:$AJ$273,11,0)," "))) -> 12927.725 | E80: =IF($D$12=0," ",IF(B79=$D$12,Simulador_v2!$L$32,+IF(B80>0,VLOOKUP(B80,Simulador_v2!$A$33:$AJ$273,12,0)," "))) -> 8253.85 | F80: =IF($D$12=0," ",IF(B79=$D$12,Simulador_v2!$M$32,+IF(B80>0,VLOOKUP(B80,Simulador_v2!$A$33:$AJ$273,13,0)," "))) -> 213.883 | G80: =IF($D$12=0," ",IF(B79=$D$12,Simulador_v2!$T$32,+IF(B80>0,VLOOKUP(B80,Simulador_v2!$A$33:$AJ$273,20,0)," "))) -> 1604.62 | H80: =IF($D$12=0," ",IF(B79=$D$12,Simulador_v2!$Z$32,+IF(B80>0,VLOOKUP(B80,Simulador_v2!$A$33:$AJ$273,26,0)," "))) -> 700 | I80: =IF($D$12=0," ",IF(B79=$D$12,Simulador_v2!$W$32,+IF(B80>0,VLOOKUP(B80,Simulador_v2!$A$33:$AJ$273,23,0)," "))) -> 174.79 | J80: =IF($D$12=0," ",IF(B79=$D$12,Simulador_v2!$AJ$32,+IF(B80>0,VLOOKUP(B80,Simulador_v2!$A$33:$AJ$273,36,0)," "))) -> 23874.868
B81: 64 | C81: =IF($D$12=0," ",IF(B80=$D$12,"TOTALES",+IF(B81>0,VLOOKUP(B81,Simulador_v2!$A$33:$AJ$273,3,0)," "))) -> 2028-01-22 | D81: =IF($D$12=0," ",IF(B80=$D$12,Simulador_v2!$K$32,+IF(B81>0,VLOOKUP(B81,Simulador_v2!$A$33:$AJ$273,11,0)," "))) -> 12842.385 | E81: =IF($D$12=0," ",IF(B80=$D$12,Simulador_v2!$L$32,+IF(B81>0,VLOOKUP(B81,Simulador_v2!$A$33:$AJ$273,12,0)," "))) -> 8325.64 | F81: =IF($D$12=0," ",IF(B80=$D$12,Simulador_v2!$M$32,+IF(B81>0,VLOOKUP(B81,Simulador_v2!$A$33:$AJ$273,13,0)," "))) -> 213.883 | G81: =IF($D$12=0," ",IF(B80=$D$12,Simulador_v2!$T$32,+IF(B81>0,VLOOKUP(B81,Simulador_v2!$A$33:$AJ$273,20,0)," "))) -> 1618.17 | H81: =IF($D$12=0," ",IF(B80=$D$12,Simulador_v2!$Z$32,+IF(B81>0,VLOOKUP(B81,Simulador_v2!$A$33:$AJ$273,26,0)," "))) -> 700 | I81: =IF($D$12=0," ",IF(B80=$D$12,Simulador_v2!$W$32,+IF(B81>0,VLOOKUP(B81,Simulador_v2!$A$33:$AJ$273,23,0)," "))) -> 174.79 | J81: =IF($D$12=0," ",IF(B80=$D$12,Simulador_v2!$AJ$32,+IF(B81>0,VLOOKUP(B81,Simulador_v2!$A$33:$AJ$273,36,0)," "))) -> 23874.868
B82: 65 | C82: =IF($D$12=0," ",IF(B81=$D$12,"TOTALES",+IF(B82>0,VLOOKUP(B82,Simulador_v2!$A$33:$AJ$273,3,0)," "))) -> 2028-02-22 | D82: =IF($D$12=0," ",IF(B81=$D$12,Simulador_v2!$K$32,+IF(B82>0,VLOOKUP(B82,Simulador_v2!$A$33:$AJ$273,11,0)," "))) -> 13086.215 | E82: =IF($D$12=0," ",IF(B81=$D$12,Simulador_v2!$L$32,+IF(B82>0,VLOOKUP(B82,Simulador_v2!$A$33:$AJ$273,12,0)," "))) -> 8121.49 | F82: =IF($D$12=0," ",IF(B81=$D$12,Simulador_v2!$M$32,+IF(B82>0,VLOOKUP(B82,Simulador_v2!$A$33:$AJ$273,13,0)," "))) -> 213.883 | G82: =IF($D$12=0," ",IF(B81=$D$12,Simulador_v2!$T$32,+IF(B82>0,VLOOKUP(B82,Simulador_v2!$A$33:$AJ$273,20,0)," "))) -> 1578.49 | H82: =IF($D$12=0," ",IF(B81=$D$12,Simulador_v2!$Z$32,+IF(B82>0,VLOOKUP(B82,Simulador_v2!$A$33:$AJ$273,26,0)," "))) -> 700 | I82: =IF($D$12=0," ",IF(B81=$D$12,Simulador_v2!$W$32,+IF(B82>0,VLOOKUP(B82,Simulador_v2!$A$33:$AJ$273,23,0)," "))) -> 174.79 | J82: =IF($D$12=0," ",IF(B81=$D$12,Simulador_v2!$AJ$32,+IF(B82>0,VLOOKUP(B82,Simulador_v2!$A$33:$AJ$273,36,0)," "))) -> 23874.868
B83: =IF(B82=0," ",IF(B82>=$D$12,"",B82+1)) -> 66 | C83: =IF($D$12=0," ",IF(B82=$D$12,"TOTALES",+IF(B83>0,VLOOKUP(B83,Simulador_v2!$A$33:$AJ$273,3,0)," "))) -> 2028-03-22 | D83: =IF($D$12=0," ",IF(B82=$D$12,Simulador_v2!$K$32,+IF(B83>0,VLOOKUP(B83,Simulador_v2!$A$33:$AJ$273,11,0)," "))) -> 13948.215 | E83: =IF($D$12=0," ",IF(B82=$D$12,Simulador_v2!$L$32,+IF(B83>0,VLOOKUP(B83,Simulador_v2!$A$33:$AJ$273,12,0)," "))) -> 7399.15 | F83: =IF($D$12=0," ",IF(B82=$D$12,Simulador_v2!$M$32,+IF(B83>0,VLOOKUP(B83,Simulador_v2!$A$33:$AJ$273,13,0)," "))) -> 213.883 | G83: =IF($D$12=0," ",IF(B82=$D$12,Simulador_v2!$T$32,+IF(B83>0,VLOOKUP(B83,Simulador_v2!$A$33:$AJ$273,20,0)," "))) -> 1438.83 | H83: =IF($D$12=0," ",IF(B82=$D$12,Simulador_v2!$Z$32,+IF(B83>0,VLOOKUP(B83,Simulador_v2!$A$33:$AJ$273,26,0)," "))) -> 700 | I83: =IF($D$12=0," ",IF(B82=$D$12,Simulador_v2!$W$32,+IF(B83>0,VLOOKUP(B83,Simulador_v2!$A$33:$AJ$273,23,0)," "))) -> 174.79 | J83: =IF($D$12=0," ",IF(B82=$D$12,Simulador_v2!$AJ$32,+IF(B83>0,VLOOKUP(B83,Simulador_v2!$A$33:$AJ$273,36,0)," "))) -> 23874.868
B84: 67 | C84: =IF($D$12=0," ",IF(B83=$D$12,"TOTALES",+IF(B84>0,VLOOKUP(B84,Simulador_v2!$A$33:$AJ$273,3,0)," "))) -> 2028-04-22 | D84: =IF($D$12=0," ",IF(B83=$D$12,Simulador_v2!$K$32,+IF(B84>0,VLOOKUP(B84,Simulador_v2!$A$33:$AJ$273,11,0)," "))) -> 13599.495 | E84: =IF($D$12=0," ",IF(B83=$D$12,Simulador_v2!$L$32,+IF(B84>0,VLOOKUP(B84,Simulador_v2!$A$33:$AJ$273,12,0)," "))) -> 7691.74 | F84: =IF($D$12=0," ",IF(B83=$D$12,Simulador_v2!$M$32,+IF(B84>0,VLOOKUP(B84,Simulador_v2!$A$33:$AJ$273,13,0)," "))) -> 213.883 | G84: =IF($D$12=0," ",IF(B83=$D$12,Simulador_v2!$T$32,+IF(B84>0,VLOOKUP(B84,Simulador_v2!$A$33:$AJ$273,20,0)," "))) -> 1494.96 | H84: =IF($D$12=0," ",IF(B83=$D$12,Simulador_v2!$Z$32,+IF(B84>0,VLOOKUP(B84,Simulador_v2!$A$33:$AJ$273,26,0)," "))) -> 700 | I84: =IF($D$12=0," ",IF(B83=$D$12,Simulador_v2!$W$32,+IF(B84>0,VLOOKUP(B84,Simulador_v2!$A$33:$AJ$273,23,0)," "))) -> 174.79 | J84: =IF($D$12=0," ",IF(B83=$D$12,Simulador_v2!$AJ$32,+IF(B84>0,VLOOKUP(B84,Simulador_v2!$A$33:$AJ$273,36,0)," "))) -> 23874.868
B85: 68 | C85: =IF($D$12=0," ",IF(B84=$D$12,"TOTALES",+IF(B85>0,VLOOKUP(B85,Simulador_v2!$A$33:$AJ$273,3,0)," "))) -> 2028-05-22 | D85: =IF($D$12=0," ",IF(B84=$D$12,Simulador_v2!$K$32,+IF(B85>0,VLOOKUP(B85,Simulador_v2!$A$33:$AJ$273,11,0)," "))) -> 14147.565 | E85: =IF($D$12=0," ",IF(B84=$D$12,Simulador_v2!$L$32,+IF(B85>0,VLOOKUP(B85,Simulador_v2!$A$33:$AJ$273,12,0)," "))) -> 7232.56 | F85: =IF($D$12=0," ",IF(B84=$D$12,Simulador_v2!$M$32,+IF(B85>0,VLOOKUP(B85,Simulador_v2!$A$33:$AJ$273,13,0)," "))) -> 213.883 | G85: =IF($D$12=0," ",IF(B84=$D$12,Simulador_v2!$T$32,+IF(B85>0,VLOOKUP(B85,Simulador_v2!$A$33:$AJ$273,20,0)," "))) -> 1406.07 | H85: =IF($D$12=0," ",IF(B84=$D$12,Simulador_v2!$Z$32,+IF(B85>0,VLOOKUP(B85,Simulador_v2!$A$33:$AJ$273,26,0)," "))) -> 700 | I85: =IF($D$12=0," ",IF(B84=$D$12,Simulador_v2!$W$32,+IF(B85>0,VLOOKUP(B85,Simulador_v2!$A$33:$AJ$273,23,0)," "))) -> 174.79 | J85: =IF($D$12=0," ",IF(B84=$D$12,Simulador_v2!$AJ$32,+IF(B85>0,VLOOKUP(B85,Simulador_v2!$A$33:$AJ$273,36,0)," "))) -> 23874.868
B86: 69 | C86: =IF($D$12=0," ",IF(B85=$D$12,"TOTALES",+IF(B86>0,VLOOKUP(B86,Simulador_v2!$A$33:$AJ$273,3,0)," "))) -> 2028-06-22 | D86: =IF($D$12=0," ",IF(B85=$D$12,Simulador_v2!$K$32,+IF(B86>0,VLOOKUP(B86,Simulador_v2!$A$33:$AJ$273,11,0)," "))) -> 14126.315 | E86: =IF($D$12=0," ",IF(B85=$D$12,Simulador_v2!$L$32,+IF(B86>0,VLOOKUP(B86,Simulador_v2!$A$33:$AJ$273,12,0)," "))) -> 7250.65 | F86: =IF($D$12=0," ",IF(B85=$D$12,Simulador_v2!$M$32,+IF(B86>0,VLOOKUP(B86,Simulador_v2!$A$33:$AJ$273,13,0)," "))) -> 213.883 | G86: =IF($D$12=0," ",IF(B85=$D$12,Simulador_v2!$T$32,+IF(B86>0,VLOOKUP(B86,Simulador_v2!$A$33:$AJ$273,20,0)," "))) -> 1409.23 | H86: =IF($D$12=0," ",IF(B85=$D$12,Simulador_v2!$Z$32,+IF(B86>0,VLOOKUP(B86,Simulador_v2!$A$33:$AJ$273,26,0)," "))) -> 700 | I86: =IF($D$12=0," ",IF(B85=$D$12,Simulador_v2!$W$32,+IF(B86>0,VLOOKUP(B86,Simulador_v2!$A$33:$AJ$273,23,0)," "))) -> 174.79 | J86: =IF($D$12=0," ",IF(B85=$D$12,Simulador_v2!$AJ$32,+IF(B86>0,VLOOKUP(B86,Simulador_v2!$A$33:$AJ$273,36,0)," "))) -> 23874.868
B87: 70 | C87: =IF($D$12=0," ",IF(B86=$D$12,"TOTALES",+IF(B87>0,VLOOKUP(B87,Simulador_v2!$A$33:$AJ$273,3,0)," "))) -> 2028-07-22 | D87: =IF($D$12=0," ",IF(B86=$D$12,Simulador_v2!$K$32,+IF(B87>0,VLOOKUP(B87,Simulador_v2!$A$33:$AJ$273,11,0)," "))) -> 14666.945 | E87: =IF($D$12=0," ",IF(B86=$D$12,Simulador_v2!$L$32,+IF(B87>0,VLOOKUP(B87,Simulador_v2!$A$33:$AJ$273,12,0)," "))) -> 6797.71 | F87: =IF($D$12=0," ",IF(B86=$D$12,Simulador_v2!$M$32,+IF(B87>0,VLOOKUP(B87,Simulador_v2!$A$33:$AJ$273,13,0)," "))) -> 213.883 | G87: =IF($D$12=0," ",IF(B86=$D$12,Simulador_v2!$T$32,+IF(B87>0,VLOOKUP(B87,Simulador_v2!$A$33:$AJ$273,20,0)," "))) -> 1321.54 | H87: =IF($D$12=0," ",IF(B86=$D$12,Simulador_v2!$Z$32,+IF(B87>0,VLOOKUP(B87,Simulador_v2!$A$33:$AJ$273,26,0)," "))) -> 700 | I87: =IF($D$12=0," ",IF(B86=$D$12,Simulador_v2!$W$32,+IF(B87>0,VLOOKUP(B87,Simulador_v2!$A$33:$AJ$273,23,0)," "))) -> 174.79 | J87: =IF($D$12=0," ",IF(B86=$D$12,Simulador_v2!$AJ$32,+IF(B87>0,VLOOKUP(B87,Simulador_v2!$A$33:$AJ$273,36,0)," "))) -> 23874.868
B88: 71 | C88: =IF($D$12=0," ",IF(B87=$D$12,"TOTALES",+IF(B88>0,VLOOKUP(B88,Simulador_v2!$A$33:$AJ$273,3,0)," "))) -> 2028-08-22 | D88: =IF($D$12=0," ",IF(B87=$D$12,Simulador_v2!$K$32,+IF(B88>0,VLOOKUP(B88,Simulador_v2!$A$33:$AJ$273,11,0)," "))) -> 14672.995 | E88: =IF($D$12=0," ",IF(B87=$D$12,Simulador_v2!$L$32,+IF(B88>0,VLOOKUP(B88,Simulador_v2!$A$33:$AJ$273,12,0)," "))) -> 6792.93 | F88: =IF($D$12=0," ",IF(B87=$D$12,Simulador_v2!$M$32,+IF(B88>0,VLOOKUP(B88,Simulador_v2!$A$33:$AJ$273,13,0)," "))) -> 213.883 | G88: =IF($D$12=0," ",IF(B87=$D$12,Simulador_v2!$T$32,+IF(B88>0,VLOOKUP(B88,Simulador_v2!$A$33:$AJ$273,20,0)," "))) -> 1320.27 | H88: =IF($D$12=0," ",IF(B87=$D$12,Simulador_v2!$Z$32,+IF(B88>0,VLOOKUP(B88,Simulador_v2!$A$33:$AJ$273,26,0)," "))) -> 700 | I88: =IF($D$12=0," ",IF(B87=$D$12,Simulador_v2!$W$32,+IF(B88>0,VLOOKUP(B88,Simulador_v2!$A$33:$AJ$273,23,0)," "))) -> 174.79 | J88: =IF($D$12=0," ",IF(B87=$D$12,Simulador_v2!$AJ$32,+IF(B88>0,VLOOKUP(B88,Simulador_v2!$A$33:$AJ$273,36,0)," "))) -> 23874.868
B89: 72 | C89: =IF($D$12=0," ",IF(B88=$D$12,"TOTALES",+IF(B89>0,VLOOKUP(B89,Simulador_v2!$A$33:$AJ$273,3,0)," "))) -> 2028-09-22 | D89: =IF($D$12=0," ",IF(B88=$D$12,Simulador_v2!$K$32,+IF(B89>0,VLOOKUP(B89,Simulador_v2!$A$33:$AJ$273,11,0)," "))) -> 14951.575 | E89: =IF($D$12=0," ",IF(B88=$D$12,Simulador_v2!$L$32,+IF(B89>0,VLOOKUP(B89,Simulador_v2!$A$33:$AJ$273,12,0)," "))) -> 6559.68 | F89: =IF($D$12=0," ",IF(B88=$D$12,Simulador_v2!$M$32,+IF(B89>0,VLOOKUP(B89,Simulador_v2!$A$33:$AJ$273,13,0)," "))) -> 213.883 | G89: =IF($D$12=0," ",IF(B88=$D$12,Simulador_v2!$T$32,+IF(B89>0,VLOOKUP(B89,Simulador_v2!$A$33:$AJ$273,20,0)," "))) -> 1274.94 | H89: =IF($D$12=0," ",IF(B88=$D$12,Simulador_v2!$Z$32,+IF(B89>0,VLOOKUP(B89,Simulador_v2!$A$33:$AJ$273,26,0)," "))) -> 700 | I89: =IF($D$12=0," ",IF(B88=$D$12,Simulador_v2!$W$32,+IF(B89>0,VLOOKUP(B89,Simulador_v2!$A$33:$AJ$273,23,0)," "))) -> 174.79 | J89: =IF($D$12=0," ",IF(B88=$D$12,Simulador_v2!$AJ$32,+IF(B89>0,VLOOKUP(B89,Simulador_v2!$A$33:$AJ$273,36,0)," "))) -> 23874.868
B90: 73 | C90: =IF($D$12=0," ",IF(B89=$D$12,"TOTALES",+IF(B90>0,VLOOKUP(B90,Simulador_v2!$A$33:$AJ$273,3,0)," "))) -> 2028-10-22 | D90: =IF($D$12=0," ",IF(B89=$D$12,Simulador_v2!$K$32,+IF(B90>0,VLOOKUP(B90,Simulador_v2!$A$33:$AJ$273,11,0)," "))) -> 15480.585 | E90: =IF($D$12=0," ",IF(B89=$D$12,Simulador_v2!$L$32,+IF(B90>0,VLOOKUP(B90,Simulador_v2!$A$33:$AJ$273,12,0)," "))) -> 6116.51 | F90: =IF($D$12=0," ",IF(B89=$D$12,Simulador_v2!$M$32,+IF(B90>0,VLOOKUP(B90,Simulador_v2!$A$33:$AJ$273,13,0)," "))) -> 213.883 | G90: =IF($D$12=0," ",IF(B89=$D$12,Simulador_v2!$T$32,+IF(B90>0,VLOOKUP(B90,Simulador_v2!$A$33:$AJ$273,20,0)," "))) -> 1189.1 | H90: =IF($D$12=0," ",IF(B89=$D$12,Simulador_v2!$Z$32,+IF(B90>0,VLOOKUP(B90,Simulador_v2!$A$33:$AJ$273,26,0)," "))) -> 700 | I90: =IF($D$12=0," ",IF(B89=$D$12,Simulador_v2!$W$32,+IF(B90>0,VLOOKUP(B90,Simulador_v2!$A$33:$AJ$273,23,0)," "))) -> 174.79 | J90: =IF($D$12=0," ",IF(B89=$D$12,Simulador_v2!$AJ$32,+IF(B90>0,VLOOKUP(B90,Simulador_v2!$A$33:$AJ$273,36,0)," "))) -> 23874.868
B91: 74 | C91: =IF($D$12=0," ",IF(B90=$D$12,"TOTALES",+IF(B91>0,VLOOKUP(B91,Simulador_v2!$A$33:$AJ$273,3,0)," "))) -> 2028-11-22 | D91: =IF($D$12=0," ",IF(B90=$D$12,Simulador_v2!$K$32,+IF(B91>0,VLOOKUP(B91,Simulador_v2!$A$33:$AJ$273,11,0)," "))) -> 15529.375 | E91: =IF($D$12=0," ",IF(B90=$D$12,Simulador_v2!$L$32,+IF(B91>0,VLOOKUP(B91,Simulador_v2!$A$33:$AJ$273,12,0)," "))) -> 6075.91 | F91: =IF($D$12=0," ",IF(B90=$D$12,Simulador_v2!$M$32,+IF(B91>0,VLOOKUP(B91,Simulador_v2!$A$33:$AJ$273,13,0)," "))) -> 213.883 | G91: =IF($D$12=0," ",IF(B90=$D$12,Simulador_v2!$T$32,+IF(B91>0,VLOOKUP(B91,Simulador_v2!$A$33:$AJ$273,20,0)," "))) -> 1180.91 | H91: =IF($D$12=0," ",IF(B90=$D$12,Simulador_v2!$Z$32,+IF(B91>0,VLOOKUP(B91,Simulador_v2!$A$33:$AJ$273,26,0)," "))) -> 700 | I91: =IF($D$12=0," ",IF(B90=$D$12,Simulador_v2!$W$32,+IF(B91>0,VLOOKUP(B91,Simulador_v2!$A$33:$AJ$273,23,0)," "))) -> 174.79 | J91: =IF($D$12=0," ",IF(B90=$D$12,Simulador_v2!$AJ$32,+IF(B91>0,VLOOKUP(B91,Simulador_v2!$A$33:$AJ$273,36,0)," "))) -> 23874.868
B92: 75 | C92: =IF($D$12=0," ",IF(B91=$D$12,"TOTALES",+IF(B92>0,VLOOKUP(B92,Simulador_v2!$A$33:$AJ$273,3,0)," "))) -> 2028-12-22 | D92: =IF($D$12=0," ",IF(B91=$D$12,Simulador_v2!$K$32,+IF(B92>0,VLOOKUP(B92,Simulador_v2!$A$33:$AJ$273,11,0)," "))) -> 16050.245 | E92: =IF($D$12=0," ",IF(B91=$D$12,Simulador_v2!$L$32,+IF(B92>0,VLOOKUP(B92,Simulador_v2!$A$33:$AJ$273,12,0)," "))) -> 5639.57 | F92: =IF($D$12=0," ",IF(B91=$D$12,Simulador_v2!$M$32,+IF(B92>0,VLOOKUP(B92,Simulador_v2!$A$33:$AJ$273,13,0)," "))) -> 213.883 | G92: =IF($D$12=0," ",IF(B91=$D$12,Simulador_v2!$T$32,+IF(B92>0,VLOOKUP(B92,Simulador_v2!$A$33:$AJ$273,20,0)," "))) -> 1096.38 | H92: =IF($D$12=0," ",IF(B91=$D$12,Simulador_v2!$Z$32,+IF(B92>0,VLOOKUP(B92,Simulador_v2!$A$33:$AJ$273,26,0)," "))) -> 700 | I92: =IF($D$12=0," ",IF(B91=$D$12,Simulador_v2!$W$32,+IF(B92>0,VLOOKUP(B92,Simulador_v2!$A$33:$AJ$273,23,0)," "))) -> 174.79 | J92: =IF($D$12=0," ",IF(B91=$D$12,Simulador_v2!$AJ$32,+IF(B92>0,VLOOKUP(B92,Simulador_v2!$A$33:$AJ$273,36,0)," "))) -> 23874.868
B93: 76 | C93: =IF($D$12=0," ",IF(B92=$D$12,"TOTALES",+IF(B93>0,VLOOKUP(B93,Simulador_v2!$A$33:$AJ$273,3,0)," "))) -> 2029-01-22 | D93: =IF($D$12=0," ",IF(B92=$D$12,Simulador_v2!$K$32,+IF(B93>0,VLOOKUP(B93,Simulador_v2!$A$33:$AJ$273,11,0)," "))) -> 16128.955 | E93: =IF($D$12=0," ",IF(B92=$D$12,Simulador_v2!$L$32,+IF(B93>0,VLOOKUP(B93,Simulador_v2!$A$33:$AJ$273,12,0)," "))) -> 5573.9 | F93: =IF($D$12=0," ",IF(B92=$D$12,Simulador_v2!$M$32,+IF(B93>0,VLOOKUP(B93,Simulador_v2!$A$33:$AJ$273,13,0)," "))) -> 213.883 | G93: =IF($D$12=0," ",IF(B92=$D$12,Simulador_v2!$T$32,+IF(B93>0,VLOOKUP(B93,Simulador_v2!$A$33:$AJ$273,20,0)," "))) -> 1083.34 | H93: =IF($D$12=0," ",IF(B92=$D$12,Simulador_v2!$Z$32,+IF(B93>0,VLOOKUP(B93,Simulador_v2!$A$33:$AJ$273,26,0)," "))) -> 700 | I93: =IF($D$12=0," ",IF(B92=$D$12,Simulador_v2!$W$32,+IF(B93>0,VLOOKUP(B93,Simulador_v2!$A$33:$AJ$273,23,0)," "))) -> 174.79 | J93: =IF($D$12=0," ",IF(B92=$D$12,Simulador_v2!$AJ$32,+IF(B93>0,VLOOKUP(B93,Simulador_v2!$A$33:$AJ$273,36,0)," "))) -> 23874.868
B94: 77 | C94: =IF($D$12=0," ",IF(B93=$D$12,"TOTALES",+IF(B94>0,VLOOKUP(B94,Simulador_v2!$A$33:$AJ$273,3,0)," "))) -> 2029-02-22 | D94: =IF($D$12=0," ",IF(B93=$D$12,Simulador_v2!$K$32,+IF(B94>0,VLOOKUP(B94,Simulador_v2!$A$33:$AJ$273,11,0)," "))) -> 16435.185 | E94: =IF($D$12=0," ",IF(B93=$D$12,Simulador_v2!$L$32,+IF(B94>0,VLOOKUP(B94,Simulador_v2!$A$33:$AJ$273,12,0)," "))) -> 5317.5 | F94: =IF($D$12=0," ",IF(B93=$D$12,Simulador_v2!$M$32,+IF(B94>0,VLOOKUP(B94,Simulador_v2!$A$33:$AJ$273,13,0)," "))) -> 213.883 | G94: =IF($D$12=0," ",IF(B93=$D$12,Simulador_v2!$T$32,+IF(B94>0,VLOOKUP(B94,Simulador_v2!$A$33:$AJ$273,20,0)," "))) -> 1033.51 | H94: =IF($D$12=0," ",IF(B93=$D$12,Simulador_v2!$Z$32,+IF(B94>0,VLOOKUP(B94,Simulador_v2!$A$33:$AJ$273,26,0)," "))) -> 700 | I94: =IF($D$12=0," ",IF(B93=$D$12,Simulador_v2!$W$32,+IF(B94>0,VLOOKUP(B94,Simulador_v2!$A$33:$AJ$273,23,0)," "))) -> 174.79 | J94: =IF($D$12=0," ",IF(B93=$D$12,Simulador_v2!$AJ$32,+IF(B94>0,VLOOKUP(B94,Simulador_v2!$A$33:$AJ$273,36,0)," "))) -> 23874.868
B95: 78 | C95: =IF($D$12=0," ",IF(B94=$D$12,"TOTALES",+IF(B95>0,VLOOKUP(B95,Simulador_v2!$A$33:$AJ$273,3,0)," "))) -> 2029-03-22 | D95: =IF($D$12=0," ",IF(B94=$D$12,Simulador_v2!$K$32,+IF(B95>0,VLOOKUP(B95,Simulador_v2!$A$33:$AJ$273,11,0)," "))) -> 17335.145 | E95: =IF($D$12=0," ",IF(B94=$D$12,Simulador_v2!$L$32,+IF(B95>0,VLOOKUP(B95,Simulador_v2!$A$33:$AJ$273,12,0)," "))) -> 4563.43 | F95: =IF($D$12=0," ",IF(B94=$D$12,Simulador_v2!$M$32,+IF(B95>0,VLOOKUP(B95,Simulador_v2!$A$33:$AJ$273,13,0)," "))) -> 213.883 | G95: =IF($D$12=0," ",IF(B94=$D$12,Simulador_v2!$T$32,+IF(B95>0,VLOOKUP(B95,Simulador_v2!$A$33:$AJ$273,20,0)," "))) -> 887.62 | H95: =IF($D$12=0," ",IF(B94=$D$12,Simulador_v2!$Z$32,+IF(B95>0,VLOOKUP(B95,Simulador_v2!$A$33:$AJ$273,26,0)," "))) -> 700 | I95: =IF($D$12=0," ",IF(B94=$D$12,Simulador_v2!$W$32,+IF(B95>0,VLOOKUP(B95,Simulador_v2!$A$33:$AJ$273,23,0)," "))) -> 174.79 | J95: =IF($D$12=0," ",IF(B94=$D$12,Simulador_v2!$AJ$32,+IF(B95>0,VLOOKUP(B95,Simulador_v2!$A$33:$AJ$273,36,0)," "))) -> 23874.868
B96: 79 | C96: =IF($D$12=0," ",IF(B95=$D$12,"TOTALES",+IF(B96>0,VLOOKUP(B96,Simulador_v2!$A$33:$AJ$273,3,0)," "))) -> 2029-04-22 | D96: =IF($D$12=0," ",IF(B95=$D$12,Simulador_v2!$K$32,+IF(B96>0,VLOOKUP(B96,Simulador_v2!$A$33:$AJ$273,11,0)," "))) -> 17076.355 | E96: =IF($D$12=0," ",IF(B95=$D$12,Simulador_v2!$L$32,+IF(B96>0,VLOOKUP(B96,Simulador_v2!$A$33:$AJ$273,12,0)," "))) -> 4780.67 | F96: =IF($D$12=0," ",IF(B95=$D$12,Simulador_v2!$M$32,+IF(B96>0,VLOOKUP(B96,Simulador_v2!$A$33:$AJ$273,13,0)," "))) -> 213.883 | G96: =IF($D$12=0," ",IF(B95=$D$12,Simulador_v2!$T$32,+IF(B96>0,VLOOKUP(B96,Simulador_v2!$A$33:$AJ$273,20,0)," "))) -> 929.17 | H96: =IF($D$12=0," ",IF(B95=$D$12,Simulador_v2!$Z$32,+IF(B96>0,VLOOKUP(B96,Simulador_v2!$A$33:$AJ$273,26,0)," "))) -> 700 | I96: =IF($D$12=0," ",IF(B95=$D$12,Simulador_v2!$W$32,+IF(B96>0,VLOOKUP(B96,Simulador_v2!$A$33:$AJ$273,23,0)," "))) -> 174.79 | J96: =IF($D$12=0," ",IF(B95=$D$12,Simulador_v2!$AJ$32,+IF(B96>0,VLOOKUP(B96,Simulador_v2!$A$33:$AJ$273,36,0)," "))) -> 23874.868
B97: 80 | C97: =IF($D$12=0," ",IF(B96=$D$12,"TOTALES",+IF(B97>0,VLOOKUP(B97,Simulador_v2!$A$33:$AJ$273,3,0)," "))) -> 2029-05-22 | D97: =IF($D$12=0," ",IF(B96=$D$12,Simulador_v2!$K$32,+IF(B97>0,VLOOKUP(B97,Simulador_v2!$A$33:$AJ$273,11,0)," "))) -> 17575.415 | E97: =IF($D$12=0," ",IF(B96=$D$12,Simulador_v2!$L$32,+IF(B97>0,VLOOKUP(B97,Simulador_v2!$A$33:$AJ$273,12,0)," "))) -> 4362.64 | F97: =IF($D$12=0," ",IF(B96=$D$12,Simulador_v2!$M$32,+IF(B97>0,VLOOKUP(B97,Simulador_v2!$A$33:$AJ$273,13,0)," "))) -> 213.883 | G97: =IF($D$12=0," ",IF(B96=$D$12,Simulador_v2!$T$32,+IF(B97>0,VLOOKUP(B97,Simulador_v2!$A$33:$AJ$273,20,0)," "))) -> 848.14 | H97: =IF($D$12=0," ",IF(B96=$D$12,Simulador_v2!$Z$32,+IF(B97>0,VLOOKUP(B97,Simulador_v2!$A$33:$AJ$273,26,0)," "))) -> 700 | I97: =IF($D$12=0," ",IF(B96=$D$12,Simulador_v2!$W$32,+IF(B97>0,VLOOKUP(B97,Simulador_v2!$A$33:$AJ$273,23,0)," "))) -> 174.79 | J97: =IF($D$12=0," ",IF(B96=$D$12,Simulador_v2!$AJ$32,+IF(B97>0,VLOOKUP(B97,Simulador_v2!$A$33:$AJ$273,36,0)," "))) -> 23874.868
B98: 81 | C98: =IF($D$12=0," ",IF(B97=$D$12,"TOTALES",+IF(B98>0,VLOOKUP(B98,Simulador_v2!$A$33:$AJ$273,3,0)," "))) -> 2029-06-22 | D98: =IF($D$12=0," ",IF(B97=$D$12,Simulador_v2!$K$32,+IF(B98>0,VLOOKUP(B98,Simulador_v2!$A$33:$AJ$273,11,0)," "))) -> 17734.265 | E98: =IF($D$12=0," ",IF(B97=$D$12,Simulador_v2!$L$32,+IF(B98>0,VLOOKUP(B98,Simulador_v2!$A$33:$AJ$273,12,0)," "))) -> 4229.82 | F98: =IF($D$12=0," ",IF(B97=$D$12,Simulador_v2!$M$32,+IF(B98>0,VLOOKUP(B98,Simulador_v2!$A$33:$AJ$273,13,0)," "))) -> 213.883 | G98: =IF($D$12=0," ",IF(B97=$D$12,Simulador_v2!$T$32,+IF(B98>0,VLOOKUP(B98,Simulador_v2!$A$33:$AJ$273,20,0)," "))) -> 822.11 | H98: =IF($D$12=0," ",IF(B97=$D$12,Simulador_v2!$Z$32,+IF(B98>0,VLOOKUP(B98,Simulador_v2!$A$33:$AJ$273,26,0)," "))) -> 700 | I98: =IF($D$12=0," ",IF(B97=$D$12,Simulador_v2!$W$32,+IF(B98>0,VLOOKUP(B98,Simulador_v2!$A$33:$AJ$273,23,0)," "))) -> 174.79 | J98: =IF($D$12=0," ",IF(B97=$D$12,Simulador_v2!$AJ$32,+IF(B98>0,VLOOKUP(B98,Simulador_v2!$A$33:$AJ$273,36,0)," "))) -> 23874.868
B99: 82 | C99: =IF($D$12=0," ",IF(B98=$D$12,"TOTALES",+IF(B99>0,VLOOKUP(B99,Simulador_v2!$A$33:$AJ$273,3,0)," "))) -> 2029-07-22 | D99: =IF($D$12=0," ",IF(B98=$D$12,Simulador_v2!$K$32,+IF(B99>0,VLOOKUP(B99,Simulador_v2!$A$33:$AJ$273,11,0)," "))) -> 18224.055 | E99: =IF($D$12=0," ",IF(B98=$D$12,Simulador_v2!$L$32,+IF(B99>0,VLOOKUP(B99,Simulador_v2!$A$33:$AJ$273,12,0)," "))) -> 3819.58 | F99: =IF($D$12=0," ",IF(B98=$D$12,Simulador_v2!$M$32,+IF(B99>0,VLOOKUP(B99,Simulador_v2!$A$33:$AJ$273,13,0)," "))) -> 213.883 | G99: =IF($D$12=0," ",IF(B98=$D$12,Simulador_v2!$T$32,+IF(B99>0,VLOOKUP(B99,Simulador_v2!$A$33:$AJ$273,20,0)," "))) -> 742.56 | H99: =IF($D$12=0," ",IF(B98=$D$12,Simulador_v2!$Z$32,+IF(B99>0,VLOOKUP(B99,Simulador_v2!$A$33:$AJ$273,26,0)," "))) -> 700 | I99: =IF($D$12=0," ",IF(B98=$D$12,Simulador_v2!$W$32,+IF(B99>0,VLOOKUP(B99,Simulador_v2!$A$33:$AJ$273,23,0)," "))) -> 174.79 | J99: =IF($D$12=0," ",IF(B98=$D$12,Simulador_v2!$AJ$32,+IF(B99>0,VLOOKUP(B99,Simulador_v2!$A$33:$AJ$273,36,0)," "))) -> 23874.868
B100: 83 | C100: =IF($D$12=0," ",IF(B99=$D$12,"TOTALES",+IF(B100>0,VLOOKUP(B100,Simulador_v2!$A$33:$AJ$273,3,0)," "))) -> 2029-08-22 | D100: =IF($D$12=0," ",IF(B99=$D$12,Simulador_v2!$K$32,+IF(B100>0,VLOOKUP(B100,Simulador_v2!$A$33:$AJ$273,11,0)," "))) -> 18416.985 | E100: =IF($D$12=0," ",IF(B99=$D$12,Simulador_v2!$L$32,+IF(B100>0,VLOOKUP(B100,Simulador_v2!$A$33:$AJ$273,12,0)," "))) -> 3658.2 | F100: =IF($D$12=0," ",IF(B99=$D$12,Simulador_v2!$M$32,+IF(B100>0,VLOOKUP(B100,Simulador_v2!$A$33:$AJ$273,13,0)," "))) -> 213.883 | G100: =IF($D$12=0," ",IF(B99=$D$12,Simulador_v2!$T$32,+IF(B100>0,VLOOKUP(B100,Simulador_v2!$A$33:$AJ$273,20,0)," "))) -> 711.01 | H100: =IF($D$12=0," ",IF(B99=$D$12,Simulador_v2!$Z$32,+IF(B100>0,VLOOKUP(B100,Simulador_v2!$A$33:$AJ$273,26,0)," "))) -> 700 | I100: =IF($D$12=0," ",IF(B99=$D$12,Simulador_v2!$W$32,+IF(B100>0,VLOOKUP(B100,Simulador_v2!$A$33:$AJ$273,23,0)," "))) -> 174.79 | J100: =IF($D$12=0," ",IF(B99=$D$12,Simulador_v2!$AJ$32,+IF(B100>0,VLOOKUP(B100,Simulador_v2!$A$33:$AJ$273,36,0)," "))) -> 23874.868
B101: 84 | C101: =IF($D$12=0," ",IF(B100=$D$12,"TOTALES",+IF(B101>0,VLOOKUP(B101,Simulador_v2!$A$33:$AJ$273,3,0)," "))) -> 2029-09-22 | D101: =IF($D$12=0," ",IF(B100=$D$12,Simulador_v2!$K$32,+IF(B101>0,VLOOKUP(B101,Simulador_v2!$A$33:$AJ$273,11,0)," "))) -> 18766.655 | E101: =IF($D$12=0," ",IF(B100=$D$12,Simulador_v2!$L$32,+IF(B101>0,VLOOKUP(B101,Simulador_v2!$A$33:$AJ$273,12,0)," "))) -> 3365.44 | F101: =IF($D$12=0," ",IF(B100=$D$12,Simulador_v2!$M$32,+IF(B101>0,VLOOKUP(B101,Simulador_v2!$A$33:$AJ$273,13,0)," "))) -> 213.883 | G101: =IF($D$12=0," ",IF(B100=$D$12,Simulador_v2!$T$32,+IF(B101>0,VLOOKUP(B101,Simulador_v2!$A$33:$AJ$273,20,0)," "))) -> 654.1 | H101: =IF($D$12=0," ",IF(B100=$D$12,Simulador_v2!$Z$32,+IF(B101>0,VLOOKUP(B101,Simulador_v2!$A$33:$AJ$273,26,0)," "))) -> 700 | I101: =IF($D$12=0," ",IF(B100=$D$12,Simulador_v2!$W$32,+IF(B101>0,VLOOKUP(B101,Simulador_v2!$A$33:$AJ$273,23,0)," "))) -> 174.79 | J101: =IF($D$12=0," ",IF(B100=$D$12,Simulador_v2!$AJ$32,+IF(B101>0,VLOOKUP(B101,Simulador_v2!$A$33:$AJ$273,36,0)," "))) -> 23874.868
C102: =IF($D$12=0," ",IF(B101=$D$12,"TOTALES",+IF(B102>0,VLOOKUP(B102,Simulador_v2!$A$33:$AJ$273,3,0)," "))) -> TOTALES | D102: =IF($D$12=0," ",IF(B101=$D$12,Simulador_v2!$K$32,+IF(B102>0,VLOOKUP(B102,Simulador_v2!$A$33:$AJ$273,11,0)," "))) -> 807060.12 | E102: =IF($D$12=0," ",IF(B101=$D$12,Simulador_v2!$L$32,+IF(B102>0,VLOOKUP(B102,Simulador_v2!$A$33:$AJ$273,12,0)," "))) -> 923044.16 | F102: =IF($D$12=0," ",IF(B101=$D$12,Simulador_v2!$M$32,+IF(B102>0,VLOOKUP(B102,Simulador_v2!$A$33:$AJ$273,13,0)," "))) -> 17966.172 | G102: =IF($D$12=0," ",IF(B101=$D$12,Simulador_v2!$T$32,+IF(B102>0,VLOOKUP(B102,Simulador_v2!$A$33:$AJ$273,20,0)," "))) -> 182915.53 | H102: =IF($D$12=0," ",IF(B101=$D$12,Simulador_v2!$Z$32,+IF(B102>0,VLOOKUP(B102,Simulador_v2!$A$33:$AJ$273,26,0)," "))) -> 59616.66 | I102: =IF($D$12=0," ",IF(B101=$D$12,Simulador_v2!$W$32,+IF(B102>0,VLOOKUP(B102,Simulador_v2!$A$33:$AJ$273,23,0)," "))) -> 14886.27 | J102: =IF($D$12=0," ",IF(B101=$D$12,Simulador_v2!$AJ$32,+IF(B102>0,VLOOKUP(B102,Simulador_v2!$A$33:$AJ$273,36,0)," "))) -> 2005488.912
C103: =IF($D$12=0," ",IF(B102=$D$12,"TOTALES",+IF(B103>0,VLOOKUP(B103,Simulador_v2!$A$33:$AJ$273,3,0)," "))) ->  | D103: =IF($D$12=0," ",IF(B102=$D$12,Simulador_v2!$K$32,+IF(B103>0,VLOOKUP(B103,Simulador_v2!$A$33:$AJ$273,11,0)," "))) ->  | E103: =IF($D$12=0," ",IF(B102=$D$12,Simulador_v2!$L$32,+IF(B103>0,VLOOKUP(B103,Simulador_v2!$A$33:$AJ$273,12,0)," "))) ->  | F103: =IF($D$12=0," ",IF(B102=$D$12,Simulador_v2!$M$32,+IF(B103>0,VLOOKUP(B103,Simulador_v2!$A$33:$AJ$273,13,0)," "))) ->  | G103: =IF($D$12=0," ",IF(B102=$D$12,Simulador_v2!$T$32,+IF(B103>0,VLOOKUP(B103,Simulador_v2!$A$33:$AJ$273,20,0)," "))) ->  | H103: =IF($D$12=0," ",IF(B102=$D$12,Simulador_v2!$Z$32,+IF(B103>0,VLOOKUP(B103,Simulador_v2!$A$33:$AJ$273,26,0)," "))) ->  | I103: =IF($D$12=0," ",IF(B102=$D$12,Simulador_v2!$W$32,+IF(B103>0,VLOOKUP(B103,Simulador_v2!$A$33:$AJ$273,23,0)," "))) ->  | J103: =IF($D$12=0," ",IF(B102=$D$12,Simulador_v2!$AJ$32,+IF(B103>0,VLOOKUP(B103,Simulador_v2!$A$33:$AJ$273,36,0)," "))) -> 
C104: =IF($D$12=0," ",IF(B103=$D$12,"TOTALES",+IF(B104>0,VLOOKUP(B104,Simulador_v2!$A$33:$AJ$273,3,0)," "))) ->  | D104: =IF($D$12=0," ",IF(B103=$D$12,Simulador_v2!$K$32,+IF(B104>0,VLOOKUP(B104,Simulador_v2!$A$33:$AJ$273,11,0)," "))) ->  | E104: =IF($D$12=0," ",IF(B103=$D$12,Simulador_v2!$L$32,+IF(B104>0,VLOOKUP(B104,Simulador_v2!$A$33:$AJ$273,12,0)," "))) ->  | F104: =IF($D$12=0," ",IF(B103=$D$12,Simulador_v2!$M$32,+IF(B104>0,VLOOKUP(B104,Simulador_v2!$A$33:$AJ$273,13,0)," "))) ->  | G104: =IF($D$12=0," ",IF(B103=$D$12,Simulador_v2!$T$32,+IF(B104>0,VLOOKUP(B104,Simulador_v2!$A$33:$AJ$273,20,0)," "))) ->  | H104: =IF($D$12=0," ",IF(B103=$D$12,Simulador_v2!$Z$32,+IF(B104>0,VLOOKUP(B104,Simulador_v2!$A$33:$AJ$273,26,0)," "))) ->  | I104: =IF($D$12=0," ",IF(B103=$D$12,Simulador_v2!$W$32,+IF(B104>0,VLOOKUP(B104,Simulador_v2!$A$33:$AJ$273,23,0)," "))) ->  | J104: =IF($D$12=0," ",IF(B103=$D$12,Simulador_v2!$AJ$32,+IF(B104>0,VLOOKUP(B104,Simulador_v2!$A$33:$AJ$273,36,0)," "))) -> 
C105: =IF($D$12=0," ",IF(B104=$D$12,"TOTALES",+IF(B105>0,VLOOKUP(B105,Simulador_v2!$A$33:$AJ$273,3,0)," "))) ->  | D105: =IF($D$12=0," ",IF(B104=$D$12,Simulador_v2!$K$32,+IF(B105>0,VLOOKUP(B105,Simulador_v2!$A$33:$AJ$273,11,0)," "))) ->  | E105: =IF($D$12=0," ",IF(B104=$D$12,Simulador_v2!$L$32,+IF(B105>0,VLOOKUP(B105,Simulador_v2!$A$33:$AJ$273,12,0)," "))) ->  | F105: =IF($D$12=0," ",IF(B104=$D$12,Simulador_v2!$M$32,+IF(B105>0,VLOOKUP(B105,Simulador_v2!$A$33:$AJ$273,13,0)," "))) ->  | G105: =IF($D$12=0," ",IF(B104=$D$12,Simulador_v2!$T$32,+IF(B105>0,VLOOKUP(B105,Simulador_v2!$A$33:$AJ$273,20,0)," "))) ->  | H105: =IF($D$12=0," ",IF(B104=$D$12,Simulador_v2!$Z$32,+IF(B105>0,VLOOKUP(B105,Simulador_v2!$A$33:$AJ$273,26,0)," "))) ->  | I105: =IF($D$12=0," ",IF(B104=$D$12,Simulador_v2!$W$32,+IF(B105>0,VLOOKUP(B105,Simulador_v2!$A$33:$AJ$273,23,0)," "))) ->  | J105: =IF($D$12=0," ",IF(B104=$D$12,Simulador_v2!$AJ$32,+IF(B105>0,VLOOKUP(B105,Simulador_v2!$A$33:$AJ$273,36,0)," "))) -> 
C106: =IF($D$12=0," ",IF(B105=$D$12,"TOTALES",+IF(B106>0,VLOOKUP(B106,Simulador_v2!$A$33:$AJ$273,3,0)," "))) ->  | D106: =IF($D$12=0," ",IF(B105=$D$12,Simulador_v2!$K$32,+IF(B106>0,VLOOKUP(B106,Simulador_v2!$A$33:$AJ$273,11,0)," "))) ->  | E106: =IF($D$12=0," ",IF(B105=$D$12,Simulador_v2!$L$32,+IF(B106>0,VLOOKUP(B106,Simulador_v2!$A$33:$AJ$273,12,0)," "))) ->  | F106: =IF($D$12=0," ",IF(B105=$D$12,Simulador_v2!$M$32,+IF(B106>0,VLOOKUP(B106,Simulador_v2!$A$33:$AJ$273,13,0)," "))) ->  | G106: =IF($D$12=0," ",IF(B105=$D$12,Simulador_v2!$T$32,+IF(B106>0,VLOOKUP(B106,Simulador_v2!$A$33:$AJ$273,20,0)," "))) ->  | H106: =IF($D$12=0," ",IF(B105=$D$12,Simulador_v2!$Z$32,+IF(B106>0,VLOOKUP(B106,Simulador_v2!$A$33:$AJ$273,26,0)," "))) ->  | I106: =IF($D$12=0," ",IF(B105=$D$12,Simulador_v2!$W$32,+IF(B106>0,VLOOKUP(B106,Simulador_v2!$A$33:$AJ$273,23,0)," "))) ->  | J106: =IF($D$12=0," ",IF(B105=$D$12,Simulador_v2!$AJ$32,+IF(B106>0,VLOOKUP(B106,Simulador_v2!$A$33:$AJ$273,36,0)," "))) -> 
C107: =IF($D$12=0," ",IF(B106=$D$12,"TOTALES",+IF(B107>0,VLOOKUP(B107,Simulador_v2!$A$33:$AJ$273,3,0)," "))) ->  | D107: =IF($D$12=0," ",IF(B106=$D$12,Simulador_v2!$K$32,+IF(B107>0,VLOOKUP(B107,Simulador_v2!$A$33:$AJ$273,11,0)," "))) ->  | E107: =IF($D$12=0," ",IF(B106=$D$12,Simulador_v2!$L$32,+IF(B107>0,VLOOKUP(B107,Simulador_v2!$A$33:$AJ$273,12,0)," "))) ->  | F107: =IF($D$12=0," ",IF(B106=$D$12,Simulador_v2!$M$32,+IF(B107>0,VLOOKUP(B107,Simulador_v2!$A$33:$AJ$273,13,0)," "))) ->  | G107: =IF($D$12=0," ",IF(B106=$D$12,Simulador_v2!$T$32,+IF(B107>0,VLOOKUP(B107,Simulador_v2!$A$33:$AJ$273,20,0)," "))) ->  | H107: =IF($D$12=0," ",IF(B106=$D$12,Simulador_v2!$Z$32,+IF(B107>0,VLOOKUP(B107,Simulador_v2!$A$33:$AJ$273,26,0)," "))) ->  | I107: =IF($D$12=0," ",IF(B106=$D$12,Simulador_v2!$W$32,+IF(B107>0,VLOOKUP(B107,Simulador_v2!$A$33:$AJ$273,23,0)," "))) ->  | J107: =IF($D$12=0," ",IF(B106=$D$12,Simulador_v2!$AJ$32,+IF(B107>0,VLOOKUP(B107,Simulador_v2!$A$33:$AJ$273,36,0)," "))) -> 
C108: =IF($D$12=0," ",IF(B107=$D$12,"TOTALES",+IF(B108>0,VLOOKUP(B108,Simulador_v2!$A$33:$AJ$273,3,0)," "))) ->  | D108: =IF($D$12=0," ",IF(B107=$D$12,Simulador_v2!$K$32,+IF(B108>0,VLOOKUP(B108,Simulador_v2!$A$33:$AJ$273,11,0)," "))) ->  | E108: =IF($D$12=0," ",IF(B107=$D$12,Simulador_v2!$L$32,+IF(B108>0,VLOOKUP(B108,Simulador_v2!$A$33:$AJ$273,12,0)," "))) ->  | F108: =IF($D$12=0," ",IF(B107=$D$12,Simulador_v2!$M$32,+IF(B108>0,VLOOKUP(B108,Simulador_v2!$A$33:$AJ$273,13,0)," "))) ->  | G108: =IF($D$12=0," ",IF(B107=$D$12,Simulador_v2!$T$32,+IF(B108>0,VLOOKUP(B108,Simulador_v2!$A$33:$AJ$273,20,0)," "))) ->  | H108: =IF($D$12=0," ",IF(B107=$D$12,Simulador_v2!$Z$32,+IF(B108>0,VLOOKUP(B108,Simulador_v2!$A$33:$AJ$273,26,0)," "))) ->  | I108: =IF($D$12=0," ",IF(B107=$D$12,Simulador_v2!$W$32,+IF(B108>0,VLOOKUP(B108,Simulador_v2!$A$33:$AJ$273,23,0)," "))) ->  | J108: =IF($D$12=0," ",IF(B107=$D$12,Simulador_v2!$AJ$32,+IF(B108>0,VLOOKUP(B108,Simulador_v2!$A$33:$AJ$273,36,0)," "))) -> 
C109: =IF($D$12=0," ",IF(B108=$D$12,"TOTALES",+IF(B109>0,VLOOKUP(B109,Simulador_v2!$A$33:$AJ$273,3,0)," "))) ->  | D109: =IF($D$12=0," ",IF(B108=$D$12,Simulador_v2!$K$32,+IF(B109>0,VLOOKUP(B109,Simulador_v2!$A$33:$AJ$273,11,0)," "))) ->  | E109: =IF($D$12=0," ",IF(B108=$D$12,Simulador_v2!$L$32,+IF(B109>0,VLOOKUP(B109,Simulador_v2!$A$33:$AJ$273,12,0)," "))) ->  | F109: =IF($D$12=0," ",IF(B108=$D$12,Simulador_v2!$M$32,+IF(B109>0,VLOOKUP(B109,Simulador_v2!$A$33:$AJ$273,13,0)," "))) ->  | G109: =IF($D$12=0," ",IF(B108=$D$12,Simulador_v2!$T$32,+IF(B109>0,VLOOKUP(B109,Simulador_v2!$A$33:$AJ$273,20,0)," "))) ->  | H109: =IF($D$12=0," ",IF(B108=$D$12,Simulador_v2!$Z$32,+IF(B109>0,VLOOKUP(B109,Simulador_v2!$A$33:$AJ$273,26,0)," "))) ->  | I109: =IF($D$12=0," ",IF(B108=$D$12,Simulador_v2!$W$32,+IF(B109>0,VLOOKUP(B109,Simulador_v2!$A$33:$AJ$273,23,0)," "))) ->  | J109: =IF($D$12=0," ",IF(B108=$D$12,Simulador_v2!$AJ$32,+IF(B109>0,VLOOKUP(B109,Simulador_v2!$A$33:$AJ$273,36,0)," "))) -> 
C110: =IF($D$12=0," ",IF(B109=$D$12,"TOTALES",+IF(B110>0,VLOOKUP(B110,Simulador_v2!$A$33:$AJ$273,3,0)," "))) ->  | D110: =IF($D$12=0," ",IF(B109=$D$12,Simulador_v2!$K$32,+IF(B110>0,VLOOKUP(B110,Simulador_v2!$A$33:$AJ$273,11,0)," "))) ->  | E110: =IF($D$12=0," ",IF(B109=$D$12,Simulador_v2!$L$32,+IF(B110>0,VLOOKUP(B110,Simulador_v2!$A$33:$AJ$273,12,0)," "))) ->  | F110: =IF($D$12=0," ",IF(B109=$D$12,Simulador_v2!$M$32,+IF(B110>0,VLOOKUP(B110,Simulador_v2!$A$33:$AJ$273,13,0)," "))) ->  | G110: =IF($D$12=0," ",IF(B109=$D$12,Simulador_v2!$T$32,+IF(B110>0,VLOOKUP(B110,Simulador_v2!$A$33:$AJ$273,20,0)," "))) ->  | H110: =IF($D$12=0," ",IF(B109=$D$12,Simulador_v2!$Z$32,+IF(B110>0,VLOOKUP(B110,Simulador_v2!$A$33:$AJ$273,26,0)," "))) ->  | I110: =IF($D$12=0," ",IF(B109=$D$12,Simulador_v2!$W$32,+IF(B110>0,VLOOKUP(B110,Simulador_v2!$A$33:$AJ$273,23,0)," "))) ->  | J110: =IF($D$12=0," ",IF(B109=$D$12,Simulador_v2!$AJ$32,+IF(B110>0,VLOOKUP(B110,Simulador_v2!$A$33:$AJ$273,36,0)," "))) -> 
C111: =IF($D$12=0," ",IF(B110=$D$12,"TOTALES",+IF(B111>0,VLOOKUP(B111,Simulador_v2!$A$33:$AJ$273,3,0)," "))) ->  | D111: =IF($D$12=0," ",IF(B110=$D$12,Simulador_v2!$K$32,+IF(B111>0,VLOOKUP(B111,Simulador_v2!$A$33:$AJ$273,11,0)," "))) ->  | E111: =IF($D$12=0," ",IF(B110=$D$12,Simulador_v2!$L$32,+IF(B111>0,VLOOKUP(B111,Simulador_v2!$A$33:$AJ$273,12,0)," "))) ->  | F111: =IF($D$12=0," ",IF(B110=$D$12,Simulador_v2!$M$32,+IF(B111>0,VLOOKUP(B111,Simulador_v2!$A$33:$AJ$273,13,0)," "))) ->  | G111: =IF($D$12=0," ",IF(B110=$D$12,Simulador_v2!$T$32,+IF(B111>0,VLOOKUP(B111,Simulador_v2!$A$33:$AJ$273,20,0)," "))) ->  | H111: =IF($D$12=0," ",IF(B110=$D$12,Simulador_v2!$Z$32,+IF(B111>0,VLOOKUP(B111,Simulador_v2!$A$33:$AJ$273,26,0)," "))) ->  | I111: =IF($D$12=0," ",IF(B110=$D$12,Simulador_v2!$W$32,+IF(B111>0,VLOOKUP(B111,Simulador_v2!$A$33:$AJ$273,23,0)," "))) ->  | J111: =IF($D$12=0," ",IF(B110=$D$12,Simulador_v2!$AJ$32,+IF(B111>0,VLOOKUP(B111,Simulador_v2!$A$33:$AJ$273,36,0)," "))) -> 
C112: =IF($D$12=0," ",IF(B111=$D$12,"TOTALES",+IF(B112>0,VLOOKUP(B112,Simulador_v2!$A$33:$AJ$273,3,0)," "))) ->  | D112: =IF($D$12=0," ",IF(B111=$D$12,Simulador_v2!$K$32,+IF(B112>0,VLOOKUP(B112,Simulador_v2!$A$33:$AJ$273,11,0)," "))) ->  | E112: =IF($D$12=0," ",IF(B111=$D$12,Simulador_v2!$L$32,+IF(B112>0,VLOOKUP(B112,Simulador_v2!$A$33:$AJ$273,12,0)," "))) ->  | F112: =IF($D$12=0," ",IF(B111=$D$12,Simulador_v2!$M$32,+IF(B112>0,VLOOKUP(B112,Simulador_v2!$A$33:$AJ$273,13,0)," "))) ->  | G112: =IF($D$12=0," ",IF(B111=$D$12,Simulador_v2!$T$32,+IF(B112>0,VLOOKUP(B112,Simulador_v2!$A$33:$AJ$273,20,0)," "))) ->  | H112: =IF($D$12=0," ",IF(B111=$D$12,Simulador_v2!$Z$32,+IF(B112>0,VLOOKUP(B112,Simulador_v2!$A$33:$AJ$273,26,0)," "))) ->  | I112: =IF($D$12=0," ",IF(B111=$D$12,Simulador_v2!$W$32,+IF(B112>0,VLOOKUP(B112,Simulador_v2!$A$33:$AJ$273,23,0)," "))) ->  | J112: =IF($D$12=0," ",IF(B111=$D$12,Simulador_v2!$AJ$32,+IF(B112>0,VLOOKUP(B112,Simulador_v2!$A$33:$AJ$273,36,0)," "))) -> 
C113: =IF($D$12=0," ",IF(B112=$D$12,"TOTALES",+IF(B113>0,VLOOKUP(B113,Simulador_v2!$A$33:$AJ$273,3,0)," "))) ->  | D113: =IF($D$12=0," ",IF(B112=$D$12,Simulador_v2!$K$32,+IF(B113>0,VLOOKUP(B113,Simulador_v2!$A$33:$AJ$273,11,0)," "))) ->  | E113: =IF($D$12=0," ",IF(B112=$D$12,Simulador_v2!$L$32,+IF(B113>0,VLOOKUP(B113,Simulador_v2!$A$33:$AJ$273,12,0)," "))) ->  | F113: =IF($D$12=0," ",IF(B112=$D$12,Simulador_v2!$M$32,+IF(B113>0,VLOOKUP(B113,Simulador_v2!$A$33:$AJ$273,13,0)," "))) ->  | G113: =IF($D$12=0," ",IF(B112=$D$12,Simulador_v2!$T$32,+IF(B113>0,VLOOKUP(B113,Simulador_v2!$A$33:$AJ$273,20,0)," "))) ->  | H113: =IF($D$12=0," ",IF(B112=$D$12,Simulador_v2!$Z$32,+IF(B113>0,VLOOKUP(B113,Simulador_v2!$A$33:$AJ$273,26,0)," "))) ->  | I113: =IF($D$12=0," ",IF(B112=$D$12,Simulador_v2!$W$32,+IF(B113>0,VLOOKUP(B113,Simulador_v2!$A$33:$AJ$273,23,0)," "))) ->  | J113: =IF($D$12=0," ",IF(B112=$D$12,Simulador_v2!$AJ$32,+IF(B113>0,VLOOKUP(B113,Simulador_v2!$A$33:$AJ$273,36,0)," "))) -> 
C114: =IF($D$12=0," ",IF(B113=$D$12,"TOTALES",+IF(B114>0,VLOOKUP(B114,Simulador_v2!$A$33:$AJ$273,3,0)," "))) ->  | D114: =IF($D$12=0," ",IF(B113=$D$12,Simulador_v2!$K$32,+IF(B114>0,VLOOKUP(B114,Simulador_v2!$A$33:$AJ$273,11,0)," "))) ->  | E114: =IF($D$12=0," ",IF(B113=$D$12,Simulador_v2!$L$32,+IF(B114>0,VLOOKUP(B114,Simulador_v2!$A$33:$AJ$273,12,0)," "))) ->  | F114: =IF($D$12=0," ",IF(B113=$D$12,Simulador_v2!$M$32,+IF(B114>0,VLOOKUP(B114,Simulador_v2!$A$33:$AJ$273,13,0)," "))) ->  | G114: =IF($D$12=0," ",IF(B113=$D$12,Simulador_v2!$T$32,+IF(B114>0,VLOOKUP(B114,Simulador_v2!$A$33:$AJ$273,20,0)," "))) ->  | H114: =IF($D$12=0," ",IF(B113=$D$12,Simulador_v2!$Z$32,+IF(B114>0,VLOOKUP(B114,Simulador_v2!$A$33:$AJ$273,26,0)," "))) ->  | I114: =IF($D$12=0," ",IF(B113=$D$12,Simulador_v2!$W$32,+IF(B114>0,VLOOKUP(B114,Simulador_v2!$A$33:$AJ$273,23,0)," "))) ->  | J114: =IF($D$12=0," ",IF(B113=$D$12,Simulador_v2!$AJ$32,+IF(B114>0,VLOOKUP(B114,Simulador_v2!$A$33:$AJ$273,36,0)," "))) -> 
C115: =IF($D$12=0," ",IF(B114=$D$12,"TOTALES",+IF(B115>0,VLOOKUP(B115,Simulador_v2!$A$33:$AJ$273,3,0)," "))) ->  | D115: =IF($D$12=0," ",IF(B114=$D$12,Simulador_v2!$K$32,+IF(B115>0,VLOOKUP(B115,Simulador_v2!$A$33:$AJ$273,11,0)," "))) ->  | E115: =IF($D$12=0," ",IF(B114=$D$12,Simulador_v2!$L$32,+IF(B115>0,VLOOKUP(B115,Simulador_v2!$A$33:$AJ$273,12,0)," "))) ->  | F115: =IF($D$12=0," ",IF(B114=$D$12,Simulador_v2!$M$32,+IF(B115>0,VLOOKUP(B115,Simulador_v2!$A$33:$AJ$273,13,0)," "))) ->  | G115: =IF($D$12=0," ",IF(B114=$D$12,Simulador_v2!$T$32,+IF(B115>0,VLOOKUP(B115,Simulador_v2!$A$33:$AJ$273,20,0)," "))) ->  | H115: =IF($D$12=0," ",IF(B114=$D$12,Simulador_v2!$Z$32,+IF(B115>0,VLOOKUP(B115,Simulador_v2!$A$33:$AJ$273,26,0)," "))) ->  | I115: =IF($D$12=0," ",IF(B114=$D$12,Simulador_v2!$W$32,+IF(B115>0,VLOOKUP(B115,Simulador_v2!$A$33:$AJ$273,23,0)," "))) ->  | J115: =IF($D$12=0," ",IF(B114=$D$12,Simulador_v2!$AJ$32,+IF(B115>0,VLOOKUP(B115,Simulador_v2!$A$33:$AJ$273,36,0)," "))) -> 
C116: =IF($D$12=0," ",IF(B115=$D$12,"TOTALES",+IF(B116>0,VLOOKUP(B116,Simulador_v2!$A$33:$AJ$273,3,0)," "))) ->  | D116: =IF($D$12=0," ",IF(B115=$D$12,Simulador_v2!$K$32,+IF(B116>0,VLOOKUP(B116,Simulador_v2!$A$33:$AJ$273,11,0)," "))) ->  | E116: =IF($D$12=0," ",IF(B115=$D$12,Simulador_v2!$L$32,+IF(B116>0,VLOOKUP(B116,Simulador_v2!$A$33:$AJ$273,12,0)," "))) ->  | F116: =IF($D$12=0," ",IF(B115=$D$12,Simulador_v2!$M$32,+IF(B116>0,VLOOKUP(B116,Simulador_v2!$A$33:$AJ$273,13,0)," "))) ->  | G116: =IF($D$12=0," ",IF(B115=$D$12,Simulador_v2!$T$32,+IF(B116>0,VLOOKUP(B116,Simulador_v2!$A$33:$AJ$273,20,0)," "))) ->  | H116: =IF($D$12=0," ",IF(B115=$D$12,Simulador_v2!$Z$32,+IF(B116>0,VLOOKUP(B116,Simulador_v2!$A$33:$AJ$273,26,0)," "))) ->  | I116: =IF($D$12=0," ",IF(B115=$D$12,Simulador_v2!$W$32,+IF(B116>0,VLOOKUP(B116,Simulador_v2!$A$33:$AJ$273,23,0)," "))) ->  | J116: =IF($D$12=0," ",IF(B115=$D$12,Simulador_v2!$AJ$32,+IF(B116>0,VLOOKUP(B116,Simulador_v2!$A$33:$AJ$273,36,0)," "))) -> 
C117: =IF($D$12=0," ",IF(B116=$D$12,"TOTALES",+IF(B117>0,VLOOKUP(B117,Simulador_v2!$A$33:$AJ$273,3,0)," "))) ->  | D117: =IF($D$12=0," ",IF(B116=$D$12,Simulador_v2!$K$32,+IF(B117>0,VLOOKUP(B117,Simulador_v2!$A$33:$AJ$273,11,0)," "))) ->  | E117: =IF($D$12=0," ",IF(B116=$D$12,Simulador_v2!$L$32,+IF(B117>0,VLOOKUP(B117,Simulador_v2!$A$33:$AJ$273,12,0)," "))) ->  | F117: =IF($D$12=0," ",IF(B116=$D$12,Simulador_v2!$M$32,+IF(B117>0,VLOOKUP(B117,Simulador_v2!$A$33:$AJ$273,13,0)," "))) ->  | G117: =IF($D$12=0," ",IF(B116=$D$12,Simulador_v2!$T$32,+IF(B117>0,VLOOKUP(B117,Simulador_v2!$A$33:$AJ$273,20,0)," "))) ->  | H117: =IF($D$12=0," ",IF(B116=$D$12,Simulador_v2!$Z$32,+IF(B117>0,VLOOKUP(B117,Simulador_v2!$A$33:$AJ$273,26,0)," "))) ->  | I117: =IF($D$12=0," ",IF(B116=$D$12,Simulador_v2!$W$32,+IF(B117>0,VLOOKUP(B117,Simulador_v2!$A$33:$AJ$273,23,0)," "))) ->  | J117: =IF($D$12=0," ",IF(B116=$D$12,Simulador_v2!$AJ$32,+IF(B117>0,VLOOKUP(B117,Simulador_v2!$A$33:$AJ$273,36,0)," "))) -> 
C118: =IF($D$12=0," ",IF(B117=$D$12,"TOTALES",+IF(B118>0,VLOOKUP(B118,Simulador_v2!$A$33:$AJ$273,3,0)," "))) ->  | D118: =IF($D$12=0," ",IF(B117=$D$12,Simulador_v2!$K$32,+IF(B118>0,VLOOKUP(B118,Simulador_v2!$A$33:$AJ$273,11,0)," "))) ->  | E118: =IF($D$12=0," ",IF(B117=$D$12,Simulador_v2!$L$32,+IF(B118>0,VLOOKUP(B118,Simulador_v2!$A$33:$AJ$273,12,0)," "))) ->  | F118: =IF($D$12=0," ",IF(B117=$D$12,Simulador_v2!$M$32,+IF(B118>0,VLOOKUP(B118,Simulador_v2!$A$33:$AJ$273,13,0)," "))) ->  | G118: =IF($D$12=0," ",IF(B117=$D$12,Simulador_v2!$T$32,+IF(B118>0,VLOOKUP(B118,Simulador_v2!$A$33:$AJ$273,20,0)," "))) ->  | H118: =IF($D$12=0," ",IF(B117=$D$12,Simulador_v2!$Z$32,+IF(B118>0,VLOOKUP(B118,Simulador_v2!$A$33:$AJ$273,26,0)," "))) ->  | I118: =IF($D$12=0," ",IF(B117=$D$12,Simulador_v2!$W$32,+IF(B118>0,VLOOKUP(B118,Simulador_v2!$A$33:$AJ$273,23,0)," "))) ->  | J118: =IF($D$12=0," ",IF(B117=$D$12,Simulador_v2!$AJ$32,+IF(B118>0,VLOOKUP(B118,Simulador_v2!$A$33:$AJ$273,36,0)," "))) -> 
C119: =IF($D$12=0," ",IF(B118=$D$12,"TOTALES",+IF(B119>0,VLOOKUP(B119,Simulador_v2!$A$33:$AJ$273,3,0)," "))) ->  | D119: =IF($D$12=0," ",IF(B118=$D$12,Simulador_v2!$K$32,+IF(B119>0,VLOOKUP(B119,Simulador_v2!$A$33:$AJ$273,11,0)," "))) ->  | E119: =IF($D$12=0," ",IF(B118=$D$12,Simulador_v2!$L$32,+IF(B119>0,VLOOKUP(B119,Simulador_v2!$A$33:$AJ$273,12,0)," "))) ->  | F119: =IF($D$12=0," ",IF(B118=$D$12,Simulador_v2!$M$32,+IF(B119>0,VLOOKUP(B119,Simulador_v2!$A$33:$AJ$273,13,0)," "))) ->  | G119: =IF($D$12=0," ",IF(B118=$D$12,Simulador_v2!$T$32,+IF(B119>0,VLOOKUP(B119,Simulador_v2!$A$33:$AJ$273,20,0)," "))) ->  | H119: =IF($D$12=0," ",IF(B118=$D$12,Simulador_v2!$Z$32,+IF(B119>0,VLOOKUP(B119,Simulador_v2!$A$33:$AJ$273,26,0)," "))) ->  | I119: =IF($D$12=0," ",IF(B118=$D$12,Simulador_v2!$W$32,+IF(B119>0,VLOOKUP(B119,Simulador_v2!$A$33:$AJ$273,23,0)," "))) ->  | J119: =IF($D$12=0," ",IF(B118=$D$12,Simulador_v2!$AJ$32,+IF(B119>0,VLOOKUP(B119,Simulador_v2!$A$33:$AJ$273,36,0)," "))) -> 
C120: =IF($D$12=0," ",IF(B119=$D$12,"TOTALES",+IF(B120>0,VLOOKUP(B120,Simulador_v2!$A$33:$AJ$273,3,0)," "))) ->  | D120: =IF($D$12=0," ",IF(B119=$D$12,Simulador_v2!$K$32,+IF(B120>0,VLOOKUP(B120,Simulador_v2!$A$33:$AJ$273,11,0)," "))) ->  | E120: =IF($D$12=0," ",IF(B119=$D$12,Simulador_v2!$L$32,+IF(B120>0,VLOOKUP(B120,Simulador_v2!$A$33:$AJ$273,12,0)," "))) ->  | F120: =IF($D$12=0," ",IF(B119=$D$12,Simulador_v2!$M$32,+IF(B120>0,VLOOKUP(B120,Simulador_v2!$A$33:$AJ$273,13,0)," "))) ->  | G120: =IF($D$12=0," ",IF(B119=$D$12,Simulador_v2!$T$32,+IF(B120>0,VLOOKUP(B120,Simulador_v2!$A$33:$AJ$273,20,0)," "))) ->  | H120: =IF($D$12=0," ",IF(B119=$D$12,Simulador_v2!$Z$32,+IF(B120>0,VLOOKUP(B120,Simulador_v2!$A$33:$AJ$273,26,0)," "))) ->  | I120: =IF($D$12=0," ",IF(B119=$D$12,Simulador_v2!$W$32,+IF(B120>0,VLOOKUP(B120,Simulador_v2!$A$33:$AJ$273,23,0)," "))) ->  | J120: =IF($D$12=0," ",IF(B119=$D$12,Simulador_v2!$AJ$32,+IF(B120>0,VLOOKUP(B120,Simulador_v2!$A$33:$AJ$273,36,0)," "))) -> 
C121: =IF($D$12=0," ",IF(B120=$D$12,"TOTALES",+IF(B121>0,VLOOKUP(B121,Simulador_v2!$A$33:$AJ$273,3,0)," "))) ->  | D121: =IF($D$12=0," ",IF(B120=$D$12,Simulador_v2!$K$32,+IF(B121>0,VLOOKUP(B121,Simulador_v2!$A$33:$AJ$273,11,0)," "))) ->  | E121: =IF($D$12=0," ",IF(B120=$D$12,Simulador_v2!$L$32,+IF(B121>0,VLOOKUP(B121,Simulador_v2!$A$33:$AJ$273,12,0)," "))) ->  | F121: =IF($D$12=0," ",IF(B120=$D$12,Simulador_v2!$M$32,+IF(B121>0,VLOOKUP(B121,Simulador_v2!$A$33:$AJ$273,13,0)," "))) ->  | G121: =IF($D$12=0," ",IF(B120=$D$12,Simulador_v2!$T$32,+IF(B121>0,VLOOKUP(B121,Simulador_v2!$A$33:$AJ$273,20,0)," "))) ->  | H121: =IF($D$12=0," ",IF(B120=$D$12,Simulador_v2!$Z$32,+IF(B121>0,VLOOKUP(B121,Simulador_v2!$A$33:$AJ$273,26,0)," "))) ->  | I121: =IF($D$12=0," ",IF(B120=$D$12,Simulador_v2!$W$32,+IF(B121>0,VLOOKUP(B121,Simulador_v2!$A$33:$AJ$273,23,0)," "))) ->  | J121: =IF($D$12=0," ",IF(B120=$D$12,Simulador_v2!$AJ$32,+IF(B121>0,VLOOKUP(B121,Simulador_v2!$A$33:$AJ$273,36,0)," "))) -> 
C122: =IF($D$12=0," ",IF(B121=$D$12,"TOTALES",+IF(B122>0,VLOOKUP(B122,Simulador_v2!$A$33:$AJ$273,3,0)," "))) ->  | D122: =IF($D$12=0," ",IF(B121=$D$12,Simulador_v2!$K$32,+IF(B122>0,VLOOKUP(B122,Simulador_v2!$A$33:$AJ$273,11,0)," "))) ->  | E122: =IF($D$12=0," ",IF(B121=$D$12,Simulador_v2!$L$32,+IF(B122>0,VLOOKUP(B122,Simulador_v2!$A$33:$AJ$273,12,0)," "))) ->  | F122: =IF($D$12=0," ",IF(B121=$D$12,Simulador_v2!$M$32,+IF(B122>0,VLOOKUP(B122,Simulador_v2!$A$33:$AJ$273,13,0)," "))) ->  | G122: =IF($D$12=0," ",IF(B121=$D$12,Simulador_v2!$T$32,+IF(B122>0,VLOOKUP(B122,Simulador_v2!$A$33:$AJ$273,20,0)," "))) ->  | H122: =IF($D$12=0," ",IF(B121=$D$12,Simulador_v2!$Z$32,+IF(B122>0,VLOOKUP(B122,Simulador_v2!$A$33:$AJ$273,26,0)," "))) ->  | I122: =IF($D$12=0," ",IF(B121=$D$12,Simulador_v2!$W$32,+IF(B122>0,VLOOKUP(B122,Simulador_v2!$A$33:$AJ$273,23,0)," "))) ->  | J122: =IF($D$12=0," ",IF(B121=$D$12,Simulador_v2!$AJ$32,+IF(B122>0,VLOOKUP(B122,Simulador_v2!$A$33:$AJ$273,36,0)," "))) -> 
C123: =IF($D$12=0," ",IF(B122=$D$12,"TOTALES",+IF(B123>0,VLOOKUP(B123,Simulador_v2!$A$33:$AJ$273,3,0)," "))) ->  | D123: =IF($D$12=0," ",IF(B122=$D$12,Simulador_v2!$K$32,+IF(B123>0,VLOOKUP(B123,Simulador_v2!$A$33:$AJ$273,11,0)," "))) ->  | E123: =IF($D$12=0," ",IF(B122=$D$12,Simulador_v2!$L$32,+IF(B123>0,VLOOKUP(B123,Simulador_v2!$A$33:$AJ$273,12,0)," "))) ->  | F123: =IF($D$12=0," ",IF(B122=$D$12,Simulador_v2!$M$32,+IF(B123>0,VLOOKUP(B123,Simulador_v2!$A$33:$AJ$273,13,0)," "))) ->  | G123: =IF($D$12=0," ",IF(B122=$D$12,Simulador_v2!$T$32,+IF(B123>0,VLOOKUP(B123,Simulador_v2!$A$33:$AJ$273,20,0)," "))) ->  | H123: =IF($D$12=0," ",IF(B122=$D$12,Simulador_v2!$Z$32,+IF(B123>0,VLOOKUP(B123,Simulador_v2!$A$33:$AJ$273,26,0)," "))) ->  | I123: =IF($D$12=0," ",IF(B122=$D$12,Simulador_v2!$W$32,+IF(B123>0,VLOOKUP(B123,Simulador_v2!$A$33:$AJ$273,23,0)," "))) ->  | J123: =IF($D$12=0," ",IF(B122=$D$12,Simulador_v2!$AJ$32,+IF(B123>0,VLOOKUP(B123,Simulador_v2!$A$33:$AJ$273,36,0)," "))) -> 
C124: =IF($D$12=0," ",IF(B123=$D$12,"TOTALES",+IF(B124>0,VLOOKUP(B124,Simulador_v2!$A$33:$AJ$273,3,0)," "))) ->  | D124: =IF($D$12=0," ",IF(B123=$D$12,Simulador_v2!$K$32,+IF(B124>0,VLOOKUP(B124,Simulador_v2!$A$33:$AJ$273,11,0)," "))) ->  | E124: =IF($D$12=0," ",IF(B123=$D$12,Simulador_v2!$L$32,+IF(B124>0,VLOOKUP(B124,Simulador_v2!$A$33:$AJ$273,12,0)," "))) ->  | F124: =IF($D$12=0," ",IF(B123=$D$12,Simulador_v2!$M$32,+IF(B124>0,VLOOKUP(B124,Simulador_v2!$A$33:$AJ$273,13,0)," "))) ->  | G124: =IF($D$12=0," ",IF(B123=$D$12,Simulador_v2!$T$32,+IF(B124>0,VLOOKUP(B124,Simulador_v2!$A$33:$AJ$273,20,0)," "))) ->  | H124: =IF($D$12=0," ",IF(B123=$D$12,Simulador_v2!$Z$32,+IF(B124>0,VLOOKUP(B124,Simulador_v2!$A$33:$AJ$273,26,0)," "))) ->  | I124: =IF($D$12=0," ",IF(B123=$D$12,Simulador_v2!$W$32,+IF(B124>0,VLOOKUP(B124,Simulador_v2!$A$33:$AJ$273,23,0)," "))) ->  | J124: =IF($D$12=0," ",IF(B123=$D$12,Simulador_v2!$AJ$32,+IF(B124>0,VLOOKUP(B124,Simulador_v2!$A$33:$AJ$273,36,0)," "))) -> 
C125: =IF($D$12=0," ",IF(B124=$D$12,"TOTALES",+IF(B125>0,VLOOKUP(B125,Simulador_v2!$A$33:$AJ$273,3,0)," "))) ->  | D125: =IF($D$12=0," ",IF(B124=$D$12,Simulador_v2!$K$32,+IF(B125>0,VLOOKUP(B125,Simulador_v2!$A$33:$AJ$273,11,0)," "))) ->  | E125: =IF($D$12=0," ",IF(B124=$D$12,Simulador_v2!$L$32,+IF(B125>0,VLOOKUP(B125,Simulador_v2!$A$33:$AJ$273,12,0)," "))) ->  | F125: =IF($D$12=0," ",IF(B124=$D$12,Simulador_v2!$M$32,+IF(B125>0,VLOOKUP(B125,Simulador_v2!$A$33:$AJ$273,13,0)," "))) ->  | G125: =IF($D$12=0," ",IF(B124=$D$12,Simulador_v2!$T$32,+IF(B125>0,VLOOKUP(B125,Simulador_v2!$A$33:$AJ$273,20,0)," "))) ->  | H125: =IF($D$12=0," ",IF(B124=$D$12,Simulador_v2!$Z$32,+IF(B125>0,VLOOKUP(B125,Simulador_v2!$A$33:$AJ$273,26,0)," "))) ->  | I125: =IF($D$12=0," ",IF(B124=$D$12,Simulador_v2!$W$32,+IF(B125>0,VLOOKUP(B125,Simulador_v2!$A$33:$AJ$273,23,0)," "))) ->  | J125: =IF($D$12=0," ",IF(B124=$D$12,Simulador_v2!$AJ$32,+IF(B125>0,VLOOKUP(B125,Simulador_v2!$A$33:$AJ$273,36,0)," "))) -> 
C126: =IF($D$12=0," ",IF(B125=$D$12,"TOTALES",+IF(B126>0,VLOOKUP(B126,Simulador_v2!$A$33:$AJ$273,3,0)," "))) ->  | D126: =IF($D$12=0," ",IF(B125=$D$12,Simulador_v2!$K$32,+IF(B126>0,VLOOKUP(B126,Simulador_v2!$A$33:$AJ$273,11,0)," "))) ->  | E126: =IF($D$12=0," ",IF(B125=$D$12,Simulador_v2!$L$32,+IF(B126>0,VLOOKUP(B126,Simulador_v2!$A$33:$AJ$273,12,0)," "))) ->  | F126: =IF($D$12=0," ",IF(B125=$D$12,Simulador_v2!$M$32,+IF(B126>0,VLOOKUP(B126,Simulador_v2!$A$33:$AJ$273,13,0)," "))) ->  | G126: =IF($D$12=0," ",IF(B125=$D$12,Simulador_v2!$T$32,+IF(B126>0,VLOOKUP(B126,Simulador_v2!$A$33:$AJ$273,20,0)," "))) ->  | H126: =IF($D$12=0," ",IF(B125=$D$12,Simulador_v2!$Z$32,+IF(B126>0,VLOOKUP(B126,Simulador_v2!$A$33:$AJ$273,26,0)," "))) ->  | I126: =IF($D$12=0," ",IF(B125=$D$12,Simulador_v2!$W$32,+IF(B126>0,VLOOKUP(B126,Simulador_v2!$A$33:$AJ$273,23,0)," "))) ->  | J126: =IF($D$12=0," ",IF(B125=$D$12,Simulador_v2!$AJ$32,+IF(B126>0,VLOOKUP(B126,Simulador_v2!$A$33:$AJ$273,36,0)," "))) -> 
C127: =IF($D$12=0," ",IF(B126=$D$12,"TOTALES",+IF(B127>0,VLOOKUP(B127,Simulador_v2!$A$33:$AJ$273,3,0)," "))) ->  | D127: =IF($D$12=0," ",IF(B126=$D$12,Simulador_v2!$K$32,+IF(B127>0,VLOOKUP(B127,Simulador_v2!$A$33:$AJ$273,11,0)," "))) ->  | E127: =IF($D$12=0," ",IF(B126=$D$12,Simulador_v2!$L$32,+IF(B127>0,VLOOKUP(B127,Simulador_v2!$A$33:$AJ$273,12,0)," "))) ->  | F127: =IF($D$12=0," ",IF(B126=$D$12,Simulador_v2!$M$32,+IF(B127>0,VLOOKUP(B127,Simulador_v2!$A$33:$AJ$273,13,0)," "))) ->  | G127: =IF($D$12=0," ",IF(B126=$D$12,Simulador_v2!$T$32,+IF(B127>0,VLOOKUP(B127,Simulador_v2!$A$33:$AJ$273,20,0)," "))) ->  | H127: =IF($D$12=0," ",IF(B126=$D$12,Simulador_v2!$Z$32,+IF(B127>0,VLOOKUP(B127,Simulador_v2!$A$33:$AJ$273,26,0)," "))) ->  | I127: =IF($D$12=0," ",IF(B126=$D$12,Simulador_v2!$W$32,+IF(B127>0,VLOOKUP(B127,Simulador_v2!$A$33:$AJ$273,23,0)," "))) ->  | J127: =IF($D$12=0," ",IF(B126=$D$12,Simulador_v2!$AJ$32,+IF(B127>0,VLOOKUP(B127,Simulador_v2!$A$33:$AJ$273,36,0)," "))) -> 
C128: =IF($D$12=0," ",IF(B127=$D$12,"TOTALES",+IF(B128>0,VLOOKUP(B128,Simulador_v2!$A$33:$AJ$273,3,0)," "))) ->  | D128: =IF($D$12=0," ",IF(B127=$D$12,Simulador_v2!$K$32,+IF(B128>0,VLOOKUP(B128,Simulador_v2!$A$33:$AJ$273,11,0)," "))) ->  | E128: =IF($D$12=0," ",IF(B127=$D$12,Simulador_v2!$L$32,+IF(B128>0,VLOOKUP(B128,Simulador_v2!$A$33:$AJ$273,12,0)," "))) ->  | F128: =IF($D$12=0," ",IF(B127=$D$12,Simulador_v2!$M$32,+IF(B128>0,VLOOKUP(B128,Simulador_v2!$A$33:$AJ$273,13,0)," "))) ->  | G128: =IF($D$12=0," ",IF(B127=$D$12,Simulador_v2!$T$32,+IF(B128>0,VLOOKUP(B128,Simulador_v2!$A$33:$AJ$273,20,0)," "))) ->  | H128: =IF($D$12=0," ",IF(B127=$D$12,Simulador_v2!$Z$32,+IF(B128>0,VLOOKUP(B128,Simulador_v2!$A$33:$AJ$273,26,0)," "))) ->  | I128: =IF($D$12=0," ",IF(B127=$D$12,Simulador_v2!$W$32,+IF(B128>0,VLOOKUP(B128,Simulador_v2!$A$33:$AJ$273,23,0)," "))) ->  | J128: =IF($D$12=0," ",IF(B127=$D$12,Simulador_v2!$AJ$32,+IF(B128>0,VLOOKUP(B128,Simulador_v2!$A$33:$AJ$273,36,0)," "))) -> 
C129: =IF($D$12=0," ",IF(B128=$D$12,"TOTALES",+IF(B129>0,VLOOKUP(B129,Simulador_v2!$A$33:$AJ$273,3,0)," "))) ->  | D129: =IF($D$12=0," ",IF(B128=$D$12,Simulador_v2!$K$32,+IF(B129>0,VLOOKUP(B129,Simulador_v2!$A$33:$AJ$273,11,0)," "))) ->  | E129: =IF($D$12=0," ",IF(B128=$D$12,Simulador_v2!$L$32,+IF(B129>0,VLOOKUP(B129,Simulador_v2!$A$33:$AJ$273,12,0)," "))) ->  | F129: =IF($D$12=0," ",IF(B128=$D$12,Simulador_v2!$M$32,+IF(B129>0,VLOOKUP(B129,Simulador_v2!$A$33:$AJ$273,13,0)," "))) ->  | G129: =IF($D$12=0," ",IF(B128=$D$12,Simulador_v2!$T$32,+IF(B129>0,VLOOKUP(B129,Simulador_v2!$A$33:$AJ$273,20,0)," "))) ->  | H129: =IF($D$12=0," ",IF(B128=$D$12,Simulador_v2!$Z$32,+IF(B129>0,VLOOKUP(B129,Simulador_v2!$A$33:$AJ$273,26,0)," "))) ->  | I129: =IF($D$12=0," ",IF(B128=$D$12,Simulador_v2!$W$32,+IF(B129>0,VLOOKUP(B129,Simulador_v2!$A$33:$AJ$273,23,0)," "))) ->  | J129: =IF($D$12=0," ",IF(B128=$D$12,Simulador_v2!$AJ$32,+IF(B129>0,VLOOKUP(B129,Simulador_v2!$A$33:$AJ$273,36,0)," "))) -> 
C130: =IF($D$12=0," ",IF(B129=$D$12,"TOTALES",+IF(B130>0,VLOOKUP(B130,Simulador_v2!$A$33:$AJ$273,3,0)," "))) ->  | D130: =IF($D$12=0," ",IF(B129=$D$12,Simulador_v2!$K$32,+IF(B130>0,VLOOKUP(B130,Simulador_v2!$A$33:$AJ$273,11,0)," "))) ->  | E130: =IF($D$12=0," ",IF(B129=$D$12,Simulador_v2!$L$32,+IF(B130>0,VLOOKUP(B130,Simulador_v2!$A$33:$AJ$273,12,0)," "))) ->  | F130: =IF($D$12=0," ",IF(B129=$D$12,Simulador_v2!$M$32,+IF(B130>0,VLOOKUP(B130,Simulador_v2!$A$33:$AJ$273,13,0)," "))) ->  | G130: =IF($D$12=0," ",IF(B129=$D$12,Simulador_v2!$T$32,+IF(B130>0,VLOOKUP(B130,Simulador_v2!$A$33:$AJ$273,20,0)," "))) ->  | H130: =IF($D$12=0," ",IF(B129=$D$12,Simulador_v2!$Z$32,+IF(B130>0,VLOOKUP(B130,Simulador_v2!$A$33:$AJ$273,26,0)," "))) ->  | I130: =IF($D$12=0," ",IF(B129=$D$12,Simulador_v2!$W$32,+IF(B130>0,VLOOKUP(B130,Simulador_v2!$A$33:$AJ$273,23,0)," "))) ->  | J130: =IF($D$12=0," ",IF(B129=$D$12,Simulador_v2!$AJ$32,+IF(B130>0,VLOOKUP(B130,Simulador_v2!$A$33:$AJ$273,36,0)," "))) -> 
C131: =IF($D$12=0," ",IF(B130=$D$12,"TOTALES",+IF(B131>0,VLOOKUP(B131,Simulador_v2!$A$33:$AJ$273,3,0)," "))) ->  | D131: =IF($D$12=0," ",IF(B130=$D$12,Simulador_v2!$K$32,+IF(B131>0,VLOOKUP(B131,Simulador_v2!$A$33:$AJ$273,11,0)," "))) ->  | E131: =IF($D$12=0," ",IF(B130=$D$12,Simulador_v2!$L$32,+IF(B131>0,VLOOKUP(B131,Simulador_v2!$A$33:$AJ$273,12,0)," "))) ->  | F131: =IF($D$12=0," ",IF(B130=$D$12,Simulador_v2!$M$32,+IF(B131>0,VLOOKUP(B131,Simulador_v2!$A$33:$AJ$273,13,0)," "))) ->  | G131: =IF($D$12=0," ",IF(B130=$D$12,Simulador_v2!$T$32,+IF(B131>0,VLOOKUP(B131,Simulador_v2!$A$33:$AJ$273,20,0)," "))) ->  | H131: =IF($D$12=0," ",IF(B130=$D$12,Simulador_v2!$Z$32,+IF(B131>0,VLOOKUP(B131,Simulador_v2!$A$33:$AJ$273,26,0)," "))) ->  | I131: =IF($D$12=0," ",IF(B130=$D$12,Simulador_v2!$W$32,+IF(B131>0,VLOOKUP(B131,Simulador_v2!$A$33:$AJ$273,23,0)," "))) ->  | J131: =IF($D$12=0," ",IF(B130=$D$12,Simulador_v2!$AJ$32,+IF(B131>0,VLOOKUP(B131,Simulador_v2!$A$33:$AJ$273,36,0)," "))) -> 
C132: =IF($D$12=0," ",IF(B131=$D$12,"TOTALES",+IF(B132>0,VLOOKUP(B132,Simulador_v2!$A$33:$AJ$273,3,0)," "))) ->  | D132: =IF($D$12=0," ",IF(B131=$D$12,Simulador_v2!$K$32,+IF(B132>0,VLOOKUP(B132,Simulador_v2!$A$33:$AJ$273,11,0)," "))) ->  | E132: =IF($D$12=0," ",IF(B131=$D$12,Simulador_v2!$L$32,+IF(B132>0,VLOOKUP(B132,Simulador_v2!$A$33:$AJ$273,12,0)," "))) ->  | F132: =IF($D$12=0," ",IF(B131=$D$12,Simulador_v2!$M$32,+IF(B132>0,VLOOKUP(B132,Simulador_v2!$A$33:$AJ$273,13,0)," "))) ->  | G132: =IF($D$12=0," ",IF(B131=$D$12,Simulador_v2!$T$32,+IF(B132>0,VLOOKUP(B132,Simulador_v2!$A$33:$AJ$273,20,0)," "))) ->  | H132: =IF($D$12=0," ",IF(B131=$D$12,Simulador_v2!$Z$32,+IF(B132>0,VLOOKUP(B132,Simulador_v2!$A$33:$AJ$273,26,0)," "))) ->  | I132: =IF($D$12=0," ",IF(B131=$D$12,Simulador_v2!$W$32,+IF(B132>0,VLOOKUP(B132,Simulador_v2!$A$33:$AJ$273,23,0)," "))) ->  | J132: =IF($D$12=0," ",IF(B131=$D$12,Simulador_v2!$AJ$32,+IF(B132>0,VLOOKUP(B132,Simulador_v2!$A$33:$AJ$273,36,0)," "))) -> 
C133: =IF($D$12=0," ",IF(B132=$D$12,"TOTALES",+IF(B133>0,VLOOKUP(B133,Simulador_v2!$A$33:$AJ$273,3,0)," "))) ->  | D133: =IF($D$12=0," ",IF(B132=$D$12,Simulador_v2!$K$32,+IF(B133>0,VLOOKUP(B133,Simulador_v2!$A$33:$AJ$273,11,0)," "))) ->  | E133: =IF($D$12=0," ",IF(B132=$D$12,Simulador_v2!$L$32,+IF(B133>0,VLOOKUP(B133,Simulador_v2!$A$33:$AJ$273,12,0)," "))) ->  | F133: =IF($D$12=0," ",IF(B132=$D$12,Simulador_v2!$M$32,+IF(B133>0,VLOOKUP(B133,Simulador_v2!$A$33:$AJ$273,13,0)," "))) ->  | G133: =IF($D$12=0," ",IF(B132=$D$12,Simulador_v2!$T$32,+IF(B133>0,VLOOKUP(B133,Simulador_v2!$A$33:$AJ$273,20,0)," "))) ->  | H133: =IF($D$12=0," ",IF(B132=$D$12,Simulador_v2!$Z$32,+IF(B133>0,VLOOKUP(B133,Simulador_v2!$A$33:$AJ$273,26,0)," "))) ->  | I133: =IF($D$12=0," ",IF(B132=$D$12,Simulador_v2!$W$32,+IF(B133>0,VLOOKUP(B133,Simulador_v2!$A$33:$AJ$273,23,0)," "))) ->  | J133: =IF($D$12=0," ",IF(B132=$D$12,Simulador_v2!$AJ$32,+IF(B133>0,VLOOKUP(B133,Simulador_v2!$A$33:$AJ$273,36,0)," "))) -> 
C134: =IF($D$12=0," ",IF(B133=$D$12,"TOTALES",+IF(B134>0,VLOOKUP(B134,Simulador_v2!$A$33:$AJ$273,3,0)," "))) ->  | D134: =IF($D$12=0," ",IF(B133=$D$12,Simulador_v2!$K$32,+IF(B134>0,VLOOKUP(B134,Simulador_v2!$A$33:$AJ$273,11,0)," "))) ->  | E134: =IF($D$12=0," ",IF(B133=$D$12,Simulador_v2!$L$32,+IF(B134>0,VLOOKUP(B134,Simulador_v2!$A$33:$AJ$273,12,0)," "))) ->  | F134: =IF($D$12=0," ",IF(B133=$D$12,Simulador_v2!$M$32,+IF(B134>0,VLOOKUP(B134,Simulador_v2!$A$33:$AJ$273,13,0)," "))) ->  | G134: =IF($D$12=0," ",IF(B133=$D$12,Simulador_v2!$T$32,+IF(B134>0,VLOOKUP(B134,Simulador_v2!$A$33:$AJ$273,20,0)," "))) ->  | H134: =IF($D$12=0," ",IF(B133=$D$12,Simulador_v2!$Z$32,+IF(B134>0,VLOOKUP(B134,Simulador_v2!$A$33:$AJ$273,26,0)," "))) ->  | I134: =IF($D$12=0," ",IF(B133=$D$12,Simulador_v2!$W$32,+IF(B134>0,VLOOKUP(B134,Simulador_v2!$A$33:$AJ$273,23,0)," "))) ->  | J134: =IF($D$12=0," ",IF(B133=$D$12,Simulador_v2!$AJ$32,+IF(B134>0,VLOOKUP(B134,Simulador_v2!$A$33:$AJ$273,36,0)," "))) -> 
C135: =IF($D$12=0," ",IF(B134=$D$12,"TOTALES",+IF(B135>0,VLOOKUP(B135,Simulador_v2!$A$33:$AJ$273,3,0)," "))) ->  | D135: =IF($D$12=0," ",IF(B134=$D$12,Simulador_v2!$K$32,+IF(B135>0,VLOOKUP(B135,Simulador_v2!$A$33:$AJ$273,11,0)," "))) ->  | E135: =IF($D$12=0," ",IF(B134=$D$12,Simulador_v2!$L$32,+IF(B135>0,VLOOKUP(B135,Simulador_v2!$A$33:$AJ$273,12,0)," "))) ->  | F135: =IF($D$12=0," ",IF(B134=$D$12,Simulador_v2!$M$32,+IF(B135>0,VLOOKUP(B135,Simulador_v2!$A$33:$AJ$273,13,0)," "))) ->  | G135: =IF($D$12=0," ",IF(B134=$D$12,Simulador_v2!$T$32,+IF(B135>0,VLOOKUP(B135,Simulador_v2!$A$33:$AJ$273,20,0)," "))) ->  | H135: =IF($D$12=0," ",IF(B134=$D$12,Simulador_v2!$Z$32,+IF(B135>0,VLOOKUP(B135,Simulador_v2!$A$33:$AJ$273,26,0)," "))) ->  | I135: =IF($D$12=0," ",IF(B134=$D$12,Simulador_v2!$W$32,+IF(B135>0,VLOOKUP(B135,Simulador_v2!$A$33:$AJ$273,23,0)," "))) ->  | J135: =IF($D$12=0," ",IF(B134=$D$12,Simulador_v2!$AJ$32,+IF(B135>0,VLOOKUP(B135,Simulador_v2!$A$33:$AJ$273,36,0)," "))) -> 
C136: =IF($D$12=0," ",IF(B135=$D$12,"TOTALES",+IF(B136>0,VLOOKUP(B136,Simulador_v2!$A$33:$AJ$273,3,0)," "))) ->  | D136: =IF($D$12=0," ",IF(B135=$D$12,Simulador_v2!$K$32,+IF(B136>0,VLOOKUP(B136,Simulador_v2!$A$33:$AJ$273,11,0)," "))) ->  | E136: =IF($D$12=0," ",IF(B135=$D$12,Simulador_v2!$L$32,+IF(B136>0,VLOOKUP(B136,Simulador_v2!$A$33:$AJ$273,12,0)," "))) ->  | F136: =IF($D$12=0," ",IF(B135=$D$12,Simulador_v2!$M$32,+IF(B136>0,VLOOKUP(B136,Simulador_v2!$A$33:$AJ$273,13,0)," "))) ->  | G136: =IF($D$12=0," ",IF(B135=$D$12,Simulador_v2!$T$32,+IF(B136>0,VLOOKUP(B136,Simulador_v2!$A$33:$AJ$273,20,0)," "))) ->  | H136: =IF($D$12=0," ",IF(B135=$D$12,Simulador_v2!$Z$32,+IF(B136>0,VLOOKUP(B136,Simulador_v2!$A$33:$AJ$273,26,0)," "))) ->  | I136: =IF($D$12=0," ",IF(B135=$D$12,Simulador_v2!$W$32,+IF(B136>0,VLOOKUP(B136,Simulador_v2!$A$33:$AJ$273,23,0)," "))) ->  | J136: =IF($D$12=0," ",IF(B135=$D$12,Simulador_v2!$AJ$32,+IF(B136>0,VLOOKUP(B136,Simulador_v2!$A$33:$AJ$273,36,0)," "))) -> 
C137: =IF($D$12=0," ",IF(B136=$D$12,"TOTALES",+IF(B137>0,VLOOKUP(B137,Simulador_v2!$A$33:$AJ$273,3,0)," "))) ->  | D137: =IF($D$12=0," ",IF(B136=$D$12,Simulador_v2!$K$32,+IF(B137>0,VLOOKUP(B137,Simulador_v2!$A$33:$AJ$273,11,0)," "))) ->  | E137: =IF($D$12=0," ",IF(B136=$D$12,Simulador_v2!$L$32,+IF(B137>0,VLOOKUP(B137,Simulador_v2!$A$33:$AJ$273,12,0)," "))) ->  | F137: =IF($D$12=0," ",IF(B136=$D$12,Simulador_v2!$M$32,+IF(B137>0,VLOOKUP(B137,Simulador_v2!$A$33:$AJ$273,13,0)," "))) ->  | G137: =IF($D$12=0," ",IF(B136=$D$12,Simulador_v2!$T$32,+IF(B137>0,VLOOKUP(B137,Simulador_v2!$A$33:$AJ$273,20,0)," "))) ->  | H137: =IF($D$12=0," ",IF(B136=$D$12,Simulador_v2!$Z$32,+IF(B137>0,VLOOKUP(B137,Simulador_v2!$A$33:$AJ$273,26,0)," "))) ->  | I137: =IF($D$12=0," ",IF(B136=$D$12,Simulador_v2!$W$32,+IF(B137>0,VLOOKUP(B137,Simulador_v2!$A$33:$AJ$273,23,0)," "))) ->  | J137: =IF($D$12=0," ",IF(B136=$D$12,Simulador_v2!$AJ$32,+IF(B137>0,VLOOKUP(B137,Simulador_v2!$A$33:$AJ$273,36,0)," "))) -> 
C138: =IF($D$12=0," ",IF(B137=$D$12,"TOTALES",+IF(B138>0,VLOOKUP(B138,Simulador_v2!$A$33:$AJ$273,3,0)," "))) ->  | D138: =IF($D$12=0," ",IF(B137=$D$12,Simulador_v2!$K$32,+IF(B138>0,VLOOKUP(B138,Simulador_v2!$A$33:$AJ$273,11,0)," "))) ->  | E138: =IF($D$12=0," ",IF(B137=$D$12,Simulador_v2!$L$32,+IF(B138>0,VLOOKUP(B138,Simulador_v2!$A$33:$AJ$273,12,0)," "))) ->  | F138: =IF($D$12=0," ",IF(B137=$D$12,Simulador_v2!$M$32,+IF(B138>0,VLOOKUP(B138,Simulador_v2!$A$33:$AJ$273,13,0)," "))) ->  | G138: =IF($D$12=0," ",IF(B137=$D$12,Simulador_v2!$T$32,+IF(B138>0,VLOOKUP(B138,Simulador_v2!$A$33:$AJ$273,20,0)," "))) ->  | H138: =IF($D$12=0," ",IF(B137=$D$12,Simulador_v2!$Z$32,+IF(B138>0,VLOOKUP(B138,Simulador_v2!$A$33:$AJ$273,26,0)," "))) ->  | I138: =IF($D$12=0," ",IF(B137=$D$12,Simulador_v2!$W$32,+IF(B138>0,VLOOKUP(B138,Simulador_v2!$A$33:$AJ$273,23,0)," "))) ->  | J138: =IF($D$12=0," ",IF(B137=$D$12,Simulador_v2!$AJ$32,+IF(B138>0,VLOOKUP(B138,Simulador_v2!$A$33:$AJ$273,36,0)," "))) -> 
C139: =IF($D$12=0," ",IF(B138=$D$12,"TOTALES",+IF(B139>0,VLOOKUP(B139,Simulador_v2!$A$33:$AJ$273,3,0)," "))) ->  | D139: =IF($D$12=0," ",IF(B138=$D$12,Simulador_v2!$K$32,+IF(B139>0,VLOOKUP(B139,Simulador_v2!$A$33:$AJ$273,11,0)," "))) ->  | E139: =IF($D$12=0," ",IF(B138=$D$12,Simulador_v2!$L$32,+IF(B139>0,VLOOKUP(B139,Simulador_v2!$A$33:$AJ$273,12,0)," "))) ->  | F139: =IF($D$12=0," ",IF(B138=$D$12,Simulador_v2!$M$32,+IF(B139>0,VLOOKUP(B139,Simulador_v2!$A$33:$AJ$273,13,0)," "))) ->  | G139: =IF($D$12=0," ",IF(B138=$D$12,Simulador_v2!$T$32,+IF(B139>0,VLOOKUP(B139,Simulador_v2!$A$33:$AJ$273,20,0)," "))) ->  | H139: =IF($D$12=0," ",IF(B138=$D$12,Simulador_v2!$Z$32,+IF(B139>0,VLOOKUP(B139,Simulador_v2!$A$33:$AJ$273,26,0)," "))) ->  | I139: =IF($D$12=0," ",IF(B138=$D$12,Simulador_v2!$W$32,+IF(B139>0,VLOOKUP(B139,Simulador_v2!$A$33:$AJ$273,23,0)," "))) ->  | J139: =IF($D$12=0," ",IF(B138=$D$12,Simulador_v2!$AJ$32,+IF(B139>0,VLOOKUP(B139,Simulador_v2!$A$33:$AJ$273,36,0)," "))) -> 
C140: =IF($D$12=0," ",IF(B139=$D$12,"TOTALES",+IF(B140>0,VLOOKUP(B140,Simulador_v2!$A$33:$AJ$273,3,0)," "))) ->  | D140: =IF($D$12=0," ",IF(B139=$D$12,Simulador_v2!$K$32,+IF(B140>0,VLOOKUP(B140,Simulador_v2!$A$33:$AJ$273,11,0)," "))) ->  | E140: =IF($D$12=0," ",IF(B139=$D$12,Simulador_v2!$L$32,+IF(B140>0,VLOOKUP(B140,Simulador_v2!$A$33:$AJ$273,12,0)," "))) ->  | F140: =IF($D$12=0," ",IF(B139=$D$12,Simulador_v2!$M$32,+IF(B140>0,VLOOKUP(B140,Simulador_v2!$A$33:$AJ$273,13,0)," "))) ->  | G140: =IF($D$12=0," ",IF(B139=$D$12,Simulador_v2!$T$32,+IF(B140>0,VLOOKUP(B140,Simulador_v2!$A$33:$AJ$273,20,0)," "))) ->  | H140: =IF($D$12=0," ",IF(B139=$D$12,Simulador_v2!$Z$32,+IF(B140>0,VLOOKUP(B140,Simulador_v2!$A$33:$AJ$273,26,0)," "))) ->  | I140: =IF($D$12=0," ",IF(B139=$D$12,Simulador_v2!$W$32,+IF(B140>0,VLOOKUP(B140,Simulador_v2!$A$33:$AJ$273,23,0)," "))) ->  | J140: =IF($D$12=0," ",IF(B139=$D$12,Simulador_v2!$AJ$32,+IF(B140>0,VLOOKUP(B140,Simulador_v2!$A$33:$AJ$273,36,0)," "))) -> 
C141: =IF($D$12=0," ",IF(B140=$D$12,"TOTALES",+IF(B141>0,VLOOKUP(B141,Simulador_v2!$A$33:$AJ$273,3,0)," "))) ->  | D141: =IF($D$12=0," ",IF(B140=$D$12,Simulador_v2!$K$32,+IF(B141>0,VLOOKUP(B141,Simulador_v2!$A$33:$AJ$273,11,0)," "))) ->  | E141: =IF($D$12=0," ",IF(B140=$D$12,Simulador_v2!$L$32,+IF(B141>0,VLOOKUP(B141,Simulador_v2!$A$33:$AJ$273,12,0)," "))) ->  | F141: =IF($D$12=0," ",IF(B140=$D$12,Simulador_v2!$M$32,+IF(B141>0,VLOOKUP(B141,Simulador_v2!$A$33:$AJ$273,13,0)," "))) ->  | G141: =IF($D$12=0," ",IF(B140=$D$12,Simulador_v2!$T$32,+IF(B141>0,VLOOKUP(B141,Simulador_v2!$A$33:$AJ$273,20,0)," "))) ->  | H141: =IF($D$12=0," ",IF(B140=$D$12,Simulador_v2!$Z$32,+IF(B141>0,VLOOKUP(B141,Simulador_v2!$A$33:$AJ$273,26,0)," "))) ->  | I141: =IF($D$12=0," ",IF(B140=$D$12,Simulador_v2!$W$32,+IF(B141>0,VLOOKUP(B141,Simulador_v2!$A$33:$AJ$273,23,0)," "))) ->  | J141: =IF($D$12=0," ",IF(B140=$D$12,Simulador_v2!$AJ$32,+IF(B141>0,VLOOKUP(B141,Simulador_v2!$A$33:$AJ$273,36,0)," "))) -> 
C142: =IF($D$12=0," ",IF(B141=$D$12,"TOTALES",+IF(B142>0,VLOOKUP(B142,Simulador_v2!$A$33:$AJ$273,3,0)," "))) ->  | D142: =IF($D$12=0," ",IF(B141=$D$12,Simulador_v2!$K$32,+IF(B142>0,VLOOKUP(B142,Simulador_v2!$A$33:$AJ$273,11,0)," "))) ->  | E142: =IF($D$12=0," ",IF(B141=$D$12,Simulador_v2!$L$32,+IF(B142>0,VLOOKUP(B142,Simulador_v2!$A$33:$AJ$273,12,0)," "))) ->  | F142: =IF($D$12=0," ",IF(B141=$D$12,Simulador_v2!$M$32,+IF(B142>0,VLOOKUP(B142,Simulador_v2!$A$33:$AJ$273,13,0)," "))) ->  | G142: =IF($D$12=0," ",IF(B141=$D$12,Simulador_v2!$T$32,+IF(B142>0,VLOOKUP(B142,Simulador_v2!$A$33:$AJ$273,20,0)," "))) ->  | H142: =IF($D$12=0," ",IF(B141=$D$12,Simulador_v2!$Z$32,+IF(B142>0,VLOOKUP(B142,Simulador_v2!$A$33:$AJ$273,26,0)," "))) ->  | I142: =IF($D$12=0," ",IF(B141=$D$12,Simulador_v2!$W$32,+IF(B142>0,VLOOKUP(B142,Simulador_v2!$A$33:$AJ$273,23,0)," "))) ->  | J142: =IF($D$12=0," ",IF(B141=$D$12,Simulador_v2!$AJ$32,+IF(B142>0,VLOOKUP(B142,Simulador_v2!$A$33:$AJ$273,36,0)," "))) -> 
C143: =IF($D$12=0," ",IF(B142=$D$12,"TOTALES",+IF(B143>0,VLOOKUP(B143,Simulador_v2!$A$33:$AJ$273,3,0)," "))) ->  | D143: =IF($D$12=0," ",IF(B142=$D$12,Simulador_v2!$K$32,+IF(B143>0,VLOOKUP(B143,Simulador_v2!$A$33:$AJ$273,11,0)," "))) ->  | E143: =IF($D$12=0," ",IF(B142=$D$12,Simulador_v2!$L$32,+IF(B143>0,VLOOKUP(B143,Simulador_v2!$A$33:$AJ$273,12,0)," "))) ->  | F143: =IF($D$12=0," ",IF(B142=$D$12,Simulador_v2!$M$32,+IF(B143>0,VLOOKUP(B143,Simulador_v2!$A$33:$AJ$273,13,0)," "))) ->  | G143: =IF($D$12=0," ",IF(B142=$D$12,Simulador_v2!$T$32,+IF(B143>0,VLOOKUP(B143,Simulador_v2!$A$33:$AJ$273,20,0)," "))) ->  | H143: =IF($D$12=0," ",IF(B142=$D$12,Simulador_v2!$Z$32,+IF(B143>0,VLOOKUP(B143,Simulador_v2!$A$33:$AJ$273,26,0)," "))) ->  | I143: =IF($D$12=0," ",IF(B142=$D$12,Simulador_v2!$W$32,+IF(B143>0,VLOOKUP(B143,Simulador_v2!$A$33:$AJ$273,23,0)," "))) ->  | J143: =IF($D$12=0," ",IF(B142=$D$12,Simulador_v2!$AJ$32,+IF(B143>0,VLOOKUP(B143,Simulador_v2!$A$33:$AJ$273,36,0)," "))) -> 
C144: =IF($D$12=0," ",IF(B143=$D$12,"TOTALES",+IF(B144>0,VLOOKUP(B144,Simulador_v2!$A$33:$AJ$273,3,0)," "))) ->  | D144: =IF($D$12=0," ",IF(B143=$D$12,Simulador_v2!$K$32,+IF(B144>0,VLOOKUP(B144,Simulador_v2!$A$33:$AJ$273,11,0)," "))) ->  | E144: =IF($D$12=0," ",IF(B143=$D$12,Simulador_v2!$L$32,+IF(B144>0,VLOOKUP(B144,Simulador_v2!$A$33:$AJ$273,12,0)," "))) ->  | F144: =IF($D$12=0," ",IF(B143=$D$12,Simulador_v2!$M$32,+IF(B144>0,VLOOKUP(B144,Simulador_v2!$A$33:$AJ$273,13,0)," "))) ->  | G144: =IF($D$12=0," ",IF(B143=$D$12,Simulador_v2!$T$32,+IF(B144>0,VLOOKUP(B144,Simulador_v2!$A$33:$AJ$273,20,0)," "))) ->  | H144: =IF($D$12=0," ",IF(B143=$D$12,Simulador_v2!$Z$32,+IF(B144>0,VLOOKUP(B144,Simulador_v2!$A$33:$AJ$273,26,0)," "))) ->  | I144: =IF($D$12=0," ",IF(B143=$D$12,Simulador_v2!$W$32,+IF(B144>0,VLOOKUP(B144,Simulador_v2!$A$33:$AJ$273,23,0)," "))) ->  | J144: =IF($D$12=0," ",IF(B143=$D$12,Simulador_v2!$AJ$32,+IF(B144>0,VLOOKUP(B144,Simulador_v2!$A$33:$AJ$273,36,0)," "))) -> 
C145: =IF($D$12=0," ",IF(B144=$D$12,"TOTALES",+IF(B145>0,VLOOKUP(B145,Simulador_v2!$A$33:$AJ$273,3,0)," "))) ->  | D145: =IF($D$12=0," ",IF(B144=$D$12,Simulador_v2!$K$32,+IF(B145>0,VLOOKUP(B145,Simulador_v2!$A$33:$AJ$273,11,0)," "))) ->  | E145: =IF($D$12=0," ",IF(B144=$D$12,Simulador_v2!$L$32,+IF(B145>0,VLOOKUP(B145,Simulador_v2!$A$33:$AJ$273,12,0)," "))) ->  | F145: =IF($D$12=0," ",IF(B144=$D$12,Simulador_v2!$M$32,+IF(B145>0,VLOOKUP(B145,Simulador_v2!$A$33:$AJ$273,13,0)," "))) ->  | G145: =IF($D$12=0," ",IF(B144=$D$12,Simulador_v2!$T$32,+IF(B145>0,VLOOKUP(B145,Simulador_v2!$A$33:$AJ$273,20,0)," "))) ->  | H145: =IF($D$12=0," ",IF(B144=$D$12,Simulador_v2!$Z$32,+IF(B145>0,VLOOKUP(B145,Simulador_v2!$A$33:$AJ$273,26,0)," "))) ->  | I145: =IF($D$12=0," ",IF(B144=$D$12,Simulador_v2!$W$32,+IF(B145>0,VLOOKUP(B145,Simulador_v2!$A$33:$AJ$273,23,0)," "))) ->  | J145: =IF($D$12=0," ",IF(B144=$D$12,Simulador_v2!$AJ$32,+IF(B145>0,VLOOKUP(B145,Simulador_v2!$A$33:$AJ$273,36,0)," "))) -> 
C146: =IF($D$12=0," ",IF(B145=$D$12,"TOTALES",+IF(B146>0,VLOOKUP(B146,Simulador_v2!$A$33:$AJ$273,3,0)," "))) ->  | D146: =IF($D$12=0," ",IF(B145=$D$12,Simulador_v2!$K$32,+IF(B146>0,VLOOKUP(B146,Simulador_v2!$A$33:$AJ$273,11,0)," "))) ->  | E146: =IF($D$12=0," ",IF(B145=$D$12,Simulador_v2!$L$32,+IF(B146>0,VLOOKUP(B146,Simulador_v2!$A$33:$AJ$273,12,0)," "))) ->  | F146: =IF($D$12=0," ",IF(B145=$D$12,Simulador_v2!$M$32,+IF(B146>0,VLOOKUP(B146,Simulador_v2!$A$33:$AJ$273,13,0)," "))) ->  | G146: =IF($D$12=0," ",IF(B145=$D$12,Simulador_v2!$T$32,+IF(B146>0,VLOOKUP(B146,Simulador_v2!$A$33:$AJ$273,20,0)," "))) ->  | H146: =IF($D$12=0," ",IF(B145=$D$12,Simulador_v2!$Z$32,+IF(B146>0,VLOOKUP(B146,Simulador_v2!$A$33:$AJ$273,26,0)," "))) ->  | I146: =IF($D$12=0," ",IF(B145=$D$12,Simulador_v2!$W$32,+IF(B146>0,VLOOKUP(B146,Simulador_v2!$A$33:$AJ$273,23,0)," "))) ->  | J146: =IF($D$12=0," ",IF(B145=$D$12,Simulador_v2!$AJ$32,+IF(B146>0,VLOOKUP(B146,Simulador_v2!$A$33:$AJ$273,36,0)," "))) -> 
B147: =IF(B146=0," ",IF(B146>=$D$12,"",B146+1)) ->  | C147: =IF($D$12=0," ",IF(B146=$D$12,"TOTALES",+IF(B147>0,VLOOKUP(B147,Simulador_v2!$A$33:$AJ$273,3,0)," "))) ->  | D147: =IF($D$12=0," ",IF(B146=$D$12,Simulador_v2!$K$32,+IF(B147>0,VLOOKUP(B147,Simulador_v2!$A$33:$AJ$273,11,0)," "))) ->  | E147: =IF($D$12=0," ",IF(B146=$D$12,Simulador_v2!$L$32,+IF(B147>0,VLOOKUP(B147,Simulador_v2!$A$33:$AJ$273,12,0)," "))) ->  | F147: =IF($D$12=0," ",IF(B146=$D$12,Simulador_v2!$M$32,+IF(B147>0,VLOOKUP(B147,Simulador_v2!$A$33:$AJ$273,13,0)," "))) ->  | G147: =IF($D$12=0," ",IF(B146=$D$12,Simulador_v2!$T$32,+IF(B147>0,VLOOKUP(B147,Simulador_v2!$A$33:$AJ$273,20,0)," "))) ->  | H147: =IF($D$12=0," ",IF(B146=$D$12,Simulador_v2!$Z$32,+IF(B147>0,VLOOKUP(B147,Simulador_v2!$A$33:$AJ$273,26,0)," "))) ->  | I147: =IF($D$12=0," ",IF(B146=$D$12,Simulador_v2!$W$32,+IF(B147>0,VLOOKUP(B147,Simulador_v2!$A$33:$AJ$273,23,0)," "))) ->  | J147: =IF($D$12=0," ",IF(B146=$D$12,Simulador_v2!$AJ$32,+IF(B147>0,VLOOKUP(B147,Simulador_v2!$A$33:$AJ$273,36,0)," "))) -> 
C148: =IF($D$12=0," ",IF(B147=$D$12,"TOTALES",+IF(B148>0,VLOOKUP(B148,Simulador_v2!$A$33:$AJ$273,3,0)," "))) ->  | D148: =IF($D$12=0," ",IF(B147=$D$12,Simulador_v2!$K$32,+IF(B148>0,VLOOKUP(B148,Simulador_v2!$A$33:$AJ$273,11,0)," "))) ->  | E148: =IF($D$12=0," ",IF(B147=$D$12,Simulador_v2!$L$32,+IF(B148>0,VLOOKUP(B148,Simulador_v2!$A$33:$AJ$273,12,0)," "))) ->  | F148: =IF($D$12=0," ",IF(B147=$D$12,Simulador_v2!$M$32,+IF(B148>0,VLOOKUP(B148,Simulador_v2!$A$33:$AJ$273,13,0)," "))) ->  | G148: =IF($D$12=0," ",IF(B147=$D$12,Simulador_v2!$T$32,+IF(B148>0,VLOOKUP(B148,Simulador_v2!$A$33:$AJ$273,20,0)," "))) ->  | H148: =IF($D$12=0," ",IF(B147=$D$12,Simulador_v2!$Z$32,+IF(B148>0,VLOOKUP(B148,Simulador_v2!$A$33:$AJ$273,26,0)," "))) ->  | I148: =IF($D$12=0," ",IF(B147=$D$12,Simulador_v2!$W$32,+IF(B148>0,VLOOKUP(B148,Simulador_v2!$A$33:$AJ$273,23,0)," "))) ->  | J148: =IF($D$12=0," ",IF(B147=$D$12,Simulador_v2!$AJ$32,+IF(B148>0,VLOOKUP(B148,Simulador_v2!$A$33:$AJ$273,36,0)," "))) -> 
C149: =IF($D$12=0," ",IF(B148=$D$12,"TOTALES",+IF(B149>0,VLOOKUP(B149,Simulador_v2!$A$33:$AJ$273,3,0)," "))) ->  | D149: =IF($D$12=0," ",IF(B148=$D$12,Simulador_v2!$K$32,+IF(B149>0,VLOOKUP(B149,Simulador_v2!$A$33:$AJ$273,11,0)," "))) ->  | E149: =IF($D$12=0," ",IF(B148=$D$12,Simulador_v2!$L$32,+IF(B149>0,VLOOKUP(B149,Simulador_v2!$A$33:$AJ$273,12,0)," "))) ->  | F149: =IF($D$12=0," ",IF(B148=$D$12,Simulador_v2!$M$32,+IF(B149>0,VLOOKUP(B149,Simulador_v2!$A$33:$AJ$273,13,0)," "))) ->  | G149: =IF($D$12=0," ",IF(B148=$D$12,Simulador_v2!$T$32,+IF(B149>0,VLOOKUP(B149,Simulador_v2!$A$33:$AJ$273,20,0)," "))) ->  | H149: =IF($D$12=0," ",IF(B148=$D$12,Simulador_v2!$Z$32,+IF(B149>0,VLOOKUP(B149,Simulador_v2!$A$33:$AJ$273,26,0)," "))) ->  | I149: =IF($D$12=0," ",IF(B148=$D$12,Simulador_v2!$W$32,+IF(B149>0,VLOOKUP(B149,Simulador_v2!$A$33:$AJ$273,23,0)," "))) ->  | J149: =IF($D$12=0," ",IF(B148=$D$12,Simulador_v2!$AJ$32,+IF(B149>0,VLOOKUP(B149,Simulador_v2!$A$33:$AJ$273,36,0)," "))) -> 
C150: =IF($D$12=0," ",IF(B149=$D$12,"TOTALES",+IF(B150>0,VLOOKUP(B150,Simulador_v2!$A$33:$AJ$273,3,0)," "))) ->  | D150: =IF($D$12=0," ",IF(B149=$D$12,Simulador_v2!$K$32,+IF(B150>0,VLOOKUP(B150,Simulador_v2!$A$33:$AJ$273,11,0)," "))) ->  | E150: =IF($D$12=0," ",IF(B149=$D$12,Simulador_v2!$L$32,+IF(B150>0,VLOOKUP(B150,Simulador_v2!$A$33:$AJ$273,12,0)," "))) ->  | F150: =IF($D$12=0," ",IF(B149=$D$12,Simulador_v2!$M$32,+IF(B150>0,VLOOKUP(B150,Simulador_v2!$A$33:$AJ$273,13,0)," "))) ->  | G150: =IF($D$12=0," ",IF(B149=$D$12,Simulador_v2!$T$32,+IF(B150>0,VLOOKUP(B150,Simulador_v2!$A$33:$AJ$273,20,0)," "))) ->  | H150: =IF($D$12=0," ",IF(B149=$D$12,Simulador_v2!$Z$32,+IF(B150>0,VLOOKUP(B150,Simulador_v2!$A$33:$AJ$273,26,0)," "))) ->  | I150: =IF($D$12=0," ",IF(B149=$D$12,Simulador_v2!$W$32,+IF(B150>0,VLOOKUP(B150,Simulador_v2!$A$33:$AJ$273,23,0)," "))) ->  | J150: =IF($D$12=0," ",IF(B149=$D$12,Simulador_v2!$AJ$32,+IF(B150>0,VLOOKUP(B150,Simulador_v2!$A$33:$AJ$273,36,0)," "))) -> 
C151: =IF($D$12=0," ",IF(B150=$D$12,"TOTALES",+IF(B151>0,VLOOKUP(B151,Simulador_v2!$A$33:$AJ$273,3,0)," "))) ->  | D151: =IF($D$12=0," ",IF(B150=$D$12,Simulador_v2!$K$32,+IF(B151>0,VLOOKUP(B151,Simulador_v2!$A$33:$AJ$273,11,0)," "))) ->  | E151: =IF($D$12=0," ",IF(B150=$D$12,Simulador_v2!$L$32,+IF(B151>0,VLOOKUP(B151,Simulador_v2!$A$33:$AJ$273,12,0)," "))) ->  | F151: =IF($D$12=0," ",IF(B150=$D$12,Simulador_v2!$M$32,+IF(B151>0,VLOOKUP(B151,Simulador_v2!$A$33:$AJ$273,13,0)," "))) ->  | G151: =IF($D$12=0," ",IF(B150=$D$12,Simulador_v2!$T$32,+IF(B151>0,VLOOKUP(B151,Simulador_v2!$A$33:$AJ$273,20,0)," "))) ->  | H151: =IF($D$12=0," ",IF(B150=$D$12,Simulador_v2!$Z$32,+IF(B151>0,VLOOKUP(B151,Simulador_v2!$A$33:$AJ$273,26,0)," "))) ->  | I151: =IF($D$12=0," ",IF(B150=$D$12,Simulador_v2!$W$32,+IF(B151>0,VLOOKUP(B151,Simulador_v2!$A$33:$AJ$273,23,0)," "))) ->  | J151: =IF($D$12=0," ",IF(B150=$D$12,Simulador_v2!$AJ$32,+IF(B151>0,VLOOKUP(B151,Simulador_v2!$A$33:$AJ$273,36,0)," "))) -> 
C152: =IF($D$12=0," ",IF(B151=$D$12,"TOTALES",+IF(B152>0,VLOOKUP(B152,Simulador_v2!$A$33:$AJ$273,3,0)," "))) ->  | D152: =IF($D$12=0," ",IF(B151=$D$12,Simulador_v2!$K$32,+IF(B152>0,VLOOKUP(B152,Simulador_v2!$A$33:$AJ$273,11,0)," "))) ->  | E152: =IF($D$12=0," ",IF(B151=$D$12,Simulador_v2!$L$32,+IF(B152>0,VLOOKUP(B152,Simulador_v2!$A$33:$AJ$273,12,0)," "))) ->  | F152: =IF($D$12=0," ",IF(B151=$D$12,Simulador_v2!$M$32,+IF(B152>0,VLOOKUP(B152,Simulador_v2!$A$33:$AJ$273,13,0)," "))) ->  | G152: =IF($D$12=0," ",IF(B151=$D$12,Simulador_v2!$T$32,+IF(B152>0,VLOOKUP(B152,Simulador_v2!$A$33:$AJ$273,20,0)," "))) ->  | H152: =IF($D$12=0," ",IF(B151=$D$12,Simulador_v2!$Z$32,+IF(B152>0,VLOOKUP(B152,Simulador_v2!$A$33:$AJ$273,26,0)," "))) ->  | I152: =IF($D$12=0," ",IF(B151=$D$12,Simulador_v2!$W$32,+IF(B152>0,VLOOKUP(B152,Simulador_v2!$A$33:$AJ$273,23,0)," "))) ->  | J152: =IF($D$12=0," ",IF(B151=$D$12,Simulador_v2!$AJ$32,+IF(B152>0,VLOOKUP(B152,Simulador_v2!$A$33:$AJ$273,36,0)," "))) -> 
C153: =IF($D$12=0," ",IF(B152=$D$12,"TOTALES",+IF(B153>0,VLOOKUP(B153,Simulador_v2!$A$33:$AJ$273,3,0)," "))) ->  | D153: =IF($D$12=0," ",IF(B152=$D$12,Simulador_v2!$K$32,+IF(B153>0,VLOOKUP(B153,Simulador_v2!$A$33:$AJ$273,11,0)," "))) ->  | E153: =IF($D$12=0," ",IF(B152=$D$12,Simulador_v2!$L$32,+IF(B153>0,VLOOKUP(B153,Simulador_v2!$A$33:$AJ$273,12,0)," "))) ->  | F153: =IF($D$12=0," ",IF(B152=$D$12,Simulador_v2!$M$32,+IF(B153>0,VLOOKUP(B153,Simulador_v2!$A$33:$AJ$273,13,0)," "))) ->  | G153: =IF($D$12=0," ",IF(B152=$D$12,Simulador_v2!$T$32,+IF(B153>0,VLOOKUP(B153,Simulador_v2!$A$33:$AJ$273,20,0)," "))) ->  | H153: =IF($D$12=0," ",IF(B152=$D$12,Simulador_v2!$Z$32,+IF(B153>0,VLOOKUP(B153,Simulador_v2!$A$33:$AJ$273,26,0)," "))) ->  | I153: =IF($D$12=0," ",IF(B152=$D$12,Simulador_v2!$W$32,+IF(B153>0,VLOOKUP(B153,Simulador_v2!$A$33:$AJ$273,23,0)," "))) ->  | J153: =IF($D$12=0," ",IF(B152=$D$12,Simulador_v2!$AJ$32,+IF(B153>0,VLOOKUP(B153,Simulador_v2!$A$33:$AJ$273,36,0)," "))) -> 
C154: =IF($D$12=0," ",IF(B153=$D$12,"TOTALES",+IF(B154>0,VLOOKUP(B154,Simulador_v2!$A$33:$AJ$273,3,0)," "))) ->  | D154: =IF($D$12=0," ",IF(B153=$D$12,Simulador_v2!$K$32,+IF(B154>0,VLOOKUP(B154,Simulador_v2!$A$33:$AJ$273,11,0)," "))) ->  | E154: =IF($D$12=0," ",IF(B153=$D$12,Simulador_v2!$L$32,+IF(B154>0,VLOOKUP(B154,Simulador_v2!$A$33:$AJ$273,12,0)," "))) ->  | F154: =IF($D$12=0," ",IF(B153=$D$12,Simulador_v2!$M$32,+IF(B154>0,VLOOKUP(B154,Simulador_v2!$A$33:$AJ$273,13,0)," "))) ->  | G154: =IF($D$12=0," ",IF(B153=$D$12,Simulador_v2!$T$32,+IF(B154>0,VLOOKUP(B154,Simulador_v2!$A$33:$AJ$273,20,0)," "))) ->  | H154: =IF($D$12=0," ",IF(B153=$D$12,Simulador_v2!$Z$32,+IF(B154>0,VLOOKUP(B154,Simulador_v2!$A$33:$AJ$273,26,0)," "))) ->  | I154: =IF($D$12=0," ",IF(B153=$D$12,Simulador_v2!$W$32,+IF(B154>0,VLOOKUP(B154,Simulador_v2!$A$33:$AJ$273,23,0)," "))) ->  | J154: =IF($D$12=0," ",IF(B153=$D$12,Simulador_v2!$AJ$32,+IF(B154>0,VLOOKUP(B154,Simulador_v2!$A$33:$AJ$273,36,0)," "))) -> 
C155: =IF($D$12=0," ",IF(B154=$D$12,"TOTALES",+IF(B155>0,VLOOKUP(B155,Simulador_v2!$A$33:$AJ$273,3,0)," "))) ->  | D155: =IF($D$12=0," ",IF(B154=$D$12,Simulador_v2!$K$32,+IF(B155>0,VLOOKUP(B155,Simulador_v2!$A$33:$AJ$273,11,0)," "))) ->  | E155: =IF($D$12=0," ",IF(B154=$D$12,Simulador_v2!$L$32,+IF(B155>0,VLOOKUP(B155,Simulador_v2!$A$33:$AJ$273,12,0)," "))) ->  | F155: =IF($D$12=0," ",IF(B154=$D$12,Simulador_v2!$M$32,+IF(B155>0,VLOOKUP(B155,Simulador_v2!$A$33:$AJ$273,13,0)," "))) ->  | G155: =IF($D$12=0," ",IF(B154=$D$12,Simulador_v2!$T$32,+IF(B155>0,VLOOKUP(B155,Simulador_v2!$A$33:$AJ$273,20,0)," "))) ->  | H155: =IF($D$12=0," ",IF(B154=$D$12,Simulador_v2!$Z$32,+IF(B155>0,VLOOKUP(B155,Simulador_v2!$A$33:$AJ$273,26,0)," "))) ->  | I155: =IF($D$12=0," ",IF(B154=$D$12,Simulador_v2!$W$32,+IF(B155>0,VLOOKUP(B155,Simulador_v2!$A$33:$AJ$273,23,0)," "))) ->  | J155: =IF($D$12=0," ",IF(B154=$D$12,Simulador_v2!$AJ$32,+IF(B155>0,VLOOKUP(B155,Simulador_v2!$A$33:$AJ$273,36,0)," "))) -> 
C156: =IF($D$12=0," ",IF(B155=$D$12,"TOTALES",+IF(B156>0,VLOOKUP(B156,Simulador_v2!$A$33:$AJ$273,3,0)," "))) ->  | D156: =IF($D$12=0," ",IF(B155=$D$12,Simulador_v2!$K$32,+IF(B156>0,VLOOKUP(B156,Simulador_v2!$A$33:$AJ$273,11,0)," "))) ->  | E156: =IF($D$12=0," ",IF(B155=$D$12,Simulador_v2!$L$32,+IF(B156>0,VLOOKUP(B156,Simulador_v2!$A$33:$AJ$273,12,0)," "))) ->  | F156: =IF($D$12=0," ",IF(B155=$D$12,Simulador_v2!$M$32,+IF(B156>0,VLOOKUP(B156,Simulador_v2!$A$33:$AJ$273,13,0)," "))) ->  | G156: =IF($D$12=0," ",IF(B155=$D$12,Simulador_v2!$T$32,+IF(B156>0,VLOOKUP(B156,Simulador_v2!$A$33:$AJ$273,20,0)," "))) ->  | H156: =IF($D$12=0," ",IF(B155=$D$12,Simulador_v2!$Z$32,+IF(B156>0,VLOOKUP(B156,Simulador_v2!$A$33:$AJ$273,26,0)," "))) ->  | I156: =IF($D$12=0," ",IF(B155=$D$12,Simulador_v2!$W$32,+IF(B156>0,VLOOKUP(B156,Simulador_v2!$A$33:$AJ$273,23,0)," "))) ->  | J156: =IF($D$12=0," ",IF(B155=$D$12,Simulador_v2!$AJ$32,+IF(B156>0,VLOOKUP(B156,Simulador_v2!$A$33:$AJ$273,36,0)," "))) -> 
C157: =IF($D$12=0," ",IF(B156=$D$12,"TOTALES",+IF(B157>0,VLOOKUP(B157,Simulador_v2!$A$33:$AJ$273,3,0)," "))) ->  | D157: =IF($D$12=0," ",IF(B156=$D$12,Simulador_v2!$K$32,+IF(B157>0,VLOOKUP(B157,Simulador_v2!$A$33:$AJ$273,11,0)," "))) ->  | E157: =IF($D$12=0," ",IF(B156=$D$12,Simulador_v2!$L$32,+IF(B157>0,VLOOKUP(B157,Simulador_v2!$A$33:$AJ$273,12,0)," "))) ->  | F157: =IF($D$12=0," ",IF(B156=$D$12,Simulador_v2!$M$32,+IF(B157>0,VLOOKUP(B157,Simulador_v2!$A$33:$AJ$273,13,0)," "))) ->  | G157: =IF($D$12=0," ",IF(B156=$D$12,Simulador_v2!$T$32,+IF(B157>0,VLOOKUP(B157,Simulador_v2!$A$33:$AJ$273,20,0)," "))) ->  | H157: =IF($D$12=0," ",IF(B156=$D$12,Simulador_v2!$Z$32,+IF(B157>0,VLOOKUP(B157,Simulador_v2!$A$33:$AJ$273,26,0)," "))) ->  | I157: =IF($D$12=0," ",IF(B156=$D$12,Simulador_v2!$W$32,+IF(B157>0,VLOOKUP(B157,Simulador_v2!$A$33:$AJ$273,23,0)," "))) ->  | J157: =IF($D$12=0," ",IF(B156=$D$12,Simulador_v2!$AJ$32,+IF(B157>0,VLOOKUP(B157,Simulador_v2!$A$33:$AJ$273,36,0)," "))) -> 
C158: =IF($D$12=0," ",IF(B157=$D$12,"TOTALES",+IF(B158>0,VLOOKUP(B158,Simulador_v2!$A$33:$AJ$273,3,0)," "))) ->  | D158: =IF($D$12=0," ",IF(B157=$D$12,Simulador_v2!$K$32,+IF(B158>0,VLOOKUP(B158,Simulador_v2!$A$33:$AJ$273,11,0)," "))) ->  | E158: =IF($D$12=0," ",IF(B157=$D$12,Simulador_v2!$L$32,+IF(B158>0,VLOOKUP(B158,Simulador_v2!$A$33:$AJ$273,12,0)," "))) ->  | F158: =IF($D$12=0," ",IF(B157=$D$12,Simulador_v2!$M$32,+IF(B158>0,VLOOKUP(B158,Simulador_v2!$A$33:$AJ$273,13,0)," "))) ->  | G158: =IF($D$12=0," ",IF(B157=$D$12,Simulador_v2!$T$32,+IF(B158>0,VLOOKUP(B158,Simulador_v2!$A$33:$AJ$273,20,0)," "))) ->  | H158: =IF($D$12=0," ",IF(B157=$D$12,Simulador_v2!$Z$32,+IF(B158>0,VLOOKUP(B158,Simulador_v2!$A$33:$AJ$273,26,0)," "))) ->  | I158: =IF($D$12=0," ",IF(B157=$D$12,Simulador_v2!$W$32,+IF(B158>0,VLOOKUP(B158,Simulador_v2!$A$33:$AJ$273,23,0)," "))) ->  | J158: =IF($D$12=0," ",IF(B157=$D$12,Simulador_v2!$AJ$32,+IF(B158>0,VLOOKUP(B158,Simulador_v2!$A$33:$AJ$273,36,0)," "))) -> 
C159: =IF($D$12=0," ",IF(B158=$D$12,"TOTALES",+IF(B159>0,VLOOKUP(B159,Simulador_v2!$A$33:$AJ$273,3,0)," "))) ->  | D159: =IF($D$12=0," ",IF(B158=$D$12,Simulador_v2!$K$32,+IF(B159>0,VLOOKUP(B159,Simulador_v2!$A$33:$AJ$273,11,0)," "))) ->  | E159: =IF($D$12=0," ",IF(B158=$D$12,Simulador_v2!$L$32,+IF(B159>0,VLOOKUP(B159,Simulador_v2!$A$33:$AJ$273,12,0)," "))) ->  | F159: =IF($D$12=0," ",IF(B158=$D$12,Simulador_v2!$M$32,+IF(B159>0,VLOOKUP(B159,Simulador_v2!$A$33:$AJ$273,13,0)," "))) ->  | G159: =IF($D$12=0," ",IF(B158=$D$12,Simulador_v2!$T$32,+IF(B159>0,VLOOKUP(B159,Simulador_v2!$A$33:$AJ$273,20,0)," "))) ->  | H159: =IF($D$12=0," ",IF(B158=$D$12,Simulador_v2!$Z$32,+IF(B159>0,VLOOKUP(B159,Simulador_v2!$A$33:$AJ$273,26,0)," "))) ->  | I159: =IF($D$12=0," ",IF(B158=$D$12,Simulador_v2!$W$32,+IF(B159>0,VLOOKUP(B159,Simulador_v2!$A$33:$AJ$273,23,0)," "))) ->  | J159: =IF($D$12=0," ",IF(B158=$D$12,Simulador_v2!$AJ$32,+IF(B159>0,VLOOKUP(B159,Simulador_v2!$A$33:$AJ$273,36,0)," "))) -> 
C160: =IF($D$12=0," ",IF(B159=$D$12,"TOTALES",+IF(B160>0,VLOOKUP(B160,Simulador_v2!$A$33:$AJ$273,3,0)," "))) ->  | D160: =IF($D$12=0," ",IF(B159=$D$12,Simulador_v2!$K$32,+IF(B160>0,VLOOKUP(B160,Simulador_v2!$A$33:$AJ$273,11,0)," "))) ->  | E160: =IF($D$12=0," ",IF(B159=$D$12,Simulador_v2!$L$32,+IF(B160>0,VLOOKUP(B160,Simulador_v2!$A$33:$AJ$273,12,0)," "))) ->  | F160: =IF($D$12=0," ",IF(B159=$D$12,Simulador_v2!$M$32,+IF(B160>0,VLOOKUP(B160,Simulador_v2!$A$33:$AJ$273,13,0)," "))) ->  | G160: =IF($D$12=0," ",IF(B159=$D$12,Simulador_v2!$T$32,+IF(B160>0,VLOOKUP(B160,Simulador_v2!$A$33:$AJ$273,20,0)," "))) ->  | H160: =IF($D$12=0," ",IF(B159=$D$12,Simulador_v2!$Z$32,+IF(B160>0,VLOOKUP(B160,Simulador_v2!$A$33:$AJ$273,26,0)," "))) ->  | I160: =IF($D$12=0," ",IF(B159=$D$12,Simulador_v2!$W$32,+IF(B160>0,VLOOKUP(B160,Simulador_v2!$A$33:$AJ$273,23,0)," "))) ->  | J160: =IF($D$12=0," ",IF(B159=$D$12,Simulador_v2!$AJ$32,+IF(B160>0,VLOOKUP(B160,Simulador_v2!$A$33:$AJ$273,36,0)," "))) -> 
C161: =IF($D$12=0," ",IF(B160=$D$12,"TOTALES",+IF(B161>0,VLOOKUP(B161,Simulador_v2!$A$33:$AJ$273,3,0)," "))) ->  | D161: =IF($D$12=0," ",IF(B160=$D$12,Simulador_v2!$K$32,+IF(B161>0,VLOOKUP(B161,Simulador_v2!$A$33:$AJ$273,11,0)," "))) ->  | E161: =IF($D$12=0," ",IF(B160=$D$12,Simulador_v2!$L$32,+IF(B161>0,VLOOKUP(B161,Simulador_v2!$A$33:$AJ$273,12,0)," "))) ->  | F161: =IF($D$12=0," ",IF(B160=$D$12,Simulador_v2!$M$32,+IF(B161>0,VLOOKUP(B161,Simulador_v2!$A$33:$AJ$273,13,0)," "))) ->  | G161: =IF($D$12=0," ",IF(B160=$D$12,Simulador_v2!$T$32,+IF(B161>0,VLOOKUP(B161,Simulador_v2!$A$33:$AJ$273,20,0)," "))) ->  | H161: =IF($D$12=0," ",IF(B160=$D$12,Simulador_v2!$Z$32,+IF(B161>0,VLOOKUP(B161,Simulador_v2!$A$33:$AJ$273,26,0)," "))) ->  | I161: =IF($D$12=0," ",IF(B160=$D$12,Simulador_v2!$W$32,+IF(B161>0,VLOOKUP(B161,Simulador_v2!$A$33:$AJ$273,23,0)," "))) ->  | J161: =IF($D$12=0," ",IF(B160=$D$12,Simulador_v2!$AJ$32,+IF(B161>0,VLOOKUP(B161,Simulador_v2!$A$33:$AJ$273,36,0)," "))) -> 
C162: =IF($D$12=0," ",IF(B161=$D$12,"TOTALES",+IF(B162>0,VLOOKUP(B162,Simulador_v2!$A$33:$AJ$273,3,0)," "))) ->  | D162: =IF($D$12=0," ",IF(B161=$D$12,Simulador_v2!$K$32,+IF(B162>0,VLOOKUP(B162,Simulador_v2!$A$33:$AJ$273,11,0)," "))) ->  | E162: =IF($D$12=0," ",IF(B161=$D$12,Simulador_v2!$L$32,+IF(B162>0,VLOOKUP(B162,Simulador_v2!$A$33:$AJ$273,12,0)," "))) ->  | F162: =IF($D$12=0," ",IF(B161=$D$12,Simulador_v2!$M$32,+IF(B162>0,VLOOKUP(B162,Simulador_v2!$A$33:$AJ$273,13,0)," "))) ->  | G162: =IF($D$12=0," ",IF(B161=$D$12,Simulador_v2!$T$32,+IF(B162>0,VLOOKUP(B162,Simulador_v2!$A$33:$AJ$273,20,0)," "))) ->  | H162: =IF($D$12=0," ",IF(B161=$D$12,Simulador_v2!$Z$32,+IF(B162>0,VLOOKUP(B162,Simulador_v2!$A$33:$AJ$273,26,0)," "))) ->  | I162: =IF($D$12=0," ",IF(B161=$D$12,Simulador_v2!$W$32,+IF(B162>0,VLOOKUP(B162,Simulador_v2!$A$33:$AJ$273,23,0)," "))) ->  | J162: =IF($D$12=0," ",IF(B161=$D$12,Simulador_v2!$AJ$32,+IF(B162>0,VLOOKUP(B162,Simulador_v2!$A$33:$AJ$273,36,0)," "))) -> 
C163: =IF($D$12=0," ",IF(B162=$D$12,"TOTALES",+IF(B163>0,VLOOKUP(B163,Simulador_v2!$A$33:$AJ$273,3,0)," "))) ->  | D163: =IF($D$12=0," ",IF(B162=$D$12,Simulador_v2!$K$32,+IF(B163>0,VLOOKUP(B163,Simulador_v2!$A$33:$AJ$273,11,0)," "))) ->  | E163: =IF($D$12=0," ",IF(B162=$D$12,Simulador_v2!$L$32,+IF(B163>0,VLOOKUP(B163,Simulador_v2!$A$33:$AJ$273,12,0)," "))) ->  | F163: =IF($D$12=0," ",IF(B162=$D$12,Simulador_v2!$M$32,+IF(B163>0,VLOOKUP(B163,Simulador_v2!$A$33:$AJ$273,13,0)," "))) ->  | G163: =IF($D$12=0," ",IF(B162=$D$12,Simulador_v2!$T$32,+IF(B163>0,VLOOKUP(B163,Simulador_v2!$A$33:$AJ$273,20,0)," "))) ->  | H163: =IF($D$12=0," ",IF(B162=$D$12,Simulador_v2!$Z$32,+IF(B163>0,VLOOKUP(B163,Simulador_v2!$A$33:$AJ$273,26,0)," "))) ->  | I163: =IF($D$12=0," ",IF(B162=$D$12,Simulador_v2!$W$32,+IF(B163>0,VLOOKUP(B163,Simulador_v2!$A$33:$AJ$273,23,0)," "))) ->  | J163: =IF($D$12=0," ",IF(B162=$D$12,Simulador_v2!$AJ$32,+IF(B163>0,VLOOKUP(B163,Simulador_v2!$A$33:$AJ$273,36,0)," "))) -> 
C164: =IF($D$12=0," ",IF(B163=$D$12,"TOTALES",+IF(B164>0,VLOOKUP(B164,Simulador_v2!$A$33:$AJ$273,3,0)," "))) ->  | D164: =IF($D$12=0," ",IF(B163=$D$12,Simulador_v2!$K$32,+IF(B164>0,VLOOKUP(B164,Simulador_v2!$A$33:$AJ$273,11,0)," "))) ->  | E164: =IF($D$12=0," ",IF(B163=$D$12,Simulador_v2!$L$32,+IF(B164>0,VLOOKUP(B164,Simulador_v2!$A$33:$AJ$273,12,0)," "))) ->  | F164: =IF($D$12=0," ",IF(B163=$D$12,Simulador_v2!$M$32,+IF(B164>0,VLOOKUP(B164,Simulador_v2!$A$33:$AJ$273,13,0)," "))) ->  | G164: =IF($D$12=0," ",IF(B163=$D$12,Simulador_v2!$T$32,+IF(B164>0,VLOOKUP(B164,Simulador_v2!$A$33:$AJ$273,20,0)," "))) ->  | H164: =IF($D$12=0," ",IF(B163=$D$12,Simulador_v2!$Z$32,+IF(B164>0,VLOOKUP(B164,Simulador_v2!$A$33:$AJ$273,26,0)," "))) ->  | I164: =IF($D$12=0," ",IF(B163=$D$12,Simulador_v2!$W$32,+IF(B164>0,VLOOKUP(B164,Simulador_v2!$A$33:$AJ$273,23,0)," "))) ->  | J164: =IF($D$12=0," ",IF(B163=$D$12,Simulador_v2!$AJ$32,+IF(B164>0,VLOOKUP(B164,Simulador_v2!$A$33:$AJ$273,36,0)," "))) -> 
C165: =IF($D$12=0," ",IF(B164=$D$12,"TOTALES",+IF(B165>0,VLOOKUP(B165,Simulador_v2!$A$33:$AJ$273,3,0)," "))) ->  | D165: =IF($D$12=0," ",IF(B164=$D$12,Simulador_v2!$K$32,+IF(B165>0,VLOOKUP(B165,Simulador_v2!$A$33:$AJ$273,11,0)," "))) ->  | E165: =IF($D$12=0," ",IF(B164=$D$12,Simulador_v2!$L$32,+IF(B165>0,VLOOKUP(B165,Simulador_v2!$A$33:$AJ$273,12,0)," "))) ->  | F165: =IF($D$12=0," ",IF(B164=$D$12,Simulador_v2!$M$32,+IF(B165>0,VLOOKUP(B165,Simulador_v2!$A$33:$AJ$273,13,0)," "))) ->  | G165: =IF($D$12=0," ",IF(B164=$D$12,Simulador_v2!$T$32,+IF(B165>0,VLOOKUP(B165,Simulador_v2!$A$33:$AJ$273,20,0)," "))) ->  | H165: =IF($D$12=0," ",IF(B164=$D$12,Simulador_v2!$Z$32,+IF(B165>0,VLOOKUP(B165,Simulador_v2!$A$33:$AJ$273,26,0)," "))) ->  | I165: =IF($D$12=0," ",IF(B164=$D$12,Simulador_v2!$W$32,+IF(B165>0,VLOOKUP(B165,Simulador_v2!$A$33:$AJ$273,23,0)," "))) ->  | J165: =IF($D$12=0," ",IF(B164=$D$12,Simulador_v2!$AJ$32,+IF(B165>0,VLOOKUP(B165,Simulador_v2!$A$33:$AJ$273,36,0)," "))) -> 
C166: =IF($D$12=0," ",IF(B165=$D$12,"TOTALES",+IF(B166>0,VLOOKUP(B166,Simulador_v2!$A$33:$AJ$273,3,0)," "))) ->  | D166: =IF($D$12=0," ",IF(B165=$D$12,Simulador_v2!$K$32,+IF(B166>0,VLOOKUP(B166,Simulador_v2!$A$33:$AJ$273,11,0)," "))) ->  | E166: =IF($D$12=0," ",IF(B165=$D$12,Simulador_v2!$L$32,+IF(B166>0,VLOOKUP(B166,Simulador_v2!$A$33:$AJ$273,12,0)," "))) ->  | F166: =IF($D$12=0," ",IF(B165=$D$12,Simulador_v2!$M$32,+IF(B166>0,VLOOKUP(B166,Simulador_v2!$A$33:$AJ$273,13,0)," "))) ->  | G166: =IF($D$12=0," ",IF(B165=$D$12,Simulador_v2!$T$32,+IF(B166>0,VLOOKUP(B166,Simulador_v2!$A$33:$AJ$273,20,0)," "))) ->  | H166: =IF($D$12=0," ",IF(B165=$D$12,Simulador_v2!$Z$32,+IF(B166>0,VLOOKUP(B166,Simulador_v2!$A$33:$AJ$273,26,0)," "))) ->  | I166: =IF($D$12=0," ",IF(B165=$D$12,Simulador_v2!$W$32,+IF(B166>0,VLOOKUP(B166,Simulador_v2!$A$33:$AJ$273,23,0)," "))) ->  | J166: =IF($D$12=0," ",IF(B165=$D$12,Simulador_v2!$AJ$32,+IF(B166>0,VLOOKUP(B166,Simulador_v2!$A$33:$AJ$273,36,0)," "))) -> 
C167: =IF($D$12=0," ",IF(B166=$D$12,"TOTALES",+IF(B167>0,VLOOKUP(B167,Simulador_v2!$A$33:$AJ$273,3,0)," "))) ->  | D167: =IF($D$12=0," ",IF(B166=$D$12,Simulador_v2!$K$32,+IF(B167>0,VLOOKUP(B167,Simulador_v2!$A$33:$AJ$273,11,0)," "))) ->  | E167: =IF($D$12=0," ",IF(B166=$D$12,Simulador_v2!$L$32,+IF(B167>0,VLOOKUP(B167,Simulador_v2!$A$33:$AJ$273,12,0)," "))) ->  | F167: =IF($D$12=0," ",IF(B166=$D$12,Simulador_v2!$M$32,+IF(B167>0,VLOOKUP(B167,Simulador_v2!$A$33:$AJ$273,13,0)," "))) ->  | G167: =IF($D$12=0," ",IF(B166=$D$12,Simulador_v2!$T$32,+IF(B167>0,VLOOKUP(B167,Simulador_v2!$A$33:$AJ$273,20,0)," "))) ->  | H167: =IF($D$12=0," ",IF(B166=$D$12,Simulador_v2!$Z$32,+IF(B167>0,VLOOKUP(B167,Simulador_v2!$A$33:$AJ$273,26,0)," "))) ->  | I167: =IF($D$12=0," ",IF(B166=$D$12,Simulador_v2!$W$32,+IF(B167>0,VLOOKUP(B167,Simulador_v2!$A$33:$AJ$273,23,0)," "))) ->  | J167: =IF($D$12=0," ",IF(B166=$D$12,Simulador_v2!$AJ$32,+IF(B167>0,VLOOKUP(B167,Simulador_v2!$A$33:$AJ$273,36,0)," "))) -> 
C168: =IF($D$12=0," ",IF(B167=$D$12,"TOTALES",+IF(B168>0,VLOOKUP(B168,Simulador_v2!$A$33:$AJ$273,3,0)," "))) ->  | D168: =IF($D$12=0," ",IF(B167=$D$12,Simulador_v2!$K$32,+IF(B168>0,VLOOKUP(B168,Simulador_v2!$A$33:$AJ$273,11,0)," "))) ->  | E168: =IF($D$12=0," ",IF(B167=$D$12,Simulador_v2!$L$32,+IF(B168>0,VLOOKUP(B168,Simulador_v2!$A$33:$AJ$273,12,0)," "))) ->  | F168: =IF($D$12=0," ",IF(B167=$D$12,Simulador_v2!$M$32,+IF(B168>0,VLOOKUP(B168,Simulador_v2!$A$33:$AJ$273,13,0)," "))) ->  | G168: =IF($D$12=0," ",IF(B167=$D$12,Simulador_v2!$T$32,+IF(B168>0,VLOOKUP(B168,Simulador_v2!$A$33:$AJ$273,20,0)," "))) ->  | H168: =IF($D$12=0," ",IF(B167=$D$12,Simulador_v2!$Z$32,+IF(B168>0,VLOOKUP(B168,Simulador_v2!$A$33:$AJ$273,26,0)," "))) ->  | I168: =IF($D$12=0," ",IF(B167=$D$12,Simulador_v2!$W$32,+IF(B168>0,VLOOKUP(B168,Simulador_v2!$A$33:$AJ$273,23,0)," "))) ->  | J168: =IF($D$12=0," ",IF(B167=$D$12,Simulador_v2!$AJ$32,+IF(B168>0,VLOOKUP(B168,Simulador_v2!$A$33:$AJ$273,36,0)," "))) -> 
C169: =IF($D$12=0," ",IF(B168=$D$12,"TOTALES",+IF(B169>0,VLOOKUP(B169,Simulador_v2!$A$33:$AJ$273,3,0)," "))) ->  | D169: =IF($D$12=0," ",IF(B168=$D$12,Simulador_v2!$K$32,+IF(B169>0,VLOOKUP(B169,Simulador_v2!$A$33:$AJ$273,11,0)," "))) ->  | E169: =IF($D$12=0," ",IF(B168=$D$12,Simulador_v2!$L$32,+IF(B169>0,VLOOKUP(B169,Simulador_v2!$A$33:$AJ$273,12,0)," "))) ->  | F169: =IF($D$12=0," ",IF(B168=$D$12,Simulador_v2!$M$32,+IF(B169>0,VLOOKUP(B169,Simulador_v2!$A$33:$AJ$273,13,0)," "))) ->  | G169: =IF($D$12=0," ",IF(B168=$D$12,Simulador_v2!$T$32,+IF(B169>0,VLOOKUP(B169,Simulador_v2!$A$33:$AJ$273,20,0)," "))) ->  | H169: =IF($D$12=0," ",IF(B168=$D$12,Simulador_v2!$Z$32,+IF(B169>0,VLOOKUP(B169,Simulador_v2!$A$33:$AJ$273,26,0)," "))) ->  | I169: =IF($D$12=0," ",IF(B168=$D$12,Simulador_v2!$W$32,+IF(B169>0,VLOOKUP(B169,Simulador_v2!$A$33:$AJ$273,23,0)," "))) ->  | J169: =IF($D$12=0," ",IF(B168=$D$12,Simulador_v2!$AJ$32,+IF(B169>0,VLOOKUP(B169,Simulador_v2!$A$33:$AJ$273,36,0)," "))) -> 
C170: =IF($D$12=0," ",IF(B169=$D$12,"TOTALES",+IF(B170>0,VLOOKUP(B170,Simulador_v2!$A$33:$AJ$273,3,0)," "))) ->  | D170: =IF($D$12=0," ",IF(B169=$D$12,Simulador_v2!$K$32,+IF(B170>0,VLOOKUP(B170,Simulador_v2!$A$33:$AJ$273,11,0)," "))) ->  | E170: =IF($D$12=0," ",IF(B169=$D$12,Simulador_v2!$L$32,+IF(B170>0,VLOOKUP(B170,Simulador_v2!$A$33:$AJ$273,12,0)," "))) ->  | F170: =IF($D$12=0," ",IF(B169=$D$12,Simulador_v2!$M$32,+IF(B170>0,VLOOKUP(B170,Simulador_v2!$A$33:$AJ$273,13,0)," "))) ->  | G170: =IF($D$12=0," ",IF(B169=$D$12,Simulador_v2!$T$32,+IF(B170>0,VLOOKUP(B170,Simulador_v2!$A$33:$AJ$273,20,0)," "))) ->  | H170: =IF($D$12=0," ",IF(B169=$D$12,Simulador_v2!$Z$32,+IF(B170>0,VLOOKUP(B170,Simulador_v2!$A$33:$AJ$273,26,0)," "))) ->  | I170: =IF($D$12=0," ",IF(B169=$D$12,Simulador_v2!$W$32,+IF(B170>0,VLOOKUP(B170,Simulador_v2!$A$33:$AJ$273,23,0)," "))) ->  | J170: =IF($D$12=0," ",IF(B169=$D$12,Simulador_v2!$AJ$32,+IF(B170>0,VLOOKUP(B170,Simulador_v2!$A$33:$AJ$273,36,0)," "))) -> 
C171: =IF($D$12=0," ",IF(B170=$D$12,"TOTALES",+IF(B171>0,VLOOKUP(B171,Simulador_v2!$A$33:$AJ$273,3,0)," "))) ->  | D171: =IF($D$12=0," ",IF(B170=$D$12,Simulador_v2!$K$32,+IF(B171>0,VLOOKUP(B171,Simulador_v2!$A$33:$AJ$273,11,0)," "))) ->  | E171: =IF($D$12=0," ",IF(B170=$D$12,Simulador_v2!$L$32,+IF(B171>0,VLOOKUP(B171,Simulador_v2!$A$33:$AJ$273,12,0)," "))) ->  | F171: =IF($D$12=0," ",IF(B170=$D$12,Simulador_v2!$M$32,+IF(B171>0,VLOOKUP(B171,Simulador_v2!$A$33:$AJ$273,13,0)," "))) ->  | G171: =IF($D$12=0," ",IF(B170=$D$12,Simulador_v2!$T$32,+IF(B171>0,VLOOKUP(B171,Simulador_v2!$A$33:$AJ$273,20,0)," "))) ->  | H171: =IF($D$12=0," ",IF(B170=$D$12,Simulador_v2!$Z$32,+IF(B171>0,VLOOKUP(B171,Simulador_v2!$A$33:$AJ$273,26,0)," "))) ->  | I171: =IF($D$12=0," ",IF(B170=$D$12,Simulador_v2!$W$32,+IF(B171>0,VLOOKUP(B171,Simulador_v2!$A$33:$AJ$273,23,0)," "))) ->  | J171: =IF($D$12=0," ",IF(B170=$D$12,Simulador_v2!$AJ$32,+IF(B171>0,VLOOKUP(B171,Simulador_v2!$A$33:$AJ$273,36,0)," "))) -> 
C172: =IF($D$12=0," ",IF(B171=$D$12,"TOTALES",+IF(B172>0,VLOOKUP(B172,Simulador_v2!$A$33:$AJ$273,3,0)," "))) ->  | D172: =IF($D$12=0," ",IF(B171=$D$12,Simulador_v2!$K$32,+IF(B172>0,VLOOKUP(B172,Simulador_v2!$A$33:$AJ$273,11,0)," "))) ->  | E172: =IF($D$12=0," ",IF(B171=$D$12,Simulador_v2!$L$32,+IF(B172>0,VLOOKUP(B172,Simulador_v2!$A$33:$AJ$273,12,0)," "))) ->  | F172: =IF($D$12=0," ",IF(B171=$D$12,Simulador_v2!$M$32,+IF(B172>0,VLOOKUP(B172,Simulador_v2!$A$33:$AJ$273,13,0)," "))) ->  | G172: =IF($D$12=0," ",IF(B171=$D$12,Simulador_v2!$T$32,+IF(B172>0,VLOOKUP(B172,Simulador_v2!$A$33:$AJ$273,20,0)," "))) ->  | H172: =IF($D$12=0," ",IF(B171=$D$12,Simulador_v2!$Z$32,+IF(B172>0,VLOOKUP(B172,Simulador_v2!$A$33:$AJ$273,26,0)," "))) ->  | I172: =IF($D$12=0," ",IF(B171=$D$12,Simulador_v2!$W$32,+IF(B172>0,VLOOKUP(B172,Simulador_v2!$A$33:$AJ$273,23,0)," "))) ->  | J172: =IF($D$12=0," ",IF(B171=$D$12,Simulador_v2!$AJ$32,+IF(B172>0,VLOOKUP(B172,Simulador_v2!$A$33:$AJ$273,36,0)," "))) -> 
C173: =IF($D$12=0," ",IF(B172=$D$12,"TOTALES",+IF(B173>0,VLOOKUP(B173,Simulador_v2!$A$33:$AJ$273,3,0)," "))) ->  | D173: =IF($D$12=0," ",IF(B172=$D$12,Simulador_v2!$K$32,+IF(B173>0,VLOOKUP(B173,Simulador_v2!$A$33:$AJ$273,11,0)," "))) ->  | E173: =IF($D$12=0," ",IF(B172=$D$12,Simulador_v2!$L$32,+IF(B173>0,VLOOKUP(B173,Simulador_v2!$A$33:$AJ$273,12,0)," "))) ->  | F173: =IF($D$12=0," ",IF(B172=$D$12,Simulador_v2!$M$32,+IF(B173>0,VLOOKUP(B173,Simulador_v2!$A$33:$AJ$273,13,0)," "))) ->  | G173: =IF($D$12=0," ",IF(B172=$D$12,Simulador_v2!$T$32,+IF(B173>0,VLOOKUP(B173,Simulador_v2!$A$33:$AJ$273,20,0)," "))) ->  | H173: =IF($D$12=0," ",IF(B172=$D$12,Simulador_v2!$Z$32,+IF(B173>0,VLOOKUP(B173,Simulador_v2!$A$33:$AJ$273,26,0)," "))) ->  | I173: =IF($D$12=0," ",IF(B172=$D$12,Simulador_v2!$W$32,+IF(B173>0,VLOOKUP(B173,Simulador_v2!$A$33:$AJ$273,23,0)," "))) ->  | J173: =IF($D$12=0," ",IF(B172=$D$12,Simulador_v2!$AJ$32,+IF(B173>0,VLOOKUP(B173,Simulador_v2!$A$33:$AJ$273,36,0)," "))) -> 
C174: =IF($D$12=0," ",IF(B173=$D$12,"TOTALES",+IF(B174>0,VLOOKUP(B174,Simulador_v2!$A$33:$AJ$273,3,0)," "))) ->  | D174: =IF($D$12=0," ",IF(B173=$D$12,Simulador_v2!$K$32,+IF(B174>0,VLOOKUP(B174,Simulador_v2!$A$33:$AJ$273,11,0)," "))) ->  | E174: =IF($D$12=0," ",IF(B173=$D$12,Simulador_v2!$L$32,+IF(B174>0,VLOOKUP(B174,Simulador_v2!$A$33:$AJ$273,12,0)," "))) ->  | F174: =IF($D$12=0," ",IF(B173=$D$12,Simulador_v2!$M$32,+IF(B174>0,VLOOKUP(B174,Simulador_v2!$A$33:$AJ$273,13,0)," "))) ->  | G174: =IF($D$12=0," ",IF(B173=$D$12,Simulador_v2!$T$32,+IF(B174>0,VLOOKUP(B174,Simulador_v2!$A$33:$AJ$273,20,0)," "))) ->  | H174: =IF($D$12=0," ",IF(B173=$D$12,Simulador_v2!$Z$32,+IF(B174>0,VLOOKUP(B174,Simulador_v2!$A$33:$AJ$273,26,0)," "))) ->  | I174: =IF($D$12=0," ",IF(B173=$D$12,Simulador_v2!$W$32,+IF(B174>0,VLOOKUP(B174,Simulador_v2!$A$33:$AJ$273,23,0)," "))) ->  | J174: =IF($D$12=0," ",IF(B173=$D$12,Simulador_v2!$AJ$32,+IF(B174>0,VLOOKUP(B174,Simulador_v2!$A$33:$AJ$273,36,0)," "))) -> 
C175: =IF($D$12=0," ",IF(B174=$D$12,"TOTALES",+IF(B175>0,VLOOKUP(B175,Simulador_v2!$A$33:$AJ$273,3,0)," "))) ->  | D175: =IF($D$12=0," ",IF(B174=$D$12,Simulador_v2!$K$32,+IF(B175>0,VLOOKUP(B175,Simulador_v2!$A$33:$AJ$273,11,0)," "))) ->  | E175: =IF($D$12=0," ",IF(B174=$D$12,Simulador_v2!$L$32,+IF(B175>0,VLOOKUP(B175,Simulador_v2!$A$33:$AJ$273,12,0)," "))) ->  | F175: =IF($D$12=0," ",IF(B174=$D$12,Simulador_v2!$M$32,+IF(B175>0,VLOOKUP(B175,Simulador_v2!$A$33:$AJ$273,13,0)," "))) ->  | G175: =IF($D$12=0," ",IF(B174=$D$12,Simulador_v2!$T$32,+IF(B175>0,VLOOKUP(B175,Simulador_v2!$A$33:$AJ$273,20,0)," "))) ->  | H175: =IF($D$12=0," ",IF(B174=$D$12,Simulador_v2!$Z$32,+IF(B175>0,VLOOKUP(B175,Simulador_v2!$A$33:$AJ$273,26,0)," "))) ->  | I175: =IF($D$12=0," ",IF(B174=$D$12,Simulador_v2!$W$32,+IF(B175>0,VLOOKUP(B175,Simulador_v2!$A$33:$AJ$273,23,0)," "))) ->  | J175: =IF($D$12=0," ",IF(B174=$D$12,Simulador_v2!$AJ$32,+IF(B175>0,VLOOKUP(B175,Simulador_v2!$A$33:$AJ$273,36,0)," "))) -> 
C176: =IF($D$12=0," ",IF(B175=$D$12,"TOTALES",+IF(B176>0,VLOOKUP(B176,Simulador_v2!$A$33:$AJ$273,3,0)," "))) ->  | D176: =IF($D$12=0," ",IF(B175=$D$12,Simulador_v2!$K$32,+IF(B176>0,VLOOKUP(B176,Simulador_v2!$A$33:$AJ$273,11,0)," "))) ->  | E176: =IF($D$12=0," ",IF(B175=$D$12,Simulador_v2!$L$32,+IF(B176>0,VLOOKUP(B176,Simulador_v2!$A$33:$AJ$273,12,0)," "))) ->  | F176: =IF($D$12=0," ",IF(B175=$D$12,Simulador_v2!$M$32,+IF(B176>0,VLOOKUP(B176,Simulador_v2!$A$33:$AJ$273,13,0)," "))) ->  | G176: =IF($D$12=0," ",IF(B175=$D$12,Simulador_v2!$T$32,+IF(B176>0,VLOOKUP(B176,Simulador_v2!$A$33:$AJ$273,20,0)," "))) ->  | H176: =IF($D$12=0," ",IF(B175=$D$12,Simulador_v2!$Z$32,+IF(B176>0,VLOOKUP(B176,Simulador_v2!$A$33:$AJ$273,26,0)," "))) ->  | I176: =IF($D$12=0," ",IF(B175=$D$12,Simulador_v2!$W$32,+IF(B176>0,VLOOKUP(B176,Simulador_v2!$A$33:$AJ$273,23,0)," "))) ->  | J176: =IF($D$12=0," ",IF(B175=$D$12,Simulador_v2!$AJ$32,+IF(B176>0,VLOOKUP(B176,Simulador_v2!$A$33:$AJ$273,36,0)," "))) -> 
C177: =IF($D$12=0," ",IF(B176=$D$12,"TOTALES",+IF(B177>0,VLOOKUP(B177,Simulador_v2!$A$33:$AJ$273,3,0)," "))) ->  | D177: =IF($D$12=0," ",IF(B176=$D$12,Simulador_v2!$K$32,+IF(B177>0,VLOOKUP(B177,Simulador_v2!$A$33:$AJ$273,11,0)," "))) ->  | E177: =IF($D$12=0," ",IF(B176=$D$12,Simulador_v2!$L$32,+IF(B177>0,VLOOKUP(B177,Simulador_v2!$A$33:$AJ$273,12,0)," "))) ->  | F177: =IF($D$12=0," ",IF(B176=$D$12,Simulador_v2!$M$32,+IF(B177>0,VLOOKUP(B177,Simulador_v2!$A$33:$AJ$273,13,0)," "))) ->  | G177: =IF($D$12=0," ",IF(B176=$D$12,Simulador_v2!$T$32,+IF(B177>0,VLOOKUP(B177,Simulador_v2!$A$33:$AJ$273,20,0)," "))) ->  | H177: =IF($D$12=0," ",IF(B176=$D$12,Simulador_v2!$Z$32,+IF(B177>0,VLOOKUP(B177,Simulador_v2!$A$33:$AJ$273,26,0)," "))) ->  | I177: =IF($D$12=0," ",IF(B176=$D$12,Simulador_v2!$W$32,+IF(B177>0,VLOOKUP(B177,Simulador_v2!$A$33:$AJ$273,23,0)," "))) ->  | J177: =IF($D$12=0," ",IF(B176=$D$12,Simulador_v2!$AJ$32,+IF(B177>0,VLOOKUP(B177,Simulador_v2!$A$33:$AJ$273,36,0)," "))) -> 
C178: =IF($D$12=0," ",IF(B177=$D$12,"TOTALES",+IF(B178>0,VLOOKUP(B178,Simulador_v2!$A$33:$AJ$273,3,0)," "))) ->  | D178: =IF($D$12=0," ",IF(B177=$D$12,Simulador_v2!$K$32,+IF(B178>0,VLOOKUP(B178,Simulador_v2!$A$33:$AJ$273,11,0)," "))) ->  | E178: =IF($D$12=0," ",IF(B177=$D$12,Simulador_v2!$L$32,+IF(B178>0,VLOOKUP(B178,Simulador_v2!$A$33:$AJ$273,12,0)," "))) ->  | F178: =IF($D$12=0," ",IF(B177=$D$12,Simulador_v2!$M$32,+IF(B178>0,VLOOKUP(B178,Simulador_v2!$A$33:$AJ$273,13,0)," "))) ->  | G178: =IF($D$12=0," ",IF(B177=$D$12,Simulador_v2!$T$32,+IF(B178>0,VLOOKUP(B178,Simulador_v2!$A$33:$AJ$273,20,0)," "))) ->  | H178: =IF($D$12=0," ",IF(B177=$D$12,Simulador_v2!$Z$32,+IF(B178>0,VLOOKUP(B178,Simulador_v2!$A$33:$AJ$273,26,0)," "))) ->  | I178: =IF($D$12=0," ",IF(B177=$D$12,Simulador_v2!$W$32,+IF(B178>0,VLOOKUP(B178,Simulador_v2!$A$33:$AJ$273,23,0)," "))) ->  | J178: =IF($D$12=0," ",IF(B177=$D$12,Simulador_v2!$AJ$32,+IF(B178>0,VLOOKUP(B178,Simulador_v2!$A$33:$AJ$273,36,0)," "))) -> 
C179: =IF($D$12=0," ",IF(B178=$D$12,"TOTALES",+IF(B179>0,VLOOKUP(B179,Simulador_v2!$A$33:$AJ$273,3,0)," "))) ->  | D179: =IF($D$12=0," ",IF(B178=$D$12,Simulador_v2!$K$32,+IF(B179>0,VLOOKUP(B179,Simulador_v2!$A$33:$AJ$273,11,0)," "))) ->  | E179: =IF($D$12=0," ",IF(B178=$D$12,Simulador_v2!$L$32,+IF(B179>0,VLOOKUP(B179,Simulador_v2!$A$33:$AJ$273,12,0)," "))) ->  | F179: =IF($D$12=0," ",IF(B178=$D$12,Simulador_v2!$M$32,+IF(B179>0,VLOOKUP(B179,Simulador_v2!$A$33:$AJ$273,13,0)," "))) ->  | G179: =IF($D$12=0," ",IF(B178=$D$12,Simulador_v2!$T$32,+IF(B179>0,VLOOKUP(B179,Simulador_v2!$A$33:$AJ$273,20,0)," "))) ->  | H179: =IF($D$12=0," ",IF(B178=$D$12,Simulador_v2!$Z$32,+IF(B179>0,VLOOKUP(B179,Simulador_v2!$A$33:$AJ$273,26,0)," "))) ->  | I179: =IF($D$12=0," ",IF(B178=$D$12,Simulador_v2!$W$32,+IF(B179>0,VLOOKUP(B179,Simulador_v2!$A$33:$AJ$273,23,0)," "))) ->  | J179: =IF($D$12=0," ",IF(B178=$D$12,Simulador_v2!$AJ$32,+IF(B179>0,VLOOKUP(B179,Simulador_v2!$A$33:$AJ$273,36,0)," "))) -> 
C180: =IF($D$12=0," ",IF(B179=$D$12,"TOTALES",+IF(B180>0,VLOOKUP(B180,Simulador_v2!$A$33:$AJ$273,3,0)," "))) ->  | D180: =IF($D$12=0," ",IF(B179=$D$12,Simulador_v2!$K$32,+IF(B180>0,VLOOKUP(B180,Simulador_v2!$A$33:$AJ$273,11,0)," "))) ->  | E180: =IF($D$12=0," ",IF(B179=$D$12,Simulador_v2!$L$32,+IF(B180>0,VLOOKUP(B180,Simulador_v2!$A$33:$AJ$273,12,0)," "))) ->  | F180: =IF($D$12=0," ",IF(B179=$D$12,Simulador_v2!$M$32,+IF(B180>0,VLOOKUP(B180,Simulador_v2!$A$33:$AJ$273,13,0)," "))) ->  | G180: =IF($D$12=0," ",IF(B179=$D$12,Simulador_v2!$T$32,+IF(B180>0,VLOOKUP(B180,Simulador_v2!$A$33:$AJ$273,20,0)," "))) ->  | H180: =IF($D$12=0," ",IF(B179=$D$12,Simulador_v2!$Z$32,+IF(B180>0,VLOOKUP(B180,Simulador_v2!$A$33:$AJ$273,26,0)," "))) ->  | I180: =IF($D$12=0," ",IF(B179=$D$12,Simulador_v2!$W$32,+IF(B180>0,VLOOKUP(B180,Simulador_v2!$A$33:$AJ$273,23,0)," "))) ->  | J180: =IF($D$12=0," ",IF(B179=$D$12,Simulador_v2!$AJ$32,+IF(B180>0,VLOOKUP(B180,Simulador_v2!$A$33:$AJ$273,36,0)," "))) -> 
C181: =IF($D$12=0," ",IF(B180=$D$12,"TOTALES",+IF(B181>0,VLOOKUP(B181,Simulador_v2!$A$33:$AJ$273,3,0)," "))) ->  | D181: =IF($D$12=0," ",IF(B180=$D$12,Simulador_v2!$K$32,+IF(B181>0,VLOOKUP(B181,Simulador_v2!$A$33:$AJ$273,11,0)," "))) ->  | E181: =IF($D$12=0," ",IF(B180=$D$12,Simulador_v2!$L$32,+IF(B181>0,VLOOKUP(B181,Simulador_v2!$A$33:$AJ$273,12,0)," "))) ->  | F181: =IF($D$12=0," ",IF(B180=$D$12,Simulador_v2!$M$32,+IF(B181>0,VLOOKUP(B181,Simulador_v2!$A$33:$AJ$273,13,0)," "))) ->  | G181: =IF($D$12=0," ",IF(B180=$D$12,Simulador_v2!$T$32,+IF(B181>0,VLOOKUP(B181,Simulador_v2!$A$33:$AJ$273,20,0)," "))) ->  | H181: =IF($D$12=0," ",IF(B180=$D$12,Simulador_v2!$Z$32,+IF(B181>0,VLOOKUP(B181,Simulador_v2!$A$33:$AJ$273,26,0)," "))) ->  | I181: =IF($D$12=0," ",IF(B180=$D$12,Simulador_v2!$W$32,+IF(B181>0,VLOOKUP(B181,Simulador_v2!$A$33:$AJ$273,23,0)," "))) ->  | J181: =IF($D$12=0," ",IF(B180=$D$12,Simulador_v2!$AJ$32,+IF(B181>0,VLOOKUP(B181,Simulador_v2!$A$33:$AJ$273,36,0)," "))) -> 
C182: =IF($D$12=0," ",IF(B181=$D$12,"TOTALES",+IF(B182>0,VLOOKUP(B182,Simulador_v2!$A$33:$AJ$273,3,0)," "))) ->  | D182: =IF($D$12=0," ",IF(B181=$D$12,Simulador_v2!$K$32,+IF(B182>0,VLOOKUP(B182,Simulador_v2!$A$33:$AJ$273,11,0)," "))) ->  | E182: =IF($D$12=0," ",IF(B181=$D$12,Simulador_v2!$L$32,+IF(B182>0,VLOOKUP(B182,Simulador_v2!$A$33:$AJ$273,12,0)," "))) ->  | F182: =IF($D$12=0," ",IF(B181=$D$12,Simulador_v2!$M$32,+IF(B182>0,VLOOKUP(B182,Simulador_v2!$A$33:$AJ$273,13,0)," "))) ->  | G182: =IF($D$12=0," ",IF(B181=$D$12,Simulador_v2!$T$32,+IF(B182>0,VLOOKUP(B182,Simulador_v2!$A$33:$AJ$273,20,0)," "))) ->  | H182: =IF($D$12=0," ",IF(B181=$D$12,Simulador_v2!$Z$32,+IF(B182>0,VLOOKUP(B182,Simulador_v2!$A$33:$AJ$273,26,0)," "))) ->  | I182: =IF($D$12=0," ",IF(B181=$D$12,Simulador_v2!$W$32,+IF(B182>0,VLOOKUP(B182,Simulador_v2!$A$33:$AJ$273,23,0)," "))) ->  | J182: =IF($D$12=0," ",IF(B181=$D$12,Simulador_v2!$AJ$32,+IF(B182>0,VLOOKUP(B182,Simulador_v2!$A$33:$AJ$273,36,0)," "))) -> 
C183: =IF($D$12=0," ",IF(B182=$D$12,"TOTALES",+IF(B183>0,VLOOKUP(B183,Simulador_v2!$A$33:$AJ$273,3,0)," "))) ->  | D183: =IF($D$12=0," ",IF(B182=$D$12,Simulador_v2!$K$32,+IF(B183>0,VLOOKUP(B183,Simulador_v2!$A$33:$AJ$273,11,0)," "))) ->  | E183: =IF($D$12=0," ",IF(B182=$D$12,Simulador_v2!$L$32,+IF(B183>0,VLOOKUP(B183,Simulador_v2!$A$33:$AJ$273,12,0)," "))) ->  | F183: =IF($D$12=0," ",IF(B182=$D$12,Simulador_v2!$M$32,+IF(B183>0,VLOOKUP(B183,Simulador_v2!$A$33:$AJ$273,13,0)," "))) ->  | G183: =IF($D$12=0," ",IF(B182=$D$12,Simulador_v2!$T$32,+IF(B183>0,VLOOKUP(B183,Simulador_v2!$A$33:$AJ$273,20,0)," "))) ->  | H183: =IF($D$12=0," ",IF(B182=$D$12,Simulador_v2!$Z$32,+IF(B183>0,VLOOKUP(B183,Simulador_v2!$A$33:$AJ$273,26,0)," "))) ->  | I183: =IF($D$12=0," ",IF(B182=$D$12,Simulador_v2!$W$32,+IF(B183>0,VLOOKUP(B183,Simulador_v2!$A$33:$AJ$273,23,0)," "))) ->  | J183: =IF($D$12=0," ",IF(B182=$D$12,Simulador_v2!$AJ$32,+IF(B183>0,VLOOKUP(B183,Simulador_v2!$A$33:$AJ$273,36,0)," "))) -> 
C184: =IF($D$12=0," ",IF(B183=$D$12,"TOTALES",+IF(B184>0,VLOOKUP(B184,Simulador_v2!$A$33:$AJ$273,3,0)," "))) ->  | D184: =IF($D$12=0," ",IF(B183=$D$12,Simulador_v2!$K$32,+IF(B184>0,VLOOKUP(B184,Simulador_v2!$A$33:$AJ$273,11,0)," "))) ->  | E184: =IF($D$12=0," ",IF(B183=$D$12,Simulador_v2!$L$32,+IF(B184>0,VLOOKUP(B184,Simulador_v2!$A$33:$AJ$273,12,0)," "))) ->  | F184: =IF($D$12=0," ",IF(B183=$D$12,Simulador_v2!$M$32,+IF(B184>0,VLOOKUP(B184,Simulador_v2!$A$33:$AJ$273,13,0)," "))) ->  | G184: =IF($D$12=0," ",IF(B183=$D$12,Simulador_v2!$T$32,+IF(B184>0,VLOOKUP(B184,Simulador_v2!$A$33:$AJ$273,20,0)," "))) ->  | H184: =IF($D$12=0," ",IF(B183=$D$12,Simulador_v2!$Z$32,+IF(B184>0,VLOOKUP(B184,Simulador_v2!$A$33:$AJ$273,26,0)," "))) ->  | I184: =IF($D$12=0," ",IF(B183=$D$12,Simulador_v2!$W$32,+IF(B184>0,VLOOKUP(B184,Simulador_v2!$A$33:$AJ$273,23,0)," "))) ->  | J184: =IF($D$12=0," ",IF(B183=$D$12,Simulador_v2!$AJ$32,+IF(B184>0,VLOOKUP(B184,Simulador_v2!$A$33:$AJ$273,36,0)," "))) -> 
C185: =IF($D$12=0," ",IF(B184=$D$12,"TOTALES",+IF(B185>0,VLOOKUP(B185,Simulador_v2!$A$33:$AJ$273,3,0)," "))) ->  | D185: =IF($D$12=0," ",IF(B184=$D$12,Simulador_v2!$K$32,+IF(B185>0,VLOOKUP(B185,Simulador_v2!$A$33:$AJ$273,11,0)," "))) ->  | E185: =IF($D$12=0," ",IF(B184=$D$12,Simulador_v2!$L$32,+IF(B185>0,VLOOKUP(B185,Simulador_v2!$A$33:$AJ$273,12,0)," "))) ->  | F185: =IF($D$12=0," ",IF(B184=$D$12,Simulador_v2!$M$32,+IF(B185>0,VLOOKUP(B185,Simulador_v2!$A$33:$AJ$273,13,0)," "))) ->  | G185: =IF($D$12=0," ",IF(B184=$D$12,Simulador_v2!$T$32,+IF(B185>0,VLOOKUP(B185,Simulador_v2!$A$33:$AJ$273,20,0)," "))) ->  | H185: =IF($D$12=0," ",IF(B184=$D$12,Simulador_v2!$Z$32,+IF(B185>0,VLOOKUP(B185,Simulador_v2!$A$33:$AJ$273,26,0)," "))) ->  | I185: =IF($D$12=0," ",IF(B184=$D$12,Simulador_v2!$W$32,+IF(B185>0,VLOOKUP(B185,Simulador_v2!$A$33:$AJ$273,23,0)," "))) ->  | J185: =IF($D$12=0," ",IF(B184=$D$12,Simulador_v2!$AJ$32,+IF(B185>0,VLOOKUP(B185,Simulador_v2!$A$33:$AJ$273,36,0)," "))) -> 
C186: =IF($D$12=0," ",IF(B185=$D$12,"TOTALES",+IF(B186>0,VLOOKUP(B186,Simulador_v2!$A$33:$AJ$273,3,0)," "))) ->  | D186: =IF($D$12=0," ",IF(B185=$D$12,Simulador_v2!$K$32,+IF(B186>0,VLOOKUP(B186,Simulador_v2!$A$33:$AJ$273,11,0)," "))) ->  | E186: =IF($D$12=0," ",IF(B185=$D$12,Simulador_v2!$L$32,+IF(B186>0,VLOOKUP(B186,Simulador_v2!$A$33:$AJ$273,12,0)," "))) ->  | F186: =IF($D$12=0," ",IF(B185=$D$12,Simulador_v2!$M$32,+IF(B186>0,VLOOKUP(B186,Simulador_v2!$A$33:$AJ$273,13,0)," "))) ->  | G186: =IF($D$12=0," ",IF(B185=$D$12,Simulador_v2!$T$32,+IF(B186>0,VLOOKUP(B186,Simulador_v2!$A$33:$AJ$273,20,0)," "))) ->  | H186: =IF($D$12=0," ",IF(B185=$D$12,Simulador_v2!$Z$32,+IF(B186>0,VLOOKUP(B186,Simulador_v2!$A$33:$AJ$273,26,0)," "))) ->  | I186: =IF($D$12=0," ",IF(B185=$D$12,Simulador_v2!$W$32,+IF(B186>0,VLOOKUP(B186,Simulador_v2!$A$33:$AJ$273,23,0)," "))) ->  | J186: =IF($D$12=0," ",IF(B185=$D$12,Simulador_v2!$AJ$32,+IF(B186>0,VLOOKUP(B186,Simulador_v2!$A$33:$AJ$273,36,0)," "))) -> 
C187: =IF($D$12=0," ",IF(B186=$D$12,"TOTALES",+IF(B187>0,VLOOKUP(B187,Simulador_v2!$A$33:$AJ$273,3,0)," "))) ->  | D187: =IF($D$12=0," ",IF(B186=$D$12,Simulador_v2!$K$32,+IF(B187>0,VLOOKUP(B187,Simulador_v2!$A$33:$AJ$273,11,0)," "))) ->  | E187: =IF($D$12=0," ",IF(B186=$D$12,Simulador_v2!$L$32,+IF(B187>0,VLOOKUP(B187,Simulador_v2!$A$33:$AJ$273,12,0)," "))) ->  | F187: =IF($D$12=0," ",IF(B186=$D$12,Simulador_v2!$M$32,+IF(B187>0,VLOOKUP(B187,Simulador_v2!$A$33:$AJ$273,13,0)," "))) ->  | G187: =IF($D$12=0," ",IF(B186=$D$12,Simulador_v2!$T$32,+IF(B187>0,VLOOKUP(B187,Simulador_v2!$A$33:$AJ$273,20,0)," "))) ->  | H187: =IF($D$12=0," ",IF(B186=$D$12,Simulador_v2!$Z$32,+IF(B187>0,VLOOKUP(B187,Simulador_v2!$A$33:$AJ$273,26,0)," "))) ->  | I187: =IF($D$12=0," ",IF(B186=$D$12,Simulador_v2!$W$32,+IF(B187>0,VLOOKUP(B187,Simulador_v2!$A$33:$AJ$273,23,0)," "))) ->  | J187: =IF($D$12=0," ",IF(B186=$D$12,Simulador_v2!$AJ$32,+IF(B187>0,VLOOKUP(B187,Simulador_v2!$A$33:$AJ$273,36,0)," "))) -> 
C188: =IF($D$12=0," ",IF(B187=$D$12,"TOTALES",+IF(B188>0,VLOOKUP(B188,Simulador_v2!$A$33:$AJ$273,3,0)," "))) ->  | D188: =IF($D$12=0," ",IF(B187=$D$12,Simulador_v2!$K$32,+IF(B188>0,VLOOKUP(B188,Simulador_v2!$A$33:$AJ$273,11,0)," "))) ->  | E188: =IF($D$12=0," ",IF(B187=$D$12,Simulador_v2!$L$32,+IF(B188>0,VLOOKUP(B188,Simulador_v2!$A$33:$AJ$273,12,0)," "))) ->  | F188: =IF($D$12=0," ",IF(B187=$D$12,Simulador_v2!$M$32,+IF(B188>0,VLOOKUP(B188,Simulador_v2!$A$33:$AJ$273,13,0)," "))) ->  | G188: =IF($D$12=0," ",IF(B187=$D$12,Simulador_v2!$T$32,+IF(B188>0,VLOOKUP(B188,Simulador_v2!$A$33:$AJ$273,20,0)," "))) ->  | H188: =IF($D$12=0," ",IF(B187=$D$12,Simulador_v2!$Z$32,+IF(B188>0,VLOOKUP(B188,Simulador_v2!$A$33:$AJ$273,26,0)," "))) ->  | I188: =IF($D$12=0," ",IF(B187=$D$12,Simulador_v2!$W$32,+IF(B188>0,VLOOKUP(B188,Simulador_v2!$A$33:$AJ$273,23,0)," "))) ->  | J188: =IF($D$12=0," ",IF(B187=$D$12,Simulador_v2!$AJ$32,+IF(B188>0,VLOOKUP(B188,Simulador_v2!$A$33:$AJ$273,36,0)," "))) -> 
C189: =IF($D$12=0," ",IF(B188=$D$12,"TOTALES",+IF(B189>0,VLOOKUP(B189,Simulador_v2!$A$33:$AJ$273,3,0)," "))) ->  | D189: =IF($D$12=0," ",IF(B188=$D$12,Simulador_v2!$K$32,+IF(B189>0,VLOOKUP(B189,Simulador_v2!$A$33:$AJ$273,11,0)," "))) ->  | E189: =IF($D$12=0," ",IF(B188=$D$12,Simulador_v2!$L$32,+IF(B189>0,VLOOKUP(B189,Simulador_v2!$A$33:$AJ$273,12,0)," "))) ->  | F189: =IF($D$12=0," ",IF(B188=$D$12,Simulador_v2!$M$32,+IF(B189>0,VLOOKUP(B189,Simulador_v2!$A$33:$AJ$273,13,0)," "))) ->  | G189: =IF($D$12=0," ",IF(B188=$D$12,Simulador_v2!$T$32,+IF(B189>0,VLOOKUP(B189,Simulador_v2!$A$33:$AJ$273,20,0)," "))) ->  | H189: =IF($D$12=0," ",IF(B188=$D$12,Simulador_v2!$Z$32,+IF(B189>0,VLOOKUP(B189,Simulador_v2!$A$33:$AJ$273,26,0)," "))) ->  | I189: =IF($D$12=0," ",IF(B188=$D$12,Simulador_v2!$W$32,+IF(B189>0,VLOOKUP(B189,Simulador_v2!$A$33:$AJ$273,23,0)," "))) ->  | J189: =IF($D$12=0," ",IF(B188=$D$12,Simulador_v2!$AJ$32,+IF(B189>0,VLOOKUP(B189,Simulador_v2!$A$33:$AJ$273,36,0)," "))) -> 
C190: =IF($D$12=0," ",IF(B189=$D$12,"TOTALES",+IF(B190>0,VLOOKUP(B190,Simulador_v2!$A$33:$AJ$273,3,0)," "))) ->  | D190: =IF($D$12=0," ",IF(B189=$D$12,Simulador_v2!$K$32,+IF(B190>0,VLOOKUP(B190,Simulador_v2!$A$33:$AJ$273,11,0)," "))) ->  | E190: =IF($D$12=0," ",IF(B189=$D$12,Simulador_v2!$L$32,+IF(B190>0,VLOOKUP(B190,Simulador_v2!$A$33:$AJ$273,12,0)," "))) ->  | F190: =IF($D$12=0," ",IF(B189=$D$12,Simulador_v2!$M$32,+IF(B190>0,VLOOKUP(B190,Simulador_v2!$A$33:$AJ$273,13,0)," "))) ->  | G190: =IF($D$12=0," ",IF(B189=$D$12,Simulador_v2!$T$32,+IF(B190>0,VLOOKUP(B190,Simulador_v2!$A$33:$AJ$273,20,0)," "))) ->  | H190: =IF($D$12=0," ",IF(B189=$D$12,Simulador_v2!$Z$32,+IF(B190>0,VLOOKUP(B190,Simulador_v2!$A$33:$AJ$273,26,0)," "))) ->  | I190: =IF($D$12=0," ",IF(B189=$D$12,Simulador_v2!$W$32,+IF(B190>0,VLOOKUP(B190,Simulador_v2!$A$33:$AJ$273,23,0)," "))) ->  | J190: =IF($D$12=0," ",IF(B189=$D$12,Simulador_v2!$AJ$32,+IF(B190>0,VLOOKUP(B190,Simulador_v2!$A$33:$AJ$273,36,0)," "))) -> 

Sheet Simulador_v2
C2: SIMULADOR DE CUOTAS - CRÉDITO HIPOTECARIO | AB2: =NOW() -> 2022-11-09T16:37:11.010
C5: Importe Solicitado | H5: =+Simulador_Cliente!C9 -> 1000000 | L5: Fecha Desembolso | Q5: 2022-08-18
C6: Saldo de Capital | H6: =H5 -> 1000000 | L6: Fecha Final de Gracia | Q6: =+DATE(YEAR(Q5+H16),MONTH(Q5+H16),DAY(Q5+H16)) -> 2022-09-22
C7: Saldo de Interes | H7: 0 | L7: Fecha de la 1° cuota | Q7: =DATE(YEAR(EDATE(Q6,1)),MONTH(EDATE(Q6,1)),DAY(EDATE(Q6,1))) -> 2022-10-22
C8: Tasa Anual (TEA) | H8: =+Simulador_Cliente!C12 -> 20.1 | L8: Fecha final de vencimiento | Q8: =IF(OR($H$17>0,$H$18>0),VLOOKUP($H$15,$A$33:$C$272,3,0),DATE(YEAR(EDATE(Q6,H15)),MONTH(EDATE(Q6,H15)),DAY(EDATE(Q6,H15)))) -> 2029-09-22
C9: Tasa de Seguro de Desgravamen | H9: =+Simulador_Cliente!C15 -> 0.299% | L9: Base | Q9: 360
C10: Tasa Anual (TEA) - Ajustada | H10: =+H8 -> 20.1 | L10: Frecuencia pago en días | Q10: 30
C11: Comision por Env. Inf | H11: 0 | L11: Tasa Equivalente - Ajustada | Q11: =ROUND((((H10/100+1)^(1/(Q9/Q10))-1)*Q9/Q10)*100,6) -> 18.455941 | R11: tea conv. A tem luego nominal anual
C12: Seguro Multiriesgo | D12: SI / NO | H12: 0.0007 | I12: =+Simulador_Cliente!$C$16 -> Sí | L12: Días entre cuotas | Q12: =(Q8-Q6)/H15 -> 30.44047619 | R12: dias promedio entre cuotas
C13: Valor Asegurable | H13: =+Simulador_Cliente!$C$18 -> 602716 | L13: Factor Aplicado - Ajustada | Q13: =ROUND(($Q$11/100)/($Q$9/$Q$12),8) -> 0.01560577 | R13: tem convertida de manera nominal a los dias entre cuotas
C14: Tasa de Seguro Todo Riesgo | H14: 0.00029 | I14: =+H14*12 -> 0.00348 | J14: =+I14/365*30*H13 -> 172.3932888 | L14: Factor Aplicado para la cuota - Ajustada | Q14: =1/((1-((1+$Q$13)^(-1*$H$15)))/$Q$13) -> 0.02144605444 | R14: Factor de cuota (ok)
C15: Plazo y Nro. Cuotas | H15: =+Simulador_Cliente!C11 -> 84 | I15: =H15 -> 84 | L15: Interes de Gracia (Se considera la TEA Normal) | Q15: =IF(H16>0,ROUND(H6*(((1+H8/100)^(ABS(H16)/Q9))-1),4),ROUND(H6*(((1+H8/100)^(ABS(H16)/Q9))-1),4) * -1) -> 17966.176 | R15: Ok
C16: Días de Gracia | H16: =+Simulador_Cliente!C13 -> 35 | L16: Saldo Interes +/- Interes Gracia | Q16: =IF(H7 + Q15>0,H7+ Q15,0) -> 17966.176
C17: Mes de No Pago 1 | H17: 0 | L17: Seg Desg de Gracia | Q17: =IF(H16>0,ROUNDDOWN(H5*H9/30*H16,2),ROUNDDOWN(H5*H9/30*H16,2)*0) -> 3488.33
C18: Mes de No Pago 2 | H18: 0 | L18: TCEA | Q18: =+AM32 -> 0.238956255
C19: Mes Cuota Doble 1 | H19: 0
C20: Mes Cuota Doble 2 | H20: 0
O21: Suavización | U21: Validador Cuota Doble
O22: Ultimo saldo de Principal | Q22: =VLOOKUP(I15,$F$33:$AB$273,23,FALSE) -> 192940.3 | U22: Cuota Simple | W22: =+VLOOKUP("",$D$33:$AA$273,24,0) -> 23874.868
F23: Valor de cuota por dias de gracia | J23: =+ROUND(IF(OR(H17+H18>0,H19+H20>0),Q16/VLOOKUP(H15,'[1]Calculos Micro'!$A$3:$G$243,7,FALSE),$Q$16/$H$15),3) -> 213.883 | K23: =Q16/SUM(AS34:INDIRECT(CONCATENATE("AE",32+I15-1))) -> 0.001695017777 | O23: Numero de Dias | Q23: =Q8-Q6 -> 2557 | U23: Cuota Doble | W23: =+IFERROR(VLOOKUP("D",$D$33:$AA$273,24,0)," ") -> 
F24: Valor de cuota por capital | J24: =ROUND(IF(OR(H17 + H18 > 0,H19 + H20>0), ROUNDUP(H6/VLOOKUP(H15,'[1]Calculos Micro'!$A$3:$G$243,7,FALSE),2),H6*$Q$14),2) -> 21446.05 | L24: sin desgravamen | O24: Valor de Cuota Nivelada | Q24: =ROUND(+Q22/ROUND(1*(((1+H10/100)^(Q23/Q9))-1),4),2) -> 72191.99 | U24: Factor | W24: =+IFERROR(W23/W22," ") -> 
F25: Valor de Seg Desg por dia de gracia | J25: =$Q$17/(($I$15+COUNTIF(D34:INDIRECT(CONCATENATE("C",32+I15-1)),"D"))*(1/((1+0)^($Q$10/$Q$9)))) -> 41.5277381
F26: Seguro de Desgravamen (FPF) | J26: =$H$5*$H$9 -> 2990 | O26: Factor Ajuste | Q26: =Q24*Q14 -> 1548.233348 | S26: Se copia LO DEL COSTADO a partir de la primera corrida | U26: Calce de Capital
F27: Comision por Env.Inf | J27: 0 | O27: Exceso de Int + Gracia | Q27: =SUM(AC34:AC153) -> 0 | R27: =ROUND(IF(OR(H17+ H18> 0,H19 + H20>0),ROUNDUP($Q$27/VLOOKUP(H15,'[1]Calculos Micro'!$A$3:$G$243,7,FALSE),2),$Q$27*$Q$14),2) -> 0 | S27: 0 | U27: Suma Capital (K) | W27: =+SUM($K$33:$K$273) -> 807060.12
F28: Seguro Todo Riesgo | J28: =ROUND($H$13*$H$14,2) -> 174.79 | O28: Factor Ajuste 2 | Q28: =+Q22/H15 -> 2296.908333 | U28: Validador | W28: =+$H$5-W27 -> 192939.88
F29: Seguro MultiRiesgo | J29: =IF(I12="Sí",($H$5*$H$12),0) -> 700
F30: Cuota | J30: =J23+J24+J26+J27+ J28+J25 -> 24866.25074 | O30: Digite Factor de Ajuste Anterior mas El Actual | Q30: 1340.145 | R30: Se actualiza en cada simulación (Validar que la celda W28 sea cero) | T30: =$AB$273 -> 
K32: =+SUM(K34:K273) -> 807060.12 | L32: =+SUM(L34:L273) -> 923044.16 | M32: =+SUM(M34:M273) -> 17966.172 | T32: =+SUM(T34:T273) -> 182915.53 | W32: =+SUM(W34:W273) -> 14886.27 | Z32: =+SUM(Z34:Z273) -> 59616.66 | AJ32: =+SUM(AJ34:AJ273) -> 2005488.912 | AL32: TIR | AM32: =(1+XIRR(AM33:AM273,AL33:AL273))^(360/365)-1 -> 0.238956255 | AR32: Minicronograma de Gracia
C33: Fecha Vcto. | D33: Marca | E33: Nro. Cuota (De acuerdo a Plazo) | F33: Nro. Cuota | G33: Periodo Base | H33: Tasa | I33: Nro. Dias | J33: Principal* | K33: Capital | L33: Interes | M33: Interes de Gracia | N33: Interes Total | O33: Valor Cuota (variable) | P33: Comision por Env. Inf | Q33: Tasa de Seguro de Desgravamen* | R33: Importe de Gracia Desgravamen | S33: Importe Desgravamen por No Pago | T33: Seg. Desgravamen Total | U33: Seguro Todo Riesgo | V33: Importe de Gracia Todo Riesgo | W33: Seguro Todo Riesgo Total | X33: Seguro Multiriesgo | Y33: Importe de Gracia Multiriesgo | Z33: Multi Riesgo Total | AA33: Cuota | AB33: Saldo Principal | AC33: Exceso | AD33: Nuevo Interes I | AE33: Nuevo Desgravamen I (no se utiliza) | AF33: Nuevo Interes (SF2INT) replica columna L | AG33: Nuevo Desgravamen (SF2GRV) replica columna Q | AH33: Desgravamen Gracia replica columna R | AI33: Desgravamen No Pago S | AJ33: Total Cuota (SF2PAG) igual a columna V | AL33: =+Q5 -> 2022-08-18 | AM33: =-H5 -> -1000000 | AO33: VALIDADORES | AR33: Dias Transcurridos Acumulados | AS33: Factor Simple Actualizacion | AT33: Principal | AU33: Capital | AV33: Interes | AW33: Cuota Gracia | AX33: Saldo Deuda
A34: 1 | B34: =IF(A34="","",IF(A34<=$H$22,0,1)) -> 1 | C34: =IF(OR(MONTH(EDATE($Q$6,E34))=$H$17,MONTH(EDATE($Q$6,E34))=$H$18),IF(ABS($H$18-$H$17)=1,EDATE($Q$6,E34+2),EDATE($Q$6,E34+1)),EDATE($Q$6,E34)) -> 2022-10-22 | D34: =IF(B34="","",IF(OR(MONTH(C34)=$H$19,MONTH(C34)=$H$20),"D","")) ->  | E34: =IF(OR(MONTH(Q7)=H17, MONTH(Q7)=H18),IF(ABS(H18-H17)=1,3,2),1) -> 1 | F34: =1 -> 1 | G34: =$Q$9 -> 360 | H34: =IF(B34="","",$H$10) -> 20.1 | I34: =C34-Q6 -> 30 | J34: =H6 -> 1000000 | K34: =IF(B34="","",IF((IF(ISERROR(MATCH(MONTH(C34),$H$19:$H$20,0))=FALSE,$J$24 + $Q$30,0) + $J$24+$Q$30+$S$27)-L34<0,0.01,IF(ISERROR(MATCH(MONTH(C34),$H$19:$H$20,0))=FALSE,$J$24 + $Q$30,0)+ ($J$24+$Q$30+$S$27)-L34)- R34 -S34-Q34-Y34-V34) -> -92.655 | L34: =IF(B34="","",IF($J$24+$Q$30<ROUND(ROUND(J34*(((1+(H34/100))^(I34/G34))-1),4),2),$J$24+$Q$30 +-0.01,IF(ROUND(ROUND(J34*(((1+(H34/100))^(I34/G34))-1),4),2)>$J$24,$J$24+ -0.01,ROUND(ROUND(J34*(((1+(H34/100))^(I34/G34))-1),4),2)))) -> 15379.95 | M34: =IF(B34="","",IF(ISERROR(MATCH(MONTH(C34),$H$19:$H$20,0))=FALSE,$J$23,0) + $J$23) -> 213.883 | N34: =IF(B34="","",L34+M34) -> 15593.833 | O34: =IF(B34="","",K34+N34) -> 15501.178 | P34: =IF(B34="","",$J$27) -> 0 | Q34: =IF(B34="","",ROUND($H$9*J34,2)) -> 2990 | R34: =IF(B34="","",(E34-F34)*ROUNDDOWN($H$5*$H$9/30*30,2) + ROUNDDOWN($H$5*$H$9/30*H16,2)) -> 3488.33 | S34: =IF(B34="","",IF(E34-0>1,ROUNDDOWN($J34*$H$9/30*(DATE(YEAR($C34),MONTH($C34)-1,DAY($C34))-C33),2),0)) -> 0 | T34: =IF(B34="","",Q34+R34+S34) -> 6478.33 | U34: =IF(B34="","",$J$28) -> 174.79 | V34: =IF(B34="","",(E34-F34)*ROUNDDOWN($H$13*$H$14/30*30,2) + ROUNDDOWN($H$13*$H$14/30*H16,2)) -> 203.91 | W34: =IF(B34="","",U34+V34) -> 378.7 | X34: =IF(B34="","",IF($I$12="Sí",$J$29,0)) -> 700 | Y34: =IF(B34="","",IF($I$12="Sí",(E34-F34)*ROUNDDOWN($H$5*$H$12/30*30,2) + ROUNDDOWN($H$5*$H$12/30*H16,2),0)) -> 816.66 | Z34: =IF(B34="","",X34+Y34) -> 1516.66 | AA34: =IF(B34="","",O34+P34+Q34+R34+S34+W34+Z34+IF(D34="D",X34+U34,0)) -> 23874.868 | AB34: =IF(B34="","",(ROUND(J34-K34,2))) -> 1000092.66 | AC34: =IF(B34="","",IF(ROUND(ROUND(J34*(((1+(H34/100))^(I34/G34))-1),4),2) - $J$24<0,0,ROUND(ROUND(J34*(((1+(H34/100))^(I34/G34))-1),4),2) - $J$24)) -> 0 | AE34: =SUM(K34:M34) -> 15501.178 | AF34: =+L34 -> 15379.95 | AG34: =+Q34 -> 2990 | AH34: =+R34 -> 3488.33 | AI34: =+S34 -> 0 | AJ34: =IFERROR(AF34+K34 + P34 + W34+AG34 + M34 + AH34 + AI34+Z34+IF(D34="D",X34+U34,0),"") -> 23874.868 | AL34: =+IF(C34="",0,C34) -> 2022-10-22 | AM34: =+IF(AJ34="",0,AJ34) -> 23874.868 | AO34: =+IFERROR(AJ34-AA34,0) -> 3.637978807e-12 | AP34: =+IFERROR(AF34-L34,0) -> 0 | AR34: =I34 -> 30 | AS34: =(1/((1+($J$8/100))^(AR34/$Q$9))*1) * IF(D34="D",2,1) -> 1 | AT34: =Q16 -> 17966.176 | AU34: =AW34-AV34 -> 0.001695017777 | AV34: =(((1+($J$8/100))^((K34)/$Q$9))-1)*AT34 -> 0 | AW34: =IF(D34="D",$K$23,0)+ $K$23 -> 0.001695017777 | AX34: =AT34-AU34 -> 17966.1743
A35: =+IF(A34>=$H$15,"",A34+1) -> 2 | B35: =IF(A35="","",IF(A35<=$H$22,0,1)) -> 1 | C35: =IF(B35="","",IF(OR(MONTH(EDATE($Q$6,E35))=$H$17,MONTH(EDATE($Q$6,E35))=$H$18),IF(ABS($H$18-$H$17)=1,EDATE($Q$6,E35+2),EDATE($Q$6,E35+1)),EDATE($Q$6,E35))) -> 2022-11-22 | E35: =+IF(B35="","",IF(OR(MONTH(DATE(YEAR(C34)+0.0833333333333333,MONTH(C34)+1,DAY(C34)))=$H$17,MONTH(DATE(YEAR(C34)+0.5,MONTH(C34)+1,DAY(C34)))=$H$18),IF(ABS($H$18-$H$17)=1,E34+1,E34+2),E34+1)) -> 2 | F35: =+IF(B35="","",F34+1) -> 2 | G35: =IF(B35="","",$Q$9) -> 360 | H35: =IF(B35="","",$H$10) -> 20.1 | I35: =IF(B35="","",C35-C34) -> 31 | J35: =IF(B35="","",AB34) -> 1000092.66 | K35: 3798.105 | L35: 15898.14 | M35: 213.883 | N35: 16112.023 | O35: 19910.128 | P35: 0 | Q35: =IF(B35="","",ROUND($H$9*J35/30*$I35,2)-S35) -> 3089.95 | S35: =IF(B35="","",IF(E35-E34>1,ROUNDDOWN($J35*$H$9/30*(DATE(YEAR($C35),MONTH($C35)-1,DAY($C35))-C34),2),0)) -> 0 | T35: =IF(B35="","",Q35+R35+S35) -> 3089.95 | U35: =IF(B35="","",$J$28) -> 174.79 | W35: =IF(B35="","",U35+V35) -> 174.79 | X35: =IF(B35="","",IF($I$12="Sí",$J$29,0)) -> 700 | Z35: 700 | AA35: 23874.868 | AB35: 996294.56 | AC35: 0 | AE35: 19910.128 | AF35: 15898.14 | AG35: 3089.95 | AH35: 0 | AI35: 0 | AJ35: 23874.868 | AL35: 2022-11-22 | AM35: 23874.868 | AO35: =+IFERROR(AJ35-AA35,0) -> 0 | AP35: 0 | AR35: =I35 + AR34 -> 61 | AS35: =(1/((1+($J$8/100))^(AR35/$Q$9))*1) * IF(D35="D",2,1) -> 1 | AT35: =AX34 -> 17966.1743 | AU35: =AW35-AV35 -> 0.001695017777 | AV35: 0 | AW35: 0.001695017777 | AX35: =AT35-AU35 -> 17966.17261
A36: 3 | B36: 1 | C36: 2022-12-22 | E36: 3 | F36: =+IF(B36="","",F35+1) -> 3 | G36: =IF(B36="","",$Q$9) -> 360 | H36: 20.1 | I36: =IF(B36="","",C36-C35) -> 30 | J36: =IF(B36="","",AB35) -> 996294.56 | K36: 4484.315 | L36: 15322.96 | M36: 213.883 | N36: 15536.843 | O36: 20021.158 | P36: 0 | Q36: =IF(B36="","",ROUND($H$9*J36/30*$I36,2)-S36) -> 2978.92 | S36: =IF(B36="","",IF(E36-E35>1,ROUNDDOWN($J36*$H$9/30*(DATE(YEAR($C36),MONTH($C36)-1,DAY($C36))-C35),2),0)) -> 0 | T36: 2978.92 | U36: 174.79 | W36: 174.79 | X36: 700 | Z36: 700 | AA36: 23874.868 | AB36: 991810.25 | AC36: 0 | AE36: 20021.158 | AF36: 15322.96 | AG36: 2978.92 | AH36: 0 | AI36: 0 | AJ36: 23874.868 | AL36: 2022-12-22 | AM36: 23874.868 | AO36: 0 | AP36: 0 | AR36: =I36 + AR35 -> 91 | AS36: =(1/((1+($J$8/100))^(AR36/$Q$9))*1) * IF(D36="D",2,1) -> 1 | AT36: =AX35 -> 17966.17261 | AU36: 0.001695017777 | AV36: 0 | AW36: 0.001695017777 | AX36: 17966.17091
A37: 4 | B37: 1 | C37: 2023-01-22 | E37: 4 | F37: 4 | G37: 360 | H37: 20.1 | I37: 31 | J37: 991810.25 | K37: 3955.355 | L37: 15766.48 | M37: 213.883 | N37: 15980.363 | O37: 19935.718 | P37: 0 | Q37: 3064.36 | S37: 0 | T37: 3064.36 | U37: 174.79 | W37: 174.79 | X37: 700 | Z37: 700 | AA37: 23874.868 | AB37: 987854.9 | AC37: 0 | AE37: 19935.718 | AF37: 15766.48 | AG37: 3064.36 | AH37: 0 | AI37: 0 | AJ37: 23874.868 | AL37: 2023-01-22 | AM37: 23874.868 | AO37: 0 | AP37: 0 | AR37: =IFERROR(I37 + AR36," ") -> 122 | AS37: =(1/((1+($J$8/100))^(AR37/$Q$9))*1) * IF(D37="D",2,1) -> 1 | AT37: 17966.17091 | AU37: 0.001695017777 | AV37: 0 | AW37: 0.001695017777 | AX37: =IFERROR(AT37-AU37," ") -> 17966.16922
A38: 5 | B38: 1 | C38: 2023-02-22 | E38: 5 | F38: 5 | G38: 360 | H38: 20.1 | I38: 31 | J38: 987854.9 | K38: 4030.455 | L38: 15703.6 | M38: 213.883 | N38: 15917.483 | O38: 19947.938 | P38: 0 | Q38: 3052.14 | S38: 0 | T38: 3052.14 | U38: 174.79 | W38: 174.79 | X38: 700 | Z38: 700 | AA38: 23874.868 | AB38: 983824.45 | AC38: 0 | AE38: 19947.938 | AF38: 15703.6 | AG38: 3052.14 | AH38: 0 | AI38: 0 | AJ38: 23874.868 | AL38: 2023-02-22 | AM38: 23874.868 | AO38: 3.637978807e-12 | AP38: 0 | AR38: 153 | AS38: =IFERROR((1/((1+($J$8/100))^(AR38/$Q$9))*1) * IF(D38="D",2,1)," ") -> 1 | AT38: 17966.16922 | AU38: 0.001695017777 | AV38: 0 | AW38: 0.001695017777 | AX38: 17966.16752
A39: 6 | B39: 1 | C39: 2023-03-22 | E39: 6 | F39: 6 | G39: 360 | H39: 20.1 | I39: 28 | J39: 983824.45 | K39: 5925.435 | L39: 14115.23 | M39: 213.883 | N39: 14329.113 | O39: 20254.548 | P39: 0 | Q39: 2745.53 | S39: 0 | T39: 2745.53 | U39: 174.79 | W39: 174.79 | X39: 700 | Z39: 700 | AA39: 23874.868 | AB39: 977899.02 | AC39: 0 | AE39: 20254.548 | AF39: 14115.23 | AG39: 2745.53 | AH39: 0 | AI39: 0 | AJ39: 23874.868 | AL39: 2023-03-22 | AM39: 23874.868 | AO39: 0 | AP39: 0 | AR39: 181 | AS39: 1 | AT39: 17966.16752 | AU39: =IFERROR(AW39-AV39," ") -> 0.001695017777 | AV39: 0 | AW39: 0.001695017777 | AX39: 17966.16583
A40: 7 | B40: 1 | C40: 2023-04-22 | E40: 7 | F40: 7 | G40: 360 | H40: 20.1 | I40: 31 | J40: 977899.02 | K40: 4219.475 | L40: 15545.34 | M40: 213.883 | N40: 15759.223 | O40: 19978.698 | P40: 0 | Q40: 3021.38 | S40: 0 | T40: 3021.38 | U40: 174.79 | W40: 174.79 | X40: 700 | Z40: 700 | AA40: 23874.868 | AB40: 973679.55 | AC40: 0 | AE40: 19978.698 | AF40: 15545.34 | AG40: 3021.38 | AH40: 0 | AI40: 0 | AJ40: 23874.868 | AL40: 2023-04-22 | AM40: 23874.868 | AO40: 0 | AP40: 0 | AR40: 212 | AS40: 1 | AT40: 17966.16583 | AU40: 0.001695017777 | AV40: =IFERROR((((1+($J$8/100))^((K40)/$Q$9))-1)*AT40," ") -> 0 | AW40: 0.001695017777 | AX40: 17966.16413
A41: 8 | B41: 1 | C41: 2023-05-22 | E41: 8 | F41: 8 | G41: 360 | H41: 20.1 | I41: 30 | J41: 973679.55 | K41: 4899.755 | L41: 14975.14 | M41: 213.883 | N41: 15189.023 | O41: 20088.778 | P41: 0 | Q41: 2911.3 | S41: 0 | T41: 2911.3 | U41: 174.79 | W41: 174.79 | X41: 700 | Z41: 700 | AA41: 23874.868 | AB41: 968779.8 | AC41: 0 | AE41: 20088.778 | AF41: 14975.14 | AG41: 2911.3 | AH41: 0 | AI41: 0 | AJ41: 23874.868 | AL41: 2023-05-22 | AM41: 23874.868 | AO41: 3.637978807e-12 | AP41: 0 | AR41: 242 | AS41: 1 | AT41: 17966.16413 | AU41: 0.001695017777 | AV41: 0 | AW41: 0.001695017777 | AX41: 17966.16244
A42: 9 | B42: 1 | C42: 2023-06-22 | E42: 9 | F42: 9 | G42: 360 | H42: 20.1 | I42: 31 | J42: 968779.8 | K42: 4392.615 | L42: 15400.37 | M42: 213.883 | N42: 15614.253 | O42: 20006.868 | P42: 0 | Q42: 2993.21 | S42: 0 | T42: 2993.21 | U42: 174.79 | W42: 174.79 | X42: 700 | Z42: 700 | AA42: 23874.868 | AB42: 964387.19 | AC42: 0 | AE42: 20006.868 | AF42: 15400.37 | AG42: 2993.21 | AH42: 0 | AI42: 0 | AJ42: 23874.868 | AL42: 2023-06-22 | AM42: 23874.868 | AO42: 3.637978807e-12 | AP42: 0 | AR42: 273 | AS42: 1 | AT42: 17966.16244 | AU42: 0.001695017777 | AV42: 0 | AW42: 0.001695017777 | AX42: 17966.16074
A43: 10 | B43: 1 | C43: 2023-07-22 | E43: 10 | F43: 10 | G43: 360 | H43: 20.1 | I43: 30 | J43: 964387.19 | K43: 5070.445 | L43: 14832.23 | M43: 213.883 | N43: 15046.113 | O43: 20116.558 | P43: 0 | Q43: 2883.52 | S43: 0 | T43: 2883.52 | U43: 174.79 | W43: 174.79 | X43: 700 | Z43: 700 | AA43: 23874.868 | AB43: 959316.75 | AC43: 0 | AE43: 20116.558 | AF43: 14832.23 | AG43: 2883.52 | AH43: 0 | AI43: 0 | AJ43: 23874.868 | AL43: 2023-07-22 | AM43: 23874.868 | AO43: 0 | AP43: 0 | AR43: 303 | AS43: 1 | AT43: 17966.16074 | AU43: 0.001695017777 | AV43: 0 | AW43: 0.001695017777 | AX43: 17966.15905
A44: 11 | B44: 1 | C44: 2023-08-22 | E44: 11 | F44: 11 | G44: 360 | H44: 20.1 | I44: 31 | J44: 959316.75 | K44: 4572.285 | L44: 15249.94 | M44: 213.883 | N44: 15463.823 | O44: 20036.108 | P44: 0 | Q44: 2963.97 | S44: 0 | T44: 2963.97 | U44: 174.79 | W44: 174.79 | X44: 700 | Z44: 700 | AA44: 23874.868 | AB44: 954744.47 | AC44: 0 | AE44: 20036.108 | AF44: 15249.94 | AG44: 2963.97 | AH44: 0 | AI44: 0 | AJ44: 23874.868 | AL44: 2023-08-22 | AM44: 23874.868 | AO44: 3.637978807e-12 | AP44: 0 | AR44: 334 | AS44: 1 | AT44: 17966.15905 | AU44: 0.001695017777 | AV44: 0 | AW44: 0.001695017777 | AX44: 17966.15735
A45: 12 | B45: 1 | C45: 2023-09-22 | E45: 12 | F45: 12 | G45: 360 | H45: 20.1 | I45: 31 | J45: 954744.47 | K45: 4659.095 | L45: 15177.26 | M45: 213.883 | N45: 15391.143 | O45: 20050.238 | P45: 0 | Q45: 2949.84 | S45: 0 | T45: 2949.84 | U45: 174.79 | W45: 174.79 | X45: 700 | Z45: 700 | AA45: 23874.868 | AB45: 950085.38 | AC45: 0 | AE45: 20050.238 | AF45: 15177.26 | AG45: 2949.84 | AH45: 0 | AI45: 0 | AJ45: 23874.868 | AL45: 2023-09-22 | AM45: 23874.868 | AO45: 0 | AP45: 0 | AR45: 365 | AS45: 1 | AT45: 17966.15735 | AU45: 0.001695017777 | AV45: 0 | AW45: 0.001695017777 | AX45: 17966.15566
A46: 13 | B46: 1 | C46: 2023-10-22 | E46: 13 | F46: 13 | G46: 360 | H46: 20.1 | I46: 30 | J46: 950085.38 | K46: 5333.165 | L46: 14612.27 | M46: 213.883 | N46: 14826.153 | O46: 20159.318 | P46: 0 | Q46: 2840.76 | S46: 0 | T46: 2840.76 | U46: 174.79 | W46: 174.79 | X46: 700 | Z46: 700 | AA46: 23874.868 | AB46: 944752.22 | AC46: 0 | AE46: 20159.318 | AF46: 14612.27 | AG46: 2840.76 | AH46: 0 | AI46: 0 | AJ46: 23874.868 | AL46: 2023-10-22 | AM46: =+IF(AJ46="",0,AJ46) -> 23874.868 | AO46: 7.275957614e-12 | AP46: 0 | AR46: 395 | AS46: 1 | AT46: =AX45 -> 17966.15566 | AU46: =IFERROR(AW46-AV46," ") -> 0.001695017777 | AV46: 0 | AW46: 0.001695017777 | AX46: =IFERROR(AT46-AU46," ") -> 17966.15396
A47: 14 | B47: 1 | C47: 2023-11-22 | E47: 14 | F47: 14 | G47: 360 | H47: 20.1 | I47: 31 | J47: 944752.22 | K47: 4848.815 | L47: 15018.41 | M47: 213.883 | N47: 15232.293 | O47: 20081.108 | P47: 0 | Q47: 2918.97 | S47: 0 | T47: 2918.97 | U47: 174.79 | W47: 174.79 | X47: 700 | Z47: 700 | AA47: 23874.868 | AB47: 939903.41 | AC47: 0 | AE47: 20081.108 | AF47: 15018.41 | AG47: 2918.97 | AH47: 0 | AI47: 0 | AJ47: 23874.868 | AL47: 2023-11-22 | AM47: =+IF(AJ47="",0,AJ47) -> 23874.868 | AO47: 3.637978807e-12 | AP47: 0 | AR47: 426 | AS47: 1 | AT47: 17966.15396 | AU47: =IFERROR(AW47-AV47," ") -> 0.001695017777 | AV47: 0 | AW47: 0.001695017777 | AX47: =IFERROR(AT47-AU47," ") -> 17966.15227
A48: 15 | B48: 1 | C48: 2023-12-22 | E48: 15 | F48: 15 | G48: 360 | H48: 20.1 | I48: 30 | J48: 939903.41 | K48: 5520.215 | L48: 14455.67 | M48: 213.883 | N48: 14669.553 | O48: 20189.768 | P48: 0 | Q48: 2810.31 | S48: 0 | T48: 2810.31 | U48: 174.79 | W48: 174.79 | X48: 700 | Z48: 700 | AA48: 23874.868 | AB48: 934383.2 | AC48: 0 | AE48: 20189.768 | AF48: 14455.67 | AG48: 2810.31 | AH48: 0 | AI48: 0 | AJ48: 23874.868 | AL48: 2023-12-22 | AM48: 23874.868 | AO48: 0 | AP48: 0 | AR48: 456 | AS48: 1 | AT48: 17966.15227 | AU48: 0.001695017777 | AV48: 0 | AW48: 0.001695017777 | AX48: 17966.15057
A49: 16 | B49: 1 | C49: 2024-01-22 | E49: 16 | F49: 16 | G49: 360 | H49: 20.1 | I49: 31 | J49: 934383.2 | K49: 5045.685 | L49: 14853.58 | M49: 213.883 | N49: 15067.463 | O49: 20113.148 | P49: 0 | Q49: 2886.93 | S49: 0 | T49: 2886.93 | U49: 174.79 | W49: 174.79 | X49: 700 | Z49: 700 | AA49: 23874.868 | AB49: 929337.52 | AC49: 0 | AE49: 20113.148 | AF49: 14853.58 | AG49: 2886.93 | AH49: 0 | AI49: 0 | AJ49: 23874.868 | AL49: 2024-01-22 | AM49: 23874.868 | AO49: 3.637978807e-12 | AP49: 0 | AR49: 487 | AS49: 1 | AT49: 17966.15057 | AU49: 0.001695017777 | AV49: 0 | AW49: 0.001695017777 | AX49: 17966.14888
A50: 17 | B50: 1 | C50: 2024-02-22 | E50: 17 | F50: 17 | G50: 360 | H50: 20.1 | I50: 31 | J50: 929337.52 | K50: 5141.485 | L50: 14773.37 | M50: 213.883 | N50: 14987.253 | O50: 20128.738 | P50: 0 | Q50: 2871.34 | S50: 0 | T50: 2871.34 | U50: 174.79 | W50: 174.79 | X50: 700 | Z50: 700 | AA50: 23874.868 | AB50: 924196.04 | AC50: 0 | AE50: 20128.738 | AF50: 14773.37 | AG50: 2871.34 | AH50: 0 | AI50: 0 | AJ50: 23874.868 | AL50: 2024-02-22 | AM50: 23874.868 | AO50: 0 | AP50: 0 | AR50: 518 | AS50: 1 | AT50: 17966.14888 | AU50: 0.001695017777 | AV50: 0 | AW50: 0.001695017777 | AX50: 17966.14718
A51: 18 | B51: 1 | C51: 2024-03-22 | E51: 18 | F51: 18 | G51: 360 | H51: 20.1 | I51: 29 | J51: 924196.04 | K51: 6378.185 | L51: 13736.78 | M51: 213.883 | N51: 13950.663 | O51: 20328.848 | P51: 0 | Q51: 2671.23 | S51: 0 | T51: 2671.23 | U51: 174.79 | W51: 174.79 | X51: 700 | Z51: 700 | AA51: 23874.868 | AB51: 917817.86 | AC51: 0 | AE51: 20328.848 | AF51: 13736.78 | AG51: 2671.23 | AH51: 0 | AI51: 0 | AJ51: 23874.868 | AL51: 2024-03-22 | AM51: 23874.868 | AO51: 0 | AP51: 0 | AR51: 547 | AS51: 1 | AT51: 17966.14718 | AU51: 0.001695017777 | AV51: 0 | AW51: 0.001695017777 | AX51: 17966.14549
A52: 19 | B52: 1 | C52: 2024-04-22 | E52: 19 | F52: 19 | G52: 360 | H52: 20.1 | I52: 31 | J52: 917817.86 | K52: 5360.195 | L52: 14590.25 | M52: 213.883 | N52: 14804.133 | O52: 20164.328 | P52: 0 | Q52: 2835.75 | S52: 0 | T52: 2835.75 | U52: 174.79 | W52: 174.79 | X52: 700 | Z52: 700 | AA52: 23874.868 | AB52: 912457.67 | AC52: 0 | AE52: 20164.328 | AF52: 14590.25 | AG52: 2835.75 | AH52: 0 | AI52: 0 | AJ52: 23874.868 | AL52: 2024-04-22 | AM52: 23874.868 | AO52: 3.637978807e-12 | AP52: 0 | AR52: 578 | AS52: 1 | AT52: 17966.14549 | AU52: 0.001695017777 | AV52: 0 | AW52: 0.001695017777 | AX52: 17966.14379
A53: 20 | B53: 1 | C53: 2024-05-22 | E53: 20 | F53: 20 | G53: 360 | H53: 20.1 | I53: 30 | J53: 912457.67 | K53: 6024.395 | L53: 14033.55 | M53: 213.883 | N53: 14247.433 | O53: 20271.828 | P53: 0 | Q53: 2728.25 | S53: 0 | T53: 2728.25 | U53: 174.79 | W53: 174.79 | X53: 700 | Z53: 700 | AA53: 23874.868 | AB53: 906433.28 | AC53: 0 | AE53: 20271.828 | AF53: 14033.55 | AG53: 2728.25 | AH53: 0 | AI53: 0 | AJ53: 23874.868 | AL53: 2024-05-22 | AM53: 23874.868 | AO53: 3.637978807e-12 | AP53: 0 | AR53: 608 | AS53: 1 | AT53: 17966.14379 | AU53: 0.001695017777 | AV53: 0 | AW53: 0.001695017777 | AX53: 17966.1421
A54: 21 | B54: 1 | C54: 2024-06-22 | E54: 21 | F54: 21 | G54: 360 | H54: 20.1 | I54: 31 | J54: 906433.28 | K54: 5576.345 | L54: 14409.27 | M54: 213.883 | N54: 14623.153 | O54: 20199.498 | P54: 0 | Q54: 2800.58 | S54: 0 | T54: 2800.58 | U54: 174.79 | W54: 174.79 | X54: 700 | Z54: 700 | AA54: 23874.868 | AB54: 900856.94 | AC54: 0 | AE54: 20199.498 | AF54: 14409.27 | AG54: 2800.58 | AH54: 0 | AI54: 0 | AJ54: 23874.868 | AL54: 2024-06-22 | AM54: 23874.868 | AO54: 7.275957614e-12 | AP54: 0 | AR54: 639 | AS54: 1 | AT54: 17966.1421 | AU54: 0.001695017777 | AV54: 0 | AW54: 0.001695017777 | AX54: 17966.1404
A55: 22 | B55: 1 | C55: 2024-07-22 | E55: 22 | F55: 22 | G55: 360 | H55: 20.1 | I55: 30 | J55: 900856.94 | K55: 6237.495 | L55: 13855.14 | M55: 213.883 | N55: 14069.023 | O55: 20306.518 | P55: 0 | Q55: 2693.56 | S55: 0 | T55: 2693.56 | U55: 174.79 | W55: 174.79 | X55: 700 | Z55: 700 | AA55: 23874.868 | AB55: 894619.45 | AC55: 0 | AE55: 20306.518 | AF55: 13855.14 | AG55: 2693.56 | AH55: 0 | AI55: 0 | AJ55: 23874.868 | AL55: 2024-07-22 | AM55: 23874.868 | AO55: 0 | AP55: 0 | AR55: 669 | AS55: 1 | AT55: 17966.1404 | AU55: 0.001695017777 | AV55: 0 | AW55: 0.001695017777 | AX55: 17966.13871
A56: 23 | B56: 1 | C56: 2024-08-22 | E56: 23 | F56: 23 | G56: 360 | H56: 20.1 | I56: 31 | J56: 894619.45 | K56: 5800.645 | L56: 14221.47 | M56: 213.883 | N56: 14435.353 | O56: 20235.998 | P56: 0 | Q56: 2764.08 | S56: 0 | T56: 2764.08 | U56: 174.79 | W56: 174.79 | X56: 700 | Z56: 700 | AA56: 23874.868 | AB56: 888818.81 | AC56: 0 | AE56: 20235.998 | AF56: 14221.47 | AG56: 2764.08 | AH56: 0 | AI56: 0 | AJ56: 23874.868 | AL56: 2024-08-22 | AM56: 23874.868 | AO56: 7.275957614e-12 | AP56: 0 | AR56: 700 | AS56: 1 | AT56: 17966.13871 | AU56: 0.001695017777 | AV56: 0 | AW56: 0.001695017777 | AX56: 17966.13701
A57: 24 | B57: 1 | C57: 2024-09-22 | E57: 24 | F57: 24 | G57: 360 | H57: 20.1 | I57: 31 | J57: 888818.81 | K57: 5910.785 | L57: 14129.26 | M57: 213.883 | N57: 14343.143 | O57: 20253.928 | P57: 0 | Q57: 2746.15 | S57: 0 | T57: 2746.15 | U57: 174.79 | W57: 174.79 | X57: 700 | Z57: 700 | AA57: 23874.868 | AB57: 882908.03 | AC57: 0 | AE57: 20253.928 | AF57: 14129.26 | AG57: 2746.15 | AH57: 0 | AI57: 0 | AJ57: 23874.868 | AL57: 2024-09-22 | AM57: 23874.868 | AO57: 3.637978807e-12 | AP57: 0 | AR57: 731 | AS57: 1 | AT57: 17966.13701 | AU57: 0.001695017777 | AV57: 0 | AW57: 0.001695017777 | AX57: 17966.13532
A58: 25 | B58: 1 | C58: 2024-10-22 | E58: 25 | F58: 25 | G58: 360 | H58: 20.1 | I58: 30 | J58: 882908.03 | K58: 6567.215 | L58: 13579.08 | M58: 213.883 | N58: 13792.963 | O58: 20360.178 | P58: 0 | Q58: 2639.9 | S58: 0 | T58: 2639.9 | U58: 174.79 | W58: 174.79 | X58: 700 | Z58: 700 | AA58: 23874.868 | AB58: 876340.82 | AC58: 0 | AE58: 20360.178 | AF58: 13579.08 | AG58: 2639.9 | AH58: 0 | AI58: 0 | AJ58: 23874.868 | AL58: 2024-10-22 | AM58: 23874.868 | AO58: 3.637978807e-12 | AP58: 0 | AR58: 761 | AS58: 1 | AT58: 17966.13532 | AU58: 0.001695017777 | AV58: 0 | AW58: 0.001695017777 | AX58: 17966.13362
A59: 26 | B59: 1 | C59: 2024-11-22 | E59: 26 | F59: 26 | G59: 360 | H59: 20.1 | I59: 31 | J59: 876340.82 | K59: 6147.695 | L59: 13930.9 | M59: 213.883 | N59: 14144.783 | O59: 20292.478 | P59: 0 | Q59: 2707.6 | S59: 0 | T59: 2707.6 | U59: 174.79 | W59: 174.79 | X59: 700 | Z59: 700 | AA59: 23874.868 | AB59: 870193.13 | AC59: 0 | AE59: 20292.478 | AF59: 13930.9 | AG59: 2707.6 | AH59: 0 | AI59: 0 | AJ59: 23874.868 | AL59: 2024-11-22 | AM59: 23874.868 | AO59: 0 | AP59: 0 | AR59: 792 | AS59: 1 | AT59: 17966.13362 | AU59: 0.001695017777 | AV59: 0 | AW59: 0.001695017777 | AX59: 17966.13193
A60: 27 | B60: 1 | C60: 2024-12-22 | E60: 27 | F60: 27 | G60: 360 | H60: 20.1 | I60: 30 | J60: 870193.13 | K60: 6800.785 | L60: 13383.53 | M60: 213.883 | N60: 13597.413 | O60: 20398.198 | P60: 0 | Q60: 2601.88 | S60: 0 | T60: 2601.88 | U60: 174.79 | W60: 174.79 | X60: 700 | Z60: 700 | AA60: 23874.868 | AB60: 863392.35 | AC60: 0 | AE60: 20398.198 | AF60: 13383.53 | AG60: 2601.88 | AH60: 0 | AI60: 0 | AJ60: 23874.868 | AL60: 2024-12-22 | AM60: 23874.868 | AO60: 0 | AP60: 0 | AR60: 822 | AS60: 1 | AT60: 17966.13193 | AU60: 0.001695017777 | AV60: 0 | AW60: 0.001695017777 | AX60: 17966.13023
A61: 28 | B61: 1 | C61: 2025-01-22 | E61: 28 | F61: 28 | G61: 360 | H61: 20.1 | I61: 31 | J61: 863392.35 | K61: 6393.545 | L61: 13725.06 | M61: 213.883 | N61: 13938.943 | O61: 20332.488 | P61: 0 | Q61: 2667.59 | S61: 0 | T61: 2667.59 | U61: 174.79 | W61: 174.79 | X61: 700 | Z61: 700 | AA61: 23874.868 | AB61: 856998.81 | AC61: 0 | AE61: 20332.488 | AF61: 13725.06 | AG61: 2667.59 | AH61: 0 | AI61: 0 | AJ61: 23874.868 | AL61: 2025-01-22 | AM61: 23874.868 | AO61: 0 | AP61: 0 | AR61: 853 | AS61: 1 | AT61: 17966.13023 | AU61: 0.001695017777 | AV61: 0 | AW61: 0.001695017777 | AX61: 17966.12854
A62: 29 | B62: 1 | C62: 2025-02-22 | E62: 29 | F62: 29 | G62: 360 | H62: 20.1 | I62: 31 | J62: 856998.81 | K62: 6514.925 | L62: 13623.43 | M62: 213.883 | N62: 13837.313 | O62: 20352.238 | P62: 0 | Q62: 2647.84 | S62: 0 | T62: 2647.84 | U62: 174.79 | W62: 174.79 | X62: 700 | Z62: 700 | AA62: 23874.868 | AB62: 850483.89 | AC62: 0 | AE62: 20352.238 | AF62: 13623.43 | AG62: 2647.84 | AH62: 0 | AI62: 0 | AJ62: 23874.868 | AL62: 2025-02-22 | AM62: 23874.868 | AO62: 0 | AP62: 0 | AR62: 884 | AS62: 1 | AT62: 17966.12854 | AU62: 0.001695017777 | AV62: 0 | AW62: 0.001695017777 | AX62: 17966.12684
A63: 30 | B63: 1 | C63: 2025-03-22 | E63: 30 | F63: 30 | G63: 360 | H63: 20.1 | I63: 28 | J63: 850483.89 | K63: 8210.625 | L63: 12202.15 | M63: 213.883 | N63: 12416.033 | O63: 20626.658 | P63: 0 | Q63: 2373.42 | S63: 0 | T63: 2373.42 | U63: 174.79 | W63: 174.79 | X63: 700 | Z63: 700 | AA63: 23874.868 | AB63: 842273.27 | AC63: 0 | AE63: 20626.658 | AF63: 12202.15 | AG63: 2373.42 | AH63: 0 | AI63: 0 | AJ63: 23874.868 | AL63: 2025-03-22 | AM63: 23874.868 | AO63: 0 | AP63: 0 | AR63: 912 | AS63: 1 | AT63: 17966.12684 | AU63: 0.001695017777 | AV63: 0 | AW63: 0.001695017777 | AX63: 17966.12515
A64: 31 | B64: 1 | C64: 2025-04-22 | E64: 31 | F64: 31 | G64: 360 | H64: 20.1 | I64: 31 | J64: 842273.27 | K64: 6794.515 | L64: 13389.34 | M64: 213.883 | N64: 13603.223 | O64: 20397.738 | P64: 0 | Q64: 2602.34 | S64: 0 | T64: 2602.34 | U64: 174.79 | W64: 174.79 | X64: 700 | Z64: 700 | AA64: 23874.868 | AB64: 835478.76 | AC64: 0 | AE64: 20397.738 | AF64: 13389.34 | AG64: 2602.34 | AH64: 0 | AI64: 0 | AJ64: 23874.868 | AL64: 2025-04-22 | AM64: 23874.868 | AO64: 0 | AP64: 0 | AR64: 943 | AS64: 1 | AT64: 17966.12515 | AU64: 0.001695017777 | AV64: 0 | AW64: 0.001695017777 | AX64: 17966.12345
A65: 32 | B65: 1 | C65: 2025-05-22 | E65: 32 | F65: 32 | G65: 360 | H65: 20.1 | I65: 30 | J65: 835478.76 | K65: 7438.495 | L65: 12849.62 | M65: 213.883 | N65: 13063.503 | O65: 20501.998 | P65: 0 | Q65: 2498.08 | S65: 0 | T65: 2498.08 | U65: 174.79 | W65: 174.79 | X65: 700 | Z65: 700 | AA65: 23874.868 | AB65: 828040.27 | AC65: 0 | AE65: 20501.998 | AF65: 12849.62 | AG65: 2498.08 | AH65: 0 | AI65: 0 | AJ65: 23874.868 | AL65: 2025-05-22 | AM65: 23874.868 | AO65: 7.275957614e-12 | AP65: 0 | AR65: 973 | AS65: 1 | AT65: 17966.12345 | AU65: 0.001695017777 | AV65: 0 | AW65: 0.001695017777 | AX65: 17966.12176
A66: 33 | B66: 1 | C66: 2025-06-22 | E66: 33 | F66: 33 | G66: 360 | H66: 20.1 | I66: 31 | J66: 828040.27 | K66: 7064.745 | L66: 13163.08 | M66: 213.883 | N66: 13376.963 | O66: 20441.708 | P66: 0 | Q66: 2558.37 | S66: 0 | T66: 2558.37 | U66: 174.79 | W66: 174.79 | X66: 700 | Z66: 700 | AA66: 23874.868 | AB66: 820975.53 | AC66: 0 | AE66: 20441.708 | AF66: 13163.08 | AG66: 2558.37 | AH66: 0 | AI66: 0 | AJ66: 23874.868 | AL66: 2025-06-22 | AM66: 23874.868 | AO66: 3.637978807e-12 | AP66: 0 | AR66: 1004 | AS66: 1 | AT66: 17966.12176 | AU66: 0.001695017777 | AV66: 0 | AW66: 0.001695017777 | AX66: 17966.12006
A67: 34 | B67: 1 | C67: 2025-07-22 | E67: 34 | F67: 34 | G67: 360 | H67: 20.1 | I67: 30 | J67: 820975.53 | K67: 7704.915 | L67: 12626.56 | M67: 213.883 | N67: 12840.443 | O67: 20545.358 | P67: 0 | Q67: 2454.72 | S67: 0 | T67: 2454.72 | U67: 174.79 | W67: 174.79 | X67: 700 | Z67: 700 | AA67: 23874.868 | AB67: 813270.62 | AC67: 0 | AE67: 20545.358 | AF67: 12626.56 | AG67: 2454.72 | AH67: 0 | AI67: 0 | AJ67: 23874.868 | AL67: 2025-07-22 | AM67: 23874.868 | AO67: 3.637978807e-12 | AP67: 0 | AR67: 1034 | AS67: 1 | AT67: 17966.12006 | AU67: 0.001695017777 | AV67: 0 | AW67: 0.001695017777 | AX67: 17966.11837
A68: 35 | B68: 1 | C68: 2025-08-22 | E68: 35 | F68: 35 | G68: 360 | H68: 20.1 | I68: 31 | J68: 813270.62 | K68: 7345.165 | L68: 12928.29 | M68: 213.883 | N68: 13142.173 | O68: 20487.338 | P68: 0 | Q68: 2512.74 | S68: 0 | T68: 2512.74 | U68: 174.79 | W68: 174.79 | X68: 700 | Z68: 700 | AA68: 23874.868 | AB68: 805925.46 | AC68: 0 | AE68: 20487.338 | AF68: 12928.29 | AG68: 2512.74 | AH68: 0 | AI68: 0 | AJ68: 23874.868 | AL68: 2025-08-22 | AM68: 23874.868 | AO68: 0 | AP68: 0 | AR68: 1065 | AS68: 1 | AT68: 17966.11837 | AU68: 0.001695017777 | AV68: 0 | AW68: 0.001695017777 | AX68: 17966.11667
A69: 36 | B69: 1 | C69: 2025-09-22 | E69: 36 | F69: 36 | G69: 360 | H69: 20.1 | I69: 31 | J69: 805925.46 | K69: 7484.625 | L69: 12811.53 | M69: 213.883 | N69: 13025.413 | O69: 20510.038 | P69: 0 | Q69: 2490.04 | S69: 0 | T69: 2490.04 | U69: 174.79 | W69: 174.79 | X69: 700 | Z69: 700 | AA69: 23874.868 | AB69: 798440.84 | AC69: 0 | AE69: 20510.038 | AF69: 12811.53 | AG69: 2490.04 | AH69: 0 | AI69: 0 | AJ69: 23874.868 | AL69: 2025-09-22 | AM69: 23874.868 | AO69: 0 | AP69: 0 | AR69: 1096 | AS69: 1 | AT69: 17966.11667 | AU69: 0.001695017777 | AV69: 0 | AW69: 0.001695017777 | AX69: 17966.11498
A70: 37 | B70: 1 | C70: 2025-10-22 | E70: 37 | F70: 37 | G70: 360 | H70: 20.1 | I70: 30 | J70: 798440.84 | K70: 8118.875 | L70: 12279.98 | M70: 213.883 | N70: 12493.863 | O70: 20612.738 | P70: 0 | Q70: 2387.34 | S70: 0 | T70: 2387.34 | U70: 174.79 | W70: 174.79 | X70: 700 | Z70: 700 | AA70: 23874.868 | AB70: 790321.97 | AC70: 0 | AE70: 20612.738 | AF70: 12279.98 | AG70: 2387.34 | AH70: 0 | AI70: 0 | AJ70: 23874.868 | AL70: 2025-10-22 | AM70: 23874.868 | AO70: 0 | AP70: 0 | AR70: 1126 | AS70: 1 | AT70: 17966.11498 | AU70: 0.001695017777 | AV70: 0 | AW70: 0.001695017777 | AX70: 17966.11328
A71: 38 | B71: 1 | C71: 2025-11-22 | E71: 38 | F71: 38 | G71: 360 | H71: 20.1 | I71: 31 | J71: 790321.97 | K71: 7780.875 | L71: 12563.49 | M71: 213.883 | N71: 12777.373 | O71: 20558.248 | P71: 0 | Q71: 2441.83 | S71: 0 | T71: 2441.83 | U71: 174.79 | W71: 174.79 | X71: 700 | Z71: 700 | AA71: 23874.868 | AB71: 782541.1 | AC71: 0 | AE71: 20558.248 | AF71: 12563.49 | AG71: 2441.83 | AH71: 0 | AI71: 0 | AJ71: 23874.868 | AL71: 2025-11-22 | AM71: 23874.868 | AO71: 7.275957614e-12 | AP71: 0 | AR71: 1157 | AS71: 1 | AT71: 17966.11328 | AU71: 0.001695017777 | AV71: 0 | AW71: 0.001695017777 | AX71: 17966.11159
A72: 39 | B72: 1 | C72: 2025-12-22 | E72: 39 | F72: 39 | G72: 360 | H72: 20.1 | I72: 30 | J72: 782541.1 | K72: 8410.955 | L72: 12035.44 | M72: 213.883 | N72: 12249.323 | O72: 20660.278 | P72: 0 | Q72: 2339.8 | S72: 0 | T72: 2339.8 | U72: 174.79 | W72: 174.79 | X72: 700 | Z72: 700 | AA72: 23874.868 | AB72: 774130.15 | AC72: 0 | AE72: 20660.278 | AF72: 12035.44 | AG72: 2339.8 | AH72: 0 | AI72: 0 | AJ72: 23874.868 | AL72: 2025-12-22 | AM72: 23874.868 | AO72: 3.637978807e-12 | AP72: 0 | AR72: 1187 | AS72: 1 | AT72: 17966.11159 | AU72: 0.001695017777 | AV72: 0 | AW72: 0.001695017777 | AX72: 17966.10989
A73: 40 | B73: 1 | C73: 2026-01-22 | E73: 40 | F73: 40 | G73: 360 | H73: 20.1 | I73: 31 | J73: 774130.15 | K73: 8088.305 | L73: 12306.09 | M73: 213.883 | N73: 12519.973 | O73: 20608.278 | P73: 0 | Q73: 2391.8 | S73: 0 | T73: 2391.8 | U73: 174.79 | W73: 174.79 | X73: 700 | Z73: 700 | AA73: 23874.868 | AB73: 766041.85 | AC73: 0 | AE73: 20608.278 | AF73: 12306.09 | AG73: 2391.8 | AH73: 0 | AI73: 0 | AJ73: 23874.868 | AL73: 2026-01-22 | AM73: 23874.868 | AO73: 3.637978807e-12 | AP73: 0 | AR73: 1218 | AS73: 1 | AT73: 17966.10989 | AU73: 0.001695017777 | AV73: 0 | AW73: 0.001695017777 | AX73: 17966.1082
A74: 41 | B74: 1 | C74: 2026-02-22 | E74: 41 | F74: 41 | G74: 360 | H74: 20.1 | I74: 31 | J74: 766041.85 | K74: 8241.875 | L74: 12177.51 | M74: 213.883 | N74: 12391.393 | O74: 20633.268 | P74: 0 | Q74: 2366.81 | S74: 0 | T74: 2366.81 | U74: 174.79 | W74: 174.79 | X74: 700 | Z74: 700 | AA74: 23874.868 | AB74: 757799.98 | AC74: 0 | AE74: 20633.268 | AF74: 12177.51 | AG74: 2366.81 | AH74: 0 | AI74: 0 | AJ74: 23874.868 | AL74: 2026-02-22 | AM74: 23874.868 | AO74: 0 | AP74: 0 | AR74: 1249 | AS74: 1 | AT74: 17966.1082 | AU74: 0.001695017777 | AV74: 0 | AW74: 0.001695017777 | AX74: 17966.1065
A75: 42 | B75: 1 | C75: 2026-03-22 | E75: 42 | F75: 42 | G75: 360 | H75: 20.1 | I75: 28 | J75: 757799.98 | K75: 9799.035 | L75: 10872.39 | M75: 213.883 | N75: 11086.273 | O75: 20885.308 | P75: 0 | Q75: 2114.77 | S75: 0 | T75: 2114.77 | U75: 174.79 | W75: 174.79 | X75: 700 | Z75: 700 | AA75: 23874.868 | AB75: 748000.95 | AC75: 0 | AE75: 20885.308 | AF75: 10872.39 | AG75: 2114.77 | AH75: 0 | AI75: 0 | AJ75: 23874.868 | AL75: 2026-03-22 | AM75: 23874.868 | AO75: 0 | AP75: 0 | AR75: 1277 | AS75: 1 | AT75: 17966.1065 | AU75: 0.001695017777 | AV75: 0 | AW75: 0.001695017777 | AX75: 17966.10481
A76: 43 | B76: 1 | C76: 2026-04-22 | E76: 43 | F76: 43 | G76: 360 | H76: 20.1 | I76: 31 | J76: 748000.95 | K76: 8584.405 | L76: 11890.72 | M76: 213.883 | N76: 12104.603 | O76: 20689.008 | P76: 0 | Q76: 2311.07 | S76: 0 | T76: 2311.07 | U76: 174.79 | W76: 174.79 | X76: 700 | Z76: 700 | AA76: 23874.868 | AB76: 739416.55 | AC76: 0 | AE76: 20689.008 | AF76: 11890.72 | AG76: 2311.07 | AH76: 0 | AI76: 0 | AJ76: 23874.868 | AL76: 2026-04-22 | AM76: 23874.868 | AO76: 3.637978807e-12 | AP76: 0 | AR76: 1308 | AS76: 1 | AT76: 17966.10481 | AU76: 0.001695017777 | AV76: 0 | AW76: 0.001695017777 | AX76: 17966.10311
A77: 44 | B77: 1 | C77: 2026-05-22 | E77: 44 | F77: 44 | G77: 360 | H77: 20.1 | I77: 30 | J77: 739416.55 | K77: 9203.145 | L77: 11372.19 | M77: 213.883 | N77: 11586.073 | O77: 20789.218 | P77: 0 | Q77: 2210.86 | S77: 0 | T77: 2210.86 | U77: 174.79 | W77: 174.79 | X77: 700 | Z77: 700 | AA77: 23874.868 | AB77: 730213.41 | AC77: 0 | AE77: 20789.218 | AF77: 11372.19 | AG77: 2210.86 | AH77: 0 | AI77: 0 | AJ77: 23874.868 | AL77: 2026-05-22 | AM77: 23874.868 | AO77: 3.637978807e-12 | AP77: 0 | AR77: 1338 | AS77: 1 | AT77: 17966.10311 | AU77: 0.001695017777 | AV77: 0 | AW77: 0.001695017777 | AX77: 17966.10142
A78: 45 | B78: 1 | C78: 2026-06-22 | E78: 45 | F78: 45 | G78: 360 | H78: 20.1 | I78: 31 | J78: 730213.41 | K78: 8922.115 | L78: 11607.96 | M78: 213.883 | N78: 11821.843 | O78: 20743.958 | P78: 0 | Q78: 2256.12 | S78: 0 | T78: 2256.12 | U78: 174.79 | W78: 174.79 | X78: 700 | Z78: 700 | AA78: 23874.868 | AB78: 721291.3 | AC78: 0 | AE78: 20743.958 | AF78: 11607.96 | AG78: 2256.12 | AH78: 0 | AI78: 0 | AJ78: 23874.868 | AL78: 2026-06-22 | AM78: 23874.868 | AO78: 0 | AP78: 0 | AR78: 1369 | AS78: 1 | AT78: 17966.10142 | AU78: 0.001695017777 | AV78: 0 | AW78: 0.001695017777 | AX78: 17966.09972
A79: 46 | B79: 1 | C79: 2026-07-22 | E79: 46 | F79: 46 | G79: 360 | H79: 20.1 | I79: 30 | J79: 721291.3 | K79: 9536.105 | L79: 11093.43 | M79: 213.883 | N79: 11307.313 | O79: 20843.418 | P79: 0 | Q79: 2156.66 | S79: 0 | T79: 2156.66 | U79: 174.79 | W79: 174.79 | X79: 700 | Z79: 700 | AA79: 23874.868 | AB79: 711755.2 | AC79: 0 | AE79: 20843.418 | AF79: 11093.43 | AG79: 2156.66 | AH79: 0 | AI79: 0 | AJ79: 23874.868 | AL79: 2026-07-22 | AM79: 23874.868 | AO79: 0 | AP79: 0 | AR79: 1399 | AS79: 1 | AT79: 17966.09972 | AU79: 0.001695017777 | AV79: 0 | AW79: 0.001695017777 | AX79: 17966.09803
A80: 47 | B80: 1 | C80: 2026-08-22 | E80: 47 | F80: 47 | G80: 360 | H80: 20.1 | I80: 31 | J80: 711755.2 | K80: 9272.565 | L80: 11314.54 | M80: 213.883 | N80: 11528.423 | O80: 20800.988 | P80: 0 | Q80: 2199.09 | S80: 0 | T80: 2199.09 | U80: 174.79 | W80: 174.79 | X80: 700 | Z80: 700 | AA80: 23874.868 | AB80: 702482.64 | AC80: 0 | AE80: 20800.988 | AF80: 11314.54 | AG80: 2199.09 | AH80: 0 | AI80: 0 | AJ80: 23874.868 | AL80: 2026-08-22 | AM80: 23874.868 | AO80: 0 | AP80: 0 | AR80: 1430 | AS80: 1 | AT80: 17966.09803 | AU80: 0.001695017777 | AV80: 0 | AW80: 0.001695017777 | AX80: 17966.09633
A81: 48 | B81: 1 | C81: 2026-09-22 | E81: 48 | F81: 48 | G81: 360 | H81: 20.1 | I81: 31 | J81: 702482.64 | K81: 9448.625 | L81: 11167.13 | M81: 213.883 | N81: 11381.013 | O81: 20829.638 | P81: 0 | Q81: 2170.44 | S81: 0 | T81: 2170.44 | U81: 174.79 | W81: 174.79 | X81: 700 | Z81: 700 | AA81: 23874.868 | AB81: 693034.02 | AC81: 0 | AE81: 20829.638 | AF81: 11167.13 | AG81: 2170.44 | AH81: 0 | AI81: 0 | AJ81: 23874.868 | AL81: 2026-09-22 | AM81: 23874.868 | AO81: 3.637978807e-12 | AP81: 0 | AR81: 1461 | AS81: 1 | AT81: 17966.09633 | AU81: 0.001695017777 | AV81: 0 | AW81: 0.001695017777 | AX81: 17966.09464
A82: 49 | B82: 1 | C82: 2026-10-22 | E82: 49 | F82: 49 | G82: 360 | H82: 20.1 | I82: 30 | J82: 693034.02 | K82: 10055.195 | L82: 10658.83 | M82: 213.883 | N82: 10872.713 | O82: 20927.908 | P82: 0 | Q82: 2072.17 | S82: 0 | T82: 2072.17 | U82: 174.79 | W82: 174.79 | X82: 700 | Z82: 700 | AA82: 23874.868 | AB82: 682978.83 | AC82: 0 | AE82: 20927.908 | AF82: 10658.83 | AG82: 2072.17 | AH82: 0 | AI82: 0 | AJ82: 23874.868 | AL82: 2026-10-22 | AM82: 23874.868 | AO82: 0 | AP82: 0 | AR82: 1491 | AS82: 1 | AT82: 17966.09464 | AU82: 0.001695017777 | AV82: 0 | AW82: 0.001695017777 | AX82: 17966.09294
A83: 50 | B83: 1 | C83: 2026-11-22 | E83: 50 | F83: 50 | G83: 360 | H83: 20.1 | I83: 31 | J83: 682978.83 | K83: 9818.925 | L83: 10857.09 | M83: 213.883 | N83: 11070.973 | O83: 20889.898 | P83: 0 | Q83: 2110.18 | S83: 0 | T83: 2110.18 | U83: 174.79 | W83: 174.79 | X83: 700 | Z83: 700 | AA83: 23874.868 | AB83: 673159.91 | AC83: 0 | AE83: 20889.898 | AF83: 10857.09 | AG83: 2110.18 | AH83: 0 | AI83: 0 | AJ83: 23874.868 | AL83: 2026-11-22 | AM83: 23874.868 | AO83: 3.637978807e-12 | AP83: 0 | AR83: 1522 | AS83: 1 | AT83: 17966.09294 | AU83: 0.001695017777 | AV83: 0 | AW83: 0.001695017777 | AX83: 17966.09125
A84: 51 | B84: 1 | C84: 2026-12-22 | E84: 51 | F84: 51 | G84: 360 | H84: 20.1 | I84: 30 | J84: 673159.91 | K84: 10420.275 | L84: 10353.17 | M84: 213.883 | N84: 10567.053 | O84: 20987.328 | P84: 0 | Q84: 2012.75 | S84: 0 | T84: 2012.75 | U84: 174.79 | W84: 174.79 | X84: 700 | Z84: 700 | AA84: 23874.868 | AB84: 662739.64 | AC84: 0 | AE84: 20987.328 | AF84: 10353.17 | AG84: 2012.75 | AH84: 0 | AI84: 0 | AJ84: 23874.868 | AL84: 2026-12-22 | AM84: 23874.868 | AO84: 3.637978807e-12 | AP84: 0 | AR84: 1552 | AS84: 1 | AT84: 17966.09125 | AU84: 0.001695017777 | AV84: 0 | AW84: 0.001695017777 | AX84: 17966.08955
A85: 52 | B85: 1 | C85: 2027-01-22 | E85: 52 | F85: 52 | G85: 360 | H85: 20.1 | I85: 31 | J85: 662739.64 | K85: 10203.205 | L85: 10535.35 | M85: 213.883 | N85: 10749.233 | O85: 20952.438 | P85: 0 | Q85: 2047.64 | S85: 0 | T85: 2047.64 | U85: 174.79 | W85: 174.79 | X85: 700 | Z85: 700 | AA85: 23874.868 | AB85: 652536.44 | AC85: 0 | AE85: 20952.438 | AF85: 10535.35 | AG85: 2047.64 | AH85: 0 | AI85: 0 | AJ85: 23874.868 | AL85: 2027-01-22 | AM85: 23874.868 | AO85: 3.637978807e-12 | AP85: 0 | AR85: 1583 | AS85: 1 | AT85: 17966.08955 | AU85: 0.001695017777 | AV85: 0 | AW85: 0.001695017777 | AX85: 17966.08786
A86: 53 | B86: 1 | C86: 2027-02-22 | E86: 53 | F86: 53 | G86: 360 | H86: 20.1 | I86: 31 | J86: 652536.44 | K86: 10396.915 | L86: 10373.16 | M86: 213.883 | N86: 10587.043 | O86: 20983.958 | P86: 0 | Q86: 2016.12 | S86: 0 | T86: 2016.12 | U86: 174.79 | W86: 174.79 | X86: 700 | Z86: 700 | AA86: 23874.868 | AB86: 642139.53 | AC86: 0 | AE86: 20983.958 | AF86: 10373.16 | AG86: 2016.12 | AH86: 0 | AI86: 0 | AJ86: 23874.868 | AL86: 2027-02-22 | AM86: 23874.868 | AO86: 0 | AP86: 0 | AR86: 1614 | AS86: 1 | AT86: 17966.08786 | AU86: 0.001695017777 | AV86: 0 | AW86: 0.001695017777 | AX86: 17966.08616
A87: 54 | B87: 1 | C87: 2027-03-22 | E87: 54 | F87: 54 | G87: 360 | H87: 20.1 | I87: 28 | J87: 642139.53 | K87: 11781.225 | L87: 9212.97 | M87: 213.883 | N87: 9426.853 | O87: 21208.078 | P87: 0 | Q87: 1792 | S87: 0 | T87: 1792 | U87: 174.79 | W87: 174.79 | X87: 700 | Z87: 700 | AA87: 23874.868 | AB87: 630358.31 | AC87: 0 | AE87: 21208.078 | AF87: 9212.97 | AG87: 1792 | AH87: 0 | AI87: 0 | AJ87: 23874.868 | AL87: 2027-03-22 | AM87: 23874.868 | AO87: 3.637978807e-12 | AP87: 0 | AR87: 1642 | AS87: 1 | AT87: 17966.08616 | AU87: 0.001695017777 | AV87: 0 | AW87: 0.001695017777 | AX87: 17966.08447
A88: 55 | B88: 1 | C88: 2027-04-22 | E88: 55 | F88: 55 | G88: 360 | H88: 20.1 | I88: 31 | J88: 630358.31 | K88: 10817.995 | L88: 10020.6 | M88: 213.883 | N88: 10234.483 | O88: 21052.478 | P88: 0 | Q88: 1947.6 | S88: 0 | T88: 1947.6 | U88: 174.79 | W88: 174.79 | X88: 700 | Z88: 700 | AA88: 23874.868 | AB88: 619540.32 | AC88: 0 | AE88: 21052.478 | AF88: 10020.6 | AG88: 1947.6 | AH88: 0 | AI88: 0 | AJ88: 23874.868 | AL88: 2027-04-22 | AM88: 23874.868 | AO88: 0 | AP88: 0 | AR88: 1673 | AS88: 1 | AT88: 17966.08447 | AU88: 0.001695017777 | AV88: 0 | AW88: 0.001695017777 | AX88: 17966.08277
A89: 56 | B89: 1 | C89: 2027-05-22 | E89: 56 | F89: 56 | G89: 360 | H89: 20.1 | I89: 30 | J89: 619540.32 | K89: 11405.265 | L89: 9528.5 | M89: 213.883 | N89: 9742.383 | O89: 21147.648 | P89: 0 | Q89: 1852.43 | S89: 0 | T89: 1852.43 | U89: 174.79 | W89: 174.79 | X89: 700 | Z89: 700 | AA89: 23874.868 | AB89: 608135.06 | AC89: 0 | AE89: 21147.648 | AF89: 9528.5 | AG89: 1852.43 | AH89: 0 | AI89: 0 | AJ89: 23874.868 | AL89: 2027-05-22 | AM89: 23874.868 | AO89: 3.637978807e-12 | AP89: 0 | AR89: 1703 | AS89: 1 | AT89: 17966.08277 | AU89: 0.001695017777 | AV89: 0 | AW89: 0.001695017777 | AX89: 17966.08108
A90: 57 | B90: 1 | C90: 2027-06-22 | E90: 57 | F90: 57 | G90: 360 | H90: 20.1 | I90: 31 | J90: 608135.06 | K90: 11239.945 | L90: 9667.32 | M90: 213.883 | N90: 9881.203 | O90: 21121.148 | P90: 0 | Q90: 1878.93 | S90: 0 | T90: 1878.93 | U90: 174.79 | W90: 174.79 | X90: 700 | Z90: 700 | AA90: 23874.868 | AB90: 596895.12 | AC90: 0 | AE90: 21121.148 | AF90: 9667.32 | AG90: 1878.93 | AH90: 0 | AI90: 0 | AJ90: 23874.868 | AL90: 2027-06-22 | AM90: 23874.868 | AO90: 3.637978807e-12 | AP90: 0 | AR90: 1734 | AS90: 1 | AT90: 17966.08108 | AU90: 0.001695017777 | AV90: 0 | AW90: 0.001695017777 | AX90: 17966.07938
A91: 58 | B91: 1 | C91: 2027-07-22 | E91: 58 | F91: 58 | G91: 360 | H91: 20.1 | I91: 30 | J91: 596895.12 | K91: 11821.255 | L91: 9180.22 | M91: 213.883 | N91: 9394.103 | O91: 21215.358 | P91: 0 | Q91: 1784.72 | S91: 0 | T91: 1784.72 | U91: 174.79 | W91: 174.79 | X91: 700 | Z91: 700 | AA91: 23874.868 | AB91: 585073.87 | AC91: 0 | AE91: 21215.358 | AF91: 9180.22 | AG91: 1784.72 | AH91: 0 | AI91: 0 | AJ91: 23874.868 | AL91: 2027-07-22 | AM91: 23874.868 | AO91: 3.637978807e-12 | AP91: 0 | AR91: 1764 | AS91: 1 | AT91: 17966.07938 | AU91: 0.001695017777 | AV91: 0 | AW91: 0.001695017777 | AX91: 17966.07769
A92: 59 | B92: 1 | C92: 2027-08-22 | E92: 59 | F92: 59 | G92: 360 | H92: 20.1 | I92: 31 | J92: 585073.87 | K92: 11677.785 | L92: 9300.73 | M92: 213.883 | N92: 9514.613 | O92: 21192.398 | P92: 0 | Q92: 1807.68 | S92: 0 | T92: 1807.68 | U92: 174.79 | W92: 174.79 | X92: 700 | Z92: 700 | AA92: 23874.868 | AB92: 573396.09 | AC92: 0 | AE92: 21192.398 | AF92: 9300.73 | AG92: 1807.68 | AH92: 0 | AI92: 0 | AJ92: 23874.868 | AL92: 2027-08-22 | AM92: 23874.868 | AO92: 3.637978807e-12 | AP92: 0 | AR92: 1795 | AS92: 1 | AT92: 17966.07769 | AU92: 0.001695017777 | AV92: 0 | AW92: 0.001695017777 | AX92: 17966.07599
A93: 60 | B93: 1 | C93: 2027-09-22 | E93: 60 | F93: 60 | G93: 360 | H93: 20.1 | I93: 31 | J93: 573396.09 | K93: 11899.505 | L93: 9115.09 | M93: 213.883 | N93: 9328.973 | O93: 21228.478 | P93: 0 | Q93: 1771.6 | S93: 0 | T93: 1771.6 | U93: 174.79 | W93: 174.79 | X93: 700 | Z93: 700 | AA93: 23874.868 | AB93: 561496.59 | AC93: 0 | AE93: 21228.478 | AF93: 9115.09 | AG93: 1771.6 | AH93: 0 | AI93: 0 | AJ93: 23874.868 | AL93: 2027-09-22 | AM93: 23874.868 | AO93: 0 | AP93: 0 | AR93: 1826 | AS93: 1 | AT93: 17966.07599 | AU93: 0.001695017777 | AV93: 0 | AW93: 0.001695017777 | AX93: 17966.0743
A94: 61 | B94: 1 | C94: 2027-10-22 | E94: 61 | F94: 61 | G94: 360 | H94: 20.1 | I94: 30 | J94: 561496.59 | K94: 12471.535 | L94: 8635.79 | M94: 213.883 | N94: 8849.673 | O94: 21321.208 | P94: 0 | Q94: 1678.87 | S94: 0 | T94: 1678.87 | U94: 174.79 | W94: 174.79 | X94: 700 | Z94: 700 | AA94: 23874.868 | AB94: 549025.06 | AC94: 0 | AE94: 21321.208 | AF94: 8635.79 | AG94: 1678.87 | AH94: 0 | AI94: 0 | AJ94: 23874.868 | AL94: 2027-10-22 | AM94: 23874.868 | AO94: 0 | AP94: 0 | AR94: 1856 | AS94: 1 | AT94: 17966.0743 | AU94: 0.001695017777 | AV94: 0 | AW94: 0.001695017777 | AX94: 17966.0726
A95: 62 | B95: 1 | C95: 2027-11-22 | E95: 62 | F95: 62 | G95: 360 | H95: 20.1 | I95: 31 | J95: 549025.06 | K95: 12362.225 | L95: 8727.67 | M95: 213.883 | N95: 8941.553 | O95: 21303.778 | P95: 0 | Q95: 1696.3 | S95: 0 | T95: 1696.3 | U95: 174.79 | W95: 174.79 | X95: 700 | Z95: 700 | AA95: 23874.868 | AB95: 536662.84 | AC95: 0 | AE95: 21303.778 | AF95: 8727.67 | AG95: 1696.3 | AH95: 0 | AI95: 0 | AJ95: 23874.868 | AL95: 2027-11-22 | AM95: 23874.868 | AO95: 0 | AP95: 0 | AR95: 1887 | AS95: 1 | AT95: 17966.0726 | AU95: 0.001695017777 | AV95: 0 | AW95: 0.001695017777 | AX95: 17966.07091
A96: 63 | B96: 1 | C96: 2027-12-22 | E96: 63 | F96: 63 | G96: 360 | H96: 20.1 | I96: 30 | J96: 536662.84 | K96: 12927.725 | L96: 8253.85 | M96: 213.883 | N96: 8467.733 | O96: 21395.458 | P96: 0 | Q96: 1604.62 | S96: 0 | T96: 1604.62 | U96: 174.79 | W96: 174.79 | X96: 700 | Z96: 700 | AA96: 23874.868 | AB96: 523735.12 | AC96: 0 | AE96: 21395.458 | AF96: 8253.85 | AG96: 1604.62 | AH96: 0 | AI96: 0 | AJ96: 23874.868 | AL96: 2027-12-22 | AM96: 23874.868 | AO96: 3.637978807e-12 | AP96: 0 | AR96: 1917 | AS96: 1 | AT96: 17966.07091 | AU96: 0.001695017777 | AV96: 0 | AW96: 0.001695017777 | AX96: 17966.06921
A97: 64 | B97: 1 | C97: 2028-01-22 | E97: 64 | F97: 64 | G97: 360 | H97: 20.1 | I97: 31 | J97: 523735.12 | K97: 12842.385 | L97: 8325.64 | M97: 213.883 | N97: 8539.523 | O97: 21381.908 | P97: 0 | Q97: 1618.17 | S97: 0 | T97: 1618.17 | U97: 174.79 | W97: 174.79 | X97: 700 | Z97: 700 | AA97: 23874.868 | AB97: 510892.74 | AC97: 0 | AE97: 21381.908 | AF97: 8325.64 | AG97: 1618.17 | AH97: 0 | AI97: 0 | AJ97: 23874.868 | AL97: 2028-01-22 | AM97: 23874.868 | AO97: 0 | AP97: 0 | AR97: 1948 | AS97: 1 | AT97: 17966.06921 | AU97: 0.001695017777 | AV97: 0 | AW97: 0.001695017777 | AX97: 17966.06752
A98: 65 | B98: 1 | C98: 2028-02-22 | D98: =IF(B98="","",IF(OR(MONTH(C98)=$H$19,MONTH(C98)=$H$20),"D","")) ->  | E98: 65 | F98: 65 | G98: 360 | H98: 20.1 | I98: 31 | J98: 510892.74 | K98: =IF(B98="","",IF((IF(ISERROR(MATCH(MONTH(C98),$H$19:$H$20,0))=FALSE,$J$24 + $Q$30,0) + $J$24+$Q$30+$S$27)-L98<0,0.01,IF(ISERROR(MATCH(MONTH(C98),$H$19:$H$20,0))=FALSE,$J$24 + $Q$30,0)+ ($J$24+$Q$30+$S$27)-L98)- R98 -S98-Q98-Y98-V98) -> 13086.215 | L98: =IF(B98="","",IF($J$24+$Q$30<ROUND(ROUND(J98*(((1+(H98/100))^(I98/G98))-1),4),2),$J$24+$Q$30 +-0.01,IF(ROUND(ROUND(J98*(((1+(H98/100))^(I98/G98))-1),4),2)>$J$24,$J$24+ -0.01,ROUND(ROUND(J98*(((1+(H98/100))^(I98/G98))-1),4),2)))) -> 8121.49 | M98: =IF(B98="","",IF(ISERROR(MATCH(MONTH(C98),$H$19:$H$20,0))=FALSE,$J$23,0) + $J$23) -> 213.883 | N98: =IF(B98="","",L98+M98) -> 8335.373 | O98: =IF(B98="","",K98+N98) -> 21421.588 | P98: =IF(B98="","",$J$27) -> 0 | Q98: 1578.49 | S98: 0 | T98: 1578.49 | U98: =IF(B98="","",$J$28) -> 174.79 | W98: =IF(B98="","",U98+V98) -> 174.79 | X98: 700 | Z98: =IF(B98="","",X98+Y98) -> 700 | AA98: =IF(B98="","",O98+P98+Q98+R98+S98+W98+Z98+IF(D98="D",X98+U98,0)) -> 23874.868 | AB98: =IF(B98="","",(ROUND(J98-K98,2))) -> 497806.53 | AC98: =IF(B98="","",IF(ROUND(ROUND(J98*(((1+(H98/100))^(I98/G98))-1),4),2) - $J$24<0,0,ROUND(ROUND(J98*(((1+(H98/100))^(I98/G98))-1),4),2) - $J$24)) -> 0 | AE98: =SUM(K98:M98) -> 21421.588 | AF98: =+L98 -> 8121.49 | AG98: =+Q98 -> 1578.49 | AH98: =+R98 -> 0 | AI98: =+S98 -> 0 | AJ98: =IFERROR(AF98+K98 + P98 + W98+AG98 + M98 + AH98 + AI98+Z98+IF(D98="D",X98+U98,0),"") -> 23874.868 | AL98: =+IF(C98="",0,C98) -> 2028-02-22 | AM98: 23874.868 | AO98: 0 | AP98: =+IFERROR(AF98-L98,0) -> 0 | AR98: 1979 | AS98: 1 | AT98: 17966.06752 | AU98: 0.001695017777 | AV98: 0 | AW98: =IF(D98="D",$K$23,0)+ $K$23 -> 0.001695017777 | AX98: 17966.06582
A99: =+IF(A98>=$H$15,"",A98+1) -> 66 | B99: =IF(A99="","",IF(A99<=$H$22,0,1)) -> 1 | C99: =IF(B99="","",IF(OR(MONTH(EDATE($Q$6,E99))=$H$17,MONTH(EDATE($Q$6,E99))=$H$18),IF(ABS($H$18-$H$17)=1,EDATE($Q$6,E99+2),EDATE($Q$6,E99+1)),EDATE($Q$6,E99))) -> 2028-03-22 | E99: =+IF(B99="","",IF(OR(MONTH(DATE(YEAR(C98)+0.0833333333333333,MONTH(C98)+1,DAY(C98)))=$H$17,MONTH(DATE(YEAR(C98)+0.5,MONTH(C98)+1,DAY(C98)))=$H$18),IF(ABS($H$18-$H$17)=1,E98+1,E98+2),E98+1)) -> 66 | F99: 66 | G99: 360 | H99: =IF(B99="","",$H$10) -> 20.1 | I99: 29 | J99: =IF(B99="","",AB98) -> 497806.53 | K99: 13948.215 | L99: 7399.15 | M99: 213.883 | N99: 7613.033 | O99: 21561.248 | P99: 0 | Q99: 1438.83 | S99: 0 | T99: =IF(B99="","",Q99+R99+S99) -> 1438.83 | U99: 174.79 | W99: 174.79 | X99: =IF(B99="","",IF($I$12="Sí",$J$29,0)) -> 700 | Z99: 700 | AA99: 23874.868 | AB99: 483858.32 | AC99: 0 | AE99: 21561.248 | AF99: 7399.15 | AG99: 1438.83 | AH99: 0 | AI99: 0 | AJ99: 23874.868 | AL99: 2028-03-22 | AM99: 23874.868 | AO99: =+IFERROR(AJ99-AA99,0) -> 7.275957614e-12 | AP99: 0 | AR99: 2008 | AS99: 1 | AT99: 17966.06582 | AU99: 0.001695017777 | AV99: 0 | AW99: 0.001695017777 | AX99: 17966.06413
A100: 67 | B100: 1 | C100: 2028-04-22 | E100: 67 | F100: =+IF(B100="","",F99+1) -> 67 | G100: =IF(B100="","",$Q$9) -> 360 | H100: 20.1 | I100: =IF(B100="","",C100-C99) -> 31 | J100: 483858.32 | K100: 13599.495 | L100: 7691.74 | M100: 213.883 | N100: 7905.623 | O100: 21505.118 | P100: 0 | Q100: =IF(B100="","",ROUND($H$9*J100/30*$I100,2)-S100) -> 1494.96 | S100: =IF(B100="","",IF(E100-E99>1,ROUNDDOWN($J100*$H$9/30*(DATE(YEAR($C100),MONTH($C100)-1,DAY($C100))-C99),2),0)) -> 0 | T100: 1494.96 | U100: 174.79 | W100: 174.79 | X100: 700 | Z100: 700 | AA100: 23874.868 | AB100: 470258.83 | AC100: 0 | AE100: 21505.118 | AF100: 7691.74 | AG100: 1494.96 | AH100: 0 | AI100: 0 | AJ100: 23874.868 | AL100: 2028-04-22 | AM100: 23874.868 | AO100: 0 | AP100: 0 | AR100: 2039 | AS100: 1 | AT100: =AX99 -> 17966.06413 | AU100: 0.001695017777 | AV100: 0 | AW100: 0.001695017777 | AX100: 17966.06243
A101: 68 | B101: 1 | C101: 2028-05-22 | E101: 68 | F101: 68 | G101: 360 | H101: 20.1 | I101: 30 | J101: 470258.83 | K101: 14147.565 | L101: 7232.56 | M101: 213.883 | N101: 7446.443 | O101: 21594.008 | P101: 0 | Q101: 1406.07 | S101: 0 | T101: 1406.07 | U101: 174.79 | W101: 174.79 | X101: 700 | Z101: 700 | AA101: 23874.868 | AB101: 456111.27 | AC101: 0 | AE101: 21594.008 | AF101: 7232.56 | AG101: 1406.07 | AH101: 0 | AI101: 0 | AJ101: 23874.868 | AL101: 2028-05-22 | AM101: 23874.868 | AO101: 3.637978807e-12 | AP101: 0 | AR101: =IFERROR(I101 + AR100," ") -> 2069 | AS101: 1 | AT101: 17966.06243 | AU101: 0.001695017777 | AV101: 0 | AW101: 0.001695017777 | AX101: 17966.06074
A102: 69 | B102: 1 | C102: 2028-06-22 | E102: 69 | F102: 69 | G102: 360 | H102: 20.1 | I102: 31 | J102: 456111.27 | K102: 14126.315 | L102: 7250.65 | M102: 213.883 | N102: 7464.533 | O102: 21590.848 | P102: 0 | Q102: 1409.23 | S102: 0 | T102: 1409.23 | U102: 174.79 | W102: 174.79 | X102: 700 | Z102: 700 | AA102: 23874.868 | AB102: 441984.96 | AC102: 0 | AE102: 21590.848 | AF102: 7250.65 | AG102: 1409.23 | AH102: 0 | AI102: 0 | AJ102: 23874.868 | AL102: 2028-06-22 | AM102: 23874.868 | AO102: 0 | AP102: 0 | AR102: 2100 | AS102: =IFERROR((1/((1+($J$8/100))^(AR102/$Q$9))*1) * IF(D102="D",2,1)," ") -> 1 | AT102: 17966.06074 | AU102: 0.001695017777 | AV102: 0 | AW102: 0.001695017777 | AX102: 17966.05904
A103: 70 | B103: 1 | C103: 2028-07-22 | E103: 70 | F103: 70 | G103: 360 | H103: 20.1 | I103: 30 | J103: 441984.96 | K103: 14666.945 | L103: 6797.71 | M103: 213.883 | N103: 7011.593 | O103: 21678.538 | P103: 0 | Q103: 1321.54 | S103: 0 | T103: 1321.54 | U103: 174.79 | W103: 174.79 | X103: 700 | Z103: 700 | AA103: 23874.868 | AB103: 427318.02 | AC103: 0 | AE103: 21678.538 | AF103: 6797.71 | AG103: 1321.54 | AH103: 0 | AI103: 0 | AJ103: 23874.868 | AL103: 2028-07-22 | AM103: 23874.868 | AO103: 0 | AP103: 0 | AR103: 2130 | AS103: 1 | AT103: 17966.05904 | AU103: 0.001695017777 | AV103: 0 | AW103: 0.001695017777 | AX103: 17966.05735
A104: 71 | B104: 1 | C104: 2028-08-22 | E104: 71 | F104: 71 | G104: 360 | H104: 20.1 | I104: 31 | J104: 427318.02 | K104: 14672.995 | L104: 6792.93 | M104: 213.883 | N104: 7006.813 | O104: 21679.808 | P104: 0 | Q104: 1320.27 | S104: 0 | T104: 1320.27 | U104: 174.79 | W104: 174.79 | X104: 700 | Z104: 700 | AA104: 23874.868 | AB104: 412645.03 | AC104: 0 | AE104: 21679.808 | AF104: 6792.93 | AG104: 1320.27 | AH104: 0 | AI104: 0 | AJ104: 23874.868 | AL104: 2028-08-22 | AM104: 23874.868 | AO104: 0 | AP104: 0 | AR104: 2161 | AS104: 1 | AT104: 17966.05735 | AU104: 0.001695017777 | AV104: =IFERROR((((1+($J$8/100))^((K104)/$Q$9))-1)*AT104," ") -> 0 | AW104: 0.001695017777 | AX104: 17966.05565
A105: 72 | B105: 1 | C105: 2028-09-22 | E105: 72 | F105: 72 | G105: 360 | H105: 20.1 | I105: 31 | J105: 412645.03 | K105: 14951.575 | L105: 6559.68 | M105: 213.883 | N105: 6773.563 | O105: 21725.138 | P105: 0 | Q105: 1274.94 | S105: 0 | T105: 1274.94 | U105: 174.79 | W105: 174.79 | X105: 700 | Z105: 700 | AA105: 23874.868 | AB105: 397693.46 | AC105: 0 | AE105: 21725.138 | AF105: 6559.68 | AG105: 1274.94 | AH105: 0 | AI105: 0 | AJ105: 23874.868 | AL105: 2028-09-22 | AM105: 23874.868 | AO105: 3.637978807e-12 | AP105: 0 | AR105: 2192 | AS105: 1 | AT105: 17966.05565 | AU105: 0.001695017777 | AV105: 0 | AW105: 0.001695017777 | AX105: 17966.05396
A106: 73 | B106: 1 | C106: 2028-10-22 | E106: 73 | F106: 73 | G106: 360 | H106: 20.1 | I106: 30 | J106: 397693.46 | K106: 15480.585 | L106: 6116.51 | M106: 213.883 | N106: 6330.393 | O106: 21810.978 | P106: 0 | Q106: 1189.1 | S106: 0 | T106: 1189.1 | U106: 174.79 | W106: 174.79 | X106: 700 | Z106: 700 | AA106: 23874.868 | AB106: 382212.88 | AC106: 0 | AE106: 21810.978 | AF106: 6116.51 | AG106: 1189.1 | AH106: 0 | AI106: 0 | AJ106: 23874.868 | AL106: 2028-10-22 | AM106: 23874.868 | AO106: 3.637978807e-12 | AP106: 0 | AR106: 2222 | AS106: 1 | AT106: 17966.05396 | AU106: 0.001695017777 | AV106: 0 | AW106: 0.001695017777 | AX106: 17966.05226
A107: 74 | B107: 1 | C107: 2028-11-22 | E107: 74 | F107: 74 | G107: 360 | H107: 20.1 | I107: 31 | J107: 382212.88 | K107: 15529.375 | L107: 6075.91 | M107: 213.883 | N107: 6289.793 | O107: 21819.168 | P107: 0 | Q107: 1180.91 | S107: 0 | T107: 1180.91 | U107: 174.79 | W107: 174.79 | X107: 700 | Z107: 700 | AA107: 23874.868 | AB107: 366683.51 | AC107: 0 | AE107: 21819.168 | AF107: 6075.91 | AG107: 1180.91 | AH107: 0 | AI107: 0 | AJ107: 23874.868 | AL107: 2028-11-22 | AM107: 23874.868 | AO107: 0 | AP107: 0 | AR107: 2253 | AS107: 1 | AT107: 17966.05226 | AU107: 0.001695017777 | AV107: 0 | AW107: 0.001695017777 | AX107: 17966.05057
A108: 75 | B108: 1 | C108: 2028-12-22 | E108: 75 | F108: 75 | G108: 360 | H108: 20.1 | I108: 30 | J108: 366683.51 | K108: 16050.245 | L108: 5639.57 | M108: 213.883 | N108: 5853.453 | O108: 21903.698 | P108: 0 | Q108: 1096.38 | S108: 0 | T108: 1096.38 | U108: 174.79 | W108: 174.79 | X108: 700 | Z108: 700 | AA108: 23874.868 | AB108: 350633.27 | AC108: 0 | AE108: 21903.698 | AF108: 5639.57 | AG108: 1096.38 | AH108: 0 | AI108: 0 | AJ108: 23874.868 | AL108: 2028-12-22 | AM108: 23874.868 | AO108: 0 | AP108: 0 | AR108: 2283 | AS108: 1 | AT108: 17966.05057 | AU108: 0.001695017777 | AV108: 0 | AW108: 0.001695017777 | AX108: 17966.04887
A109: 76 | B109: 1 | C109: 2029-01-22 | E109: 76 | F109: 76 | G109: 360 | H109: 20.1 | I109: 31 | J109: 350633.27 | K109: 16128.955 | L109: 5573.9 | M109: 213.883 | N109: 5787.783 | O109: 21916.738 | P109: 0 | Q109: 1083.34 | S109: 0 | T109: 1083.34 | U109: 174.79 | W109: 174.79 | X109: 700 | Z109: 700 | AA109: 23874.868 | AB109: 334504.32 | AC109: 0 | AE109: 21916.738 | AF109: 5573.9 | AG109: 1083.34 | AH109: 0 | AI109: 0 | AJ109: 23874.868 | AL109: 2029-01-22 | AM109: 23874.868 | AO109: 0 | AP109: 0 | AR109: 2314 | AS109: 1 | AT109: 17966.04887 | AU109: 0.001695017777 | AV109: 0 | AW109: 0.001695017777 | AX109: 17966.04718
A110: 77 | B110: 1 | C110: 2029-02-22 | E110: 77 | F110: 77 | G110: 360 | H110: 20.1 | I110: 31 | J110: 334504.32 | K110: 16435.185 | L110: 5317.5 | M110: 213.883 | N110: 5531.383 | O110: 21966.568 | P110: 0 | Q110: 1033.51 | S110: 0 | T110: 1033.51 | U110: 174.79 | W110: 174.79 | X110: 700 | Z110: 700 | AA110: 23874.868 | AB110: 318069.14 | AC110: 0 | AE110: 21966.568 | AF110: 5317.5 | AG110: 1033.51 | AH110: 0 | AI110: 0 | AJ110: 23874.868 | AL110: 2029-02-22 | AM110: 23874.868 | AO110: 0 | AP110: 0 | AR110: 2345 | AS110: 1 | AT110: 17966.04718 | AU110: 0.001695017777 | AV110: 0 | AW110: 0.001695017777 | AX110: 17966.04548
A111: 78 | B111: 1 | C111: 2029-03-22 | E111: 78 | F111: 78 | G111: 360 | H111: 20.1 | I111: 28 | J111: =IF(B111="","",AB110) -> 318069.14 | K111: 17335.145 | L111: 4563.43 | M111: 213.883 | N111: 4777.313 | O111: 22112.458 | P111: 0 | Q111: 887.62 | S111: 0 | T111: 887.62 | U111: 174.79 | W111: 174.79 | X111: 700 | Z111: 700 | AA111: 23874.868 | AB111: 300734 | AC111: 0 | AE111: 22112.458 | AF111: 4563.43 | AG111: 887.62 | AH111: 0 | AI111: 0 | AJ111: 23874.868 | AL111: 2029-03-22 | AM111: =+IF(AJ111="",0,AJ111) -> 23874.868 | AO111: 0 | AP111: 0 | AR111: 2373 | AS111: 1 | AT111: 17966.04548 | AU111: =IFERROR(AW111-AV111," ") -> 0.001695017777 | AV111: 0 | AW111: 0.001695017777 | AX111: =IFERROR(AT111-AU111," ") -> 17966.04379
A112: 79 | B112: 1 | C112: 2029-04-22 | E112: 79 | F112: 79 | G112: 360 | H112: 20.1 | I112: 31 | J112: 300734 | K112: 17076.355 | L112: 4780.67 | M112: 213.883 | N112: 4994.553 | O112: 22070.908 | P112: 0 | Q112: 929.17 | S112: 0 | T112: 929.17 | U112: 174.79 | W112: 174.79 | X112: 700 | Z112: 700 | AA112: 23874.868 | AB112: 283657.65 | AC112: 0 | AE112: 22070.908 | AF112: 4780.67 | AG112: 929.17 | AH112: 0 | AI112: 0 | AJ112: 23874.868 | AL112: 2029-04-22 | AM112: 23874.868 | AO112: 0 | AP112: 0 | AR112: 2404 | AS112: 1 | AT112: 17966.04379 | AU112: 0.001695017777 | AV112: 0 | AW112: 0.001695017777 | AX112: 17966.04209
A113: 80 | B113: 1 | C113: 2029-05-22 | E113: 80 | F113: 80 | G113: 360 | H113: 20.1 | I113: 30 | J113: 283657.65 | K113: 17575.415 | L113: 4362.64 | M113: 213.883 | N113: 4576.523 | O113: 22151.938 | P113: 0 | Q113: 848.14 | S113: 0 | T113: 848.14 | U113: 174.79 | W113: 174.79 | X113: 700 | Z113: 700 | AA113: 23874.868 | AB113: 266082.24 | AC113: 0 | AE113: 22151.938 | AF113: 4362.64 | AG113: 848.14 | AH113: 0 | AI113: 0 | AJ113: 23874.868 | AL113: 2029-05-22 | AM113: 23874.868 | AO113: 0 | AP113: 0 | AR113: 2434 | AS113: 1 | AT113: 17966.04209 | AU113: 0.001695017777 | AV113: 0 | AW113: 0.001695017777 | AX113: 17966.0404
A114: 81 | B114: 1 | C114: 2029-06-22 | E114: 81 | F114: 81 | G114: 360 | H114: 20.1 | I114: 31 | J114: 266082.24 | K114: 17734.265 | L114: 4229.82 | M114: 213.883 | N114: 4443.703 | O114: 22177.968 | P114: 0 | Q114: 822.11 | S114: 0 | T114: 822.11 | U114: 174.79 | W114: 174.79 | X114: 700 | Z114: 700 | AA114: 23874.868 | AB114: 248347.98 | AC114: 0 | AE114: 22177.968 | AF114: 4229.82 | AG114: 822.11 | AH114: 0 | AI114: 0 | AJ114: 23874.868 | AL114: 2029-06-22 | AM114: 23874.868 | AO114: 3.637978807e-12 | AP114: 0 | AR114: 2465 | AS114: 1 | AT114: 17966.0404 | AU114: 0.001695017777 | AV114: 0 | AW114: 0.001695017777 | AX114: 17966.0387
A115: 82 | B115: 1 | C115: 2029-07-22 | E115: 82 | F115: 82 | G115: 360 | H115: 20.1 | I115: 30 | J115: 248347.98 | K115: 18224.055 | L115: 3819.58 | M115: 213.883 | N115: 4033.463 | O115: 22257.518 | P115: 0 | Q115: 742.56 | S115: 0 | T115: 742.56 | U115: 174.79 | W115: 174.79 | X115: 700 | Z115: 700 | AA115: 23874.868 | AB115: 230123.93 | AC115: 0 | AE115: 22257.518 | AF115: 3819.58 | AG115: 742.56 | AH115: 0 | AI115: 0 | AJ115: 23874.868 | AL115: 2029-07-22 | AM115: 23874.868 | AO115: 0 | AP115: 0 | AR115: 2495 | AS115: 1 | AT115: 17966.0387 | AU115: 0.001695017777 | AV115: 0 | AW115: 0.001695017777 | AX115: 17966.03701
A116: 83 | B116: 1 | C116: 2029-08-22 | E116: 83 | F116: 83 | G116: 360 | H116: 20.1 | I116: 31 | J116: 230123.93 | K116: 18416.985 | L116: 3658.2 | M116: 213.883 | N116: 3872.083 | O116: 22289.068 | P116: 0 | Q116: 711.01 | S116: 0 | T116: 711.01 | U116: 174.79 | W116: 174.79 | X116: 700 | Z116: 700 | AA116: 23874.868 | AB116: 211706.95 | AC116: 0 | AE116: 22289.068 | AF116: 3658.2 | AG116: 711.01 | AH116: 0 | AI116: 0 | AJ116: 23874.868 | AL116: 2029-08-22 | AM116: 23874.868 | AO116: 3.637978807e-12 | AP116: 0 | AR116: 2526 | AS116: 1 | AT116: 17966.03701 | AU116: 0.001695017777 | AV116: 0 | AW116: 0.001695017777 | AX116: 17966.03531
A117: 84 | B117: 1 | C117: 2029-09-22 | E117: 84 | F117: 84 | G117: 360 | H117: 20.1 | I117: 31 | J117: =IF(B117="","",AB116) -> 211706.95 | K117: =IF(B117="","",IF((IF(ISERROR(MATCH(MONTH(C117),$H$19:$H$20,0))=FALSE,$J$24 + $Q$30,0) + $J$24+$Q$30+$S$27)-L117<0,0.01,IF(ISERROR(MATCH(MONTH(C117),$H$19:$H$20,0))=FALSE,$J$24 + $Q$30,0)+ ($J$24+$Q$30+$S$27)-L117)- R117 -S117-Q117-Y117-V117) -> 18766.655 | L117: 3365.44 | M117: 213.883 | N117: 3579.323 | O117: 22345.978 | P117: 0 | Q117: 654.1 | S117: 0 | T117: 654.1 | U117: 174.79 | W117: 174.79 | X117: 700 | Z117: 700 | AA117: 23874.868 | AB117: 192940.3 | AC117: 0 | AE117: 22345.978 | AF117: 3365.44 | AG117: 654.1 | AH117: 0 | AI117: 0 | AJ117: 23874.868 | AL117: 2029-09-22 | AM117: 23874.868 | AO117: 0 | AP117: 0 | AR117: 2557 | AS117: 1 | AT117: 17966.03531 | AU117: 0.001695017777 | AV117: 0 | AW117: 0.001695017777 | AX117: 17966.03362
AE118: 0 | AH118: 0 | AL118: 00:00:00 | AM118: 0 | AO118: 0 | AP118: 0 | AT118: 17966.03362 | AW118: 0.001695017777
AE119: 0 | AH119: 0 | AL119: 00:00:00 | AM119: 0 | AO119: 0 | AP119: 0 | AW119: 0.001695017777
AE120: 0 | AH120: 0 | AL120: 00:00:00 | AM120: 0 | AO120: 0 | AP120: 0 | AW120: 0.001695017777
AE121: 0 | AH121: 0 | AL121: 00:00:00 | AM121: 0 | AO121: 0 | AP121: 0 | AW121: 0.001695017777
AE122: 0 | AH122: 0 | AL122: 00:00:00 | AM122: 0 | AO122: 0 | AP122: 0 | AW122: 0.001695017777
AE123: 0 | AH123: 0 | AL123: 00:00:00 | AM123: 0 | AO123: 0 | AP123: 0 | AW123: 0.001695017777
AE124: 0 | AH124: 0 | AL124: 00:00:00 | AM124: 0 | AO124: 0 | AP124: 0 | AW124: 0.001695017777
AE125: 0 | AH125: 0 | AL125: 00:00:00 | AM125: 0 | AO125: 0 | AP125: 0 | AW125: 0.001695017777
AE126: 0 | AH126: 0 | AL126: 00:00:00 | AM126: 0 | AO126: 0 | AP126: 0 | AW126: 0.001695017777
AE127: 0 | AH127: 0 | AL127: 00:00:00 | AM127: 0 | AO127: 0 | AP127: 0 | AW127: 0.001695017777
AE128: 0 | AH128: 0 | AL128: 00:00:00 | AM128: 0 | AO128: 0 | AP128: 0 | AW128: 0.001695017777
AE129: 0 | AH129: 0 | AL129: 00:00:00 | AM129: 0 | AO129: 0 | AP129: 0 | AW129: 0.001695017777
AE130: 0 | AH130: 0 | AL130: 00:00:00 | AM130: 0 | AO130: 0 | AP130: 0 | AW130: 0.001695017777
AE131: 0 | AH131: 0 | AL131: 00:00:00 | AM131: 0 | AO131: 0 | AP131: 0 | AW131: 0.001695017777
AE132: 0 | AH132: 0 | AL132: 00:00:00 | AM132: 0 | AO132: 0 | AP132: 0 | AW132: 0.001695017777
AE133: 0 | AH133: 0 | AL133: 00:00:00 | AM133: 0 | AO133: 0 | AP133: 0 | AW133: 0.001695017777
AE134: 0 | AH134: 0 | AL134: 00:00:00 | AM134: 0 | AO134: 0 | AP134: 0 | AW134: 0.001695017777
AE135: 0 | AH135: 0 | AL135: 00:00:00 | AM135: 0 | AO135: 0 | AP135: 0 | AW135: 0.001695017777
AE136: 0 | AH136: 0 | AL136: 00:00:00 | AM136: 0 | AO136: 0 | AP136: 0 | AW136: 0.001695017777
AE137: 0 | AH137: 0 | AL137: 00:00:00 | AM137: 0 | AO137: 0 | AP137: 0 | AW137: 0.001695017777
AE138: 0 | AH138: 0 | AL138: 00:00:00 | AM138: 0 | AO138: 0 | AP138: 0 | AW138: 0.001695017777
AE139: 0 | AH139: 0 | AL139: 00:00:00 | AM139: 0 | AO139: 0 | AP139: 0 | AW139: 0.001695017777
AE140: 0 | AH140: 0 | AL140: 00:00:00 | AM140: 0 | AO140: 0 | AP140: 0 | AW140: 0.001695017777
AE141: 0 | AH141: 0 | AL141: 00:00:00 | AM141: 0 | AO141: 0 | AP141: 0 | AW141: 0.001695017777
AE142: 0 | AH142: 0 | AL142: 00:00:00 | AM142: 0 | AO142: 0 | AP142: 0 | AW142: 0.001695017777
AE143: 0 | AH143: 0 | AL143: 00:00:00 | AM143: 0 | AO143: 0 | AP143: 0 | AW143: 0.001695017777
AE144: 0 | AH144: 0 | AL144: 00:00:00 | AM144: 0 | AO144: 0 | AP144: 0 | AW144: 0.001695017777
AE145: 0 | AH145: 0 | AL145: 00:00:00 | AM145: 0 | AO145: 0 | AP145: 0 | AW145: 0.001695017777
AE146: 0 | AH146: 0 | AL146: 00:00:00 | AM146: 0 | AO146: 0 | AP146: 0 | AW146: 0.001695017777
AE147: 0 | AH147: 0 | AL147: 00:00:00 | AM147: 0 | AO147: 0 | AP147: 0 | AW147: 0.001695017777
AE148: 0 | AH148: 0 | AL148: 00:00:00 | AM148: 0 | AO148: 0 | AP148: 0 | AW148: 0.001695017777
AE149: 0 | AH149: 0 | AL149: 00:00:00 | AM149: 0 | AO149: 0 | AP149: 0 | AW149: 0.001695017777
AE150: 0 | AH150: 0 | AL150: 00:00:00 | AM150: 0 | AO150: 0 | AP150: 0 | AW150: 0.001695017777
AE151: 0 | AH151: 0 | AL151: 00:00:00 | AM151: 0 | AO151: 0 | AP151: 0 | AW151: 0.001695017777
AE152: 0 | AH152: 0 | AL152: 00:00:00 | AM152: 0 | AO152: 0 | AP152: 0 | AW152: 0.001695017777
AE153: 0 | AH153: 0 | AL153: 00:00:00 | AM153: 0 | AO153: 0 | AP153: 0 | AW153: 0.001695017777
AE154: 0 | AH154: 0 | AL154: 00:00:00 | AM154: 0 | AO154: 0 | AP154: 0 | AW154: 0.001695017777
AE155: 0 | AH155: 0 | AL155: 00:00:00 | AM155: 0 | AO155: 0 | AP155: 0 | AW155: 0.001695017777
AE156: 0 | AH156: 0 | AL156: 00:00:00 | AM156: 0 | AO156: 0 | AP156: 0 | AW156: 0.001695017777
AE157: 0 | AH157: 0 | AL157: 00:00:00 | AM157: 0 | AO157: 0 | AP157: 0 | AW157: 0.001695017777
AE158: 0 | AH158: 0 | AL158: 00:00:00 | AM158: 0 | AO158: 0 | AP158: 0 | AW158: 0.001695017777
AE159: 0 | AH159: 0 | AL159: 00:00:00 | AM159: 0 | AO159: 0 | AP159: 0 | AW159: 0.001695017777
AE160: 0 | AH160: 0 | AL160: 00:00:00 | AM160: 0 | AO160: 0 | AP160: 0 | AW160: 0.001695017777
AE161: 0 | AH161: 0 | AL161: 00:00:00 | AM161: 0 | AO161: 0 | AP161: 0 | AW161: 0.001695017777
D162: =IF(B162="","",IF(OR(MONTH(C162)=$H$19,MONTH(C162)=$H$20),"D","")) ->  | K162: =IF(B162="","",IF((IF(ISERROR(MATCH(MONTH(C162),$H$19:$H$20,0))=FALSE,$J$24 + $Q$30,0) + $J$24+$Q$30+$S$27)-L162<0,0.01,IF(ISERROR(MATCH(MONTH(C162),$H$19:$H$20,0))=FALSE,$J$24 + $Q$30,0)+ ($J$24+$Q$30+$S$27)-L162)- R162 -S162-Q162-Y162-V162) ->  | L162: =IF(B162="","",IF($J$24+$Q$30<ROUND(ROUND(J162*(((1+(H162/100))^(I162/G162))-1),4),2),$J$24+$Q$30 +-0.01,IF(ROUND(ROUND(J162*(((1+(H162/100))^(I162/G162))-1),4),2)>$J$24,$J$24+ -0.01,ROUND(ROUND(J162*(((1+(H162/100))^(I162/G162))-1),4),2)))) ->  | M162: =IF(B162="","",IF(ISERROR(MATCH(MONTH(C162),$H$19:$H$20,0))=FALSE,$J$23,0) + $J$23) ->  | N162: =IF(B162="","",L162+M162) ->  | O162: =IF(B162="","",K162+N162) ->  | P162: =IF(B162="","",$J$27) ->  | U162: =IF(B162="","",$J$28) ->  | W162: =IF(B162="","",U162+V162) ->  | Z162: =IF(B162="","",X162+Y162) ->  | AA162: =IF(B162="","",O162+P162+Q162+R162+S162+W162+Z162+IF(D162="D",X162+U162,0)) ->  | AB162: =IF(B162="","",(ROUND(J162-K162,2))) ->  | AC162: =IF(B162="","",IF(ROUND(ROUND(J162*(((1+(H162/100))^(I162/G162))-1),4),2) - $J$24<0,0,ROUND(ROUND(J162*(((1+(H162/100))^(I162/G162))-1),4),2) - $J$24)) ->  | AE162: =SUM(K162:M162) -> 0 | AF162: =+L162 ->  | AG162: =+Q162 ->  | AH162: =+R162 -> 0 | AI162: =+S162 ->  | AJ162: =IFERROR(AF162+K162 + P162 + W162+AG162 + M162 + AH162 + AI162+Z162+IF(D162="D",X162+U162,0),"") ->  | AL162: =+IF(C162="",0,C162) -> 00:00:00 | AM162: 0 | AO162: 0 | AP162: =+IFERROR(AF162-L162,0) -> 0 | AW162: =IF(D162="D",$K$23,0)+ $K$23 -> 0.001695017777
A163: =+IF(A162>=$H$15,"",A162+1) ->  | B163: =IF(A163="","",IF(A163<=$H$22,0,1)) ->  | C163: =IF(B163="","",IF(OR(MONTH(EDATE($Q$6,E163))=$H$17,MONTH(EDATE($Q$6,E163))=$H$18),IF(ABS($H$18-$H$17)=1,EDATE($Q$6,E163+2),EDATE($Q$6,E163+1)),EDATE($Q$6,E163))) ->  | E163: =+IF(B163="","",IF(OR(MONTH(DATE(YEAR(C162)+0.0833333333333333,MONTH(C162)+1,DAY(C162)))=$H$17,MONTH(DATE(YEAR(C162)+0.5,MONTH(C162)+1,DAY(C162)))=$H$18),IF(ABS($H$18-$H$17)=1,E162+1,E162+2),E162+1)) ->  | H163: =IF(B163="","",$H$10) ->  | J163: =IF(B163="","",AB162) ->  | T163: =IF(B163="","",Q163+R163+S163) ->  | X163: =IF(B163="","",IF($I$12="Sí",$J$29,0)) ->  | AE163: 0 | AH163: 0 | AL163: 00:00:00 | AM163: 0 | AO163: =+IFERROR(AJ163-AA163,0) -> 0 | AP163: 0 | AW163: 0.001695017777
F164: =+IF(B164="","",F163+1) ->  | G164: =IF(B164="","",$Q$9) ->  | I164: =IF(B164="","",C164-C163) ->  | Q164: =IF(B164="","",ROUND($H$9*J164/30*$I164,2)-S164) ->  | S164: =IF(B164="","",IF(E164-E163>1,ROUNDDOWN($J164*$H$9/30*(DATE(YEAR($C164),MONTH($C164)-1,DAY($C164))-C163),2),0)) ->  | AE164: 0 | AH164: 0 | AL164: 00:00:00 | AM164: 0 | AO164: 0 | AP164: 0 | AT164: =AX163 ->  | AW164: 0.001695017777
AE165: 0 | AH165: 0 | AL165: 00:00:00 | AM165: 0 | AO165: 0 | AP165: 0 | AR165: =IFERROR(I165 + AR164," ") ->  | AW165: 0.001695017777
AE166: 0 | AH166: 0 | AL166: 00:00:00 | AM166: 0 | AO166: 0 | AP166: 0 | AS166: =IFERROR((1/((1+($J$8/100))^(AR166/$Q$9))*1) * IF(D166="D",2,1)," ") ->  | AW166: 0.001695017777
AE167: 0 | AH167: 0 | AL167: 00:00:00 | AM167: 0 | AO167: 0 | AP167: 0 | AW167: 0.001695017777
AE168: 0 | AH168: 0 | AL168: 00:00:00 | AM168: 0 | AO168: 0 | AP168: 0 | AV168: =IFERROR((((1+($J$8/100))^((K168)/$Q$9))-1)*AT168," ") ->  | AW168: 0.001695017777
AE169: 0 | AH169: 0 | AL169: 00:00:00 | AM169: 0 | AO169: 0 | AP169: 0 | AW169: 0.001695017777
AE170: 0 | AH170: 0 | AL170: 00:00:00 | AM170: 0 | AO170: 0 | AP170: 0 | AW170: 0.001695017777
AE171: 0 | AH171: 0 | AL171: 00:00:00 | AM171: 0 | AO171: 0 | AP171: 0 | AW171: 0.001695017777
AE172: 0 | AH172: 0 | AL172: 00:00:00 | AM172: 0 | AO172: 0 | AP172: 0 | AW172: 0.001695017777
AE173: 0 | AH173: 0 | AL173: 00:00:00 | AM173: 0 | AO173: 0 | AP173: 0 | AW173: 0.001695017777
AE174: 0 | AH174: 0 | AL174: 00:00:00 | AM174: 0 | AO174: 0 | AP174: 0 | AW174: 0.001695017777
AE175: 0 | AH175: 0 | AL175: 00:00:00 | AM175: =+IF(AJ175="",0,AJ175) -> 0 | AO175: 0 | AP175: 0 | AU175: =IFERROR(AW175-AV175," ") ->  | AW175: 0.001695017777 | AX175: =IFERROR(AT175-AU175," ") -> 
AE176: 0 | AH176: 0 | AL176: 00:00:00 | AM176: 0 | AO176: 0 | AP176: 0 | AW176: 0.001695017777
AE177: 0 | AH177: 0 | AL177: 00:00:00 | AM177: 0 | AO177: 0 | AP177: 0 | AW177: 0.001695017777
AE178: 0 | AH178: 0 | AL178: 00:00:00 | AM178: 0 | AO178: 0 | AP178: 0 | AW178: 0.001695017777
AE179: 0 | AH179: 0 | AL179: 00:00:00 | AM179: 0 | AO179: 0 | AP179: 0 | AW179: 0.001695017777
AE180: 0 | AH180: 0 | AL180: 00:00:00 | AM180: 0 | AO180: 0 | AP180: 0 | AW180: 0.001695017777
AE181: 0 | AH181: 0 | AL181: 00:00:00 | AM181: 0 | AO181: 0 | AP181: 0 | AW181: 0.001695017777
AE182: 0 | AH182: 0 | AL182: 00:00:00 | AM182: 0 | AO182: 0 | AP182: 0 | AW182: 0.001695017777
AE183: 0 | AH183: 0 | AL183: 00:00:00 | AM183: 0 | AO183: 0 | AP183: 0 | AW183: 0.001695017777
AE184: 0 | AH184: 0 | AL184: 00:00:00 | AM184: 0 | AO184: 0 | AP184: 0 | AW184: 0.001695017777
AE185: 0 | AH185: 0 | AL185: 00:00:00 | AM185: 0 | AO185: 0 | AP185: 0 | AW185: 0.001695017777
AE186: 0 | AH186: 0 | AL186: 00:00:00 | AM186: 0 | AO186: 0 | AP186: 0 | AW186: 0.001695017777
AE187: 0 | AH187: 0 | AL187: 00:00:00 | AM187: 0 | AO187: 0 | AP187: 0 | AW187: 0.001695017777
AE188: 0 | AH188: 0 | AL188: 00:00:00 | AM188: 0 | AO188: 0 | AP188: 0 | AW188: 0.001695017777
AE189: 0 | AH189: 0 | AL189: 00:00:00 | AM189: 0 | AO189: 0 | AP189: 0 | AW189: 0.001695017777
AE190: 0 | AH190: 0 | AL190: 00:00:00 | AM190: 0 | AO190: 0 | AP190: 0 | AW190: 0.001695017777
AE191: 0 | AH191: 0 | AL191: 00:00:00 | AM191: 0 | AO191: 0 | AP191: 0 | AW191: 0.001695017777
AE192: 0 | AH192: 0 | AL192: 00:00:00 | AM192: 0 | AO192: 0 | AP192: 0 | AW192: 0.001695017777
AE193: 0 | AH193: 0 | AL193: 00:00:00 | AM193: 0 | AO193: 0 | AP193: 0 | AW193: 0.001695017777
AE194: 0 | AH194: 0 | AL194: 00:00:00 | AM194: 0 | AO194: 0 | AP194: 0 | AW194: 0.001695017777
AE195: 0 | AH195: 0 | AL195: 00:00:00 | AM195: 0 | AO195: 0 | AP195: 0 | AW195: 0.001695017777
AE196: 0 | AH196: 0 | AL196: 00:00:00 | AM196: 0 | AO196: 0 | AP196: 0 | AW196: 0.001695017777
AE197: 0 | AH197: 0 | AL197: 00:00:00 | AM197: 0 | AO197: 0 | AP197: 0 | AW197: 0.001695017777
AE198: 0 | AH198: 0 | AL198: 00:00:00 | AM198: 0 | AO198: 0 | AP198: 0 | AW198: 0.001695017777
AE199: 0 | AH199: 0 | AL199: 00:00:00 | AM199: 0 | AO199: 0 | AP199: 0 | AW199: 0.001695017777
AE200: 0 | AH200: 0 | AL200: 00:00:00 | AM200: 0 | AO200: 0 | AP200: 0 | AW200: 0.001695017777
AE201: 0 | AH201: 0 | AL201: 00:00:00 | AM201: 0 | AO201: 0 | AP201: 0 | AW201: 0.001695017777
AE202: 0 | AH202: 0 | AL202: 00:00:00 | AM202: 0 | AO202: 0 | AP202: 0 | AW202: 0.001695017777
AE203: 0 | AH203: 0 | AL203: 00:00:00 | AM203: 0 | AO203: 0 | AP203: 0 | AW203: 0.001695017777
AE204: 0 | AH204: 0 | AL204: 00:00:00 | AM204: 0 | AO204: 0 | AP204: 0 | AW204: 0.001695017777
... 71 more rows

Sheet Cronograma_Referencial (2) (hidden)
A1: Simulador12345
B5: (SIMULACIÓN)
B6: CRONOGRAMA DE PAGOS
B9: Moneda : | D9: =+Simulador_Cliente!C7 -> Soles | F9: Monto del Préstamo : | H9: =+Simulador_Cliente!C9 -> 1000000
B10: Producto : | D10: =+Simulador_Cliente!C8 -> Capital de Trabajo PYME | F10: Tasa Efectiva Anual : | H10: =+Simulador_Cliente!C12&"%" -> 20.1%
B11: Fecha de desembolso : | D11: =+Simulador_Cliente!C10 -> 2022-07-17 | F11: Tasa de Costo Efectiva Anual : | H11: =+((1+I11)^12)-1 ->  | I11: =+RATE(D12,J18,-H9-I12) -> 
B12: Plazo (en meses) : | D12: =+Simulador_Cliente!C11 -> 84 | F12: Tasa Seguro de Desgravamen Mensual : | H12: =+IF(Simulador_Cliente!C14="Endoso",0,0.083%) -> 0.00083 | I12: =+#REF! -> 
B13: Periodo de gracia : | D13: =+Simulador_Cliente!C13&" "& "días" -> 35 días | F13: Tasa Seguro de Seguro Multiriesgo : | H13: =+IF(Simulador_Cliente!C16="No",0,0.07%) -> 0.0007
F14: Tasa Seguro Todo Riesgo : | H14: =+IF(Simulador_Cliente!C17="No",0,0.0292%) -> 0.000292
B17: N° | C17: Fecha Vencimiento | D17: Capital | E17: Interes | F17: Interes de Gracia | G17: Seguro Desgravamen | H17: Seguro Multiriesgos | I17: Seguro Todo Riesgo | J17: Total Cuota
B18: 1 | C18: =IFERROR(+IF(B18>0,VLOOKUP(B18,#REF!,3,0)," ")," ") ->  | D18: =IFERROR(+IF(B18>0,VLOOKUP(B18,#REF!,13,0)," ")," ") ->  | E18: =IFERROR(+IF(B18>0,VLOOKUP(B18,Simulador_v2!$A$33:$AJ$273,12,0)," ")," ") -> 15379.95 | F18: =IFERROR(+IF(B18>0,VLOOKUP(B18,#REF!,15,0)," ")," ") ->  | G18: =IFERROR(+IF(B18>0,VLOOKUP(B18,Simulador_v2!$A$33:$AJ$273,20,0)," ")," ") -> 6478.33 | H18: =IFERROR(+IF(B18>0,VLOOKUP(B18,#REF!,20,0)," ")," ") ->  | I18: =IFERROR(+IF(B18>0,VLOOKUP(B18,#REF!,22,0)," ")," ") ->  | J18: =IFERROR(+IF(B18>0,VLOOKUP(B18,#REF!,23,0)," ")," ") -> 
B19: =IF(B18=0," ",IF(B18>=$D$12,"",B18+1)) -> 2 | C19: =IF($D$12=0," ",IF(B18=$D$12,"TOTALES",+IF(B19>0,VLOOKUP(B19,#REF!,3,0)," "))) ->  | D19: =IF($D$12=0," ",IF(B18=$D$12,#REF!,+IF(B19>0,VLOOKUP(B19,#REF!,13,0)," "))) ->  | E19: =IF($D$12=0," ",IF(B18=$D$12,#REF!,+IF(B19>0,VLOOKUP(B19,#REF!,14,0)," "))) ->  | F19: =IF($D$12=0," ",IF(B18=$D$12,#REF!,+IF(B19>0,VLOOKUP(B19,#REF!,15,0)," "))) ->  | G19: =IF($D$12=0," ",IF(B18=$D$12,Simulador_v2!$T$32,+IF(B19>0,VLOOKUP(B19,Simulador_v2!$A$33:$AJ$273,20,0)," "))) -> 3089.95 | H19: =IF($D$12=0," ",IF(B18=$D$12,#REF!,+IF(B19>0,VLOOKUP(B19,#REF!,20,0)," "))) ->  | I19: =IF($D$12=0," ",IF(B18=$D$12,#REF!,+IF(B19>0,VLOOKUP(B19,#REF!,22,0)," "))) ->  | J19: =IF($D$12=0," ",IF(B18=$D$12,#REF!,+IF(B19>0,VLOOKUP(B19,#REF!,23,0)," "))) -> 
B20: 3 | C20: =IF($D$12=0," ",IF(B19=$D$12,"TOTALES",+IF(B20>0,VLOOKUP(B20,#REF!,3,0)," "))) ->  | D20: =IF($D$12=0," ",IF(B19=$D$12,#REF!,+IF(B20>0,VLOOKUP(B20,#REF!,13,0)," "))) ->  | E20: =IF($D$12=0," ",IF(B19=$D$12,#REF!,+IF(B20>0,VLOOKUP(B20,#REF!,14,0)," "))) ->  | F20: =IF($D$12=0," ",IF(B19=$D$12,#REF!,+IF(B20>0,VLOOKUP(B20,#REF!,15,0)," "))) ->  | G20: =IF($D$12=0," ",IF(B19=$D$12,Simulador_v2!$T$32,+IF(B20>0,VLOOKUP(B20,Simulador_v2!$A$33:$AJ$273,20,0)," "))) -> 2978.92 | H20: =IF($D$12=0," ",IF(B19=$D$12,#REF!,+IF(B20>0,VLOOKUP(B20,#REF!,20,0)," "))) ->  | I20: =IF($D$12=0," ",IF(B19=$D$12,#REF!,+IF(B20>0,VLOOKUP(B20,#REF!,22,0)," "))) ->  | J20: =IF($D$12=0," ",IF(B19=$D$12,#REF!,+IF(B20>0,VLOOKUP(B20,#REF!,23,0)," "))) -> 
